Workbook

Sheet District Summary
A1: Wyoming Block Grant - School District Resource Summary
A3: 9999999 | B3: =VLOOKUP($A$3,'Base Sheet'!$A$10:$X$58,2) -> State Total | C3: =VLOOKUP($A$3,'Base Sheet'!$A$10:$X$58,3) -> 92397.70767 | E3: Wyoming Funding Model Version 2(b) 03-18-12 & Final FY 2015 Payment Model 7-1-14
A4: Enter 7-digit district ID | C4: ADM | G4: District Level-Model FTE's | H4: =SUM(C13:C14,C21:C23) -> 2124.246102
A5: For state totals enter 9999999 | G5: School Level-Model FTE's | H5: =SUM(C44:C66) -> 10014.89008
H6: =SUM(H4:H5) -> 12139.13618
H7: Total of all FTEs
A8: District Level Resources: | H8: =G31+G10 -> 519564896.5
A10: Sub-Total District Level Model Resources: | G10: =E12+E20+E26+E27+E29 -> 219859828.8
C11: FTE | D11: Funding
A12: Central Office & Library: | E12: =SUM(D13:D18) -> 89871231.68
B13: Professional | C13: =VLOOKUP($A$3,'Central Office'!$A$6:$K$54,4) -> 282.1382912 | D13: =VLOOKUP($A$3,'Central Office'!$A$6:$K$54,7) -> 38598912.82
B14: Clerical | C14: =VLOOKUP($A$3,'Central Office'!$A$6:$K$54,5) -> 320.8730728 | D14: =VLOOKUP($A$3,'Central Office'!$A$6:$K$54,8) -> 18664536.48
B15: Librarians - If using Consultant Recommendation | C15: =VLOOKUP($A$3,'Librarian, Clerk, Comp Tech.'!$A$6:$T$54,11) -> 0 | D15: =VLOOKUP($A$3,'Librarian, Clerk, Comp Tech.'!$A$6:$T$54,17) -> 0
B16: Librarian Clerks - If using Consultant Recommendation | C16: =VLOOKUP($A$3,'Librarian, Clerk, Comp Tech.'!$A$6:$T$54,14) -> 0 | D16: =VLOOKUP($A$3,'Librarian, Clerk, Comp Tech.'!$A$6:$T$54,18) -> 0
B17: Computer Technicians - If using Consultant Recommendation | C17: =VLOOKUP($A$3,'Librarian, Clerk, Comp Tech.'!$A$6:$T$54,15) -> 0 | D17: =VLOOKUP($A$3,'Librarian, Clerk, Comp Tech.'!$A$6:$T$54,19) -> 0
B18: Non-Personnel | D18: =VLOOKUP($A$3,'Central Office'!$A$6:$K$54,10) -> 32607782.38
A20: Operations & Maintenance: | E20: =SUM(D21:D24) -> 95873946.31
B21: Custodians | C21: =VLOOKUP($A$3,'O&M Base Sheet'!$A$7:$N$55,5) -> 749.0426369 | D21: =VLOOKUP($A$3,'O&M Base Sheet'!$A$7:$N$55,8) -> 38132267.79
B22: Maintenance Workers | C22: =VLOOKUP($A$3,'O&M Base Sheet'!$A$7:$N$55,6) -> 330.4688656 | D22: =VLOOKUP($A$3,'O&M Base Sheet'!$A$7:$N$55,9) -> 19267636.89
B23: Groundskeepers | C23: =VLOOKUP($A$3,'O&M Base Sheet'!$A$7:$N$55,7) -> 441.7232352 | D23: =VLOOKUP($A$3,'O&M Base Sheet'!$A$7:$N$55,10) -> 25857157
B24: Supplies | D24: =VLOOKUP($A$3,'O&M Base Sheet'!$A$7:$N$55,13) -> 12616884.63
A26: Activities - If using Consultant Recommendation | E26: =VLOOKUP($A$3,'Base Sheet'!$A$10:$AB$58,8) -> 0
A27: Utilities | E27: =VLOOKUP($A$3,'Base Sheet'!$A$10:$AB$58,9) -> 34114650.78
A29: First Year Charter School Adjustment | E29: =VLOOKUP($A$3,'Base Sheet'!$A$10:$X$58,16) -> 0
A31: Sub-Total District Level Reimbursables: | G31: =SUM(E32:E34) -> 299705067.8
A32: Special Education | E32: =VLOOKUP($A$3,'Base Sheet'!$A$10:$X$58,18) -> 211784154.8
A33: Transportation | E33: =VLOOKUP($A$3,'Base Sheet'!$A$10:$X$58,17) -> 73403146.44
A34: Other Reimbursables | E34: =VLOOKUP($A$3,'Base Sheet'!$A$10:$AB$58,15) -> 14517766.5
A39: School Level Resources: (see school resource summary sheets) | H39: =G41+G68 -> 858398442.6
A41: Sub-Total Staffing Costs: | G41: =SUM(D44:D66) -> 747206374.7
C42: FTE | D42: Funding
A44: * | B44: Reg Classroom/Core Teachers | C44: =VLOOKUP($A$3,'School Res-Dist Rollup'!$A$6:$ER$54,23) -> 5009.656045 | D44: =VLOOKUP($A$3,'School Res-Dist Rollup'!$A$6:$ER$54,87) -> 385917762.6
A45: * | B45: Specialist Teachers | C45: =VLOOKUP($A$3,'School Res-Dist Rollup'!$A$6:$ER$54,28) -> 1468.422519 | D45: =VLOOKUP($A$3,'School Res-Dist Rollup'!$A$6:$ER$54,92) -> 112702841.4
A46: * | B46: Alternative Teachers | C46: =VLOOKUP($A$3,'School Res-Dist Rollup'!$A$6:$ER$54,29) -> 129.7912857 | D46: =VLOOKUP($A$3,'School Res-Dist Rollup'!$A$6:$ER$54,93) -> 10109246.09
A47: * | B47: Small School Teachers-ADM 49 or less | C47: =VLOOKUP($A$3,'School Res-Dist Rollup'!$A$6:$ER$54,30) -> 175.3861429 | D47: =VLOOKUP($A$3,'School Res-Dist Rollup'!$A$6:$ER$54,94) -> 13392971.85
B48: Additional Small District Teachers - Dist. ADM 243 or less | C48: =VLOOKUP($A$3,'School Res-Dist Rollup'!$A$6:$ER$54,31) -> 13.10960357 | D48: =VLOOKUP($A$3,'School Res-Dist Rollup'!$A$6:$ER$54,95) -> 998578.4379
A49: * | B49: Additional Voc Ed Teachers | C49: =VLOOKUP($A$3,'School Res-Dist Rollup'!$A$6:$ER$54,32) -> 40.32974762 | D49: =VLOOKUP($A$3,'School Res-Dist Rollup'!$A$6:$ER$54,96) -> 3098155.325
A50: * | B50: Instructional Facilitators | C50: =VLOOKUP($A$3,'School Res-Dist Rollup'!$A$6:$ER$54,36) -> 0 | D50: =VLOOKUP($A$3,'School Res-Dist Rollup'!$A$6:$ER$54,100) -> 0
A51: * | B51: Tutors | C51: =VLOOKUP($A$3,'School Res-Dist Rollup'!$A$6:$ER$54,41) -> 385.6207741 | D51: =VLOOKUP($A$3,'School Res-Dist Rollup'!$A$6:$ER$54,105) -> 29707989.45
A52: * | B52: Ell Teachers | C52: =VLOOKUP($A$3,'School Res-Dist Rollup'!$A$6:$ER$54,42) -> 37.6 | D52: =VLOOKUP($A$3,'School Res-Dist Rollup'!$A$6:$ER$54,106) -> 2949311.053
A53: * | B53: Summer School Teachers | C53: =VLOOKUP($A$3,'School Res-Dist Rollup'!$A$6:$ER$54,43) -> 0 | D53: =VLOOKUP($A$3,'School Res-Dist Rollup'!$A$6:$ER$54,107) -> 0
A54: * | B54: Extended Day Teachers | C54: =VLOOKUP($A$3,'School Res-Dist Rollup'!$A$6:$ER$54,44) -> 0 | D54: =VLOOKUP($A$3,'School Res-Dist Rollup'!$A$6:$ER$54,108) -> 0
A55: * | B55: Librarians | C55: =VLOOKUP($A$3,'School Res-Dist Rollup'!$A$6:$ER$54,48) -> 286.6121404 | D55: =VLOOKUP($A$3,'School Res-Dist Rollup'!$A$6:$ER$54,112) -> 21983499.9
B56: Substitute Teachers | D56: =VLOOKUP($A$3,'School Res-Dist Rollup'!$A$6:$ER$54,116) -> 6845359.559
B57: Media Technicians | C57: =VLOOKUP($A$3,'School Res-Dist Rollup'!$A$6:$ER$54,51) -> 135.2888349 | D57: =VLOOKUP($A$3,'School Res-Dist Rollup'!$A$6:$ER$54,115) -> 9605856.284
A58: * | B58: Pupil Support | C58: =VLOOKUP($A$3,'School Res-Dist Rollup'!$A$6:$ER$54,54) -> 385.6207741 | D58: =VLOOKUP($A$3,'School Res-Dist Rollup'!$A$6:$ER$54,119) -> 29707989.45
A59: * | B59: Secondary Guidance Counselors | C59: =VLOOKUP($A$3,'School Res-Dist Rollup'!$A$6:$ER$54,55) -> 170.463932 | D59: =VLOOKUP($A$3,'School Res-Dist Rollup'!$A$6:$ER$54,120) -> 13117790.38
B60: Supervisory Aides | C60: =VLOOKUP($A$3,'School Res-Dist Rollup'!$A$6:$ER$54,56) -> 640.8884585 | D60: =VLOOKUP($A$3,'School Res-Dist Rollup'!$A$6:$ER$54,121) -> 23863348.94
B62: Principals | C62: =VLOOKUP($A$3,'School Res-Dist Rollup'!$A$6:$ER$54,60) -> 271.0921409 | D62: =VLOOKUP($A$3,'School Res-Dist Rollup'!$A$6:$ER$54,125) -> 31745029.17
B63: Asst Principals | C63: =VLOOKUP($A$3,'School Res-Dist Rollup'!$A$6:$ER$54,65) -> 82.76980685 | D63: =VLOOKUP($A$3,'School Res-Dist Rollup'!$A$6:$ER$54,130) -> 8710250.379
B64: Small/ALT Asst Principals | C64: =VLOOKUP($A$3,'School Res-Dist Rollup'!$A$6:$ER$54,61) -> 75 | D64: =VLOOKUP($A$3,'School Res-Dist Rollup'!$A$6:$ER$54,126) -> 7445315.495
B65: Secretarial | C65: =VLOOKUP($A$3,'School Res-Dist Rollup'!$A$6:$ER$54,69) -> 326.91998 | D65: =VLOOKUP($A$3,'School Res-Dist Rollup'!$A$6:$ER$54,134) -> 18003102.79
B66: Clerical | C66: =VLOOKUP($A$3,'School Res-Dist Rollup'!$A$6:$ER$54,73) -> 380.3178928 | D66: =VLOOKUP($A$3,'School Res-Dist Rollup'!$A$6:$ER$54,138) -> 17301976.07
A68: Sub-Total Non-Staff Costs: | G68: =SUM(D69:D75) -> 111192068
B69: Supplies & Materials | D69: =VLOOKUP($A$3,'School Res-Dist Rollup'!$A$6:$ER$54,140) -> 32929688.24
B70: Equipment & Technology | D70: =VLOOKUP($A$3,'School Res-Dist Rollup'!$A$6:$ER$54,141) -> 27173151.98
B71: Additional Voc Ed Supplies & Equip | D71: =VLOOKUP($A$3,'School Res-Dist Rollup'!$A$6:$ER$54,142) -> 2985061.33
B72: Gifted & Talented | D72: =VLOOKUP($A$3,'School Res-Dist Rollup'!$A$6:$ER$54,143) -> 2717315.198
B73: Professional Development | D73: =VLOOKUP($A$3,'School Res-Dist Rollup'!$A$6:$ER$54,144) -> 10869260.79
B74: Assessment | D74: =VLOOKUP($A$3,'School Res-Dist Rollup'!$A$6:$ER$54,145) -> 3482996.634
B75: Activities- If using School Level Alternate Option | D75: =VLOOKUP($A$3,'School Res-Dist Rollup'!$A$6:$ER$54,146) -> 31034593.78 | G75: Sum of resources above: | H75: =H39+H8 -> 1377963339
A77: Total Estimated Guarantee: from Base sheet | H77: =VLOOKUP($A$3,'Base Sheet'!$A$10:$AB$58,19) -> 1377963339
B78: Plus Hold Harmless | H78: =VLOOKUP($A$3,'Base Sheet'!$A$10:$AB$58,21) -> 0
B79: Revised Total | H79: =VLOOKUP($A$3,'Base Sheet'!$A$10:$AB$58,22) -> 1377963339
A81: * Categories Above are Included In "Teacher" Totals | C81: "Teacher FTEs" | D81: "Teacher Funding"
C82: =SUM(C44:C55,C58:C59) -> 8102.612964 | D82: =SUM(D44:D55,D58:D59) -> 623686136

Sheet School Summary-FTEs
A1: School Level Resource Summary-Wyoming Cost Based Block Grant Model-Full Time Equivalents (FTEs)
A2: District Full-Time Equivalents (FTEs) Generated at each School Level
B3: =SUM('District Summary'!C44:C66) -> 10014.89008
C4: Total District FTEs generated at School Level-from District Summary Sheet | W4: ='District Summary'!E3 -> Wyoming Funding Model Version 2(b) 03-18-12 & Final FY 2015 Payment Model 7-1-14
B7: ='District Summary'!B3 -> State Total
B9: School Name | C9: ADM | D9: Grades | E9: Small? | F9: ALT? | G9: Core (Regular) | H9: Specialist | I9: Alternative | J9: Small Schl | K9: Small Dist | L9: Voc Ed | M9: IF | N9: Tutor | O9: ELL | P9: Summer School | Q9: Extended Day | R9: Librarian | S9: Media Technician | T9: Pupil Support | U9: Guidance Counselors | V9: Supervisory Aides | W9: Principal | X9: Assistant Principal | Y9: Small/Alt AP | Z9: Secretarial | AA9: Clerical | AB9: Total School FTEs
A10: 1 | B10: =VLOOKUP('District Summary'!$A$3,'School Resource Matrices'!$B$6:$FF$53,4) -> Upton Elementary | C10: =VLOOKUP('District Summary'!$A$3,'School Resource Matrices'!$B$6:$FF$53,9) -> 123.263 | D10: =VLOOKUP('District Summary'!$A$3,'School Resource Matrices'!$B$6:$FF$53,5) -> K-5 | E10: =VLOOKUP('District Summary'!$A$3,'School Resource Matrices'!$B$6:$FF$53,11) -> F | F10: =VLOOKUP('District Summary'!$A$3,'School Resource Matrices'!$B$6:$FF$53,10) -> F | G10: =VLOOKUP('District Summary'!$A$3,'School Resource Matrices'!$B$6:$FF$53,33) -> 7.7039375 | H10: =VLOOKUP('District Summary'!$A$3,'School Resource Matrices'!$B$6:$FF$53,38) -> 1.5407875 | I10: =VLOOKUP('District Summary'!$A$3,'School Resource Matrices'!$B$6:$FF$53,39) -> 0 | J10: =VLOOKUP('District Summary'!$A$3,'School Resource Matrices'!$B$6:$FF$53,40) -> 0 | K10: =VLOOKUP('District Summary'!$A$3,'School Resource Matrices'!$B$6:$FF$53,41) -> 0 | L10: =VLOOKUP('District Summary'!$A$3,'School Resource Matrices'!$B$6:$FF$53,42) -> 0 | M10: =VLOOKUP('District Summary'!$A$3,'School Resource Matrices'!$B$6:$FF$53,46) -> 0 | N10: =VLOOKUP('District Summary'!$A$3,'School Resource Matrices'!$B$6:$FF$53,51) -> 0.51 | O10: =VLOOKUP('District Summary'!$A$3,'School Resource Matrices'!$B$6:$FF$53,52) -> 0 | P10: =VLOOKUP('District Summary'!$A$3,'School Resource Matrices'!$B$6:$FF$53,53) -> 0 | Q10: =VLOOKUP('District Summary'!$A$3,'School Resource Matrices'!$B$6:$FF$53,54) -> 0 | R10: =VLOOKUP('District Summary'!$A$3,'School Resource Matrices'!$B$6:$FF$53,58) -> 0.4279965278 | S10: =VLOOKUP('District Summary'!$A$3,'School Resource Matrices'!$B$6:$FF$53,61) -> 0 | T10: =VLOOKUP('District Summary'!$A$3,'School Resource Matrices'!$B$6:$FF$53,64) -> 0.51 | U10: =VLOOKUP('District Summary'!$A$3,'School Resource Matrices'!$B$6:$FF$53,65) -> 0 | V10: =VLOOKUP('District Summary'!$A$3,'School Resource Matrices'!$B$6:$FF$53,66) -> 0.8559930556 | W10: =VLOOKUP('District Summary'!$A$3,'School Resource Matrices'!$B$6:$FF$53,71) -> 1 | X10: =VLOOKUP('District Summary'!$A$3,'School Resource Matrices'!$B$6:$FF$53,76) -> 0 | Y10: =VLOOKUP('District Summary'!$A$3,'School Resource Matrices'!$B$6:$FF$53,72) -> 0 | Z10: =VLOOKUP('District Summary'!$A$3,'School Resource Matrices'!$B$6:$FF$53,80) -> 1 | AA10: =VLOOKUP('District Summary'!$A$3,'School Resource Matrices'!$B$6:$FF$53,84) -> 0.4279965278 | AB10: =SUM(G10:AA10) -> 13.97671111
A11: 2 | B11: =VLOOKUP('District Summary'!$A$3,'School Resource Matrices'!$B$55:$FF$102,4) -> Upton Middle School | C11: =VLOOKUP('District Summary'!$A$3,'School Resource Matrices'!$B$55:$FF$102,9) -> 64.163 | D11: =VLOOKUP('District Summary'!$A$3,'School Resource Matrices'!$B$55:$FF$102,5) -> 6-8 | E11: =VLOOKUP('District Summary'!$A$3,'School Resource Matrices'!$B$55:$FF$102,11) -> F | F11: =VLOOKUP('District Summary'!$A$3,'School Resource Matrices'!$B$55:$FF$102,10) -> F | G11: =VLOOKUP('District Summary'!$A$3,'School Resource Matrices'!$B$55:$FF$102,33) -> 3.055380952 | H11: =VLOOKUP('District Summary'!$A$3,'School Resource Matrices'!$B$55:$FF$102,38) -> 4.944619048 | I11: =VLOOKUP('District Summary'!$A$3,'School Resource Matrices'!$B$55:$FF$102,39) -> 0 | J11: =VLOOKUP('District Summary'!$A$3,'School Resource Matrices'!$B$55:$FF$102,40) -> 0 | K11: =VLOOKUP('District Summary'!$A$3,'School Resource Matrices'!$B$55:$FF$102,41) -> 0 | L11: =VLOOKUP('District Summary'!$A$3,'School Resource Matrices'!$B$55:$FF$102,42) -> 0 | M11: =VLOOKUP('District Summary'!$A$3,'School Resource Matrices'!$B$55:$FF$102,46) -> 0 | N11: =VLOOKUP('District Summary'!$A$3,'School Resource Matrices'!$B$55:$FF$102,51) -> 0.2036920635 | O11: =VLOOKUP('District Summary'!$A$3,'School Resource Matrices'!$B$55:$FF$102,52) -> 0 | P11: =VLOOKUP('District Summary'!$A$3,'School Resource Matrices'!$B$55:$FF$102,53) -> 0 | Q11: =VLOOKUP('District Summary'!$A$3,'School Resource Matrices'!$B$55:$FF$102,54) -> 0 | R11: =VLOOKUP('District Summary'!$A$3,'School Resource Matrices'!$B$55:$FF$102,58) -> 0.6110761905 | S11: =VLOOKUP('District Summary'!$A$3,'School Resource Matrices'!$B$55:$FF$102,61) -> 0.2036920635 | T11: =VLOOKUP('District Summary'!$A$3,'School Resource Matrices'!$B$55:$FF$102,64) -> 0.2036920635 | U11: =VLOOKUP('District Summary'!$A$3,'School Resource Matrices'!$B$55:$FF$102,65) -> 0.256652 | V11: =VLOOKUP('District Summary'!$A$3,'School Resource Matrices'!$B$55:$FF$102,66) -> 0.407384127 | W11: =VLOOKUP('District Summary'!$A$3,'School Resource Matrices'!$B$55:$FF$102,71) -> 0.6110761905 | X11: =VLOOKUP('District Summary'!$A$3,'School Resource Matrices'!$B$55:$FF$102,76) -> 0 | Y11: =VLOOKUP('District Summary'!$A$3,'School Resource Matrices'!$B$55:$FF$102,72) -> 0 | Z11: =VLOOKUP('District Summary'!$A$3,'School Resource Matrices'!$B$55:$FF$102,80) -> 0.6110761905 | AA11: =VLOOKUP('District Summary'!$A$3,'School Resource Matrices'!$B$55:$FF$102,84) -> 0.2036920635 | AB11: 11.31203295
A12: 3 | B12: =VLOOKUP('District Summary'!$A$3,'School Resource Matrices'!$B$104:$FF$151,4) -> Upton High School | C12: =VLOOKUP('District Summary'!$A$3,'School Resource Matrices'!$B$104:$FF$151,9) -> 71.819 | D12: =VLOOKUP('District Summary'!$A$3,'School Resource Matrices'!$B$104:$FF$151,5) -> 9-12 | E12: =VLOOKUP('District Summary'!$A$3,'School Resource Matrices'!$B$104:$FF$151,11) -> F | F12: =VLOOKUP('District Summary'!$A$3,'School Resource Matrices'!$B$104:$FF$151,10) -> F | G12: =VLOOKUP('District Summary'!$A$3,'School Resource Matrices'!$B$104:$FF$151,33) -> 3.419952381 | H12: =VLOOKUP('District Summary'!$A$3,'School Resource Matrices'!$B$104:$FF$151,38) -> 6.376771429 | I12: =VLOOKUP('District Summary'!$A$3,'School Resource Matrices'!$B$104:$FF$151,39) -> 0 | J12: =VLOOKUP('District Summary'!$A$3,'School Resource Matrices'!$B$104:$FF$151,40) -> 0 | K12: =VLOOKUP('District Summary'!$A$3,'School Resource Matrices'!$B$104:$FF$151,41) -> 0 | L12: =VLOOKUP('District Summary'!$A$3,'School Resource Matrices'!$B$104:$FF$151,42) -> 0.2032761905 | M12: =VLOOKUP('District Summary'!$A$3,'School Resource Matrices'!$B$104:$FF$151,46) -> 0 | N12: =VLOOKUP('District Summary'!$A$3,'School Resource Matrices'!$B$104:$FF$151,51) -> 0.26 | O12: =VLOOKUP('District Summary'!$A$3,'School Resource Matrices'!$B$104:$FF$152,52) -> 0 | P12: =VLOOKUP('District Summary'!$A$3,'School Resource Matrices'!$B$104:$FF$151,53) -> 0 | Q12: =VLOOKUP('District Summary'!$A$3,'School Resource Matrices'!$B$104:$FF$151,54) -> 0 | R12: =VLOOKUP('District Summary'!$A$3,'School Resource Matrices'!$B$104:$FF$151,58) -> 0.6839904762 | S12: =VLOOKUP('District Summary'!$A$3,'School Resource Matrices'!$B$104:$FF$151,61) -> 0.2279968254 | T12: =VLOOKUP('District Summary'!$A$3,'School Resource Matrices'!$B$104:$FF$151,64) -> 0.26 | U12: =VLOOKUP('District Summary'!$A$3,'School Resource Matrices'!$B$104:$FF$151,65) -> 0.287276 | V12: =VLOOKUP('District Summary'!$A$3,'School Resource Matrices'!$B$104:$FF$151,66) -> 0.5699920635 | W12: =VLOOKUP('District Summary'!$A$3,'School Resource Matrices'!$B$104:$FF$151,71) -> 0.6839904762 | X12: =VLOOKUP('District Summary'!$A$3,'School Resource Matrices'!$B$104:$FF$151,76) -> 0 | Y12: =VLOOKUP('District Summary'!$A$3,'School Resource Matrices'!$B$104:$FF$151,72) -> 0 | Z12: =VLOOKUP('District Summary'!$A$3,'School Resource Matrices'!$B$104:$FF$151,80) -> 0.6839904762 | AA12: =VLOOKUP('District Summary'!$A$3,'School Resource Matrices'!$B$104:$FF$151,84) -> 0.4559936508 | AB12: 14.11322997
A13: 4 | B13: =VLOOKUP('District Summary'!$A$3,'School Resource Matrices'!$B$153:$FF$200,4) -> 0 | C13: =VLOOKUP('District Summary'!$A$3,'School Resource Matrices'!$B$153:$FF$200,9) -> 0 | D13: =VLOOKUP('District Summary'!$A$3,'School Resource Matrices'!$B$153:$FF$200,5) -> 0 | E13: =VLOOKUP('District Summary'!$A$3,'School Resource Matrices'!$B$153:$FF$200,11) -> 0 | F13: =VLOOKUP('District Summary'!$A$3,'School Resource Matrices'!$B$153:$FF$200,10) -> 0 | G13: =VLOOKUP('District Summary'!$A$3,'School Resource Matrices'!$B$153:$FF$200,33) -> 0 | H13: =VLOOKUP('District Summary'!$A$3,'School Resource Matrices'!$B$153:$FF$200,38) -> 0 | I13: =VLOOKUP('District Summary'!$A$3,'School Resource Matrices'!$B$153:$FF$200,39) -> 0 | J13: =VLOOKUP('District Summary'!$A$3,'School Resource Matrices'!$B$153:$FF$200,40) -> 0 | K13: =VLOOKUP('District Summary'!$A$3,'School Resource Matrices'!$B$153:$FF$200,41) -> 0 | L13: =VLOOKUP('District Summary'!$A$3,'School Resource Matrices'!$B$153:$FF$200,42) -> 0 | M13: =VLOOKUP('District Summary'!$A$3,'School Resource Matrices'!$B$153:$FF$200,46) -> 0 | N13: =VLOOKUP('District Summary'!$A$3,'School Resource Matrices'!$B$153:$FF$200,51) -> 0 | O13: =VLOOKUP('District Summary'!$A$3,'School Resource Matrices'!$B$153:$FF$200,52) -> 0 | P13: =VLOOKUP('District Summary'!$A$3,'School Resource Matrices'!$B$153:$FF$200,53) -> 0 | Q13: =VLOOKUP('District Summary'!$A$3,'School Resource Matrices'!$B$153:$FF$200,54) -> 0 | R13: =VLOOKUP('District Summary'!$A$3,'School Resource Matrices'!$B$153:$FF$200,58) -> 0 | S13: =VLOOKUP('District Summary'!$A$3,'School Resource Matrices'!$B$153:$FF$200,61) -> 0 | T13: =VLOOKUP('District Summary'!$A$3,'School Resource Matrices'!$B$153:$FF$200,64) -> 0 | U13: =VLOOKUP('District Summary'!$A$3,'School Resource Matrices'!$B$153:$FF$200,65) -> 0 | V13: =VLOOKUP('District Summary'!$A$3,'School Resource Matrices'!$B$153:$FF$200,66) -> 0 | W13: =VLOOKUP('District Summary'!$A$3,'School Resource Matrices'!$B$153:$FF$200,71) -> 0 | X13: =VLOOKUP('District Summary'!$A$3,'School Resource Matrices'!$B$153:$FF$200,76) -> 0 | Y13: =VLOOKUP('District Summary'!$A$3,'School Resource Matrices'!$B$153:$FF$200,72) -> 0 | Z13: =VLOOKUP('District Summary'!$A$3,'School Resource Matrices'!$B$153:$FF$200,80) -> 0 | AA13: =VLOOKUP('District Summary'!$A$3,'School Resource Matrices'!$B$153:$FF$200,84) -> 0 | AB13: 0
A14: 5 | B14: =VLOOKUP('District Summary'!$A$3,'School Resource Matrices'!$B$202:$FF$249,4) -> 0 | C14: =VLOOKUP('District Summary'!$A$3,'School Resource Matrices'!$B$202:$FF$249,9) -> 0 | D14: =VLOOKUP('District Summary'!$A$3,'School Resource Matrices'!$B$202:$FF$249,5) -> 0 | E14: =VLOOKUP('District Summary'!$A$3,'School Resource Matrices'!$B$202:$FF$249,11) -> 0 | F14: =VLOOKUP('District Summary'!$A$3,'School Resource Matrices'!$B$202:$FF$249,10) -> 0 | G14: =VLOOKUP('District Summary'!$A$3,'School Resource Matrices'!$B$202:$FF$249,33) -> 0 | H14: =VLOOKUP('District Summary'!$A$3,'School Resource Matrices'!$B$202:$FF$249,38) -> 0 | I14: =VLOOKUP('District Summary'!$A$3,'School Resource Matrices'!$B$202:$FF$249,39) -> 0 | J14: =VLOOKUP('District Summary'!$A$3,'School Resource Matrices'!$B$202:$FF$249,40) -> 0 | K14: =VLOOKUP('District Summary'!$A$3,'School Resource Matrices'!$B$202:$FF$249,41) -> 0 | L14: =VLOOKUP('District Summary'!$A$3,'School Resource Matrices'!$B$202:$FF$249,42) -> 0 | M14: =VLOOKUP('District Summary'!$A$3,'School Resource Matrices'!$B$202:$FF$249,46) -> 0 | N14: =VLOOKUP('District Summary'!$A$3,'School Resource Matrices'!$B$202:$FF$249,51) -> 0 | O14: =VLOOKUP('District Summary'!$A$3,'School Resource Matrices'!$B$202:$FF$249,52) -> 0 | P14: =VLOOKUP('District Summary'!$A$3,'School Resource Matrices'!$B$202:$FF$249,53) -> 0 | Q14: =VLOOKUP('District Summary'!$A$3,'School Resource Matrices'!$B$202:$FF$249,54) -> 0 | R14: =VLOOKUP('District Summary'!$A$3,'School Resource Matrices'!$B$202:$FF$249,58) -> 0 | S14: =VLOOKUP('District Summary'!$A$3,'School Resource Matrices'!$B$202:$FF$249,61) -> 0 | T14: =VLOOKUP('District Summary'!$A$3,'School Resource Matrices'!$B$202:$FF$249,64) -> 0 | U14: =VLOOKUP('District Summary'!$A$3,'School Resource Matrices'!$B$202:$FF$249,65) -> 0 | V14: =VLOOKUP('District Summary'!$A$3,'School Resource Matrices'!$B$202:$FF$249,66) -> 0 | W14: =VLOOKUP('District Summary'!$A$3,'School Resource Matrices'!$B$202:$FF$249,71) -> 0 | X14: =VLOOKUP('District Summary'!$A$3,'School Resource Matrices'!$B$202:$FF$249,76) -> 0 | Y14: =VLOOKUP('District Summary'!$A$3,'School Resource Matrices'!$B$202:$FF$249,72) -> 0 | Z14: =VLOOKUP('District Summary'!$A$3,'School Resource Matrices'!$B$202:$FF$249,80) -> 0 | AA14: =VLOOKUP('District Summary'!$A$3,'School Resource Matrices'!$B$202:$FF$249,84) -> 0 | AB14: 0
A15: 6 | B15: =VLOOKUP('District Summary'!$A$3,'School Resource Matrices'!$B$251:$FF$298,4) -> 0 | C15: =VLOOKUP('District Summary'!$A$3,'School Resource Matrices'!$B$251:$FF$298,9) -> 0 | D15: =VLOOKUP('District Summary'!$A$3,'School Resource Matrices'!$B$251:$FF$298,5) -> 0 | E15: =VLOOKUP('District Summary'!$A$3,'School Resource Matrices'!$B$251:$FF$298,11) -> 0 | F15: =VLOOKUP('District Summary'!$A$3,'School Resource Matrices'!$B$251:$FF$298,10) -> 0 | G15: =VLOOKUP('District Summary'!$A$3,'School Resource Matrices'!$B$251:$FF$298,33) -> 0 | H15: =VLOOKUP('District Summary'!$A$3,'School Resource Matrices'!$B$251:$FF$298,38) -> 0 | I15: =VLOOKUP('District Summary'!$A$3,'School Resource Matrices'!$B$251:$FF$298,39) -> 0 | J15: =VLOOKUP('District Summary'!$A$3,'School Resource Matrices'!$B$251:$FF$298,40) -> 0 | K15: =VLOOKUP('District Summary'!$A$3,'School Resource Matrices'!$B$251:$FF$298,41) -> 0 | L15: =VLOOKUP('District Summary'!$A$3,'School Resource Matrices'!$B$251:$FF$298,42) -> 0 | M15: =VLOOKUP('District Summary'!$A$3,'School Resource Matrices'!$B$251:$FF$298,46) -> 0 | N15: =VLOOKUP('District Summary'!$A$3,'School Resource Matrices'!$B$251:$FF$298,51) -> 0 | O15: =VLOOKUP('District Summary'!$A$3,'School Resource Matrices'!$B$251:$FF$298,52) -> 0 | P15: =VLOOKUP('District Summary'!$A$3,'School Resource Matrices'!$B$251:$FF$298,53) -> 0 | Q15: =VLOOKUP('District Summary'!$A$3,'School Resource Matrices'!$B$251:$FF$298,54) -> 0 | R15: =VLOOKUP('District Summary'!$A$3,'School Resource Matrices'!$B$251:$FF$298,58) -> 0 | S15: =VLOOKUP('District Summary'!$A$3,'School Resource Matrices'!$B$251:$FF$298,61) -> 0 | T15: =VLOOKUP('District Summary'!$A$3,'School Resource Matrices'!$B$251:$FF$298,64) -> 0 | U15: =VLOOKUP('District Summary'!$A$3,'School Resource Matrices'!$B$251:$FF$298,65) -> 0 | V15: =VLOOKUP('District Summary'!$A$3,'School Resource Matrices'!$B$251:$FF$298,66) -> 0 | W15: =VLOOKUP('District Summary'!$A$3,'School Resource Matrices'!$B$251:$FF$298,71) -> 0 | X15: =VLOOKUP('District Summary'!$A$3,'School Resource Matrices'!$B$251:$FF$298,76) -> 0 | Y15: =VLOOKUP('District Summary'!$A$3,'School Resource Matrices'!$B$251:$FF$298,72) -> 0 | Z15: =VLOOKUP('District Summary'!$A$3,'School Resource Matrices'!$B$251:$FF$298,80) -> 0 | AA15: =VLOOKUP('District Summary'!$A$3,'School Resource Matrices'!$B$251:$FF$298,84) -> 0 | AB15: 0
A16: 7 | B16: =VLOOKUP('District Summary'!$A$3,'School Resource Matrices'!$B$300:$FF$347,4) -> 0 | C16: =VLOOKUP('District Summary'!$A$3,'School Resource Matrices'!$B$300:$FF$347,9) -> 0 | D16: =VLOOKUP('District Summary'!$A$3,'School Resource Matrices'!$B$300:$FF$347,5) -> 0 | E16: =VLOOKUP('District Summary'!$A$3,'School Resource Matrices'!$B$300:$FF$347,11) -> 0 | F16: =VLOOKUP('District Summary'!$A$3,'School Resource Matrices'!$B$300:$FF$347,10) -> 0 | G16: =VLOOKUP('District Summary'!$A$3,'School Resource Matrices'!$B$300:$FF$347,33) -> 0 | H16: =VLOOKUP('District Summary'!$A$3,'School Resource Matrices'!$B$300:$FF$347,38) -> 0 | I16: =VLOOKUP('District Summary'!$A$3,'School Resource Matrices'!$B$300:$FF$347,39) -> 0 | J16: =VLOOKUP('District Summary'!$A$3,'School Resource Matrices'!$B$300:$FF$347,40) -> 0 | K16: =VLOOKUP('District Summary'!$A$3,'School Resource Matrices'!$B$300:$FF$347,41) -> 0 | L16: =VLOOKUP('District Summary'!$A$3,'School Resource Matrices'!$B$300:$FF$347,42) -> 0 | M16: =VLOOKUP('District Summary'!$A$3,'School Resource Matrices'!$B$300:$FF$347,46) -> 0 | N16: =VLOOKUP('District Summary'!$A$3,'School Resource Matrices'!$B$300:$FF$347,51) -> 0 | O16: =VLOOKUP('District Summary'!$A$3,'School Resource Matrices'!$B$300:$FF$347,52) -> 0 | P16: =VLOOKUP('District Summary'!$A$3,'School Resource Matrices'!$B$300:$FF$347,53) -> 0 | Q16: =VLOOKUP('District Summary'!$A$3,'School Resource Matrices'!$B$300:$FF$347,54) -> 0 | R16: =VLOOKUP('District Summary'!$A$3,'School Resource Matrices'!$B$300:$FF$347,58) -> 0 | S16: =VLOOKUP('District Summary'!$A$3,'School Resource Matrices'!$B$300:$FF$347,61) -> 0 | T16: =VLOOKUP('District Summary'!$A$3,'School Resource Matrices'!$B$300:$FF$347,64) -> 0 | U16: =VLOOKUP('District Summary'!$A$3,'School Resource Matrices'!$B$300:$FF$347,65) -> 0 | V16: =VLOOKUP('District Summary'!$A$3,'School Resource Matrices'!$B$300:$FF$347,66) -> 0 | W16: =VLOOKUP('District Summary'!$A$3,'School Resource Matrices'!$B$300:$FF$347,71) -> 0 | X16: =VLOOKUP('District Summary'!$A$3,'School Resource Matrices'!$B$300:$FF$347,76) -> 0 | Y16: =VLOOKUP('District Summary'!$A$3,'School Resource Matrices'!$B$300:$FF$347,72) -> 0 | Z16: =VLOOKUP('District Summary'!$A$3,'School Resource Matrices'!$B$300:$FF$347,80) -> 0 | AA16: =VLOOKUP('District Summary'!$A$3,'School Resource Matrices'!$B$300:$FF$347,84) -> 0 | AB16: 0
A17: 8 | B17: =VLOOKUP('District Summary'!$A$3,'School Resource Matrices'!$B$349:$FF$396,4) -> 0 | C17: =VLOOKUP('District Summary'!$A$3,'School Resource Matrices'!$B$349:$FF$396,9) -> 0 | D17: =VLOOKUP('District Summary'!$A$3,'School Resource Matrices'!$B$349:$FF$396,5) -> 0 | E17: =VLOOKUP('District Summary'!$A$3,'School Resource Matrices'!$B$349:$FF$396,11) -> 0 | F17: =VLOOKUP('District Summary'!$A$3,'School Resource Matrices'!$B$349:$FF$396,10) -> 0 | G17: =VLOOKUP('District Summary'!$A$3,'School Resource Matrices'!$B$349:$FF$396,33) -> 0 | H17: =VLOOKUP('District Summary'!$A$3,'School Resource Matrices'!$B$349:$FF$396,38) -> 0 | I17: =VLOOKUP('District Summary'!$A$3,'School Resource Matrices'!$B$349:$FF$396,39) -> 0 | J17: =VLOOKUP('District Summary'!$A$3,'School Resource Matrices'!$B$349:$FF$396,40) -> 0 | K17: =VLOOKUP('District Summary'!$A$3,'School Resource Matrices'!$B$349:$FF$396,41) -> 0 | L17: =VLOOKUP('District Summary'!$A$3,'School Resource Matrices'!$B$349:$FF$396,42) -> 0 | M17: =VLOOKUP('District Summary'!$A$3,'School Resource Matrices'!$B$349:$FF$396,46) -> 0 | N17: =VLOOKUP('District Summary'!$A$3,'School Resource Matrices'!$B$349:$FF$396,51) -> 0 | O17: =VLOOKUP('District Summary'!$A$3,'School Resource Matrices'!$B$349:$FF$396,52) -> 0 | P17: =VLOOKUP('District Summary'!$A$3,'School Resource Matrices'!$B$349:$FF$396,53) -> 0 | Q17: =VLOOKUP('District Summary'!$A$3,'School Resource Matrices'!$B$349:$FF$396,54) -> 0 | R17: =VLOOKUP('District Summary'!$A$3,'School Resource Matrices'!$B$349:$FF$396,58) -> 0 | S17: =VLOOKUP('District Summary'!$A$3,'School Resource Matrices'!$B$349:$FF$396,61) -> 0 | T17: =VLOOKUP('District Summary'!$A$3,'School Resource Matrices'!$B$349:$FF$396,64) -> 0 | U17: =VLOOKUP('District Summary'!$A$3,'School Resource Matrices'!$B$349:$FF$396,65) -> 0 | V17: =VLOOKUP('District Summary'!$A$3,'School Resource Matrices'!$B$349:$FF$396,66) -> 0 | W17: =VLOOKUP('District Summary'!$A$3,'School Resource Matrices'!$B$349:$FF$396,71) -> 0 | X17: =VLOOKUP('District Summary'!$A$3,'School Resource Matrices'!$B$349:$FF$396,76) -> 0 | Y17: =VLOOKUP('District Summary'!$A$3,'School Resource Matrices'!$B$349:$FF$396,72) -> 0 | Z17: =VLOOKUP('District Summary'!$A$3,'School Resource Matrices'!$B$349:$FF$396,80) -> 0 | AA17: =VLOOKUP('District Summary'!$A$3,'School Resource Matrices'!$B$349:$FF$396,84) -> 0 | AB17: 0
A18: 9 | B18: =VLOOKUP('District Summary'!$A$3,'School Resource Matrices'!$B$398:$FF$445,4) -> 0 | C18: =VLOOKUP('District Summary'!$A$3,'School Resource Matrices'!$B$398:$FF$445,9) -> 0 | D18: =VLOOKUP('District Summary'!$A$3,'School Resource Matrices'!$B$398:$FF$445,5) -> 0 | E18: =VLOOKUP('District Summary'!$A$3,'School Resource Matrices'!$B$398:$FF$445,11) -> 0 | F18: =VLOOKUP('District Summary'!$A$3,'School Resource Matrices'!$B$398:$FF$445,10) -> 0 | G18: =VLOOKUP('District Summary'!$A$3,'School Resource Matrices'!$B$398:$FF$445,33) -> 0 | H18: =VLOOKUP('District Summary'!$A$3,'School Resource Matrices'!$B$398:$FF$445,38) -> 0 | I18: =VLOOKUP('District Summary'!$A$3,'School Resource Matrices'!$B$398:$FF$445,39) -> 0 | J18: =VLOOKUP('District Summary'!$A$3,'School Resource Matrices'!$B$398:$FF$445,40) -> 0 | K18: =VLOOKUP('District Summary'!$A$3,'School Resource Matrices'!$B$398:$FF$445,41) -> 0 | L18: =VLOOKUP('District Summary'!$A$3,'School Resource Matrices'!$B$398:$FF$445,42) -> 0 | M18: =VLOOKUP('District Summary'!$A$3,'School Resource Matrices'!$B$398:$FF$446,46) -> 0 | N18: =VLOOKUP('District Summary'!$A$3,'School Resource Matrices'!$B$398:$FF$445,51) -> 0 | O18: =VLOOKUP('District Summary'!$A$3,'School Resource Matrices'!$B$398:$FF$445,52) -> 0 | P18: =VLOOKUP('District Summary'!$A$3,'School Resource Matrices'!$B$398:$FF$445,53) -> 0 | Q18: =VLOOKUP('District Summary'!$A$3,'School Resource Matrices'!$B$398:$FF$445,54) -> 0 | R18: =VLOOKUP('District Summary'!$A$3,'School Resource Matrices'!$B$398:$FF$445,58) -> 0 | S18: =VLOOKUP('District Summary'!$A$3,'School Resource Matrices'!$B$398:$FF$445,61) -> 0 | T18: =VLOOKUP('District Summary'!$A$3,'School Resource Matrices'!$B$398:$FF$445,64) -> 0 | U18: =VLOOKUP('District Summary'!$A$3,'School Resource Matrices'!$B$398:$FF$445,65) -> 0 | V18: =VLOOKUP('District Summary'!$A$3,'School Resource Matrices'!$B$398:$FF$445,66) -> 0 | W18: =VLOOKUP('District Summary'!$A$3,'School Resource Matrices'!$B$398:$FF$445,71) -> 0 | X18: =VLOOKUP('District Summary'!$A$3,'School Resource Matrices'!$B$398:$FF$445,76) -> 0 | Y18: =VLOOKUP('District Summary'!$A$3,'School Resource Matrices'!$B$398:$FF$445,72) -> 0 | Z18: =VLOOKUP('District Summary'!$A$3,'School Resource Matrices'!$B$398:$FF$445,80) -> 0 | AA18: =VLOOKUP('District Summary'!$A$3,'School Resource Matrices'!$B$398:$FF$445,84) -> 0 | AB18: 0
A19: 10 | B19: =VLOOKUP('District Summary'!$A$3,'School Resource Matrices'!$B$447:$FF$494,4) -> 0 | C19: =VLOOKUP('District Summary'!$A$3,'School Resource Matrices'!$B$447:$FF$494,9) -> 0 | D19: =VLOOKUP('District Summary'!$A$3,'School Resource Matrices'!$B$447:$FF$494,5) -> 0 | E19: =VLOOKUP('District Summary'!$A$3,'School Resource Matrices'!$B$447:$FF$494,11) -> 0 | F19: =VLOOKUP('District Summary'!$A$3,'School Resource Matrices'!$B$447:$FF$494,10) -> 0 | G19: =VLOOKUP('District Summary'!$A$3,'School Resource Matrices'!$B$447:$FF$494,33) -> 0 | H19: =VLOOKUP('District Summary'!$A$3,'School Resource Matrices'!$B$447:$FF$494,38) -> 0 | I19: =VLOOKUP('District Summary'!$A$3,'School Resource Matrices'!$B$447:$FF$494,39) -> 0 | J19: =VLOOKUP('District Summary'!$A$3,'School Resource Matrices'!$B$447:$FF$494,40) -> 0 | K19: =VLOOKUP('District Summary'!$A$3,'School Resource Matrices'!$B$447:$FF$494,41) -> 0 | L19: =VLOOKUP('District Summary'!$A$3,'School Resource Matrices'!$B$447:$FF$494,42) -> 0 | M19: =VLOOKUP('District Summary'!$A$3,'School Resource Matrices'!$B$447:$FF$494,46) -> 0 | N19: =VLOOKUP('District Summary'!$A$3,'School Resource Matrices'!$B$447:$FF$494,51) -> 0 | O19: =VLOOKUP('District Summary'!$A$3,'School Resource Matrices'!$B$447:$FF$494,52) -> 0 | P19: =VLOOKUP('District Summary'!$A$3,'School Resource Matrices'!$B$447:$FF$494,53) -> 0 | Q19: =VLOOKUP('District Summary'!$A$3,'School Resource Matrices'!$B$447:$FF$494,54) -> 0 | R19: =VLOOKUP('District Summary'!$A$3,'School Resource Matrices'!$B$447:$FF$494,58) -> 0 | S19: =VLOOKUP('District Summary'!$A$3,'School Resource Matrices'!$B$447:$FF$494,61) -> 0 | T19: =VLOOKUP('District Summary'!$A$3,'School Resource Matrices'!$B$447:$FF$494,64) -> 0 | U19: =VLOOKUP('District Summary'!$A$3,'School Resource Matrices'!$B$447:$FF$494,65) -> 0 | V19: =VLOOKUP('District Summary'!$A$3,'School Resource Matrices'!$B$447:$FF$494,66) -> 0 | W19: =VLOOKUP('District Summary'!$A$3,'School Resource Matrices'!$B$447:$FF$494,71) -> 0 | X19: =VLOOKUP('District Summary'!$A$3,'School Resource Matrices'!$B$447:$FF$494,76) -> 0 | Y19: =VLOOKUP('District Summary'!$A$3,'School Resource Matrices'!$B$447:$FF$494,72) -> 0 | Z19: =VLOOKUP('District Summary'!$A$3,'School Resource Matrices'!$B$447:$FF$494,80) -> 0 | AA19: =VLOOKUP('District Summary'!$A$3,'School Resource Matrices'!$B$447:$FF$494,84) -> 0 | AB19: 0
A20: 11 | B20: =VLOOKUP('District Summary'!$A$3,'School Resource Matrices'!$B$496:$FF$543,4) -> 0 | C20: =VLOOKUP('District Summary'!$A$3,'School Resource Matrices'!$B$496:$FF$543,9) -> 0 | D20: =VLOOKUP('District Summary'!$A$3,'School Resource Matrices'!$B$496:$FF$543,5) -> 0 | E20: =VLOOKUP('District Summary'!$A$3,'School Resource Matrices'!$B$496:$FF$543,11) -> 0 | F20: =VLOOKUP('District Summary'!$A$3,'School Resource Matrices'!$B$496:$FF$543,10) -> 0 | G20: =VLOOKUP('District Summary'!$A$3,'School Resource Matrices'!$B$496:$FF$543,33) -> 0 | H20: =VLOOKUP('District Summary'!$A$3,'School Resource Matrices'!$B$496:$FF$543,38) -> 0 | I20: =VLOOKUP('District Summary'!$A$3,'School Resource Matrices'!$B$496:$FF$543,39) -> 0 | J20: =VLOOKUP('District Summary'!$A$3,'School Resource Matrices'!$B$496:$FF$543,40) -> 0 | K20: =VLOOKUP('District Summary'!$A$3,'School Resource Matrices'!$B$496:$FF$543,41) -> 0 | L20: =VLOOKUP('District Summary'!$A$3,'School Resource Matrices'!$B$496:$FF$543,42) -> 0 | M20: =VLOOKUP('District Summary'!$A$3,'School Resource Matrices'!$B$496:$FF$543,46) -> 0 | N20: =VLOOKUP('District Summary'!$A$3,'School Resource Matrices'!$B$496:$FF$543,51) -> 0 | O20: =VLOOKUP('District Summary'!$A$3,'School Resource Matrices'!$B$496:$FF$543,52) -> 0 | P20: =VLOOKUP('District Summary'!$A$3,'School Resource Matrices'!$B$496:$FF$543,53) -> 0 | Q20: =VLOOKUP('District Summary'!$A$3,'School Resource Matrices'!$B$496:$FF$543,54) -> 0 | R20: =VLOOKUP('District Summary'!$A$3,'School Resource Matrices'!$B$496:$FF$543,58) -> 0 | S20: =VLOOKUP('District Summary'!$A$3,'School Resource Matrices'!$B$496:$FF$543,61) -> 0 | T20: =VLOOKUP('District Summary'!$A$3,'School Resource Matrices'!$B$496:$FF$543,64) -> 0 | U20: =VLOOKUP('District Summary'!$A$3,'School Resource Matrices'!$B$496:$FF$543,65) -> 0 | V20: =VLOOKUP('District Summary'!$A$3,'School Resource Matrices'!$B$496:$FF$543,66) -> 0 | W20: =VLOOKUP('District Summary'!$A$3,'School Resource Matrices'!$B$496:$FF$543,71) -> 0 | X20: =VLOOKUP('District Summary'!$A$3,'School Resource Matrices'!$B$496:$FF$543,76) -> 0 | Y20: =VLOOKUP('District Summary'!$A$3,'School Resource Matrices'!$B$496:$FF$543,72) -> 0 | Z20: =VLOOKUP('District Summary'!$A$3,'School Resource Matrices'!$B$496:$FF$543,80) -> 0 | AA20: =VLOOKUP('District Summary'!$A$3,'School Resource Matrices'!$B$496:$FF$543,84) -> 0 | AB20: 0
A21: 12 | B21: =VLOOKUP('District Summary'!$A$3,'School Resource Matrices'!$B$545:$FF$592,4) -> 0 | C21: =VLOOKUP('District Summary'!$A$3,'School Resource Matrices'!$B$545:$FF$592,9) -> 0 | D21: =VLOOKUP('District Summary'!$A$3,'School Resource Matrices'!$B$545:$FF$592,5) -> 0 | E21: =VLOOKUP('District Summary'!$A$3,'School Resource Matrices'!$B$545:$FF$592,11) -> 0 | F21: =VLOOKUP('District Summary'!$A$3,'School Resource Matrices'!$B$545:$FF$592,10) -> 0 | G21: =VLOOKUP('District Summary'!$A$3,'School Resource Matrices'!$B$545:$FF$592,33) -> 0 | H21: =VLOOKUP('District Summary'!$A$3,'School Resource Matrices'!$B$545:$FF$592,38) -> 0 | I21: =VLOOKUP('District Summary'!$A$3,'School Resource Matrices'!$B$545:$FF$592,39) -> 0 | J21: =VLOOKUP('District Summary'!$A$3,'School Resource Matrices'!$B$545:$FF$592,40) -> 0 | K21: =VLOOKUP('District Summary'!$A$3,'School Resource Matrices'!$B$545:$FF$592,41) -> 0 | L21: =VLOOKUP('District Summary'!$A$3,'School Resource Matrices'!$B$545:$FF$592,42) -> 0 | M21: =VLOOKUP('District Summary'!$A$3,'School Resource Matrices'!$B$545:$FF$592,46) -> 0 | N21: =VLOOKUP('District Summary'!$A$3,'School Resource Matrices'!$B$545:$FF$592,51) -> 0 | O21: =VLOOKUP('District Summary'!$A$3,'School Resource Matrices'!$B$545:$FF$592,52) -> 0 | P21: =VLOOKUP('District Summary'!$A$3,'School Resource Matrices'!$B$545:$FF$592,53) -> 0 | Q21: =VLOOKUP('District Summary'!$A$3,'School Resource Matrices'!$B$545:$FF$592,54) -> 0 | R21: =VLOOKUP('District Summary'!$A$3,'School Resource Matrices'!$B$545:$FF$592,58) -> 0 | S21: =VLOOKUP('District Summary'!$A$3,'School Resource Matrices'!$B$545:$FF$592,61) -> 0 | T21: =VLOOKUP('District Summary'!$A$3,'School Resource Matrices'!$B$545:$FF$592,64) -> 0 | U21: =VLOOKUP('District Summary'!$A$3,'School Resource Matrices'!$B$545:$FF$592,65) -> 0 | V21: =VLOOKUP('District Summary'!$A$3,'School Resource Matrices'!$B$545:$FF$592,66) -> 0 | W21: =VLOOKUP('District Summary'!$A$3,'School Resource Matrices'!$B$545:$FF$592,71) -> 0 | X21: =VLOOKUP('District Summary'!$A$3,'School Resource Matrices'!$B$545:$FF$592,76) -> 0 | Y21: =VLOOKUP('District Summary'!$A$3,'School Resource Matrices'!$B$545:$FF$592,72) -> 0 | Z21: =VLOOKUP('District Summary'!$A$3,'School Resource Matrices'!$B$545:$FF$592,80) -> 0 | AA21: =VLOOKUP('District Summary'!$A$3,'School Resource Matrices'!$B$545:$FF$592,84) -> 0 | AB21: 0
A22: 13 | B22: =VLOOKUP('District Summary'!$A$3,'School Resource Matrices'!$B$594:$FF$641,4) -> 0 | C22: =VLOOKUP('District Summary'!$A$3,'School Resource Matrices'!$B$594:$FF$641,9) -> 0 | D22: =VLOOKUP('District Summary'!$A$3,'School Resource Matrices'!$B$594:$FF$641,5) -> 0 | E22: =VLOOKUP('District Summary'!$A$3,'School Resource Matrices'!$B$594:$FF$641,11) -> 0 | F22: =VLOOKUP('District Summary'!$A$3,'School Resource Matrices'!$B$594:$FF$641,10) -> 0 | G22: =VLOOKUP('District Summary'!$A$3,'School Resource Matrices'!$B$594:$FF$641,33) -> 0 | H22: =VLOOKUP('District Summary'!$A$3,'School Resource Matrices'!$B$594:$FF$641,38) -> 0 | I22: =VLOOKUP('District Summary'!$A$3,'School Resource Matrices'!$B$594:$FF$641,39) -> 0 | J22: =VLOOKUP('District Summary'!$A$3,'School Resource Matrices'!$B$594:$FF$641,40) -> 0 | K22: =VLOOKUP('District Summary'!$A$3,'School Resource Matrices'!$B$594:$FF$641,41) -> 0 | L22: =VLOOKUP('District Summary'!$A$3,'School Resource Matrices'!$B$594:$FF$641,42) -> 0 | M22: =VLOOKUP('District Summary'!$A$3,'School Resource Matrices'!$B$594:$FF$641,46) -> 0 | N22: =VLOOKUP('District Summary'!$A$3,'School Resource Matrices'!$B$594:$FF$641,51) -> 0 | O22: =VLOOKUP('District Summary'!$A$3,'School Resource Matrices'!$B$594:$FF$641,52) -> 0 | P22: =VLOOKUP('District Summary'!$A$3,'School Resource Matrices'!$B$594:$FF$641,53) -> 0 | Q22: =VLOOKUP('District Summary'!$A$3,'School Resource Matrices'!$B$594:$FF$641,54) -> 0 | R22: =VLOOKUP('District Summary'!$A$3,'School Resource Matrices'!$B$594:$FF$641,58) -> 0 | S22: =VLOOKUP('District Summary'!$A$3,'School Resource Matrices'!$B$594:$FF$641,61) -> 0 | T22: =VLOOKUP('District Summary'!$A$3,'School Resource Matrices'!$B$594:$FF$641,64) -> 0 | U22: =VLOOKUP('District Summary'!$A$3,'School Resource Matrices'!$B$594:$FF$651,65) -> 0 | V22: =VLOOKUP('District Summary'!$A$3,'School Resource Matrices'!$B$594:$FF$641,66) -> 0 | W22: =VLOOKUP('District Summary'!$A$3,'School Resource Matrices'!$B$594:$FF$641,71) -> 0 | X22: =VLOOKUP('District Summary'!$A$3,'School Resource Matrices'!$B$594:$FF$641,76) -> 0 | Y22: =VLOOKUP('District Summary'!$A$3,'School Resource Matrices'!$B$594:$FF$641,72) -> 0 | Z22: =VLOOKUP('District Summary'!$A$3,'School Resource Matrices'!$B$594:$FF$641,80) -> 0 | AA22: =VLOOKUP('District Summary'!$A$3,'School Resource Matrices'!$B$594:$FF$641,84) -> 0 | AB22: 0
A23: 14 | B23: =VLOOKUP('District Summary'!$A$3,'School Resource Matrices'!$B$643:$FF$690,4) -> 0 | C23: =VLOOKUP('District Summary'!$A$3,'School Resource Matrices'!$B$643:$FF$690,9) -> 0 | D23: =VLOOKUP('District Summary'!$A$3,'School Resource Matrices'!$B$643:$FF$690,5) -> 0 | E23: =VLOOKUP('District Summary'!$A$3,'School Resource Matrices'!$B$643:$FF$690,11) -> 0 | F23: =VLOOKUP('District Summary'!$A$3,'School Resource Matrices'!$B$643:$FF$690,10) -> 0 | G23: =VLOOKUP('District Summary'!$A$3,'School Resource Matrices'!$B$643:$FF$690,33) -> 0 | H23: =VLOOKUP('District Summary'!$A$3,'School Resource Matrices'!$B$643:$FF$690,38) -> 0 | I23: =VLOOKUP('District Summary'!$A$3,'School Resource Matrices'!$B$643:$FF$690,39) -> 0 | J23: =VLOOKUP('District Summary'!$A$3,'School Resource Matrices'!$B$643:$FF$690,40) -> 0 | K23: =VLOOKUP('District Summary'!$A$3,'School Resource Matrices'!$B$643:$FF$690,41) -> 0 | L23: =VLOOKUP('District Summary'!$A$3,'School Resource Matrices'!$B$643:$FF$690,42) -> 0 | M23: =VLOOKUP('District Summary'!$A$3,'School Resource Matrices'!$B$643:$FF$690,46) -> 0 | N23: =VLOOKUP('District Summary'!$A$3,'School Resource Matrices'!$B$643:$FF$690,51) -> 0 | O23: =VLOOKUP('District Summary'!$A$3,'School Resource Matrices'!$B$643:$FF$690,52) -> 0 | P23: =VLOOKUP('District Summary'!$A$3,'School Resource Matrices'!$B$643:$FF$690,53) -> 0 | Q23: =VLOOKUP('District Summary'!$A$3,'School Resource Matrices'!$B$643:$FF$690,54) -> 0 | R23: =VLOOKUP('District Summary'!$A$3,'School Resource Matrices'!$B$643:$FF$690,58) -> 0 | S23: =VLOOKUP('District Summary'!$A$3,'School Resource Matrices'!$B$643:$FF$690,61) -> 0 | T23: =VLOOKUP('District Summary'!$A$3,'School Resource Matrices'!$B$643:$FF$690,64) -> 0 | U23: =VLOOKUP('District Summary'!$A$3,'School Resource Matrices'!$B$643:$FF$690,65) -> 0 | V23: =VLOOKUP('District Summary'!$A$3,'School Resource Matrices'!$B$643:$FF$690,66) -> 0 | W23: =VLOOKUP('District Summary'!$A$3,'School Resource Matrices'!$B$643:$FF$690,71) -> 0 | X23: =VLOOKUP('District Summary'!$A$3,'School Resource Matrices'!$B$643:$FF$690,76) -> 0 | Y23: =VLOOKUP('District Summary'!$A$3,'School Resource Matrices'!$B$643:$FF$690,72) -> 0 | Z23: =VLOOKUP('District Summary'!$A$3,'School Resource Matrices'!$B$643:$FF$690,80) -> 0 | AA23: =VLOOKUP('District Summary'!$A$3,'School Resource Matrices'!$B$643:$FF$690,84) -> 0 | AB23: 0
A24: 15 | B24: =VLOOKUP('District Summary'!$A$3,'School Resource Matrices'!$B$692:$FF$739,4) -> 0 | C24: =VLOOKUP('District Summary'!$A$3,'School Resource Matrices'!$B$692:$FF$739,9) -> 0 | D24: =VLOOKUP('District Summary'!$A$3,'School Resource Matrices'!$B$692:$FF$739,5) -> 0 | E24: =VLOOKUP('District Summary'!$A$3,'School Resource Matrices'!$B$692:$FF$739,11) -> 0 | F24: =VLOOKUP('District Summary'!$A$3,'School Resource Matrices'!$B$692:$FF$739,10) -> 0 | G24: =VLOOKUP('District Summary'!$A$3,'School Resource Matrices'!$B$692:$FF$739,33) -> 0 | H24: =VLOOKUP('District Summary'!$A$3,'School Resource Matrices'!$B$692:$FF$739,38) -> 0 | I24: =VLOOKUP('District Summary'!$A$3,'School Resource Matrices'!$B$692:$FF$739,39) -> 0 | J24: =VLOOKUP('District Summary'!$A$3,'School Resource Matrices'!$B$692:$FF$739,40) -> 0 | K24: =VLOOKUP('District Summary'!$A$3,'School Resource Matrices'!$B$692:$FF$739,41) -> 0 | L24: =VLOOKUP('District Summary'!$A$3,'School Resource Matrices'!$B$692:$FF$739,42) -> 0 | M24: =VLOOKUP('District Summary'!$A$3,'School Resource Matrices'!$B$692:$FF$739,46) -> 0 | N24: =VLOOKUP('District Summary'!$A$3,'School Resource Matrices'!$B$692:$FF$739,51) -> 0 | O24: =VLOOKUP('District Summary'!$A$3,'School Resource Matrices'!$B$692:$FF$739,52) -> 0 | P24: =VLOOKUP('District Summary'!$A$3,'School Resource Matrices'!$B$692:$FF$739,53) -> 0 | Q24: =VLOOKUP('District Summary'!$A$3,'School Resource Matrices'!$B$692:$FF$739,54) -> 0 | R24: =VLOOKUP('District Summary'!$A$3,'School Resource Matrices'!$B$692:$FF$739,58) -> 0 | S24: =VLOOKUP('District Summary'!$A$3,'School Resource Matrices'!$B$692:$FF$739,61) -> 0 | T24: =VLOOKUP('District Summary'!$A$3,'School Resource Matrices'!$B$692:$FF$739,64) -> 0 | U24: =VLOOKUP('District Summary'!$A$3,'School Resource Matrices'!$B$692:$FF$739,65) -> 0 | V24: =VLOOKUP('District Summary'!$A$3,'School Resource Matrices'!$B$692:$FF$739,66) -> 0 | W24: =VLOOKUP('District Summary'!$A$3,'School Resource Matrices'!$B$692:$FF$739,71) -> 0 | X24: =VLOOKUP('District Summary'!$A$3,'School Resource Matrices'!$B$692:$FF$739,76) -> 0 | Y24: =VLOOKUP('District Summary'!$A$3,'School Resource Matrices'!$B$692:$FF$739,72) -> 0 | Z24: =VLOOKUP('District Summary'!$A$3,'School Resource Matrices'!$B$692:$FF$739,80) -> 0 | AA24: =VLOOKUP('District Summary'!$A$3,'School Resource Matrices'!$B$692:$FF$739,84) -> 0 | AB24: 0
A25: 16 | B25: =VLOOKUP('District Summary'!$A$3,'School Resource Matrices'!$B$741:$FF$788,4) -> 0 | C25: =VLOOKUP('District Summary'!$A$3,'School Resource Matrices'!$B$741:$FF$788,9) -> 0 | D25: =VLOOKUP('District Summary'!$A$3,'School Resource Matrices'!$B$741:$FF$788,5) -> 0 | E25: =VLOOKUP('District Summary'!$A$3,'School Resource Matrices'!$B$741:$FF$788,11) -> 0 | F25: =VLOOKUP('District Summary'!$A$3,'School Resource Matrices'!$B$741:$FF$788,10) -> 0 | G25: =VLOOKUP('District Summary'!$A$3,'School Resource Matrices'!$B$741:$FF$788,33) -> 0 | H25: =VLOOKUP('District Summary'!$A$3,'School Resource Matrices'!$B$741:$FF$788,38) -> 0 | I25: =VLOOKUP('District Summary'!$A$3,'School Resource Matrices'!$B$741:$FF$788,39) -> 0 | J25: =VLOOKUP('District Summary'!$A$3,'School Resource Matrices'!$B$741:$FF$788,40) -> 0 | K25: =VLOOKUP('District Summary'!$A$3,'School Resource Matrices'!$B$741:$FF$788,41) -> 0 | L25: =VLOOKUP('District Summary'!$A$3,'School Resource Matrices'!$B$741:$FF$788,42) -> 0 | M25: =VLOOKUP('District Summary'!$A$3,'School Resource Matrices'!$B$741:$FF$788,46) -> 0 | N25: =VLOOKUP('District Summary'!$A$3,'School Resource Matrices'!$B$741:$FF$788,51) -> 0 | O25: =VLOOKUP('District Summary'!$A$3,'School Resource Matrices'!$B$741:$FF$788,52) -> 0 | P25: =VLOOKUP('District Summary'!$A$3,'School Resource Matrices'!$B$741:$FF$788,53) -> 0 | Q25: =VLOOKUP('District Summary'!$A$3,'School Resource Matrices'!$B$741:$FF$788,54) -> 0 | R25: =VLOOKUP('District Summary'!$A$3,'School Resource Matrices'!$B$741:$FF$788,58) -> 0 | S25: =VLOOKUP('District Summary'!$A$3,'School Resource Matrices'!$B$741:$FF$788,61) -> 0 | T25: =VLOOKUP('District Summary'!$A$3,'School Resource Matrices'!$B$741:$FF$788,64) -> 0 | U25: =VLOOKUP('District Summary'!$A$3,'School Resource Matrices'!$B$741:$FF$788,65) -> 0 | V25: =VLOOKUP('District Summary'!$A$3,'School Resource Matrices'!$B$741:$FF$788,66) -> 0 | W25: =VLOOKUP('District Summary'!$A$3,'School Resource Matrices'!$B$741:$FF$788,71) -> 0 | X25: =VLOOKUP('District Summary'!$A$3,'School Resource Matrices'!$B$741:$FF$788,76) -> 0 | Y25: =VLOOKUP('District Summary'!$A$3,'School Resource Matrices'!$B$741:$FF$788,72) -> 0 | Z25: =VLOOKUP('District Summary'!$A$3,'School Resource Matrices'!$B$741:$FF$788,80) -> 0 | AA25: =VLOOKUP('District Summary'!$A$3,'School Resource Matrices'!$B$741:$FF$788,84) -> 0 | AB25: 0
A26: 17 | B26: =VLOOKUP('District Summary'!$A$3,'School Resource Matrices'!$B$790:$FF$837,4) -> 0 | C26: =VLOOKUP('District Summary'!$A$3,'School Resource Matrices'!$B$790:$FF$837,9) -> 0 | D26: =VLOOKUP('District Summary'!$A$3,'School Resource Matrices'!$B$790:$FF$837,5) -> 0 | E26: =VLOOKUP('District Summary'!$A$3,'School Resource Matrices'!$B$790:$FF$837,11) -> 0 | F26: =VLOOKUP('District Summary'!$A$3,'School Resource Matrices'!$B$790:$FF$837,10) -> 0 | G26: =VLOOKUP('District Summary'!$A$3,'School Resource Matrices'!$B$790:$FF$837,33) -> 0 | H26: =VLOOKUP('District Summary'!$A$3,'School Resource Matrices'!$B$790:$FF$837,38) -> 0 | I26: =VLOOKUP('District Summary'!$A$3,'School Resource Matrices'!$B$790:$FF$837,39) -> 0 | J26: =VLOOKUP('District Summary'!$A$3,'School Resource Matrices'!$B$790:$FF$837,40) -> 0 | K26: =VLOOKUP('District Summary'!$A$3,'School Resource Matrices'!$B$790:$FF$837,41) -> 0 | L26: =VLOOKUP('District Summary'!$A$3,'School Resource Matrices'!$B$790:$FF$837,42) -> 0 | M26: =VLOOKUP('District Summary'!$A$3,'School Resource Matrices'!$B$790:$FF$837,46) -> 0 | N26: =VLOOKUP('District Summary'!$A$3,'School Resource Matrices'!$B$790:$FF$837,51) -> 0 | O26: =VLOOKUP('District Summary'!$A$3,'School Resource Matrices'!$B$790:$FF$837,52) -> 0 | P26: =VLOOKUP('District Summary'!$A$3,'School Resource Matrices'!$B$790:$FF$837,53) -> 0 | Q26: =VLOOKUP('District Summary'!$A$3,'School Resource Matrices'!$B$790:$FF$837,54) -> 0 | R26: =VLOOKUP('District Summary'!$A$3,'School Resource Matrices'!$B$790:$FF$837,58) -> 0 | S26: =VLOOKUP('District Summary'!$A$3,'School Resource Matrices'!$B$790:$FF$837,61) -> 0 | T26: =VLOOKUP('District Summary'!$A$3,'School Resource Matrices'!$B$790:$FF$837,64) -> 0 | U26: =VLOOKUP('District Summary'!$A$3,'School Resource Matrices'!$B$790:$FF$837,65) -> 0 | V26: =VLOOKUP('District Summary'!$A$3,'School Resource Matrices'!$B$790:$FF$837,66) -> 0 | W26: =VLOOKUP('District Summary'!$A$3,'School Resource Matrices'!$B$790:$FF$837,71) -> 0 | X26: =VLOOKUP('District Summary'!$A$3,'School Resource Matrices'!$B$790:$FF$837,76) -> 0 | Y26: =VLOOKUP('District Summary'!$A$3,'School Resource Matrices'!$B$790:$FF$837,72) -> 0 | Z26: =VLOOKUP('District Summary'!$A$3,'School Resource Matrices'!$B$790:$FF$837,80) -> 0 | AA26: =VLOOKUP('District Summary'!$A$3,'School Resource Matrices'!$B$790:$FF$847,84) -> 0 | AB26: 0
A27: 18 | B27: =VLOOKUP('District Summary'!$A$3,'School Resource Matrices'!$B$839:$FF$886,4) -> 0 | C27: =VLOOKUP('District Summary'!$A$3,'School Resource Matrices'!$B$839:$FF$886,9) -> 0 | D27: =VLOOKUP('District Summary'!$A$3,'School Resource Matrices'!$B$839:$FF$886,5) -> 0 | E27: =VLOOKUP('District Summary'!$A$3,'School Resource Matrices'!$B$839:$FF$886,11) -> 0 | F27: =VLOOKUP('District Summary'!$A$3,'School Resource Matrices'!$B$839:$FF$886,10) -> 0 | G27: =VLOOKUP('District Summary'!$A$3,'School Resource Matrices'!$B$839:$FF$886,33) -> 0 | H27: =VLOOKUP('District Summary'!$A$3,'School Resource Matrices'!$B$839:$FF$886,38) -> 0 | I27: =VLOOKUP('District Summary'!$A$3,'School Resource Matrices'!$B$839:$FF$886,39) -> 0 | J27: =VLOOKUP('District Summary'!$A$3,'School Resource Matrices'!$B$839:$FF$886,40) -> 0 | K27: =VLOOKUP('District Summary'!$A$3,'School Resource Matrices'!$B$839:$FF$886,41) -> 0 | L27: =VLOOKUP('District Summary'!$A$3,'School Resource Matrices'!$B$839:$FF$886,42) -> 0 | M27: =VLOOKUP('District Summary'!$A$3,'School Resource Matrices'!$B$839:$FF$886,46) -> 0 | N27: =VLOOKUP('District Summary'!$A$3,'School Resource Matrices'!$B$839:$FF$886,51) -> 0 | O27: =VLOOKUP('District Summary'!$A$3,'School Resource Matrices'!$B$839:$FF$886,52) -> 0 | P27: =VLOOKUP('District Summary'!$A$3,'School Resource Matrices'!$B$839:$FF$886,53) -> 0 | Q27: =VLOOKUP('District Summary'!$A$3,'School Resource Matrices'!$B$839:$FF$886,54) -> 0 | R27: =VLOOKUP('District Summary'!$A$3,'School Resource Matrices'!$B$839:$FF$886,58) -> 0 | S27: =VLOOKUP('District Summary'!$A$3,'School Resource Matrices'!$B$839:$FF$886,61) -> 0 | T27: =VLOOKUP('District Summary'!$A$3,'School Resource Matrices'!$B$839:$FF$886,64) -> 0 | U27: =VLOOKUP('District Summary'!$A$3,'School Resource Matrices'!$B$839:$FF$886,65) -> 0 | V27: =VLOOKUP('District Summary'!$A$3,'School Resource Matrices'!$B$839:$FF$886,66) -> 0 | W27: =VLOOKUP('District Summary'!$A$3,'School Resource Matrices'!$B$839:$FF$886,71) -> 0 | X27: =VLOOKUP('District Summary'!$A$3,'School Resource Matrices'!$B$839:$FF$886,76) -> 0 | Y27: =VLOOKUP('District Summary'!$A$3,'School Resource Matrices'!$B$839:$FF$886,72) -> 0 | Z27: =VLOOKUP('District Summary'!$A$3,'School Resource Matrices'!$B$839:$FF$886,80) -> 0 | AA27: =VLOOKUP('District Summary'!$A$3,'School Resource Matrices'!$B$839:$FF$886,84) -> 0 | AB27: 0
A28: 19 | B28: =VLOOKUP('District Summary'!$A$3,'School Resource Matrices'!$B$888:$FF$935,4) -> 0 | C28: =VLOOKUP('District Summary'!$A$3,'School Resource Matrices'!$B$888:$FF$935,9) -> 0 | D28: =VLOOKUP('District Summary'!$A$3,'School Resource Matrices'!$B$888:$FF$935,5) -> 0 | E28: =VLOOKUP('District Summary'!$A$3,'School Resource Matrices'!$B$888:$FF$935,11) -> 0 | F28: =VLOOKUP('District Summary'!$A$3,'School Resource Matrices'!$B$888:$FF$935,10) -> 0 | G28: =VLOOKUP('District Summary'!$A$3,'School Resource Matrices'!$B$888:$FF$935,33) -> 0 | H28: =VLOOKUP('District Summary'!$A$3,'School Resource Matrices'!$B$888:$FF$935,38) -> 0 | I28: =VLOOKUP('District Summary'!$A$3,'School Resource Matrices'!$B$888:$FF$935,39) -> 0 | J28: =VLOOKUP('District Summary'!$A$3,'School Resource Matrices'!$B$888:$FF$935,40) -> 0 | K28: =VLOOKUP('District Summary'!$A$3,'School Resource Matrices'!$B$888:$FF$935,41) -> 0 | L28: =VLOOKUP('District Summary'!$A$3,'School Resource Matrices'!$B$888:$FF$935,42) -> 0 | M28: =VLOOKUP('District Summary'!$A$3,'School Resource Matrices'!$B$888:$FF$935,46) -> 0 | N28: =VLOOKUP('District Summary'!$A$3,'School Resource Matrices'!$B$888:$FF$935,51) -> 0 | O28: =VLOOKUP('District Summary'!$A$3,'School Resource Matrices'!$B$888:$FF$935,52) -> 0 | P28: =VLOOKUP('District Summary'!$A$3,'School Resource Matrices'!$B$888:$FF$935,53) -> 0 | Q28: =VLOOKUP('District Summary'!$A$3,'School Resource Matrices'!$B$888:$FF$935,54) -> 0 | R28: =VLOOKUP('District Summary'!$A$3,'School Resource Matrices'!$B$888:$FF$935,58) -> 0 | S28: =VLOOKUP('District Summary'!$A$3,'School Resource Matrices'!$B$888:$FF$935,61) -> 0 | T28: =VLOOKUP('District Summary'!$A$3,'School Resource Matrices'!$B$888:$FF$935,64) -> 0 | U28: =VLOOKUP('District Summary'!$A$3,'School Resource Matrices'!$B$888:$FF$935,65) -> 0 | V28: =VLOOKUP('District Summary'!$A$3,'School Resource Matrices'!$B$888:$FF$935,66) -> 0 | W28: =VLOOKUP('District Summary'!$A$3,'School Resource Matrices'!$B$888:$FF$935,71) -> 0 | X28: =VLOOKUP('District Summary'!$A$3,'School Resource Matrices'!$B$888:$FF$935,76) -> 0 | Y28: =VLOOKUP('District Summary'!$A$3,'School Resource Matrices'!$B$888:$FF$935,72) -> 0 | Z28: =VLOOKUP('District Summary'!$A$3,'School Resource Matrices'!$B$888:$FF$935,80) -> 0 | AA28: =VLOOKUP('District Summary'!$A$3,'School Resource Matrices'!$B$888:$FF$935,84) -> 0 | AB28: 0
A29: 20 | B29: =VLOOKUP('District Summary'!$A$3,'School Resource Matrices'!$B$937:$FF$984,4) -> 0 | C29: =VLOOKUP('District Summary'!$A$3,'School Resource Matrices'!$B$937:$FF$984,9) -> 0 | D29: =VLOOKUP('District Summary'!$A$3,'School Resource Matrices'!$B$937:$FF$984,5) -> 0 | E29: =VLOOKUP('District Summary'!$A$3,'School Resource Matrices'!$B$937:$FF$984,11) -> 0 | F29: =VLOOKUP('District Summary'!$A$3,'School Resource Matrices'!$B$937:$FF$984,10) -> 0 | G29: =VLOOKUP('District Summary'!$A$3,'School Resource Matrices'!$B$937:$FF$984,33) -> 0 | H29: =VLOOKUP('District Summary'!$A$3,'School Resource Matrices'!$B$937:$FF$984,38) -> 0 | I29: =VLOOKUP('District Summary'!$A$3,'School Resource Matrices'!$B$937:$FF$984,39) -> 0 | J29: =VLOOKUP('District Summary'!$A$3,'School Resource Matrices'!$B$937:$FF$984,40) -> 0 | K29: =VLOOKUP('District Summary'!$A$3,'School Resource Matrices'!$B$937:$FF$984,41) -> 0 | L29: =VLOOKUP('District Summary'!$A$3,'School Resource Matrices'!$B$937:$FF$984,42) -> 0 | M29: =VLOOKUP('District Summary'!$A$3,'School Resource Matrices'!$B$937:$FF$984,46) -> 0 | N29: =VLOOKUP('District Summary'!$A$3,'School Resource Matrices'!$B$937:$FF$984,51) -> 0 | O29: =VLOOKUP('District Summary'!$A$3,'School Resource Matrices'!$B$937:$FF$984,52) -> 0 | P29: =VLOOKUP('District Summary'!$A$3,'School Resource Matrices'!$B$937:$FF$984,53) -> 0 | Q29: =VLOOKUP('District Summary'!$A$3,'School Resource Matrices'!$B$937:$FF$984,54) -> 0 | R29: =VLOOKUP('District Summary'!$A$3,'School Resource Matrices'!$B$937:$FF$984,58) -> 0 | S29: =VLOOKUP('District Summary'!$A$3,'School Resource Matrices'!$B$937:$FF$984,61) -> 0 | T29: =VLOOKUP('District Summary'!$A$3,'School Resource Matrices'!$B$937:$FF$984,64) -> 0 | U29: =VLOOKUP('District Summary'!$A$3,'School Resource Matrices'!$B$937:$FF$984,65) -> 0 | V29: =VLOOKUP('District Summary'!$A$3,'School Resource Matrices'!$B$937:$FF$984,66) -> 0 | W29: =VLOOKUP('District Summary'!$A$3,'School Resource Matrices'!$B$937:$FF$984,71) -> 0 | X29: =VLOOKUP('District Summary'!$A$3,'School Resource Matrices'!$B$937:$FF$984,76) -> 0 | Y29: =VLOOKUP('District Summary'!$A$3,'School Resource Matrices'!$B$937:$FF$984,72) -> 0 | Z29: =VLOOKUP('District Summary'!$A$3,'School Resource Matrices'!$B$937:$FF$984,80) -> 0 | AA29: =VLOOKUP('District Summary'!$A$3,'School Resource Matrices'!$B$937:$FF$984,84) -> 0 | AB29: 0
A30: 21 | B30: =VLOOKUP('District Summary'!$A$3,'School Resource Matrices'!$B$986:$FF$1033,4) -> 0 | C30: =VLOOKUP('District Summary'!$A$3,'School Resource Matrices'!$B$986:$FF$1033,9) -> 0 | D30: =VLOOKUP('District Summary'!$A$3,'School Resource Matrices'!$B$986:$FF$1033,5) -> 0 | E30: =VLOOKUP('District Summary'!$A$3,'School Resource Matrices'!$B$986:$FF$1033,11) -> 0 | F30: =VLOOKUP('District Summary'!$A$3,'School Resource Matrices'!$B$986:$FF$1033,10) -> 0 | G30: =VLOOKUP('District Summary'!$A$3,'School Resource Matrices'!$B$986:$FF$1033,33) -> 0 | H30: =VLOOKUP('District Summary'!$A$3,'School Resource Matrices'!$B$986:$FF$1033,38) -> 0 | I30: =VLOOKUP('District Summary'!$A$3,'School Resource Matrices'!$B$986:$FF$1033,39) -> 0 | J30: =VLOOKUP('District Summary'!$A$3,'School Resource Matrices'!$B$986:$FF$1033,40) -> 0 | K30: =VLOOKUP('District Summary'!$A$3,'School Resource Matrices'!$B$986:$FF$1033,41) -> 0 | L30: =VLOOKUP('District Summary'!$A$3,'School Resource Matrices'!$B$986:$FF$1033,42) -> 0 | M30: =VLOOKUP('District Summary'!$A$3,'School Resource Matrices'!$B$986:$FF$1033,46) -> 0 | N30: =VLOOKUP('District Summary'!$A$3,'School Resource Matrices'!$B$986:$FF$1033,51) -> 0 | O30: =VLOOKUP('District Summary'!$A$3,'School Resource Matrices'!$B$986:$FF$1033,52) -> 0 | P30: =VLOOKUP('District Summary'!$A$3,'School Resource Matrices'!$B$986:$FF$1033,53) -> 0 | Q30: =VLOOKUP('District Summary'!$A$3,'School Resource Matrices'!$B$986:$FF$1033,54) -> 0 | R30: =VLOOKUP('District Summary'!$A$3,'School Resource Matrices'!$B$986:$FF$1033,58) -> 0 | S30: =VLOOKUP('District Summary'!$A$3,'School Resource Matrices'!$B$986:$FF$1033,61) -> 0 | T30: =VLOOKUP('District Summary'!$A$3,'School Resource Matrices'!$B$986:$FF$1033,64) -> 0 | U30: =VLOOKUP('District Summary'!$A$3,'School Resource Matrices'!$B$986:$FF$1033,65) -> 0 | V30: =VLOOKUP('District Summary'!$A$3,'School Resource Matrices'!$B$986:$FF$1033,66) -> 0 | W30: =VLOOKUP('District Summary'!$A$3,'School Resource Matrices'!$B$986:$FF$1033,71) -> 0 | X30: =VLOOKUP('District Summary'!$A$3,'School Resource Matrices'!$B$986:$FF$1033,76) -> 0 | Y30: =VLOOKUP('District Summary'!$A$3,'School Resource Matrices'!$B$986:$FF$1033,72) -> 0 | Z30: =VLOOKUP('District Summary'!$A$3,'School Resource Matrices'!$B$986:$FF$1033,80) -> 0 | AA30: =VLOOKUP('District Summary'!$A$3,'School Resource Matrices'!$B$986:$FF$1033,84) -> 0 | AB30: 0
A31: 22 | B31: =VLOOKUP('District Summary'!$A$3,'School Resource Matrices'!$B$1035:$FF$1082,4) -> 0 | C31: =VLOOKUP('District Summary'!$A$3,'School Resource Matrices'!$B$1035:$FF$1082,9) -> 0 | D31: =VLOOKUP('District Summary'!$A$3,'School Resource Matrices'!$B$1035:$FF$1082,5) -> 0 | E31: =VLOOKUP('District Summary'!$A$3,'School Resource Matrices'!$B$1035:$FF$1082,11) -> 0 | F31: =VLOOKUP('District Summary'!$A$3,'School Resource Matrices'!$B$1035:$FF$1082,10) -> 0 | G31: =VLOOKUP('District Summary'!$A$3,'School Resource Matrices'!$B$1035:$FF$1082,33) -> 0 | H31: =VLOOKUP('District Summary'!$A$3,'School Resource Matrices'!$B$1035:$FF$1082,38) -> 0 | I31: =VLOOKUP('District Summary'!$A$3,'School Resource Matrices'!$B$1035:$FF$1082,39) -> 0 | J31: =VLOOKUP('District Summary'!$A$3,'School Resource Matrices'!$B$1035:$FF$1082,40) -> 0 | K31: =VLOOKUP('District Summary'!$A$3,'School Resource Matrices'!$B$1035:$FF$1082,41) -> 0 | L31: =VLOOKUP('District Summary'!$A$3,'School Resource Matrices'!$B$1035:$FF$1082,42) -> 0 | M31: =VLOOKUP('District Summary'!$A$3,'School Resource Matrices'!$B$1035:$FF$1082,46) -> 0 | N31: =VLOOKUP('District Summary'!$A$3,'School Resource Matrices'!$B$1035:$FF$1082,51) -> 0 | O31: =VLOOKUP('District Summary'!$A$3,'School Resource Matrices'!$B$1035:$FF$1082,52) -> 0 | P31: =VLOOKUP('District Summary'!$A$3,'School Resource Matrices'!$B$1035:$FF$1082,53) -> 0 | Q31: =VLOOKUP('District Summary'!$A$3,'School Resource Matrices'!$B$1035:$FF$1082,54) -> 0 | R31: =VLOOKUP('District Summary'!$A$3,'School Resource Matrices'!$B$1035:$FF$1082,58) -> 0 | S31: =VLOOKUP('District Summary'!$A$3,'School Resource Matrices'!$B$1035:$FF$1082,61) -> 0 | T31: =VLOOKUP('District Summary'!$A$3,'School Resource Matrices'!$B$1035:$FF$1082,64) -> 0 | U31: =VLOOKUP('District Summary'!$A$3,'School Resource Matrices'!$B$1035:$FF$1082,65) -> 0 | V31: =VLOOKUP('District Summary'!$A$3,'School Resource Matrices'!$B$1035:$FF$1082,66) -> 0 | W31: =VLOOKUP('District Summary'!$A$3,'School Resource Matrices'!$B$1035:$FF$1082,71) -> 0 | X31: =VLOOKUP('District Summary'!$A$3,'School Resource Matrices'!$B$1035:$FF$1082,76) -> 0 | Y31: =VLOOKUP('District Summary'!$A$3,'School Resource Matrices'!$B$1035:$FF$1082,72) -> 0 | Z31: =VLOOKUP('District Summary'!$A$3,'School Resource Matrices'!$B$1035:$FF$1082,80) -> 0 | AA31: =VLOOKUP('District Summary'!$A$3,'School Resource Matrices'!$B$1035:$FF$1082,84) -> 0 | AB31: 0
A32: 23 | B32: =VLOOKUP('District Summary'!$A$3,'School Resource Matrices'!$B$1084:$FF$1131,4) -> 0 | C32: =VLOOKUP('District Summary'!$A$3,'School Resource Matrices'!$B$1084:$FF$1131,9) -> 0 | D32: =VLOOKUP('District Summary'!$A$3,'School Resource Matrices'!$B$1084:$FF$1131,5) -> 0 | E32: =VLOOKUP('District Summary'!$A$3,'School Resource Matrices'!$B$1084:$FF$1131,11) -> 0 | F32: =VLOOKUP('District Summary'!$A$3,'School Resource Matrices'!$B$1084:$FF$1131,10) -> 0 | G32: =VLOOKUP('District Summary'!$A$3,'School Resource Matrices'!$B$1084:$FF$1131,33) -> 0 | H32: =VLOOKUP('District Summary'!$A$3,'School Resource Matrices'!$B$1084:$FF$1131,38) -> 0 | I32: =VLOOKUP('District Summary'!$A$3,'School Resource Matrices'!$B$1084:$FF$1131,39) -> 0 | J32: =VLOOKUP('District Summary'!$A$3,'School Resource Matrices'!$B$1084:$FF$1131,40) -> 0 | K32: =VLOOKUP('District Summary'!$A$3,'School Resource Matrices'!$B$1084:$FF$1131,41) -> 0 | L32: =VLOOKUP('District Summary'!$A$3,'School Resource Matrices'!$B$1084:$FF$1131,42) -> 0 | M32: =VLOOKUP('District Summary'!$A$3,'School Resource Matrices'!$B$1084:$FF$1131,46) -> 0 | N32: =VLOOKUP('District Summary'!$A$3,'School Resource Matrices'!$B$1084:$FF$1131,51) -> 0 | O32: =VLOOKUP('District Summary'!$A$3,'School Resource Matrices'!$B$1084:$FF$1131,52) -> 0 | P32: =VLOOKUP('District Summary'!$A$3,'School Resource Matrices'!$B$1084:$FF$1131,53) -> 0 | Q32: =VLOOKUP('District Summary'!$A$3,'School Resource Matrices'!$B$1084:$FF$1131,54) -> 0 | R32: =VLOOKUP('District Summary'!$A$3,'School Resource Matrices'!$B$1084:$FF$1131,58) -> 0 | S32: =VLOOKUP('District Summary'!$A$3,'School Resource Matrices'!$B$1084:$FF$1131,61) -> 0 | T32: =VLOOKUP('District Summary'!$A$3,'School Resource Matrices'!$B$1084:$FF$1131,64) -> 0 | U32: =VLOOKUP('District Summary'!$A$3,'School Resource Matrices'!$B$1084:$FF$1131,65) -> 0 | V32: =VLOOKUP('District Summary'!$A$3,'School Resource Matrices'!$B$1084:$FF$1131,66) -> 0 | W32: =VLOOKUP('District Summary'!$A$3,'School Resource Matrices'!$B$1084:$FF$1131,71) -> 0 | X32: =VLOOKUP('District Summary'!$A$3,'School Resource Matrices'!$B$1084:$FF$1131,76) -> 0 | Y32: =VLOOKUP('District Summary'!$A$3,'School Resource Matrices'!$B$1084:$FF$1131,72) -> 0 | Z32: =VLOOKUP('District Summary'!$A$3,'School Resource Matrices'!$B$1084:$FF$1131,80) -> 0 | AA32: =VLOOKUP('District Summary'!$A$3,'School Resource Matrices'!$B$1084:$FF$1131,84) -> 0 | AB32: 0
A33: 24 | B33: =VLOOKUP('District Summary'!$A$3,'School Resource Matrices'!$B$1133:$FF$1180,4) -> 0 | C33: =VLOOKUP('District Summary'!$A$3,'School Resource Matrices'!$B$1133:$FF$1180,9) -> 0 | D33: =VLOOKUP('District Summary'!$A$3,'School Resource Matrices'!$B$1133:$FF$1180,5) -> 0 | E33: =VLOOKUP('District Summary'!$A$3,'School Resource Matrices'!$B$1133:$FF$1180,11) -> 0 | F33: =VLOOKUP('District Summary'!$A$3,'School Resource Matrices'!$B$1133:$FF$1180,10) -> 0 | G33: =VLOOKUP('District Summary'!$A$3,'School Resource Matrices'!$B$1133:$FF$1180,33) -> 0 | H33: =VLOOKUP('District Summary'!$A$3,'School Resource Matrices'!$B$1133:$FF$1180,38) -> 0 | I33: =VLOOKUP('District Summary'!$A$3,'School Resource Matrices'!$B$1133:$FF$1180,39) -> 0 | J33: =VLOOKUP('District Summary'!$A$3,'School Resource Matrices'!$B$1133:$FF$1180,40) -> 0 | K33: =VLOOKUP('District Summary'!$A$3,'School Resource Matrices'!$B$1133:$FF$1180,41) -> 0 | L33: =VLOOKUP('District Summary'!$A$3,'School Resource Matrices'!$B$1133:$FF$1180,42) -> 0 | M33: =VLOOKUP('District Summary'!$A$3,'School Resource Matrices'!$B$1133:$FF$1180,46) -> 0 | N33: =VLOOKUP('District Summary'!$A$3,'School Resource Matrices'!$B$1133:$FF$1180,51) -> 0 | O33: =VLOOKUP('District Summary'!$A$3,'School Resource Matrices'!$B$1133:$FF$1180,52) -> 0 | P33: =VLOOKUP('District Summary'!$A$3,'School Resource Matrices'!$B$1133:$FF$1180,53) -> 0 | Q33: =VLOOKUP('District Summary'!$A$3,'School Resource Matrices'!$B$1133:$FF$1180,54) -> 0 | R33: =VLOOKUP('District Summary'!$A$3,'School Resource Matrices'!$B$1133:$FF$1180,58) -> 0 | S33: =VLOOKUP('District Summary'!$A$3,'School Resource Matrices'!$B$1133:$FF$1180,61) -> 0 | T33: =VLOOKUP('District Summary'!$A$3,'School Resource Matrices'!$B$1133:$FF$1180,64) -> 0 | U33: =VLOOKUP('District Summary'!$A$3,'School Resource Matrices'!$B$1133:$FF$1180,65) -> 0 | V33: =VLOOKUP('District Summary'!$A$3,'School Resource Matrices'!$B$1133:$FF$1180,66) -> 0 | W33: =VLOOKUP('District Summary'!$A$3,'School Resource Matrices'!$B$1133:$FF$1180,71) -> 0 | X33: =VLOOKUP('District Summary'!$A$3,'School Resource Matrices'!$B$1133:$FF$1180,76) -> 0 | Y33: =VLOOKUP('District Summary'!$A$3,'School Resource Matrices'!$B$1133:$FF$1180,72) -> 0 | Z33: =VLOOKUP('District Summary'!$A$3,'School Resource Matrices'!$B$1133:$FF$1180,80) -> 0 | AA33: =VLOOKUP('District Summary'!$A$3,'School Resource Matrices'!$B$1133:$FF$1180,84) -> 0 | AB33: 0
A34: 25 | B34: =VLOOKUP('District Summary'!$A$3,'School Resource Matrices'!$B$1182:$FF$1229,4) -> 0 | C34: =VLOOKUP('District Summary'!$A$3,'School Resource Matrices'!$B$1182:$FF$1229,9) -> 0 | D34: =VLOOKUP('District Summary'!$A$3,'School Resource Matrices'!$B$1182:$FF$1229,5) -> 0 | E34: =VLOOKUP('District Summary'!$A$3,'School Resource Matrices'!$B$1182:$FF$1229,11) -> 0 | F34: =VLOOKUP('District Summary'!$A$3,'School Resource Matrices'!$B$1182:$FF$1229,10) -> 0 | G34: =VLOOKUP('District Summary'!$A$3,'School Resource Matrices'!$B$1182:$FF$1229,33) -> 0 | H34: =VLOOKUP('District Summary'!$A$3,'School Resource Matrices'!$B$1182:$FF$1229,38) -> 0 | I34: =VLOOKUP('District Summary'!$A$3,'School Resource Matrices'!$B$1182:$FF$1229,39) -> 0 | J34: =VLOOKUP('District Summary'!$A$3,'School Resource Matrices'!$B$1182:$FF$1229,40) -> 0 | K34: =VLOOKUP('District Summary'!$A$3,'School Resource Matrices'!$B$1182:$FF$1229,41) -> 0 | L34: =VLOOKUP('District Summary'!$A$3,'School Resource Matrices'!$B$1182:$FF$1229,42) -> 0 | M34: =VLOOKUP('District Summary'!$A$3,'School Resource Matrices'!$B$1182:$FF$1229,46) -> 0 | N34: =VLOOKUP('District Summary'!$A$3,'School Resource Matrices'!$B$1182:$FF$1229,51) -> 0 | O34: =VLOOKUP('District Summary'!$A$3,'School Resource Matrices'!$B$1182:$FF$1229,52) -> 0 | P34: =VLOOKUP('District Summary'!$A$3,'School Resource Matrices'!$B$1182:$FF$1229,53) -> 0 | Q34: =VLOOKUP('District Summary'!$A$3,'School Resource Matrices'!$B$1182:$FF$1229,54) -> 0 | R34: =VLOOKUP('District Summary'!$A$3,'School Resource Matrices'!$B$1182:$FF$1229,58) -> 0 | S34: =VLOOKUP('District Summary'!$A$3,'School Resource Matrices'!$B$1182:$FF$1229,61) -> 0 | T34: =VLOOKUP('District Summary'!$A$3,'School Resource Matrices'!$B$1182:$FF$1229,64) -> 0 | U34: =VLOOKUP('District Summary'!$A$3,'School Resource Matrices'!$B$1182:$FF$1229,65) -> 0 | V34: =VLOOKUP('District Summary'!$A$3,'School Resource Matrices'!$B$1182:$FF$1229,66) -> 0 | W34: =VLOOKUP('District Summary'!$A$3,'School Resource Matrices'!$B$1182:$FF$1229,71) -> 0 | X34: =VLOOKUP('District Summary'!$A$3,'School Resource Matrices'!$B$1182:$FF$1229,76) -> 0 | Y34: =VLOOKUP('District Summary'!$A$3,'School Resource Matrices'!$B$1182:$FF$1229,72) -> 0 | Z34: =VLOOKUP('District Summary'!$A$3,'School Resource Matrices'!$B$1182:$FF$1229,80) -> 0 | AA34: =VLOOKUP('District Summary'!$A$3,'School Resource Matrices'!$B$1182:$FF$1229,84) -> 0 | AB34: 0
A35: 26 | B35: =VLOOKUP('District Summary'!$A$3,'School Resource Matrices'!$B$1231:$FF$1278,4) -> 0 | C35: =VLOOKUP('District Summary'!$A$3,'School Resource Matrices'!$B$1231:$FF$1278,9) -> 0 | D35: =VLOOKUP('District Summary'!$A$3,'School Resource Matrices'!$B$1231:$FF$1278,5) -> 0 | E35: =VLOOKUP('District Summary'!$A$3,'School Resource Matrices'!$B$1231:$FF$1278,11) -> 0 | F35: =VLOOKUP('District Summary'!$A$3,'School Resource Matrices'!$B$1231:$FF$1278,10) -> 0 | G35: =VLOOKUP('District Summary'!$A$3,'School Resource Matrices'!$B$1231:$FF$1278,33) -> 0 | H35: =VLOOKUP('District Summary'!$A$3,'School Resource Matrices'!$B$1231:$FF$1278,38) -> 0 | I35: =VLOOKUP('District Summary'!$A$3,'School Resource Matrices'!$B$1231:$FF$1278,39) -> 0 | J35: =VLOOKUP('District Summary'!$A$3,'School Resource Matrices'!$B$1231:$FF$1278,40) -> 0 | K35: =VLOOKUP('District Summary'!$A$3,'School Resource Matrices'!$B$1231:$FF$1278,41) -> 0 | L35: =VLOOKUP('District Summary'!$A$3,'School Resource Matrices'!$B$1231:$FF$1278,42) -> 0 | M35: =VLOOKUP('District Summary'!$A$3,'School Resource Matrices'!$B$1231:$FF$1278,46) -> 0 | N35: =VLOOKUP('District Summary'!$A$3,'School Resource Matrices'!$B$1231:$FF$1278,51) -> 0 | O35: =VLOOKUP('District Summary'!$A$3,'School Resource Matrices'!$B$1231:$FF$1278,52) -> 0 | P35: =VLOOKUP('District Summary'!$A$3,'School Resource Matrices'!$B$1231:$FF$1278,53) -> 0 | Q35: =VLOOKUP('District Summary'!$A$3,'School Resource Matrices'!$B$1231:$FF$1278,54) -> 0 | R35: =VLOOKUP('District Summary'!$A$3,'School Resource Matrices'!$B$1231:$FF$1278,58) -> 0 | S35: =VLOOKUP('District Summary'!$A$3,'School Resource Matrices'!$B$1231:$FF$1278,61) -> 0 | T35: =VLOOKUP('District Summary'!$A$3,'School Resource Matrices'!$B$1231:$FF$1278,64) -> 0 | U35: =VLOOKUP('District Summary'!$A$3,'School Resource Matrices'!$B$1231:$FF$1278,65) -> 0 | V35: =VLOOKUP('District Summary'!$A$3,'School Resource Matrices'!$B$1231:$FF$1278,66) -> 0 | W35: =VLOOKUP('District Summary'!$A$3,'School Resource Matrices'!$B$1231:$FF$1278,71) -> 0 | X35: =VLOOKUP('District Summary'!$A$3,'School Resource Matrices'!$B$1231:$FF$1278,76) -> 0 | Y35: =VLOOKUP('District Summary'!$A$3,'School Resource Matrices'!$B$1231:$FF$1278,72) -> 0 | Z35: =VLOOKUP('District Summary'!$A$3,'School Resource Matrices'!$B$1231:$FF$1278,80) -> 0 | AA35: =VLOOKUP('District Summary'!$A$3,'School Resource Matrices'!$B$1231:$FF$1278,84) -> 0 | AB35: 0
A36: 27 | B36: =VLOOKUP('District Summary'!$A$3,'School Resource Matrices'!$B$1280:$FF$1327,4) -> 0 | C36: =VLOOKUP('District Summary'!$A$3,'School Resource Matrices'!$B$1280:$FF$1327,9) -> 0 | D36: =VLOOKUP('District Summary'!$A$3,'School Resource Matrices'!$B$1280:$FF$1327,5) -> 0 | E36: =VLOOKUP('District Summary'!$A$3,'School Resource Matrices'!$B$1280:$FF$1327,11) -> 0 | F36: =VLOOKUP('District Summary'!$A$3,'School Resource Matrices'!$B$1280:$FF$1327,10) -> 0 | G36: =VLOOKUP('District Summary'!$A$3,'School Resource Matrices'!$B$1280:$FF$1327,33) -> 0 | H36: =VLOOKUP('District Summary'!$A$3,'School Resource Matrices'!$B$1280:$FF$1327,38) -> 0 | I36: =VLOOKUP('District Summary'!$A$3,'School Resource Matrices'!$B$1280:$FF$1327,39) -> 0 | J36: =VLOOKUP('District Summary'!$A$3,'School Resource Matrices'!$B$1280:$FF$1327,40) -> 0 | K36: =VLOOKUP('District Summary'!$A$3,'School Resource Matrices'!$B$1280:$FF$1327,41) -> 0 | L36: =VLOOKUP('District Summary'!$A$3,'School Resource Matrices'!$B$1280:$FF$1327,42) -> 0 | M36: =VLOOKUP('District Summary'!$A$3,'School Resource Matrices'!$B$1280:$FF$1327,46) -> 0 | N36: =VLOOKUP('District Summary'!$A$3,'School Resource Matrices'!$B$1280:$FF$1327,51) -> 0 | O36: =VLOOKUP('District Summary'!$A$3,'School Resource Matrices'!$B$1280:$FF$1327,52) -> 0 | P36: =VLOOKUP('District Summary'!$A$3,'School Resource Matrices'!$B$1280:$FF$1327,53) -> 0 | Q36: =VLOOKUP('District Summary'!$A$3,'School Resource Matrices'!$B$1280:$FF$1327,54) -> 0 | R36: =VLOOKUP('District Summary'!$A$3,'School Resource Matrices'!$B$1280:$FF$1327,58) -> 0 | S36: =VLOOKUP('District Summary'!$A$3,'School Resource Matrices'!$B$1280:$FF$1327,61) -> 0 | T36: =VLOOKUP('District Summary'!$A$3,'School Resource Matrices'!$B$1280:$FF$1327,64) -> 0 | U36: =VLOOKUP('District Summary'!$A$3,'School Resource Matrices'!$B$1280:$FF$1327,65) -> 0 | V36: =VLOOKUP('District Summary'!$A$3,'School Resource Matrices'!$B$1280:$FF$1327,66) -> 0 | W36: =VLOOKUP('District Summary'!$A$3,'School Resource Matrices'!$B$1280:$FF$1327,71) -> 0 | X36: =VLOOKUP('District Summary'!$A$3,'School Resource Matrices'!$B$1280:$FF$1327,76) -> 0 | Y36: =VLOOKUP('District Summary'!$A$3,'School Resource Matrices'!$B$1280:$FF$1327,72) -> 0 | Z36: =VLOOKUP('District Summary'!$A$3,'School Resource Matrices'!$B$1280:$FF$1327,80) -> 0 | AA36: =VLOOKUP('District Summary'!$A$3,'School Resource Matrices'!$B$1280:$FF$1327,84) -> 0 | AB36: 0
A37: 28 | B37: =VLOOKUP('District Summary'!$A$3,'School Resource Matrices'!$B$1329:$FF$1376,4) -> 0 | C37: =VLOOKUP('District Summary'!$A$3,'School Resource Matrices'!$B$1329:$FF$1376,9) -> 0 | D37: =VLOOKUP('District Summary'!$A$3,'School Resource Matrices'!$B$1329:$FF$1376,5) -> 0 | E37: =VLOOKUP('District Summary'!$A$3,'School Resource Matrices'!$B$1329:$FF$1376,11) -> 0 | F37: =VLOOKUP('District Summary'!$A$3,'School Resource Matrices'!$B$1329:$FF$1376,10) -> 0 | G37: =VLOOKUP('District Summary'!$A$3,'School Resource Matrices'!$B$1329:$FF$1376,33) -> 0 | H37: =VLOOKUP('District Summary'!$A$3,'School Resource Matrices'!$B$1329:$FF$1376,38) -> 0 | I37: =VLOOKUP('District Summary'!$A$3,'School Resource Matrices'!$B$1329:$FF$1376,39) -> 0 | J37: =VLOOKUP('District Summary'!$A$3,'School Resource Matrices'!$B$1329:$FF$1376,40) -> 0 | K37: =VLOOKUP('District Summary'!$A$3,'School Resource Matrices'!$B$1329:$FF$1376,41) -> 0 | L37: =VLOOKUP('District Summary'!$A$3,'School Resource Matrices'!$B$1329:$FF$1376,42) -> 0 | M37: =VLOOKUP('District Summary'!$A$3,'School Resource Matrices'!$B$1329:$FF$1376,46) -> 0 | N37: =VLOOKUP('District Summary'!$A$3,'School Resource Matrices'!$B$1329:$FF$1376,51) -> 0 | O37: =VLOOKUP('District Summary'!$A$3,'School Resource Matrices'!$B$1329:$FF$1376,52) -> 0 | P37: =VLOOKUP('District Summary'!$A$3,'School Resource Matrices'!$B$1329:$FF$1376,53) -> 0 | Q37: =VLOOKUP('District Summary'!$A$3,'School Resource Matrices'!$B$1329:$FF$1376,54) -> 0 | R37: =VLOOKUP('District Summary'!$A$3,'School Resource Matrices'!$B$1329:$FF$1376,58) -> 0 | S37: =VLOOKUP('District Summary'!$A$3,'School Resource Matrices'!$B$1329:$FF$1376,61) -> 0 | T37: =VLOOKUP('District Summary'!$A$3,'School Resource Matrices'!$B$1329:$FF$1376,64) -> 0 | U37: =VLOOKUP('District Summary'!$A$3,'School Resource Matrices'!$B$1329:$FF$1376,65) -> 0 | V37: =VLOOKUP('District Summary'!$A$3,'School Resource Matrices'!$B$1329:$FF$1376,66) -> 0 | W37: =VLOOKUP('District Summary'!$A$3,'School Resource Matrices'!$B$1329:$FF$1376,71) -> 0 | X37: =VLOOKUP('District Summary'!$A$3,'School Resource Matrices'!$B$1329:$FF$1376,76) -> 0 | Y37: =VLOOKUP('District Summary'!$A$3,'School Resource Matrices'!$B$1329:$FF$1376,72) -> 0 | Z37: =VLOOKUP('District Summary'!$A$3,'School Resource Matrices'!$B$1329:$FF$1376,80) -> 0 | AA37: =VLOOKUP('District Summary'!$A$3,'School Resource Matrices'!$B$1329:$FF$1376,84) -> 0 | AB37: 0
A38: 29 | B38: =VLOOKUP('District Summary'!$A$3,'School Resource Matrices'!$B$1378:$FF$1425,4) -> 0 | C38: =VLOOKUP('District Summary'!$A$3,'School Resource Matrices'!$B$1378:$FF$1425,9) -> 0 | D38: =VLOOKUP('District Summary'!$A$3,'School Resource Matrices'!$B$1378:$FF$1425,5) -> 0 | E38: =VLOOKUP('District Summary'!$A$3,'School Resource Matrices'!$B$1378:$FF$1425,11) -> 0 | F38: =VLOOKUP('District Summary'!$A$3,'School Resource Matrices'!$B$1378:$FF$1425,10) -> 0 | G38: =VLOOKUP('District Summary'!$A$3,'School Resource Matrices'!$B$1378:$FF$1425,33) -> 0 | H38: =VLOOKUP('District Summary'!$A$3,'School Resource Matrices'!$B$1378:$FF$1425,38) -> 0 | I38: =VLOOKUP('District Summary'!$A$3,'School Resource Matrices'!$B$1378:$FF$1425,39) -> 0 | J38: =VLOOKUP('District Summary'!$A$3,'School Resource Matrices'!$B$1378:$FF$1425,40) -> 0 | K38: =VLOOKUP('District Summary'!$A$3,'School Resource Matrices'!$B$1378:$FF$1425,41) -> 0 | L38: =VLOOKUP('District Summary'!$A$3,'School Resource Matrices'!$B$1378:$FF$1425,42) -> 0 | M38: =VLOOKUP('District Summary'!$A$3,'School Resource Matrices'!$B$1378:$FF$1425,46) -> 0 | N38: =VLOOKUP('District Summary'!$A$3,'School Resource Matrices'!$B$1378:$FF$1425,51) -> 0 | O38: =VLOOKUP('District Summary'!$A$3,'School Resource Matrices'!$B$1378:$FF$1425,52) -> 0 | P38: =VLOOKUP('District Summary'!$A$3,'School Resource Matrices'!$B$1378:$FF$1425,53) -> 0 | Q38: =VLOOKUP('District Summary'!$A$3,'School Resource Matrices'!$B$1378:$FF$1425,54) -> 0 | R38: =VLOOKUP('District Summary'!$A$3,'School Resource Matrices'!$B$1378:$FF$1425,58) -> 0 | S38: =VLOOKUP('District Summary'!$A$3,'School Resource Matrices'!$B$1378:$FF$1425,61) -> 0 | T38: =VLOOKUP('District Summary'!$A$3,'School Resource Matrices'!$B$1378:$FF$1425,64) -> 0 | U38: =VLOOKUP('District Summary'!$A$3,'School Resource Matrices'!$B$1378:$FF$1425,65) -> 0 | V38: =VLOOKUP('District Summary'!$A$3,'School Resource Matrices'!$B$1378:$FF$1425,66) -> 0 | W38: =VLOOKUP('District Summary'!$A$3,'School Resource Matrices'!$B$1378:$FF$1425,71) -> 0 | X38: =VLOOKUP('District Summary'!$A$3,'School Resource Matrices'!$B$1378:$FF$1425,76) -> 0 | Y38: =VLOOKUP('District Summary'!$A$3,'School Resource Matrices'!$B$1378:$FF$1425,72) -> 0 | Z38: =VLOOKUP('District Summary'!$A$3,'School Resource Matrices'!$B$1378:$FF$1425,80) -> 0 | AA38: =VLOOKUP('District Summary'!$A$3,'School Resource Matrices'!$B$1378:$FF$1425,84) -> 0 | AB38: 0
A39: 30 | B39: =VLOOKUP('District Summary'!$A$3,'School Resource Matrices'!$B$1427:$FF$1474,4) -> 0 | C39: =VLOOKUP('District Summary'!$A$3,'School Resource Matrices'!$B$1427:$FF$1474,9) -> 0 | D39: =VLOOKUP('District Summary'!$A$3,'School Resource Matrices'!$B$1427:$FF$1474,5) -> 0 | E39: =VLOOKUP('District Summary'!$A$3,'School Resource Matrices'!$B$1427:$FF$1474,11) -> 0 | F39: =VLOOKUP('District Summary'!$A$3,'School Resource Matrices'!$B$1427:$FF$1474,10) -> 0 | G39: =VLOOKUP('District Summary'!$A$3,'School Resource Matrices'!$B$1427:$FF$1474,33) -> 0 | H39: =VLOOKUP('District Summary'!$A$3,'School Resource Matrices'!$B$1427:$FF$1474,38) -> 0 | I39: =VLOOKUP('District Summary'!$A$3,'School Resource Matrices'!$B$1427:$FF$1474,39) -> 0 | J39: =VLOOKUP('District Summary'!$A$3,'School Resource Matrices'!$B$1427:$FF$1474,40) -> 0 | K39: =VLOOKUP('District Summary'!$A$3,'School Resource Matrices'!$B$1427:$FF$1474,41) -> 0 | L39: =VLOOKUP('District Summary'!$A$3,'School Resource Matrices'!$B$1427:$FF$1474,42) -> 0 | M39: =VLOOKUP('District Summary'!$A$3,'School Resource Matrices'!$B$1427:$FF$1474,46) -> 0 | N39: =VLOOKUP('District Summary'!$A$3,'School Resource Matrices'!$B$1427:$FF$1474,51) -> 0 | O39: =VLOOKUP('District Summary'!$A$3,'School Resource Matrices'!$B$1427:$FF$1474,52) -> 0 | P39: =VLOOKUP('District Summary'!$A$3,'School Resource Matrices'!$B$1427:$FF$1474,53) -> 0 | Q39: =VLOOKUP('District Summary'!$A$3,'School Resource Matrices'!$B$1427:$FF$1474,54) -> 0 | R39: =VLOOKUP('District Summary'!$A$3,'School Resource Matrices'!$B$1427:$FF$1474,58) -> 0 | S39: =VLOOKUP('District Summary'!$A$3,'School Resource Matrices'!$B$1427:$FF$1474,61) -> 0 | T39: =VLOOKUP('District Summary'!$A$3,'School Resource Matrices'!$B$1427:$FF$1474,64) -> 0 | U39: =VLOOKUP('District Summary'!$A$3,'School Resource Matrices'!$B$1427:$FF$1474,65) -> 0 | V39: =VLOOKUP('District Summary'!$A$3,'School Resource Matrices'!$B$1427:$FF$1474,66) -> 0 | W39: =VLOOKUP('District Summary'!$A$3,'School Resource Matrices'!$B$1427:$FF$1474,71) -> 0 | X39: =VLOOKUP('District Summary'!$A$3,'School Resource Matrices'!$B$1427:$FF$1474,76) -> 0 | Y39: =VLOOKUP('District Summary'!$A$3,'School Resource Matrices'!$B$1427:$FF$1474,72) -> 0 | Z39: =VLOOKUP('District Summary'!$A$3,'School Resource Matrices'!$B$1427:$FF$1474,80) -> 0 | AA39: =VLOOKUP('District Summary'!$A$3,'School Resource Matrices'!$B$1427:$FF$1474,84) -> 0 | AB39: 0
A40: 31 | B40: =VLOOKUP('District Summary'!$A$3,'School Resource Matrices'!$B$1476:$FF$1523,4) -> 0 | C40: =VLOOKUP('District Summary'!$A$3,'School Resource Matrices'!$B$1476:$FF$1523,9) -> 0 | D40: =VLOOKUP('District Summary'!$A$3,'School Resource Matrices'!$B$1476:$FF$1523,5) -> 0 | E40: =VLOOKUP('District Summary'!$A$3,'School Resource Matrices'!$B$1476:$FF$1523,11) -> 0 | F40: =VLOOKUP('District Summary'!$A$3,'School Resource Matrices'!$B$1476:$FF$1523,10) -> 0 | G40: =VLOOKUP('District Summary'!$A$3,'School Resource Matrices'!$B$1476:$FF$1523,33) -> 0 | H40: =VLOOKUP('District Summary'!$A$3,'School Resource Matrices'!$B$1476:$FF$1523,38) -> 0 | I40: =VLOOKUP('District Summary'!$A$3,'School Resource Matrices'!$B$1476:$FF$1523,39) -> 0 | J40: =VLOOKUP('District Summary'!$A$3,'School Resource Matrices'!$B$1476:$FF$1523,40) -> 0 | K40: =VLOOKUP('District Summary'!$A$3,'School Resource Matrices'!$B$1476:$FF$1523,41) -> 0 | L40: =VLOOKUP('District Summary'!$A$3,'School Resource Matrices'!$B$1476:$FF$1523,42) -> 0 | M40: =VLOOKUP('District Summary'!$A$3,'School Resource Matrices'!$B$1476:$FF$1523,46) -> 0 | N40: =VLOOKUP('District Summary'!$A$3,'School Resource Matrices'!$B$1476:$FF$1523,51) -> 0 | O40: =VLOOKUP('District Summary'!$A$3,'School Resource Matrices'!$B$1476:$FF$1523,52) -> 0 | P40: =VLOOKUP('District Summary'!$A$3,'School Resource Matrices'!$B$1476:$FF$1533,53) -> 0 | Q40: =VLOOKUP('District Summary'!$A$3,'School Resource Matrices'!$B$1476:$FF$1523,54) -> 0 | R40: =VLOOKUP('District Summary'!$A$3,'School Resource Matrices'!$B$1476:$FF$1523,58) -> 0 | S40: =VLOOKUP('District Summary'!$A$3,'School Resource Matrices'!$B$1476:$FF$1523,61) -> 0 | T40: =VLOOKUP('District Summary'!$A$3,'School Resource Matrices'!$B$1476:$FF$1523,64) -> 0 | U40: =VLOOKUP('District Summary'!$A$3,'School Resource Matrices'!$B$1476:$FF$1523,65) -> 0 | V40: =VLOOKUP('District Summary'!$A$3,'School Resource Matrices'!$B$1476:$FF$1523,66) -> 0 | W40: =VLOOKUP('District Summary'!$A$3,'School Resource Matrices'!$B$1476:$FF$1523,71) -> 0 | X40: =VLOOKUP('District Summary'!$A$3,'School Resource Matrices'!$B$1476:$FF$1523,76) -> 0 | Y40: =VLOOKUP('District Summary'!$A$3,'School Resource Matrices'!$B$1476:$FF$1523,72) -> 0 | Z40: =VLOOKUP('District Summary'!$A$3,'School Resource Matrices'!$B$1476:$FF$1523,80) -> 0 | AA40: =VLOOKUP('District Summary'!$A$3,'School Resource Matrices'!$B$1476:$FF$1523,84) -> 0 | AB40: 0
A41: 32 | B41: =VLOOKUP('District Summary'!$A$3,'School Resource Matrices'!$B$1525:$FF$1572,4) -> 0 | C41: =VLOOKUP('District Summary'!$A$3,'School Resource Matrices'!$B$1525:$FF$1572,9) -> 0 | D41: =VLOOKUP('District Summary'!$A$3,'School Resource Matrices'!$B$1525:$FF$1572,5) -> 0 | E41: =VLOOKUP('District Summary'!$A$3,'School Resource Matrices'!$B$1525:$FF$1572,11) -> 0 | F41: =VLOOKUP('District Summary'!$A$3,'School Resource Matrices'!$B$1525:$FF$1572,10) -> 0 | G41: =VLOOKUP('District Summary'!$A$3,'School Resource Matrices'!$B$1525:$FF$1572,33) -> 0 | H41: =VLOOKUP('District Summary'!$A$3,'School Resource Matrices'!$B$1525:$FF$1572,38) -> 0 | I41: =VLOOKUP('District Summary'!$A$3,'School Resource Matrices'!$B$1525:$FF$1572,39) -> 0 | J41: =VLOOKUP('District Summary'!$A$3,'School Resource Matrices'!$B$1525:$FF$1572,40) -> 0 | K41: =VLOOKUP('District Summary'!$A$3,'School Resource Matrices'!$B$1525:$FF$1572,41) -> 0 | L41: =VLOOKUP('District Summary'!$A$3,'School Resource Matrices'!$B$1525:$FF$1572,42) -> 0 | M41: =VLOOKUP('District Summary'!$A$3,'School Resource Matrices'!$B$1525:$FF$1572,46) -> 0 | N41: =VLOOKUP('District Summary'!$A$3,'School Resource Matrices'!$B$1525:$FF$1572,51) -> 0 | O41: =VLOOKUP('District Summary'!$A$3,'School Resource Matrices'!$B$1525:$FF$1572,52) -> 0 | P41: =VLOOKUP('District Summary'!$A$3,'School Resource Matrices'!$B$1525:$FF$1572,53) -> 0 | Q41: =VLOOKUP('District Summary'!$A$3,'School Resource Matrices'!$B$1525:$FF$1572,54) -> 0 | R41: =VLOOKUP('District Summary'!$A$3,'School Resource Matrices'!$B$1525:$FF$1582,58) -> 0 | S41: =VLOOKUP('District Summary'!$A$3,'School Resource Matrices'!$B$1525:$FF$1572,61) -> 0 | T41: =VLOOKUP('District Summary'!$A$3,'School Resource Matrices'!$B$1525:$FF$1572,64) -> 0 | U41: =VLOOKUP('District Summary'!$A$3,'School Resource Matrices'!$B$1525:$FF$1572,65) -> 0 | V41: =VLOOKUP('District Summary'!$A$3,'School Resource Matrices'!$B$1525:$FF$1572,66) -> 0 | W41: =VLOOKUP('District Summary'!$A$3,'School Resource Matrices'!$B$1525:$FF$1572,71) -> 0 | X41: =VLOOKUP('District Summary'!$A$3,'School Resource Matrices'!$B$1525:$FF$1572,76) -> 0 | Y41: =VLOOKUP('District Summary'!$A$3,'School Resource Matrices'!$B$1525:$FF$1572,72) -> 0 | Z41: =VLOOKUP('District Summary'!$A$3,'School Resource Matrices'!$B$1525:$FF$1572,80) -> 0 | AA41: =VLOOKUP('District Summary'!$A$3,'School Resource Matrices'!$B$1525:$FF$1572,84) -> 0 | AB41: 0
A42: 33 | B42: =VLOOKUP('District Summary'!$A$3,'School Resource Matrices'!$B$1574:$FF$1621,4) -> 0 | C42: =VLOOKUP('District Summary'!$A$3,'School Resource Matrices'!$B$1574:$FF$1621,9) -> 0 | D42: =VLOOKUP('District Summary'!$A$3,'School Resource Matrices'!$B$1574:$FF$1621,5) -> 0 | E42: =VLOOKUP('District Summary'!$A$3,'School Resource Matrices'!$B$1574:$FF$1621,11) -> 0 | F42: =VLOOKUP('District Summary'!$A$3,'School Resource Matrices'!$B$1574:$FF$1621,10) -> 0 | G42: =VLOOKUP('District Summary'!$A$3,'School Resource Matrices'!$B$1574:$FF$1621,33) -> 0 | H42: =VLOOKUP('District Summary'!$A$3,'School Resource Matrices'!$B$1574:$FF$1621,38) -> 0 | I42: =VLOOKUP('District Summary'!$A$3,'School Resource Matrices'!$B$1574:$FF$1621,39) -> 0 | J42: =VLOOKUP('District Summary'!$A$3,'School Resource Matrices'!$B$1574:$FF$1621,40) -> 0 | K42: =VLOOKUP('District Summary'!$A$3,'School Resource Matrices'!$B$1574:$FF$1621,41) -> 0 | L42: =VLOOKUP('District Summary'!$A$3,'School Resource Matrices'!$B$1574:$FF$1621,42) -> 0 | M42: =VLOOKUP('District Summary'!$A$3,'School Resource Matrices'!$B$1574:$FF$1621,46) -> 0 | N42: =VLOOKUP('District Summary'!$A$3,'School Resource Matrices'!$B$1574:$FF$1621,51) -> 0 | O42: =VLOOKUP('District Summary'!$A$3,'School Resource Matrices'!$B$1574:$FF$1621,52) -> 0 | P42: =VLOOKUP('District Summary'!$A$3,'School Resource Matrices'!$B$1574:$FF$1621,53) -> 0 | Q42: =VLOOKUP('District Summary'!$A$3,'School Resource Matrices'!$B$1574:$FF$1621,54) -> 0 | R42: =VLOOKUP('District Summary'!$A$3,'School Resource Matrices'!$B$1574:$FF$1621,58) -> 0 | S42: =VLOOKUP('District Summary'!$A$3,'School Resource Matrices'!$B$1574:$FF$1621,61) -> 0 | T42: =VLOOKUP('District Summary'!$A$3,'School Resource Matrices'!$B$1574:$FF$1621,64) -> 0 | U42: =VLOOKUP('District Summary'!$A$3,'School Resource Matrices'!$B$1574:$FF$1621,65) -> 0 | V42: =VLOOKUP('District Summary'!$A$3,'School Resource Matrices'!$B$1574:$FF$1621,66) -> 0 | W42: =VLOOKUP('District Summary'!$A$3,'School Resource Matrices'!$B$1574:$FF$1621,71) -> 0 | X42: =VLOOKUP('District Summary'!$A$3,'School Resource Matrices'!$B$1574:$FF$1621,76) -> 0 | Y42: =VLOOKUP('District Summary'!$A$3,'School Resource Matrices'!$B$1574:$FF$1621,72) -> 0 | Z42: =VLOOKUP('District Summary'!$A$3,'School Resource Matrices'!$B$1574:$FF$1621,80) -> 0 | AA42: =VLOOKUP('District Summary'!$A$3,'School Resource Matrices'!$B$1574:$FF$1621,84) -> 0 | AB42: 0
A43: 34 | B43: =VLOOKUP('District Summary'!$A$3,'School Resource Matrices'!$B$1623:$FF$1670,4) -> 0 | C43: =VLOOKUP('District Summary'!$A$3,'School Resource Matrices'!$B$1623:$FF$1670,9) -> 0 | D43: =VLOOKUP('District Summary'!$A$3,'School Resource Matrices'!$B$1623:$FF$1670,5) -> 0 | E43: =VLOOKUP('District Summary'!$A$3,'School Resource Matrices'!$B$1623:$FF$1670,11) -> 0 | F43: =VLOOKUP('District Summary'!$A$3,'School Resource Matrices'!$B$1623:$FF$1670,10) -> 0 | G43: =VLOOKUP('District Summary'!$A$3,'School Resource Matrices'!$B$1623:$FF$1670,33) -> 0 | H43: =VLOOKUP('District Summary'!$A$3,'School Resource Matrices'!$B$1623:$FF$1670,38) -> 0 | I43: =VLOOKUP('District Summary'!$A$3,'School Resource Matrices'!$B$1623:$FF$1670,39) -> 0 | J43: =VLOOKUP('District Summary'!$A$3,'School Resource Matrices'!$B$1623:$FF$1670,40) -> 0 | K43: =VLOOKUP('District Summary'!$A$3,'School Resource Matrices'!$B$1623:$FF$1670,41) -> 0 | L43: =VLOOKUP('District Summary'!$A$3,'School Resource Matrices'!$B$1623:$FF$1670,42) -> 0 | M43: =VLOOKUP('District Summary'!$A$3,'School Resource Matrices'!$B$1623:$FF$1670,46) -> 0 | N43: =VLOOKUP('District Summary'!$A$3,'School Resource Matrices'!$B$1623:$FF$1670,51) -> 0 | O43: =VLOOKUP('District Summary'!$A$3,'School Resource Matrices'!$B$1623:$FF$1670,52) -> 0 | P43: =VLOOKUP('District Summary'!$A$3,'School Resource Matrices'!$B$1623:$FF$1670,53) -> 0 | Q43: =VLOOKUP('District Summary'!$A$3,'School Resource Matrices'!$B$1623:$FF$1670,54) -> 0 | R43: =VLOOKUP('District Summary'!$A$3,'School Resource Matrices'!$B$1623:$FF$1670,58) -> 0 | S43: =VLOOKUP('District Summary'!$A$3,'School Resource Matrices'!$B$1623:$FF$1670,61) -> 0 | T43: =VLOOKUP('District Summary'!$A$3,'School Resource Matrices'!$B$1623:$FF$1670,64) -> 0 | U43: =VLOOKUP('District Summary'!$A$3,'School Resource Matrices'!$B$1623:$FF$1670,65) -> 0 | V43: =VLOOKUP('District Summary'!$A$3,'School Resource Matrices'!$B$1623:$FF$1670,66) -> 0 | W43: =VLOOKUP('District Summary'!$A$3,'School Resource Matrices'!$B$1623:$FF$1671,71) -> 0 | X43: =VLOOKUP('District Summary'!$A$3,'School Resource Matrices'!$B$1623:$FF$1670,76) -> 0 | Y43: =VLOOKUP('District Summary'!$A$3,'School Resource Matrices'!$B$1623:$FF$1670,72) -> 0 | Z43: =VLOOKUP('District Summary'!$A$3,'School Resource Matrices'!$B$1623:$FF$1670,80) -> 0 | AA43: =VLOOKUP('District Summary'!$A$3,'School Resource Matrices'!$B$1623:$FF$1670,84) -> 0 | AB43: 0
A44: 35 | B44: =VLOOKUP('District Summary'!$A$3,'School Resource Matrices'!$B$1672:$FF$1719,4) -> 0 | C44: =VLOOKUP('District Summary'!$A$3,'School Resource Matrices'!$B$1672:$FF$1719,9) -> 0 | D44: =VLOOKUP('District Summary'!$A$3,'School Resource Matrices'!$B$1672:$FF$1719,5) -> 0 | E44: =VLOOKUP('District Summary'!$A$3,'School Resource Matrices'!$B$1672:$FF$1719,11) -> 0 | F44: =VLOOKUP('District Summary'!$A$3,'School Resource Matrices'!$B$1672:$FF$1719,10) -> 0 | G44: =VLOOKUP('District Summary'!$A$3,'School Resource Matrices'!$B$1672:$FF$1719,33) -> 0 | H44: =VLOOKUP('District Summary'!$A$3,'School Resource Matrices'!$B$1672:$FF$1719,38) -> 0 | I44: =VLOOKUP('District Summary'!$A$3,'School Resource Matrices'!$B$1672:$FF$1719,39) -> 0 | J44: =VLOOKUP('District Summary'!$A$3,'School Resource Matrices'!$B$1672:$FF$1719,40) -> 0 | K44: =VLOOKUP('District Summary'!$A$3,'School Resource Matrices'!$B$1672:$FF$1719,41) -> 0 | L44: =VLOOKUP('District Summary'!$A$3,'School Resource Matrices'!$B$1672:$FF$1719,42) -> 0 | M44: =VLOOKUP('District Summary'!$A$3,'School Resource Matrices'!$B$1672:$FF$1719,46) -> 0 | N44: =VLOOKUP('District Summary'!$A$3,'School Resource Matrices'!$B$1672:$FF$1719,51) -> 0 | O44: =VLOOKUP('District Summary'!$A$3,'School Resource Matrices'!$B$1672:$FF$1719,52) -> 0 | P44: =VLOOKUP('District Summary'!$A$3,'School Resource Matrices'!$B$1672:$FF$1719,53) -> 0 | Q44: =VLOOKUP('District Summary'!$A$3,'School Resource Matrices'!$B$1672:$FF$1719,54) -> 0 | R44: =VLOOKUP('District Summary'!$A$3,'School Resource Matrices'!$B$1672:$FF$1719,58) -> 0 | S44: =VLOOKUP('District Summary'!$A$3,'School Resource Matrices'!$B$1672:$FF$1719,61) -> 0 | T44: =VLOOKUP('District Summary'!$A$3,'School Resource Matrices'!$B$1672:$FF$1719,64) -> 0 | U44: =VLOOKUP('District Summary'!$A$3,'School Resource Matrices'!$B$1672:$FF$1719,65) -> 0 | V44: =VLOOKUP('District Summary'!$A$3,'School Resource Matrices'!$B$1672:$FF$1719,66) -> 0 | W44: =VLOOKUP('District Summary'!$A$3,'School Resource Matrices'!$B$1672:$FF$1719,71) -> 0 | X44: =VLOOKUP('District Summary'!$A$3,'School Resource Matrices'!$B$1672:$FF$1719,76) -> 0 | Y44: =VLOOKUP('District Summary'!$A$3,'School Resource Matrices'!$B$1672:$FF$1729,72) -> 0 | Z44: =VLOOKUP('District Summary'!$A$3,'School Resource Matrices'!$B$1672:$FF$1719,80) -> 0 | AA44: =VLOOKUP('District Summary'!$A$3,'School Resource Matrices'!$B$1672:$FF$1719,84) -> 0 | AB44: 0
AB45: =SUM(AB10:AB44) -> 39.40197403
B46: District School Level FTEs | G46: =SUM(G10:G44) -> 14.17927083 | H46: 12.86217798 | I46: 0 | J46: 0 | K46: 0 | L46: 0.2032761905 | M46: 0 | N46: 0.9736920635 | O46: 0 | P46: 0 | Q46: 0 | R46: 1.723063194 | S46: 0.4316888889 | T46: 0.9736920635 | U46: 0.543928 | V46: 1.833369246 | W46: 2.295066667 | X46: 0 | Y46: 0 | Z46: 2.295066667 | AA46: 1.087682242 | AB46: =SUM(G46:AA46) -> 39.40197403
B48: Total "Teacher" FTEs = | D48: =SUM(D50:D62) -> 31.45910032
B49: The following are included:
B50: Reg CORE | D50: =G46 -> 14.17927083
B51: Specialist | D51: =H46 -> 12.86217798
B52: Alternative | D52: =I46 -> 0
B53: Small | D53: =J46+K46 -> 0
B54: Voc Ed | D54: =L46 -> 0.2032761905
B55: Instructional Facilitator | D55: =M46 -> 0
B56: Tutor | D56: =N46 -> 0.9736920635
B57: ELL | D57: =O46 -> 0
B58: Summer School | D58: =P46 -> 0
B59: Extended Day | D59: =Q46 -> 0
B60: Librarian | D60: =R46 -> 1.723063194
B61: Pupil Support | D61: =T46 -> 0.9736920635
B62: Secondary Guidance Counselor | D62: =U46 -> 0.543928

Sheet School Summary-Dollars
A1: School Level Resource Summary - Wyoming Cost Based Block Grant Model - Dollars
A2: District Funding Generated at School Level
B3: =SUM('District Summary'!D44:D75) -> 858398442.6
C4: Total District Funding generated at School Level-from District Summary Sheet | N4: ='District Summary'!E3 -> Wyoming Funding Model Version 2(b) 03-18-12 & Final FY 2015 Payment Model 7-1-14
B7: ='District Summary'!B3 -> State Total
B10: School Name | C10: "Teacher" | D10: Media Technician | E10: Supervisory Aides | F10: Substitute Teacher | G10: Principal | H10: Assistant Principal | I10: Secretary | J10: Clerical | K10: Supplies & Materials | L10: Equipment & Technology | M10: VocEd Supplies & Equipment | N10: Gifted & Talented | O10: Professional Development | P10: Assessment | Q10: Activities (Alt Option) | R10: Total
A11: 1 | B11: =VLOOKUP('District Summary'!$A$3,'School Resource Matrices'!$B$6:$FF$53,4) -> Upton Elementary | C11: =VLOOKUP('District Summary'!$A$3,'School Resource Matrices'!$B$6:$FF$53,133) -> 827853.7169 | D11: =VLOOKUP('District Summary'!$A$3,'School Resource Matrices'!$B$6:$FF$53,126) -> 0 | E11: =VLOOKUP('District Summary'!$A$3,'School Resource Matrices'!$B$6:$FF$53,132) -> 31161.79876 | F11: =VLOOKUP('District Summary'!$A$3,'School Resource Matrices'!$B$6:$FF$53,127) -> 9214.348402 | G11: =VLOOKUP('District Summary'!$A$3,'School Resource Matrices'!$B$6:$FF$53,137) -> 105967.9417 | H11: =VLOOKUP('District Summary'!$A$3,'School Resource Matrices'!$B$6:$FF$53,152) -> 0 | I11: =VLOOKUP('District Summary'!$A$3,'School Resource Matrices'!$B$6:$FF$53,146) -> 53096.81475 | J11: =VLOOKUP('District Summary'!$A$3,'School Resource Matrices'!$B$6:$FF$53,150) -> 18777.47036 | K11: =VLOOKUP('District Summary'!$A$3,'School Resource Matrices'!$B$6:$FF$53,153) -> 41407.98787 | L11: =VLOOKUP('District Summary'!$A$3,'School Resource Matrices'!$B$6:$FF$53,154) -> 36250.29579 | M11: =VLOOKUP('District Summary'!$A$3,'School Resource Matrices'!$B$6:$FF$53,155) -> 0 | N11: =VLOOKUP('District Summary'!$A$3,'School Resource Matrices'!$B$6:$FF$53,156) -> 3625.029579 | O11: =VLOOKUP('District Summary'!$A$3,'School Resource Matrices'!$B$6:$FF$53,157) -> 14500.11831 | P11: =VLOOKUP('District Summary'!$A$3,'School Resource Matrices'!$B$6:$FF$53,158) -> 4646.485556 | Q11: =VLOOKUP('District Summary'!$A$3,'School Resource Matrices'!$B$6:$FF$53,159) -> 2986.708714 | R11: =SUM(C11:Q11) -> 1149488.717
A12: 2 | B12: =VLOOKUP('District Summary'!$A$3,'School Resource Matrices'!$B$55:$FF$102,4) -> Upton Middle School | C12: =VLOOKUP('District Summary'!$A$3,'School Resource Matrices'!$B$55:$FF$102,133) -> 718099.3339 | D12: =VLOOKUP('District Summary'!$A$3,'School Resource Matrices'!$B$55:$FF$102,126) -> 12253.48274 | E12: =VLOOKUP('District Summary'!$A$3,'School Resource Matrices'!$B$55:$FF$102,132) -> 14830.52006 | F12: =VLOOKUP('District Summary'!$A$3,'School Resource Matrices'!$B$55:$FF$102,127) -> 7749.237099 | G12: =VLOOKUP('District Summary'!$A$3,'School Resource Matrices'!$B$55:$FF$102,137) -> 64754.48613 | H12: =VLOOKUP('District Summary'!$A$3,'School Resource Matrices'!$B$55:$FF$102,152) -> 0 | I12: =VLOOKUP('District Summary'!$A$3,'School Resource Matrices'!$B$55:$FF$102,146) -> 32446.19929 | J12: =VLOOKUP('District Summary'!$A$3,'School Resource Matrices'!$B$55:$FF$102,150) -> 8936.571765 | K12: =VLOOKUP('District Summary'!$A$3,'School Resource Matrices'!$B$55:$FF$102,153) -> 21554.40583 | L12: =VLOOKUP('District Summary'!$A$3,'School Resource Matrices'!$B$55:$FF$102,154) -> 18869.63427 | M12: =VLOOKUP('District Summary'!$A$3,'School Resource Matrices'!$B$55:$FF$102,155) -> 0 | N12: =VLOOKUP('District Summary'!$A$3,'School Resource Matrices'!$B$55:$FF$102,156) -> 1886.963427 | O12: =VLOOKUP('District Summary'!$A$3,'School Resource Matrices'!$B$55:$FF$102,157) -> 7547.853707 | P12: =VLOOKUP('District Summary'!$A$3,'School Resource Matrices'!$B$55:$FF$102,158) -> 2418.669453 | Q12: =VLOOKUP('District Summary'!$A$3,'School Resource Matrices'!$B$55:$FF$102,159) -> 41238.12898 | R12: 952585.4866
A13: 3 | B13: =VLOOKUP('District Summary'!$A$3,'School Resource Matrices'!$B$104:$FF$151,4) -> Upton High School | C13: =VLOOKUP('District Summary'!$A$3,'School Resource Matrices'!$B$104:$FF$151,133) -> 889678.8006 | D13: =VLOOKUP('District Summary'!$A$3,'School Resource Matrices'!$B$104:$FF$151,126) -> 13715.58182 | E13: =VLOOKUP('District Summary'!$A$3,'School Resource Matrices'!$B$104:$FF$151,132) -> 20750.14261 | F13: =VLOOKUP('District Summary'!$A$3,'School Resource Matrices'!$B$104:$FF$151,127) -> 9691.632989 | G13: =VLOOKUP('District Summary'!$A$3,'School Resource Matrices'!$B$104:$FF$151,137) -> 72481.0629 | H13: =VLOOKUP('District Summary'!$A$3,'School Resource Matrices'!$B$104:$FF$151,152) -> 0 | I13: =VLOOKUP('District Summary'!$A$3,'School Resource Matrices'!$B$104:$FF$151,146) -> 36317.71561 | J13: =VLOOKUP('District Summary'!$A$3,'School Resource Matrices'!$B$104:$FF$151,150) -> 20005.78675 | K13: =VLOOKUP('District Summary'!$A$3,'School Resource Matrices'!$B$104:$FF$151,153) -> 29540.99459 | L13: =VLOOKUP('District Summary'!$A$3,'School Resource Matrices'!$B$104:$FF$151,154) -> 21121.17986 | M13: =VLOOKUP('District Summary'!$A$3,'School Resource Matrices'!$B$104:$FF$151,155) -> 24647.37882 | N13: =VLOOKUP('District Summary'!$A$3,'School Resource Matrices'!$B$104:$FF$151,156) -> 2112.117986 | O13: =VLOOKUP('District Summary'!$A$3,'School Resource Matrices'!$B$104:$FF$151,157) -> 8448.471944 | P13: =VLOOKUP('District Summary'!$A$3,'School Resource Matrices'!$B$104:$FF$151,158) -> 2707.267762 | Q13: =VLOOKUP('District Summary'!$A$3,'School Resource Matrices'!$B$104:$FF$151,159) -> 122929.7643 | R13: 1274147.899
A14: 4 | B14: =VLOOKUP('District Summary'!$A$3,'School Resource Matrices'!$B$153:$FF$200,4) -> 0 | C14: =VLOOKUP('District Summary'!$A$3,'School Resource Matrices'!$B$153:$FF$200,133) -> 0 | D14: =VLOOKUP('District Summary'!$A$3,'School Resource Matrices'!$B$153:$FF$200,126) -> 0 | E14: =VLOOKUP('District Summary'!$A$3,'School Resource Matrices'!$B$153:$FF$200,132) -> 0 | F14: =VLOOKUP('District Summary'!$A$3,'School Resource Matrices'!$B$153:$FF$200,127) -> 0 | G14: =VLOOKUP('District Summary'!$A$3,'School Resource Matrices'!$B$153:$FF$200,137) -> 0 | H14: =VLOOKUP('District Summary'!$A$3,'School Resource Matrices'!$B$153:$FF$200,152) -> 0 | I14: =VLOOKUP('District Summary'!$A$3,'School Resource Matrices'!$B$153:$FF$200,146) -> 0 | J14: =VLOOKUP('District Summary'!$A$3,'School Resource Matrices'!$B$153:$FF$200,150) -> 0 | K14: =VLOOKUP('District Summary'!$A$3,'School Resource Matrices'!$B$153:$FF$200,153) -> 0 | L14: =VLOOKUP('District Summary'!$A$3,'School Resource Matrices'!$B$153:$FF$200,154) -> 0 | M14: =VLOOKUP('District Summary'!$A$3,'School Resource Matrices'!$B$153:$FF$200,155) -> 0 | N14: =VLOOKUP('District Summary'!$A$3,'School Resource Matrices'!$B$153:$FF$200,156) -> 0 | O14: =VLOOKUP('District Summary'!$A$3,'School Resource Matrices'!$B$153:$FF$200,157) -> 0 | P14: =VLOOKUP('District Summary'!$A$3,'School Resource Matrices'!$B$153:$FF$200,158) -> 0 | Q14: =VLOOKUP('District Summary'!$A$3,'School Resource Matrices'!$B$153:$FF$200,159) -> 0 | R14: 0
A15: 5 | B15: =VLOOKUP('District Summary'!$A$3,'School Resource Matrices'!$B$202:$FF$249,4) -> 0 | C15: =VLOOKUP('District Summary'!$A$3,'School Resource Matrices'!$B$202:$FF$249,133) -> 0 | D15: =VLOOKUP('District Summary'!$A$3,'School Resource Matrices'!$B$202:$FF$249,126) -> 0 | E15: =VLOOKUP('District Summary'!$A$3,'School Resource Matrices'!$B$202:$FF$249,132) -> 0 | F15: =VLOOKUP('District Summary'!$A$3,'School Resource Matrices'!$B$202:$FF$249,127) -> 0 | G15: =VLOOKUP('District Summary'!$A$3,'School Resource Matrices'!$B$202:$FF$249,137) -> 0 | H15: =VLOOKUP('District Summary'!$A$3,'School Resource Matrices'!$B$202:$FF$249,152) -> 0 | I15: =VLOOKUP('District Summary'!$A$3,'School Resource Matrices'!$B$202:$FF$249,146) -> 0 | J15: =VLOOKUP('District Summary'!$A$3,'School Resource Matrices'!$B$202:$FF$249,150) -> 0 | K15: =VLOOKUP('District Summary'!$A$3,'School Resource Matrices'!$B$202:$FF$249,153) -> 0 | L15: =VLOOKUP('District Summary'!$A$3,'School Resource Matrices'!$B$202:$FF$249,154) -> 0 | M15: =VLOOKUP('District Summary'!$A$3,'School Resource Matrices'!$B$202:$FF$249,155) -> 0 | N15: =VLOOKUP('District Summary'!$A$3,'School Resource Matrices'!$B$202:$FF$249,156) -> 0 | O15: =VLOOKUP('District Summary'!$A$3,'School Resource Matrices'!$B$202:$FF$249,157) -> 0 | P15: =VLOOKUP('District Summary'!$A$3,'School Resource Matrices'!$B$202:$FF$249,158) -> 0 | Q15: =VLOOKUP('District Summary'!$A$3,'School Resource Matrices'!$B$202:$FF$249,159) -> 0 | R15: 0
A16: 6 | B16: =VLOOKUP('District Summary'!$A$3,'School Resource Matrices'!$B$251:$FF$298,4) -> 0 | C16: =VLOOKUP('District Summary'!$A$3,'School Resource Matrices'!$B$251:$FF$298,133) -> 0 | D16: =VLOOKUP('District Summary'!$A$3,'School Resource Matrices'!$B$251:$FF$298,126) -> 0 | E16: =VLOOKUP('District Summary'!$A$3,'School Resource Matrices'!$B$251:$FF$298,132) -> 0 | F16: =VLOOKUP('District Summary'!$A$3,'School Resource Matrices'!$B$251:$FF$298,127) -> 0 | G16: =VLOOKUP('District Summary'!$A$3,'School Resource Matrices'!$B$251:$FF$298,137) -> 0 | H16: =VLOOKUP('District Summary'!$A$3,'School Resource Matrices'!$B$251:$FF$298,152) -> 0 | I16: =VLOOKUP('District Summary'!$A$3,'School Resource Matrices'!$B$251:$FF$298,146) -> 0 | J16: =VLOOKUP('District Summary'!$A$3,'School Resource Matrices'!$B$251:$FF$298,150) -> 0 | K16: =VLOOKUP('District Summary'!$A$3,'School Resource Matrices'!$B$251:$FF$298,153) -> 0 | L16: =VLOOKUP('District Summary'!$A$3,'School Resource Matrices'!$B$251:$FF$298,154) -> 0 | M16: =VLOOKUP('District Summary'!$A$3,'School Resource Matrices'!$B$251:$FF$298,155) -> 0 | N16: =VLOOKUP('District Summary'!$A$3,'School Resource Matrices'!$B$251:$FF$298,156) -> 0 | O16: =VLOOKUP('District Summary'!$A$3,'School Resource Matrices'!$B$251:$FF$298,157) -> 0 | P16: =VLOOKUP('District Summary'!$A$3,'School Resource Matrices'!$B$251:$FF$298,158) -> 0 | Q16: =VLOOKUP('District Summary'!$A$3,'School Resource Matrices'!$B$251:$FF$298,159) -> 0 | R16: 0
A17: 7 | B17: =VLOOKUP('District Summary'!$A$3,'School Resource Matrices'!$B$300:$FF$347,4) -> 0 | C17: =VLOOKUP('District Summary'!$A$3,'School Resource Matrices'!$B$300:$FF$347,133) -> 0 | D17: =VLOOKUP('District Summary'!$A$3,'School Resource Matrices'!$B$300:$FF$347,126) -> 0 | E17: =VLOOKUP('District Summary'!$A$3,'School Resource Matrices'!$B$300:$FF$347,132) -> 0 | F17: =VLOOKUP('District Summary'!$A$3,'School Resource Matrices'!$B$300:$FF$347,127) -> 0 | G17: =VLOOKUP('District Summary'!$A$3,'School Resource Matrices'!$B$300:$FF$347,137) -> 0 | H17: =VLOOKUP('District Summary'!$A$3,'School Resource Matrices'!$B$300:$FF$347,152) -> 0 | I17: =VLOOKUP('District Summary'!$A$3,'School Resource Matrices'!$B$300:$FF$347,146) -> 0 | J17: =VLOOKUP('District Summary'!$A$3,'School Resource Matrices'!$B$300:$FF$347,150) -> 0 | K17: =VLOOKUP('District Summary'!$A$3,'School Resource Matrices'!$B$300:$FF$347,153) -> 0 | L17: =VLOOKUP('District Summary'!$A$3,'School Resource Matrices'!$B$300:$FF$347,154) -> 0 | M17: =VLOOKUP('District Summary'!$A$3,'School Resource Matrices'!$B$300:$FF$347,155) -> 0 | N17: =VLOOKUP('District Summary'!$A$3,'School Resource Matrices'!$B$300:$FF$347,156) -> 0 | O17: =VLOOKUP('District Summary'!$A$3,'School Resource Matrices'!$B$300:$FF$347,157) -> 0 | P17: =VLOOKUP('District Summary'!$A$3,'School Resource Matrices'!$B$300:$FF$347,158) -> 0 | Q17: =VLOOKUP('District Summary'!$A$3,'School Resource Matrices'!$B$300:$FF$347,159) -> 0 | R17: 0
A18: 8 | B18: =VLOOKUP('District Summary'!$A$3,'School Resource Matrices'!$B$349:$FF$396,4) -> 0 | C18: =VLOOKUP('District Summary'!$A$3,'School Resource Matrices'!$B$349:$FF$396,133) -> 0 | D18: =VLOOKUP('District Summary'!$A$3,'School Resource Matrices'!$B$349:$FF$396,126) -> 0 | E18: =VLOOKUP('District Summary'!$A$3,'School Resource Matrices'!$B$349:$FF$396,132) -> 0 | F18: =VLOOKUP('District Summary'!$A$3,'School Resource Matrices'!$B$349:$FF$396,127) -> 0 | G18: =VLOOKUP('District Summary'!$A$3,'School Resource Matrices'!$B$349:$FF$396,137) -> 0 | H18: =VLOOKUP('District Summary'!$A$3,'School Resource Matrices'!$B$349:$FF$396,152) -> 0 | I18: =VLOOKUP('District Summary'!$A$3,'School Resource Matrices'!$B$349:$FF$396,146) -> 0 | J18: =VLOOKUP('District Summary'!$A$3,'School Resource Matrices'!$B$349:$FF$396,150) -> 0 | K18: =VLOOKUP('District Summary'!$A$3,'School Resource Matrices'!$B$349:$FF$396,153) -> 0 | L18: =VLOOKUP('District Summary'!$A$3,'School Resource Matrices'!$B$349:$FF$396,154) -> 0 | M18: =VLOOKUP('District Summary'!$A$3,'School Resource Matrices'!$B$349:$FF$396,155) -> 0 | N18: =VLOOKUP('District Summary'!$A$3,'School Resource Matrices'!$B$349:$FF$396,156) -> 0 | O18: =VLOOKUP('District Summary'!$A$3,'School Resource Matrices'!$B$349:$FF$396,157) -> 0 | P18: =VLOOKUP('District Summary'!$A$3,'School Resource Matrices'!$B$349:$FF$396,158) -> 0 | Q18: =VLOOKUP('District Summary'!$A$3,'School Resource Matrices'!$B$349:$FF$396,159) -> 0 | R18: 0
A19: 9 | B19: =VLOOKUP('District Summary'!$A$3,'School Resource Matrices'!$B$398:$FF$445,4) -> 0 | C19: =VLOOKUP('District Summary'!$A$3,'School Resource Matrices'!$B$398:$FF$445,133) -> 0 | D19: =VLOOKUP('District Summary'!$A$3,'School Resource Matrices'!$B$398:$FF$445,126) -> 0 | E19: =VLOOKUP('District Summary'!$A$3,'School Resource Matrices'!$B$398:$FF$445,132) -> 0 | F19: =VLOOKUP('District Summary'!$A$3,'School Resource Matrices'!$B$398:$FF$445,127) -> 0 | G19: =VLOOKUP('District Summary'!$A$3,'School Resource Matrices'!$B$398:$FF$445,137) -> 0 | H19: =VLOOKUP('District Summary'!$A$3,'School Resource Matrices'!$B$398:$FF$445,152) -> 0 | I19: =VLOOKUP('District Summary'!$A$3,'School Resource Matrices'!$B$398:$FF$445,146) -> 0 | J19: =VLOOKUP('District Summary'!$A$3,'School Resource Matrices'!$B$398:$FF$445,150) -> 0 | K19: =VLOOKUP('District Summary'!$A$3,'School Resource Matrices'!$B$398:$FF$445,153) -> 0 | L19: =VLOOKUP('District Summary'!$A$3,'School Resource Matrices'!$B$398:$FF$445,154) -> 0 | M19: =VLOOKUP('District Summary'!$A$3,'School Resource Matrices'!$B$398:$FF$445,155) -> 0 | N19: =VLOOKUP('District Summary'!$A$3,'School Resource Matrices'!$B$398:$FF$445,156) -> 0 | O19: =VLOOKUP('District Summary'!$A$3,'School Resource Matrices'!$B$398:$FF$445,157) -> 0 | P19: =VLOOKUP('District Summary'!$A$3,'School Resource Matrices'!$B$398:$FF$445,158) -> 0 | Q19: =VLOOKUP('District Summary'!$A$3,'School Resource Matrices'!$B$398:$FF$445,159) -> 0 | R19: 0
A20: 10 | B20: =VLOOKUP('District Summary'!$A$3,'School Resource Matrices'!$B$447:$FF$494,4) -> 0 | C20: =VLOOKUP('District Summary'!$A$3,'School Resource Matrices'!$B$447:$FF$494,133) -> 0 | D20: =VLOOKUP('District Summary'!$A$3,'School Resource Matrices'!$B$447:$FF$494,126) -> 0 | E20: =VLOOKUP('District Summary'!$A$3,'School Resource Matrices'!$B$447:$FF$494,132) -> 0 | F20: =VLOOKUP('District Summary'!$A$3,'School Resource Matrices'!$B$447:$FF$494,127) -> 0 | G20: =VLOOKUP('District Summary'!$A$3,'School Resource Matrices'!$B$447:$FF$494,137) -> 0 | H20: =VLOOKUP('District Summary'!$A$3,'School Resource Matrices'!$B$447:$FF$494,152) -> 0 | I20: =VLOOKUP('District Summary'!$A$3,'School Resource Matrices'!$B$447:$FF$494,146) -> 0 | J20: =VLOOKUP('District Summary'!$A$3,'School Resource Matrices'!$B$447:$FF$494,150) -> 0 | K20: =VLOOKUP('District Summary'!$A$3,'School Resource Matrices'!$B$447:$FF$494,153) -> 0 | L20: =VLOOKUP('District Summary'!$A$3,'School Resource Matrices'!$B$447:$FF$494,154) -> 0 | M20: =VLOOKUP('District Summary'!$A$3,'School Resource Matrices'!$B$447:$FF$494,155) -> 0 | N20: =VLOOKUP('District Summary'!$A$3,'School Resource Matrices'!$B$447:$FF$494,156) -> 0 | O20: =VLOOKUP('District Summary'!$A$3,'School Resource Matrices'!$B$447:$FF$494,157) -> 0 | P20: =VLOOKUP('District Summary'!$A$3,'School Resource Matrices'!$B$447:$FF$494,158) -> 0 | Q20: =VLOOKUP('District Summary'!$A$3,'School Resource Matrices'!$B$447:$FF$494,159) -> 0 | R20: 0
A21: 11 | B21: =VLOOKUP('District Summary'!$A$3,'School Resource Matrices'!$B$496:$FF$543,4) -> 0 | C21: =VLOOKUP('District Summary'!$A$3,'School Resource Matrices'!$B$496:$FF$543,133) -> 0 | D21: =VLOOKUP('District Summary'!$A$3,'School Resource Matrices'!$B$496:$FF$543,126) -> 0 | E21: =VLOOKUP('District Summary'!$A$3,'School Resource Matrices'!$B$496:$FF$543,132) -> 0 | F21: =VLOOKUP('District Summary'!$A$3,'School Resource Matrices'!$B$496:$FF$543,127) -> 0 | G21: =VLOOKUP('District Summary'!$A$3,'School Resource Matrices'!$B$496:$FF$543,137) -> 0 | H21: =VLOOKUP('District Summary'!$A$3,'School Resource Matrices'!$B$496:$FF$543,152) -> 0 | I21: =VLOOKUP('District Summary'!$A$3,'School Resource Matrices'!$B$496:$FF$543,146) -> 0 | J21: =VLOOKUP('District Summary'!$A$3,'School Resource Matrices'!$B$496:$FF$543,150) -> 0 | K21: =VLOOKUP('District Summary'!$A$3,'School Resource Matrices'!$B$496:$FF$543,153) -> 0 | L21: =VLOOKUP('District Summary'!$A$3,'School Resource Matrices'!$B$496:$FF$543,154) -> 0 | M21: =VLOOKUP('District Summary'!$A$3,'School Resource Matrices'!$B$496:$FF$543,155) -> 0 | N21: =VLOOKUP('District Summary'!$A$3,'School Resource Matrices'!$B$496:$FF$543,156) -> 0 | O21: =VLOOKUP('District Summary'!$A$3,'School Resource Matrices'!$B$496:$FF$543,157) -> 0 | P21: =VLOOKUP('District Summary'!$A$3,'School Resource Matrices'!$B$496:$FF$543,158) -> 0 | Q21: =VLOOKUP('District Summary'!$A$3,'School Resource Matrices'!$B$496:$FF$543,159) -> 0 | R21: 0
A22: 12 | B22: =VLOOKUP('District Summary'!$A$3,'School Resource Matrices'!$B$545:$FF$592,4) -> 0 | C22: =VLOOKUP('District Summary'!$A$3,'School Resource Matrices'!$B$545:$FF$592,133) -> 0 | D22: =VLOOKUP('District Summary'!$A$3,'School Resource Matrices'!$B$545:$FF$592,126) -> 0 | E22: =VLOOKUP('District Summary'!$A$3,'School Resource Matrices'!$B$545:$FF$592,132) -> 0 | F22: =VLOOKUP('District Summary'!$A$3,'School Resource Matrices'!$B$545:$FF$592,127) -> 0 | G22: =VLOOKUP('District Summary'!$A$3,'School Resource Matrices'!$B$545:$FF$592,137) -> 0 | H22: =VLOOKUP('District Summary'!$A$3,'School Resource Matrices'!$B$545:$FF$592,152) -> 0 | I22: =VLOOKUP('District Summary'!$A$3,'School Resource Matrices'!$B$545:$FF$592,146) -> 0 | J22: =VLOOKUP('District Summary'!$A$3,'School Resource Matrices'!$B$545:$FF$592,150) -> 0 | K22: =VLOOKUP('District Summary'!$A$3,'School Resource Matrices'!$B$545:$FF$592,153) -> 0 | L22: =VLOOKUP('District Summary'!$A$3,'School Resource Matrices'!$B$545:$FF$592,154) -> 0 | M22: =VLOOKUP('District Summary'!$A$3,'School Resource Matrices'!$B$545:$FF$592,155) -> 0 | N22: =VLOOKUP('District Summary'!$A$3,'School Resource Matrices'!$B$545:$FF$592,156) -> 0 | O22: =VLOOKUP('District Summary'!$A$3,'School Resource Matrices'!$B$545:$FF$592,157) -> 0 | P22: =VLOOKUP('District Summary'!$A$3,'School Resource Matrices'!$B$545:$FF$592,158) -> 0 | Q22: =VLOOKUP('District Summary'!$A$3,'School Resource Matrices'!$B$545:$FF$592,159) -> 0 | R22: 0
A23: 13 | B23: =VLOOKUP('District Summary'!$A$3,'School Resource Matrices'!$B$594:$FF$641,4) -> 0 | C23: =VLOOKUP('District Summary'!$A$3,'School Resource Matrices'!$B$594:$FF$641,133) -> 0 | D23: =VLOOKUP('District Summary'!$A$3,'School Resource Matrices'!$B$594:$FF$641,126) -> 0 | E23: =VLOOKUP('District Summary'!$A$3,'School Resource Matrices'!$B$594:$FF$641,132) -> 0 | F23: =VLOOKUP('District Summary'!$A$3,'School Resource Matrices'!$B$594:$FF$641,127) -> 0 | G23: =VLOOKUP('District Summary'!$A$3,'School Resource Matrices'!$B$594:$FF$641,137) -> 0 | H23: =VLOOKUP('District Summary'!$A$3,'School Resource Matrices'!$B$594:$FF$641,152) -> 0 | I23: =VLOOKUP('District Summary'!$A$3,'School Resource Matrices'!$B$594:$FF$641,146) -> 0 | J23: =VLOOKUP('District Summary'!$A$3,'School Resource Matrices'!$B$594:$FF$641,150) -> 0 | K23: =VLOOKUP('District Summary'!$A$3,'School Resource Matrices'!$B$594:$FF$641,153) -> 0 | L23: =VLOOKUP('District Summary'!$A$3,'School Resource Matrices'!$B$594:$FF$641,154) -> 0 | M23: =VLOOKUP('District Summary'!$A$3,'School Resource Matrices'!$B$594:$FF$641,155) -> 0 | N23: =VLOOKUP('District Summary'!$A$3,'School Resource Matrices'!$B$594:$FF$641,156) -> 0 | O23: =VLOOKUP('District Summary'!$A$3,'School Resource Matrices'!$B$594:$FF$641,157) -> 0 | P23: =VLOOKUP('District Summary'!$A$3,'School Resource Matrices'!$B$594:$FF$641,158) -> 0 | Q23: =VLOOKUP('District Summary'!$A$3,'School Resource Matrices'!$B$594:$FF$641,159) -> 0 | R23: 0
A24: 14 | B24: =VLOOKUP('District Summary'!$A$3,'School Resource Matrices'!$B$643:$FF$690,4) -> 0 | C24: =VLOOKUP('District Summary'!$A$3,'School Resource Matrices'!$B$643:$FF$690,133) -> 0 | D24: =VLOOKUP('District Summary'!$A$3,'School Resource Matrices'!$B$643:$FF$690,126) -> 0 | E24: =VLOOKUP('District Summary'!$A$3,'School Resource Matrices'!$B$643:$FF$690,132) -> 0 | F24: =VLOOKUP('District Summary'!$A$3,'School Resource Matrices'!$B$643:$FF$690,127) -> 0 | G24: =VLOOKUP('District Summary'!$A$3,'School Resource Matrices'!$B$643:$FF$690,137) -> 0 | H24: =VLOOKUP('District Summary'!$A$3,'School Resource Matrices'!$B$643:$FF$690,152) -> 0 | I24: =VLOOKUP('District Summary'!$A$3,'School Resource Matrices'!$B$643:$FF$690,146) -> 0 | J24: =VLOOKUP('District Summary'!$A$3,'School Resource Matrices'!$B$643:$FF$690,150) -> 0 | K24: =VLOOKUP('District Summary'!$A$3,'School Resource Matrices'!$B$643:$FF$690,153) -> 0 | L24: =VLOOKUP('District Summary'!$A$3,'School Resource Matrices'!$B$643:$FF$690,154) -> 0 | M24: =VLOOKUP('District Summary'!$A$3,'School Resource Matrices'!$B$643:$FF$690,155) -> 0 | N24: =VLOOKUP('District Summary'!$A$3,'School Resource Matrices'!$B$643:$FF$690,156) -> 0 | O24: =VLOOKUP('District Summary'!$A$3,'School Resource Matrices'!$B$643:$FF$690,157) -> 0 | P24: =VLOOKUP('District Summary'!$A$3,'School Resource Matrices'!$B$643:$FF$690,158) -> 0 | Q24: =VLOOKUP('District Summary'!$A$3,'School Resource Matrices'!$B$643:$FF$690,159) -> 0 | R24: 0
A25: 15 | B25: =VLOOKUP('District Summary'!$A$3,'School Resource Matrices'!$B$692:$FF$739,4) -> 0 | C25: =VLOOKUP('District Summary'!$A$3,'School Resource Matrices'!$B$692:$FF$739,133) -> 0 | D25: =VLOOKUP('District Summary'!$A$3,'School Resource Matrices'!$B$692:$FF$739,126) -> 0 | E25: =VLOOKUP('District Summary'!$A$3,'School Resource Matrices'!$B$692:$FF$739,132) -> 0 | F25: =VLOOKUP('District Summary'!$A$3,'School Resource Matrices'!$B$692:$FF$739,127) -> 0 | G25: =VLOOKUP('District Summary'!$A$3,'School Resource Matrices'!$B$692:$FF$739,137) -> 0 | H25: =VLOOKUP('District Summary'!$A$3,'School Resource Matrices'!$B$692:$FF$739,152) -> 0 | I25: =VLOOKUP('District Summary'!$A$3,'School Resource Matrices'!$B$692:$FF$739,146) -> 0 | J25: =VLOOKUP('District Summary'!$A$3,'School Resource Matrices'!$B$692:$FF$739,150) -> 0 | K25: =VLOOKUP('District Summary'!$A$3,'School Resource Matrices'!$B$692:$FF$739,153) -> 0 | L25: =VLOOKUP('District Summary'!$A$3,'School Resource Matrices'!$B$692:$FF$739,154) -> 0 | M25: =VLOOKUP('District Summary'!$A$3,'School Resource Matrices'!$B$692:$FF$739,155) -> 0 | N25: =VLOOKUP('District Summary'!$A$3,'School Resource Matrices'!$B$692:$FF$739,156) -> 0 | O25: =VLOOKUP('District Summary'!$A$3,'School Resource Matrices'!$B$692:$FF$739,157) -> 0 | P25: =VLOOKUP('District Summary'!$A$3,'School Resource Matrices'!$B$692:$FF$739,158) -> 0 | Q25: =VLOOKUP('District Summary'!$A$3,'School Resource Matrices'!$B$692:$FF$739,159) -> 0 | R25: 0
A26: 16 | B26: =VLOOKUP('District Summary'!$A$3,'School Resource Matrices'!$B$741:$FF$788,4) -> 0 | C26: =VLOOKUP('District Summary'!$A$3,'School Resource Matrices'!$B$741:$FF$788,133) -> 0 | D26: =VLOOKUP('District Summary'!$A$3,'School Resource Matrices'!$B$741:$FF$788,126) -> 0 | E26: =VLOOKUP('District Summary'!$A$3,'School Resource Matrices'!$B$741:$FF$788,132) -> 0 | F26: =VLOOKUP('District Summary'!$A$3,'School Resource Matrices'!$B$741:$FF$788,127) -> 0 | G26: =VLOOKUP('District Summary'!$A$3,'School Resource Matrices'!$B$741:$FF$788,137) -> 0 | H26: =VLOOKUP('District Summary'!$A$3,'School Resource Matrices'!$B$741:$FF$788,152) -> 0 | I26: =VLOOKUP('District Summary'!$A$3,'School Resource Matrices'!$B$741:$FF$788,146) -> 0 | J26: =VLOOKUP('District Summary'!$A$3,'School Resource Matrices'!$B$741:$FF$788,150) -> 0 | K26: =VLOOKUP('District Summary'!$A$3,'School Resource Matrices'!$B$741:$FF$788,153) -> 0 | L26: =VLOOKUP('District Summary'!$A$3,'School Resource Matrices'!$B$741:$FF$788,154) -> 0 | M26: =VLOOKUP('District Summary'!$A$3,'School Resource Matrices'!$B$741:$FF$788,155) -> 0 | N26: =VLOOKUP('District Summary'!$A$3,'School Resource Matrices'!$B$741:$FF$788,156) -> 0 | O26: =VLOOKUP('District Summary'!$A$3,'School Resource Matrices'!$B$741:$FF$788,157) -> 0 | P26: =VLOOKUP('District Summary'!$A$3,'School Resource Matrices'!$B$741:$FF$788,158) -> 0 | Q26: =VLOOKUP('District Summary'!$A$3,'School Resource Matrices'!$B$741:$FF$788,159) -> 0 | R26: 0
A27: 17 | B27: =VLOOKUP('District Summary'!$A$3,'School Resource Matrices'!$B$790:$FF$837,4) -> 0 | C27: =VLOOKUP('District Summary'!$A$3,'School Resource Matrices'!$B$790:$FF$837,133) -> 0 | D27: =VLOOKUP('District Summary'!$A$3,'School Resource Matrices'!$B$790:$FF$837,126) -> 0 | E27: =VLOOKUP('District Summary'!$A$3,'School Resource Matrices'!$B$790:$FF$837,132) -> 0 | F27: =VLOOKUP('District Summary'!$A$3,'School Resource Matrices'!$B$790:$FF$837,127) -> 0 | G27: =VLOOKUP('District Summary'!$A$3,'School Resource Matrices'!$B$790:$FF$837,137) -> 0 | H27: =VLOOKUP('District Summary'!$A$3,'School Resource Matrices'!$B$790:$FF$837,152) -> 0 | I27: =VLOOKUP('District Summary'!$A$3,'School Resource Matrices'!$B$790:$FF$837,146) -> 0 | J27: =VLOOKUP('District Summary'!$A$3,'School Resource Matrices'!$B$790:$FF$837,150) -> 0 | K27: =VLOOKUP('District Summary'!$A$3,'School Resource Matrices'!$B$790:$FF$837,153) -> 0 | L27: =VLOOKUP('District Summary'!$A$3,'School Resource Matrices'!$B$790:$FF$837,154) -> 0 | M27: =VLOOKUP('District Summary'!$A$3,'School Resource Matrices'!$B$790:$FF$837,155) -> 0 | N27: =VLOOKUP('District Summary'!$A$3,'School Resource Matrices'!$B$790:$FF$837,156) -> 0 | O27: =VLOOKUP('District Summary'!$A$3,'School Resource Matrices'!$B$790:$FF$837,157) -> 0 | P27: =VLOOKUP('District Summary'!$A$3,'School Resource Matrices'!$B$790:$FF$837,158) -> 0 | Q27: =VLOOKUP('District Summary'!$A$3,'School Resource Matrices'!$B$790:$FF$837,159) -> 0 | R27: 0
A28: 18 | B28: =VLOOKUP('District Summary'!$A$3,'School Resource Matrices'!$B$839:$FF$886,4) -> 0 | C28: =VLOOKUP('District Summary'!$A$3,'School Resource Matrices'!$B$839:$FF$886,133) -> 0 | D28: =VLOOKUP('District Summary'!$A$3,'School Resource Matrices'!$B$839:$FF$886,126) -> 0 | E28: =VLOOKUP('District Summary'!$A$3,'School Resource Matrices'!$B$839:$FF$886,132) -> 0 | F28: =VLOOKUP('District Summary'!$A$3,'School Resource Matrices'!$B$839:$FF$886,127) -> 0 | G28: =VLOOKUP('District Summary'!$A$3,'School Resource Matrices'!$B$839:$FF$886,137) -> 0 | H28: =VLOOKUP('District Summary'!$A$3,'School Resource Matrices'!$B$839:$FF$886,152) -> 0 | I28: =VLOOKUP('District Summary'!$A$3,'School Resource Matrices'!$B$839:$FF$886,146) -> 0 | J28: =VLOOKUP('District Summary'!$A$3,'School Resource Matrices'!$B$839:$FF$886,150) -> 0 | K28: =VLOOKUP('District Summary'!$A$3,'School Resource Matrices'!$B$839:$FF$886,153) -> 0 | L28: =VLOOKUP('District Summary'!$A$3,'School Resource Matrices'!$B$839:$FF$886,154) -> 0 | M28: =VLOOKUP('District Summary'!$A$3,'School Resource Matrices'!$B$839:$FF$886,155) -> 0 | N28: =VLOOKUP('District Summary'!$A$3,'School Resource Matrices'!$B$839:$FF$886,156) -> 0 | O28: =VLOOKUP('District Summary'!$A$3,'School Resource Matrices'!$B$839:$FF$886,157) -> 0 | P28: =VLOOKUP('District Summary'!$A$3,'School Resource Matrices'!$B$839:$FF$886,158) -> 0 | Q28: =VLOOKUP('District Summary'!$A$3,'School Resource Matrices'!$B$839:$FF$886,159) -> 0 | R28: 0
A29: 19 | B29: =VLOOKUP('District Summary'!$A$3,'School Resource Matrices'!$B$888:$FF$935,4) -> 0 | C29: =VLOOKUP('District Summary'!$A$3,'School Resource Matrices'!$B$888:$FF$935,133) -> 0 | D29: =VLOOKUP('District Summary'!$A$3,'School Resource Matrices'!$B$888:$FF$935,126) -> 0 | E29: =VLOOKUP('District Summary'!$A$3,'School Resource Matrices'!$B$888:$FF$935,132) -> 0 | F29: =VLOOKUP('District Summary'!$A$3,'School Resource Matrices'!$B$888:$FF$935,127) -> 0 | G29: =VLOOKUP('District Summary'!$A$3,'School Resource Matrices'!$B$888:$FF$935,137) -> 0 | H29: =VLOOKUP('District Summary'!$A$3,'School Resource Matrices'!$B$888:$FF$935,152) -> 0 | I29: =VLOOKUP('District Summary'!$A$3,'School Resource Matrices'!$B$888:$FF$935,146) -> 0 | J29: =VLOOKUP('District Summary'!$A$3,'School Resource Matrices'!$B$888:$FF$935,150) -> 0 | K29: =VLOOKUP('District Summary'!$A$3,'School Resource Matrices'!$B$888:$FF$935,153) -> 0 | L29: =VLOOKUP('District Summary'!$A$3,'School Resource Matrices'!$B$888:$FF$935,154) -> 0 | M29: =VLOOKUP('District Summary'!$A$3,'School Resource Matrices'!$B$888:$FF$935,155) -> 0 | N29: =VLOOKUP('District Summary'!$A$3,'School Resource Matrices'!$B$888:$FF$935,156) -> 0 | O29: =VLOOKUP('District Summary'!$A$3,'School Resource Matrices'!$B$888:$FF$935,157) -> 0 | P29: =VLOOKUP('District Summary'!$A$3,'School Resource Matrices'!$B$888:$FF$935,158) -> 0 | Q29: =VLOOKUP('District Summary'!$A$3,'School Resource Matrices'!$B$888:$FF$935,159) -> 0 | R29: 0
A30: 20 | B30: =VLOOKUP('District Summary'!$A$3,'School Resource Matrices'!$B$937:$FF$984,4) -> 0 | C30: =VLOOKUP('District Summary'!$A$3,'School Resource Matrices'!$B$937:$FF$984,133) -> 0 | D30: =VLOOKUP('District Summary'!$A$3,'School Resource Matrices'!$B$937:$FF$984,126) -> 0 | E30: =VLOOKUP('District Summary'!$A$3,'School Resource Matrices'!$B$937:$FF$984,132) -> 0 | F30: =VLOOKUP('District Summary'!$A$3,'School Resource Matrices'!$B$937:$FF$984,127) -> 0 | G30: =VLOOKUP('District Summary'!$A$3,'School Resource Matrices'!$B$937:$FF$984,137) -> 0 | H30: =VLOOKUP('District Summary'!$A$3,'School Resource Matrices'!$B$937:$FF$984,152) -> 0 | I30: =VLOOKUP('District Summary'!$A$3,'School Resource Matrices'!$B$937:$FF$984,146) -> 0 | J30: =VLOOKUP('District Summary'!$A$3,'School Resource Matrices'!$B$937:$FF$984,150) -> 0 | K30: =VLOOKUP('District Summary'!$A$3,'School Resource Matrices'!$B$937:$FF$984,153) -> 0 | L30: =VLOOKUP('District Summary'!$A$3,'School Resource Matrices'!$B$937:$FF$984,154) -> 0 | M30: =VLOOKUP('District Summary'!$A$3,'School Resource Matrices'!$B$937:$FF$984,155) -> 0 | N30: =VLOOKUP('District Summary'!$A$3,'School Resource Matrices'!$B$937:$FF$984,156) -> 0 | O30: =VLOOKUP('District Summary'!$A$3,'School Resource Matrices'!$B$937:$FF$984,157) -> 0 | P30: =VLOOKUP('District Summary'!$A$3,'School Resource Matrices'!$B$937:$FF$984,158) -> 0 | Q30: =VLOOKUP('District Summary'!$A$3,'School Resource Matrices'!$B$937:$FF$984,159) -> 0 | R30: 0
A31: 21 | B31: =VLOOKUP('District Summary'!$A$3,'School Resource Matrices'!$B$986:$FF$1033,4) -> 0 | C31: =VLOOKUP('District Summary'!$A$3,'School Resource Matrices'!$B$986:$FF$1033,133) -> 0 | D31: =VLOOKUP('District Summary'!$A$3,'School Resource Matrices'!$B$986:$FF$1033,126) -> 0 | E31: =VLOOKUP('District Summary'!$A$3,'School Resource Matrices'!$B$986:$FF$1033,132) -> 0 | F31: =VLOOKUP('District Summary'!$A$3,'School Resource Matrices'!$B$986:$FF$1033,127) -> 0 | G31: =VLOOKUP('District Summary'!$A$3,'School Resource Matrices'!$B$986:$FF$1033,137) -> 0 | H31: =VLOOKUP('District Summary'!$A$3,'School Resource Matrices'!$B$986:$FF$1033,152) -> 0 | I31: =VLOOKUP('District Summary'!$A$3,'School Resource Matrices'!$B$986:$FF$1033,146) -> 0 | J31: =VLOOKUP('District Summary'!$A$3,'School Resource Matrices'!$B$986:$FF$1033,150) -> 0 | K31: =VLOOKUP('District Summary'!$A$3,'School Resource Matrices'!$B$986:$FF$1033,153) -> 0 | L31: =VLOOKUP('District Summary'!$A$3,'School Resource Matrices'!$B$986:$FF$1033,154) -> 0 | M31: =VLOOKUP('District Summary'!$A$3,'School Resource Matrices'!$B$986:$FF$1033,155) -> 0 | N31: =VLOOKUP('District Summary'!$A$3,'School Resource Matrices'!$B$986:$FF$1033,156) -> 0 | O31: =VLOOKUP('District Summary'!$A$3,'School Resource Matrices'!$B$986:$FF$1033,157) -> 0 | P31: =VLOOKUP('District Summary'!$A$3,'School Resource Matrices'!$B$986:$FF$1033,158) -> 0 | Q31: =VLOOKUP('District Summary'!$A$3,'School Resource Matrices'!$B$986:$FF$1033,159) -> 0 | R31: 0
A32: 22 | B32: =VLOOKUP('District Summary'!$A$3,'School Resource Matrices'!$B$1035:$FF$1082,4) -> 0 | C32: =VLOOKUP('District Summary'!$A$3,'School Resource Matrices'!$B$1035:$FF$1082,133) -> 0 | D32: =VLOOKUP('District Summary'!$A$3,'School Resource Matrices'!$B$1035:$FF$1082,126) -> 0 | E32: =VLOOKUP('District Summary'!$A$3,'School Resource Matrices'!$B$1035:$FF$1082,132) -> 0 | F32: =VLOOKUP('District Summary'!$A$3,'School Resource Matrices'!$B$1035:$FF$1082,127) -> 0 | G32: =VLOOKUP('District Summary'!$A$3,'School Resource Matrices'!$B$1035:$FF$1082,137) -> 0 | H32: =VLOOKUP('District Summary'!$A$3,'School Resource Matrices'!$B$1035:$FF$1082,152) -> 0 | I32: =VLOOKUP('District Summary'!$A$3,'School Resource Matrices'!$B$1035:$FF$1082,146) -> 0 | J32: =VLOOKUP('District Summary'!$A$3,'School Resource Matrices'!$B$1035:$FF$1082,150) -> 0 | K32: =VLOOKUP('District Summary'!$A$3,'School Resource Matrices'!$B$1035:$FF$1082,153) -> 0 | L32: =VLOOKUP('District Summary'!$A$3,'School Resource Matrices'!$B$1035:$FF$1082,154) -> 0 | M32: =VLOOKUP('District Summary'!$A$3,'School Resource Matrices'!$B$1035:$FF$1082,155) -> 0 | N32: =VLOOKUP('District Summary'!$A$3,'School Resource Matrices'!$B$1035:$FF$1082,156) -> 0 | O32: =VLOOKUP('District Summary'!$A$3,'School Resource Matrices'!$B$1035:$FF$1082,157) -> 0 | P32: =VLOOKUP('District Summary'!$A$3,'School Resource Matrices'!$B$1035:$FF$1082,158) -> 0 | Q32: =VLOOKUP('District Summary'!$A$3,'School Resource Matrices'!$B$1035:$FF$1082,159) -> 0 | R32: 0
A33: 23 | B33: =VLOOKUP('District Summary'!$A$3,'School Resource Matrices'!$B$1084:$FF$1131,4) -> 0 | C33: =VLOOKUP('District Summary'!$A$3,'School Resource Matrices'!$B$1084:$FF$1131,133) -> 0 | D33: =VLOOKUP('District Summary'!$A$3,'School Resource Matrices'!$B$1084:$FF$1131,126) -> 0 | E33: =VLOOKUP('District Summary'!$A$3,'School Resource Matrices'!$B$1084:$FF$1131,132) -> 0 | F33: =VLOOKUP('District Summary'!$A$3,'School Resource Matrices'!$B$1084:$FF$1131,127) -> 0 | G33: =VLOOKUP('District Summary'!$A$3,'School Resource Matrices'!$B$1084:$FF$1131,137) -> 0 | H33: =VLOOKUP('District Summary'!$A$3,'School Resource Matrices'!$B$1084:$FF$1131,152) -> 0 | I33: =VLOOKUP('District Summary'!$A$3,'School Resource Matrices'!$B$1084:$FF$1131,146) -> 0 | J33: =VLOOKUP('District Summary'!$A$3,'School Resource Matrices'!$B$1084:$FF$1131,150) -> 0 | K33: =VLOOKUP('District Summary'!$A$3,'School Resource Matrices'!$B$1084:$FF$1131,153) -> 0 | L33: =VLOOKUP('District Summary'!$A$3,'School Resource Matrices'!$B$1084:$FF$1131,154) -> 0 | M33: =VLOOKUP('District Summary'!$A$3,'School Resource Matrices'!$B$1084:$FF$1131,155) -> 0 | N33: =VLOOKUP('District Summary'!$A$3,'School Resource Matrices'!$B$1084:$FF$1131,156) -> 0 | O33: =VLOOKUP('District Summary'!$A$3,'School Resource Matrices'!$B$1084:$FF$1131,157) -> 0 | P33: =VLOOKUP('District Summary'!$A$3,'School Resource Matrices'!$B$1084:$FF$1131,158) -> 0 | Q33: =VLOOKUP('District Summary'!$A$3,'School Resource Matrices'!$B$1084:$FF$1131,159) -> 0 | R33: 0
A34: 24 | B34: =VLOOKUP('District Summary'!$A$3,'School Resource Matrices'!$B$1133:$FF$1180,4) -> 0 | C34: =VLOOKUP('District Summary'!$A$3,'School Resource Matrices'!$B$1133:$FF$1180,133) -> 0 | D34: =VLOOKUP('District Summary'!$A$3,'School Resource Matrices'!$B$1133:$FF$1180,126) -> 0 | E34: =VLOOKUP('District Summary'!$A$3,'School Resource Matrices'!$B$1133:$FF$1180,132) -> 0 | F34: =VLOOKUP('District Summary'!$A$3,'School Resource Matrices'!$B$1133:$FF$1180,127) -> 0 | G34: =VLOOKUP('District Summary'!$A$3,'School Resource Matrices'!$B$1133:$FF$1180,137) -> 0 | H34: =VLOOKUP('District Summary'!$A$3,'School Resource Matrices'!$B$1133:$FF$1180,152) -> 0 | I34: =VLOOKUP('District Summary'!$A$3,'School Resource Matrices'!$B$1133:$FF$1180,146) -> 0 | J34: =VLOOKUP('District Summary'!$A$3,'School Resource Matrices'!$B$1133:$FF$1180,150) -> 0 | K34: =VLOOKUP('District Summary'!$A$3,'School Resource Matrices'!$B$1133:$FF$1180,153) -> 0 | L34: =VLOOKUP('District Summary'!$A$3,'School Resource Matrices'!$B$1133:$FF$1180,154) -> 0 | M34: =VLOOKUP('District Summary'!$A$3,'School Resource Matrices'!$B$1133:$FF$1180,155) -> 0 | N34: =VLOOKUP('District Summary'!$A$3,'School Resource Matrices'!$B$1133:$FF$1180,156) -> 0 | O34: =VLOOKUP('District Summary'!$A$3,'School Resource Matrices'!$B$1133:$FF$1180,157) -> 0 | P34: =VLOOKUP('District Summary'!$A$3,'School Resource Matrices'!$B$1133:$FF$1180,158) -> 0 | Q34: =VLOOKUP('District Summary'!$A$3,'School Resource Matrices'!$B$1133:$FF$1180,159) -> 0 | R34: 0
A35: 25 | B35: =VLOOKUP('District Summary'!$A$3,'School Resource Matrices'!$B$1182:$FF$1229,4) -> 0 | C35: =VLOOKUP('District Summary'!$A$3,'School Resource Matrices'!$B$1182:$FF$1229,133) -> 0 | D35: =VLOOKUP('District Summary'!$A$3,'School Resource Matrices'!$B$1182:$FF$1229,126) -> 0 | E35: =VLOOKUP('District Summary'!$A$3,'School Resource Matrices'!$B$1182:$FF$1229,132) -> 0 | F35: =VLOOKUP('District Summary'!$A$3,'School Resource Matrices'!$B$1182:$FF$1229,127) -> 0 | G35: =VLOOKUP('District Summary'!$A$3,'School Resource Matrices'!$B$1182:$FF$1229,137) -> 0 | H35: =VLOOKUP('District Summary'!$A$3,'School Resource Matrices'!$B$1182:$FF$1229,152) -> 0 | I35: =VLOOKUP('District Summary'!$A$3,'School Resource Matrices'!$B$1182:$FF$1229,146) -> 0 | J35: =VLOOKUP('District Summary'!$A$3,'School Resource Matrices'!$B$1182:$FF$1229,150) -> 0 | K35: =VLOOKUP('District Summary'!$A$3,'School Resource Matrices'!$B$1182:$FF$1229,153) -> 0 | L35: =VLOOKUP('District Summary'!$A$3,'School Resource Matrices'!$B$1182:$FF$1229,154) -> 0 | M35: =VLOOKUP('District Summary'!$A$3,'School Resource Matrices'!$B$1182:$FF$1229,155) -> 0 | N35: =VLOOKUP('District Summary'!$A$3,'School Resource Matrices'!$B$1182:$FF$1229,156) -> 0 | O35: =VLOOKUP('District Summary'!$A$3,'School Resource Matrices'!$B$1182:$FF$1229,157) -> 0 | P35: =VLOOKUP('District Summary'!$A$3,'School Resource Matrices'!$B$1182:$FF$1229,158) -> 0 | Q35: =VLOOKUP('District Summary'!$A$3,'School Resource Matrices'!$B$1182:$FF$1229,159) -> 0 | R35: 0
A36: 26 | B36: =VLOOKUP('District Summary'!$A$3,'School Resource Matrices'!$B$1231:$FF$1278,4) -> 0 | C36: =VLOOKUP('District Summary'!$A$3,'School Resource Matrices'!$B$1231:$FF$1278,133) -> 0 | D36: =VLOOKUP('District Summary'!$A$3,'School Resource Matrices'!$B$1231:$FF$1278,126) -> 0 | E36: =VLOOKUP('District Summary'!$A$3,'School Resource Matrices'!$B$1231:$FF$1278,132) -> 0 | F36: =VLOOKUP('District Summary'!$A$3,'School Resource Matrices'!$B$1231:$FF$1278,127) -> 0 | G36: =VLOOKUP('District Summary'!$A$3,'School Resource Matrices'!$B$1231:$FF$1278,137) -> 0 | H36: =VLOOKUP('District Summary'!$A$3,'School Resource Matrices'!$B$1231:$FF$1278,152) -> 0 | I36: =VLOOKUP('District Summary'!$A$3,'School Resource Matrices'!$B$1231:$FF$1278,146) -> 0 | J36: =VLOOKUP('District Summary'!$A$3,'School Resource Matrices'!$B$1231:$FF$1278,150) -> 0 | K36: =VLOOKUP('District Summary'!$A$3,'School Resource Matrices'!$B$1231:$FF$1278,153) -> 0 | L36: =VLOOKUP('District Summary'!$A$3,'School Resource Matrices'!$B$1231:$FF$1278,154) -> 0 | M36: =VLOOKUP('District Summary'!$A$3,'School Resource Matrices'!$B$1231:$FF$1278,155) -> 0 | N36: =VLOOKUP('District Summary'!$A$3,'School Resource Matrices'!$B$1231:$FF$1278,156) -> 0 | O36: =VLOOKUP('District Summary'!$A$3,'School Resource Matrices'!$B$1231:$FF$1278,157) -> 0 | P36: =VLOOKUP('District Summary'!$A$3,'School Resource Matrices'!$B$1231:$FF$1278,158) -> 0 | Q36: =VLOOKUP('District Summary'!$A$3,'School Resource Matrices'!$B$1231:$FF$1278,159) -> 0 | R36: 0
A37: 27 | B37: =VLOOKUP('District Summary'!$A$3,'School Resource Matrices'!$B$1280:$FF$1327,4) -> 0 | C37: =VLOOKUP('District Summary'!$A$3,'School Resource Matrices'!$B$1280:$FF$1327,133) -> 0 | D37: =VLOOKUP('District Summary'!$A$3,'School Resource Matrices'!$B$1280:$FF$1327,126) -> 0 | E37: =VLOOKUP('District Summary'!$A$3,'School Resource Matrices'!$B$1280:$FF$1327,132) -> 0 | F37: =VLOOKUP('District Summary'!$A$3,'School Resource Matrices'!$B$1280:$FF$1327,127) -> 0 | G37: =VLOOKUP('District Summary'!$A$3,'School Resource Matrices'!$B$1280:$FF$1327,137) -> 0 | H37: =VLOOKUP('District Summary'!$A$3,'School Resource Matrices'!$B$1280:$FF$1327,152) -> 0 | I37: =VLOOKUP('District Summary'!$A$3,'School Resource Matrices'!$B$1280:$FF$1327,146) -> 0 | J37: =VLOOKUP('District Summary'!$A$3,'School Resource Matrices'!$B$1280:$FF$1327,150) -> 0 | K37: =VLOOKUP('District Summary'!$A$3,'School Resource Matrices'!$B$1280:$FF$1327,153) -> 0 | L37: =VLOOKUP('District Summary'!$A$3,'School Resource Matrices'!$B$1280:$FF$1327,154) -> 0 | M37: =VLOOKUP('District Summary'!$A$3,'School Resource Matrices'!$B$1280:$FF$1327,155) -> 0 | N37: =VLOOKUP('District Summary'!$A$3,'School Resource Matrices'!$B$1280:$FF$1327,156) -> 0 | O37: =VLOOKUP('District Summary'!$A$3,'School Resource Matrices'!$B$1280:$FF$1327,157) -> 0 | P37: =VLOOKUP('District Summary'!$A$3,'School Resource Matrices'!$B$1280:$FF$1327,158) -> 0 | Q37: =VLOOKUP('District Summary'!$A$3,'School Resource Matrices'!$B$1280:$FF$1327,159) -> 0 | R37: 0
A38: 28 | B38: =VLOOKUP('District Summary'!$A$3,'School Resource Matrices'!$B$1329:$FF$1376,4) -> 0 | C38: =VLOOKUP('District Summary'!$A$3,'School Resource Matrices'!$B$1329:$FF$1376,133) -> 0 | D38: =VLOOKUP('District Summary'!$A$3,'School Resource Matrices'!$B$1329:$FF$1376,126) -> 0 | E38: =VLOOKUP('District Summary'!$A$3,'School Resource Matrices'!$B$1329:$FF$1376,132) -> 0 | F38: =VLOOKUP('District Summary'!$A$3,'School Resource Matrices'!$B$1329:$FF$1376,127) -> 0 | G38: =VLOOKUP('District Summary'!$A$3,'School Resource Matrices'!$B$1329:$FF$1376,137) -> 0 | H38: =VLOOKUP('District Summary'!$A$3,'School Resource Matrices'!$B$1329:$FF$1376,152) -> 0 | I38: =VLOOKUP('District Summary'!$A$3,'School Resource Matrices'!$B$1329:$FF$1376,146) -> 0 | J38: =VLOOKUP('District Summary'!$A$3,'School Resource Matrices'!$B$1329:$FF$1376,150) -> 0 | K38: =VLOOKUP('District Summary'!$A$3,'School Resource Matrices'!$B$1329:$FF$1376,153) -> 0 | L38: =VLOOKUP('District Summary'!$A$3,'School Resource Matrices'!$B$1329:$FF$1376,154) -> 0 | M38: =VLOOKUP('District Summary'!$A$3,'School Resource Matrices'!$B$1329:$FF$1376,155) -> 0 | N38: =VLOOKUP('District Summary'!$A$3,'School Resource Matrices'!$B$1329:$FF$1376,156) -> 0 | O38: =VLOOKUP('District Summary'!$A$3,'School Resource Matrices'!$B$1329:$FF$1376,157) -> 0 | P38: =VLOOKUP('District Summary'!$A$3,'School Resource Matrices'!$B$1329:$FF$1376,158) -> 0 | Q38: =VLOOKUP('District Summary'!$A$3,'School Resource Matrices'!$B$1329:$FF$1376,159) -> 0 | R38: 0
A39: 29 | B39: =VLOOKUP('District Summary'!$A$3,'School Resource Matrices'!$B$1378:$FF$1425,4) -> 0 | C39: =VLOOKUP('District Summary'!$A$3,'School Resource Matrices'!$B$1378:$FF$1425,133) -> 0 | D39: =VLOOKUP('District Summary'!$A$3,'School Resource Matrices'!$B$1378:$FF$1425,126) -> 0 | E39: =VLOOKUP('District Summary'!$A$3,'School Resource Matrices'!$B$1378:$FF$1425,132) -> 0 | F39: =VLOOKUP('District Summary'!$A$3,'School Resource Matrices'!$B$1378:$FF$1425,127) -> 0 | G39: =VLOOKUP('District Summary'!$A$3,'School Resource Matrices'!$B$1378:$FF$1425,137) -> 0 | H39: =VLOOKUP('District Summary'!$A$3,'School Resource Matrices'!$B$1378:$FF$1425,152) -> 0 | I39: =VLOOKUP('District Summary'!$A$3,'School Resource Matrices'!$B$1378:$FF$1425,146) -> 0 | J39: =VLOOKUP('District Summary'!$A$3,'School Resource Matrices'!$B$1378:$FF$1425,150) -> 0 | K39: =VLOOKUP('District Summary'!$A$3,'School Resource Matrices'!$B$1378:$FF$1425,153) -> 0 | L39: =VLOOKUP('District Summary'!$A$3,'School Resource Matrices'!$B$1378:$FF$1425,154) -> 0 | M39: =VLOOKUP('District Summary'!$A$3,'School Resource Matrices'!$B$1378:$FF$1425,155) -> 0 | N39: =VLOOKUP('District Summary'!$A$3,'School Resource Matrices'!$B$1378:$FF$1425,156) -> 0 | O39: =VLOOKUP('District Summary'!$A$3,'School Resource Matrices'!$B$1378:$FF$1425,157) -> 0 | P39: =VLOOKUP('District Summary'!$A$3,'School Resource Matrices'!$B$1378:$FF$1425,158) -> 0 | Q39: =VLOOKUP('District Summary'!$A$3,'School Resource Matrices'!$B$1378:$FF$1425,159) -> 0 | R39: 0
A40: 30 | B40: =VLOOKUP('District Summary'!$A$3,'School Resource Matrices'!$B$1427:$FF$1474,4) -> 0 | C40: =VLOOKUP('District Summary'!$A$3,'School Resource Matrices'!$B$1427:$FF$1474,133) -> 0 | D40: =VLOOKUP('District Summary'!$A$3,'School Resource Matrices'!$B$1427:$FF$1474,126) -> 0 | E40: =VLOOKUP('District Summary'!$A$3,'School Resource Matrices'!$B$1427:$FF$1474,132) -> 0 | F40: =VLOOKUP('District Summary'!$A$3,'School Resource Matrices'!$B$1427:$FF$1474,127) -> 0 | G40: =VLOOKUP('District Summary'!$A$3,'School Resource Matrices'!$B$1427:$FF$1474,137) -> 0 | H40: =VLOOKUP('District Summary'!$A$3,'School Resource Matrices'!$B$1427:$FF$1474,152) -> 0 | I40: =VLOOKUP('District Summary'!$A$3,'School Resource Matrices'!$B$1427:$FF$1474,146) -> 0 | J40: =VLOOKUP('District Summary'!$A$3,'School Resource Matrices'!$B$1427:$FF$1474,150) -> 0 | K40: =VLOOKUP('District Summary'!$A$3,'School Resource Matrices'!$B$1427:$FF$1474,153) -> 0 | L40: =VLOOKUP('District Summary'!$A$3,'School Resource Matrices'!$B$1427:$FF$1474,154) -> 0 | M40: =VLOOKUP('District Summary'!$A$3,'School Resource Matrices'!$B$1427:$FF$1474,155) -> 0 | N40: =VLOOKUP('District Summary'!$A$3,'School Resource Matrices'!$B$1427:$FF$1474,156) -> 0 | O40: =VLOOKUP('District Summary'!$A$3,'School Resource Matrices'!$B$1427:$FF$1474,157) -> 0 | P40: =VLOOKUP('District Summary'!$A$3,'School Resource Matrices'!$B$1427:$FF$1474,158) -> 0 | Q40: =VLOOKUP('District Summary'!$A$3,'School Resource Matrices'!$B$1427:$FF$1474,159) -> 0 | R40: 0
A41: 31 | B41: =VLOOKUP('District Summary'!$A$3,'School Resource Matrices'!$B$1476:$FF$1523,4) -> 0 | C41: =VLOOKUP('District Summary'!$A$3,'School Resource Matrices'!$B$1476:$FF$1523,133) -> 0 | D41: =VLOOKUP('District Summary'!$A$3,'School Resource Matrices'!$B$1476:$FF$1523,126) -> 0 | E41: =VLOOKUP('District Summary'!$A$3,'School Resource Matrices'!$B$1476:$FF$1523,132) -> 0 | F41: =VLOOKUP('District Summary'!$A$3,'School Resource Matrices'!$B$1476:$FF$1523,127) -> 0 | G41: =VLOOKUP('District Summary'!$A$3,'School Resource Matrices'!$B$1476:$FF$1523,137) -> 0 | H41: =VLOOKUP('District Summary'!$A$3,'School Resource Matrices'!$B$1476:$FF$1523,152) -> 0 | I41: =VLOOKUP('District Summary'!$A$3,'School Resource Matrices'!$B$1476:$FF$1523,146) -> 0 | J41: =VLOOKUP('District Summary'!$A$3,'School Resource Matrices'!$B$1476:$FF$1523,150) -> 0 | K41: =VLOOKUP('District Summary'!$A$3,'School Resource Matrices'!$B$1476:$FF$1523,153) -> 0 | L41: =VLOOKUP('District Summary'!$A$3,'School Resource Matrices'!$B$1476:$FF$1523,154) -> 0 | M41: =VLOOKUP('District Summary'!$A$3,'School Resource Matrices'!$B$1476:$FF$1523,155) -> 0 | N41: =VLOOKUP('District Summary'!$A$3,'School Resource Matrices'!$B$1476:$FF$1523,156) -> 0 | O41: =VLOOKUP('District Summary'!$A$3,'School Resource Matrices'!$B$1476:$FF$1523,157) -> 0 | P41: =VLOOKUP('District Summary'!$A$3,'School Resource Matrices'!$B$1476:$FF$1523,158) -> 0 | Q41: =VLOOKUP('District Summary'!$A$3,'School Resource Matrices'!$B$1476:$FF$1523,159) -> 0 | R41: 0
A42: 32 | B42: =VLOOKUP('District Summary'!$A$3,'School Resource Matrices'!$B$1525:$FF$1572,4) -> 0 | C42: =VLOOKUP('District Summary'!$A$3,'School Resource Matrices'!$B$1525:$FF$1572,133) -> 0 | D42: =VLOOKUP('District Summary'!$A$3,'School Resource Matrices'!$B$1525:$FF$1572,126) -> 0 | E42: =VLOOKUP('District Summary'!$A$3,'School Resource Matrices'!$B$1525:$FF$1572,132) -> 0 | F42: =VLOOKUP('District Summary'!$A$3,'School Resource Matrices'!$B$1525:$FF$1572,127) -> 0 | G42: =VLOOKUP('District Summary'!$A$3,'School Resource Matrices'!$B$1525:$FF$1572,137) -> 0 | H42: =VLOOKUP('District Summary'!$A$3,'School Resource Matrices'!$B$1525:$FF$1572,152) -> 0 | I42: =VLOOKUP('District Summary'!$A$3,'School Resource Matrices'!$B$1525:$FF$1572,146) -> 0 | J42: =VLOOKUP('District Summary'!$A$3,'School Resource Matrices'!$B$1525:$FF$1572,150) -> 0 | K42: =VLOOKUP('District Summary'!$A$3,'School Resource Matrices'!$B$1525:$FF$1572,153) -> 0 | L42: =VLOOKUP('District Summary'!$A$3,'School Resource Matrices'!$B$1525:$FF$1572,154) -> 0 | M42: =VLOOKUP('District Summary'!$A$3,'School Resource Matrices'!$B$1525:$FF$1572,155) -> 0 | N42: =VLOOKUP('District Summary'!$A$3,'School Resource Matrices'!$B$1525:$FF$1572,156) -> 0 | O42: =VLOOKUP('District Summary'!$A$3,'School Resource Matrices'!$B$1525:$FF$1572,157) -> 0 | P42: =VLOOKUP('District Summary'!$A$3,'School Resource Matrices'!$B$1525:$FF$1572,158) -> 0 | Q42: =VLOOKUP('District Summary'!$A$3,'School Resource Matrices'!$B$1525:$FF$1572,159) -> 0 | R42: 0
A43: 33 | B43: =VLOOKUP('District Summary'!$A$3,'School Resource Matrices'!$B$1574:$FF$1621,4) -> 0 | C43: =VLOOKUP('District Summary'!$A$3,'School Resource Matrices'!$B$1574:$FF$1621,133) -> 0 | D43: =VLOOKUP('District Summary'!$A$3,'School Resource Matrices'!$B$1574:$FF$1621,126) -> 0 | E43: =VLOOKUP('District Summary'!$A$3,'School Resource Matrices'!$B$1574:$FF$1621,132) -> 0 | F43: =VLOOKUP('District Summary'!$A$3,'School Resource Matrices'!$B$1574:$FF$1621,127) -> 0 | G43: =VLOOKUP('District Summary'!$A$3,'School Resource Matrices'!$B$1574:$FF$1621,137) -> 0 | H43: =VLOOKUP('District Summary'!$A$3,'School Resource Matrices'!$B$1574:$FF$1621,152) -> 0 | I43: =VLOOKUP('District Summary'!$A$3,'School Resource Matrices'!$B$1574:$FF$1621,146) -> 0 | J43: =VLOOKUP('District Summary'!$A$3,'School Resource Matrices'!$B$1574:$FF$1621,150) -> 0 | K43: =VLOOKUP('District Summary'!$A$3,'School Resource Matrices'!$B$1574:$FF$1621,153) -> 0 | L43: =VLOOKUP('District Summary'!$A$3,'School Resource Matrices'!$B$1574:$FF$1621,154) -> 0 | M43: =VLOOKUP('District Summary'!$A$3,'School Resource Matrices'!$B$1574:$FF$1621,155) -> 0 | N43: =VLOOKUP('District Summary'!$A$3,'School Resource Matrices'!$B$1574:$FF$1621,156) -> 0 | O43: =VLOOKUP('District Summary'!$A$3,'School Resource Matrices'!$B$1574:$FF$1621,157) -> 0 | P43: =VLOOKUP('District Summary'!$A$3,'School Resource Matrices'!$B$1574:$FF$1621,158) -> 0 | Q43: =VLOOKUP('District Summary'!$A$3,'School Resource Matrices'!$B$1574:$FF$1621,159) -> 0 | R43: 0
A44: 34 | B44: =VLOOKUP('District Summary'!$A$3,'School Resource Matrices'!$B$1623:$FF$1670,4) -> 0 | C44: =VLOOKUP('District Summary'!$A$3,'School Resource Matrices'!$B$1623:$FF$1670,133) -> 0 | D44: =VLOOKUP('District Summary'!$A$3,'School Resource Matrices'!$B$1623:$FF$1670,126) -> 0 | E44: =VLOOKUP('District Summary'!$A$3,'School Resource Matrices'!$B$1623:$FF$1670,132) -> 0 | F44: =VLOOKUP('District Summary'!$A$3,'School Resource Matrices'!$B$1623:$FF$1670,127) -> 0 | G44: =VLOOKUP('District Summary'!$A$3,'School Resource Matrices'!$B$1623:$FF$1670,137) -> 0 | H44: =VLOOKUP('District Summary'!$A$3,'School Resource Matrices'!$B$1623:$FF$1670,152) -> 0 | I44: =VLOOKUP('District Summary'!$A$3,'School Resource Matrices'!$B$1623:$FF$1670,146) -> 0 | J44: =VLOOKUP('District Summary'!$A$3,'School Resource Matrices'!$B$1623:$FF$1670,150) -> 0 | K44: =VLOOKUP('District Summary'!$A$3,'School Resource Matrices'!$B$1623:$FF$1670,153) -> 0 | L44: =VLOOKUP('District Summary'!$A$3,'School Resource Matrices'!$B$1623:$FF$1670,154) -> 0 | M44: =VLOOKUP('District Summary'!$A$3,'School Resource Matrices'!$B$1623:$FF$1670,155) -> 0 | N44: =VLOOKUP('District Summary'!$A$3,'School Resource Matrices'!$B$1623:$FF$1670,156) -> 0 | O44: =VLOOKUP('District Summary'!$A$3,'School Resource Matrices'!$B$1623:$FF$1670,157) -> 0 | P44: =VLOOKUP('District Summary'!$A$3,'School Resource Matrices'!$B$1623:$FF$1670,158) -> 0 | Q44: =VLOOKUP('District Summary'!$A$3,'School Resource Matrices'!$B$1623:$FF$1670,159) -> 0 | R44: 0
A45: 35 | B45: =VLOOKUP('District Summary'!$A$3,'School Resource Matrices'!$B$1672:$FF$1719,4) -> 0 | C45: =VLOOKUP('District Summary'!$A$3,'School Resource Matrices'!$B$1672:$FF$1719,133) -> 0 | D45: =VLOOKUP('District Summary'!$A$3,'School Resource Matrices'!$B$1672:$FF$1719,126) -> 0 | E45: =VLOOKUP('District Summary'!$A$3,'School Resource Matrices'!$B$1672:$FF$1719,132) -> 0 | F45: =VLOOKUP('District Summary'!$A$3,'School Resource Matrices'!$B$1672:$FF$1719,127) -> 0 | G45: =VLOOKUP('District Summary'!$A$3,'School Resource Matrices'!$B$1672:$FF$1719,137) -> 0 | H45: =VLOOKUP('District Summary'!$A$3,'School Resource Matrices'!$B$1672:$FF$1719,152) -> 0 | I45: =VLOOKUP('District Summary'!$A$3,'School Resource Matrices'!$B$1672:$FF$1719,146) -> 0 | J45: =VLOOKUP('District Summary'!$A$3,'School Resource Matrices'!$B$1672:$FF$1719,150) -> 0 | K45: =VLOOKUP('District Summary'!$A$3,'School Resource Matrices'!$B$1672:$FF$1719,153) -> 0 | L45: =VLOOKUP('District Summary'!$A$3,'School Resource Matrices'!$B$1672:$FF$1719,154) -> 0 | M45: =VLOOKUP('District Summary'!$A$3,'School Resource Matrices'!$B$1672:$FF$1719,155) -> 0 | N45: =VLOOKUP('District Summary'!$A$3,'School Resource Matrices'!$B$1672:$FF$1719,156) -> 0 | O45: =VLOOKUP('District Summary'!$A$3,'School Resource Matrices'!$B$1672:$FF$1719,157) -> 0 | P45: =VLOOKUP('District Summary'!$A$3,'School Resource Matrices'!$B$1672:$FF$1719,158) -> 0 | Q45: =VLOOKUP('District Summary'!$A$3,'School Resource Matrices'!$B$1672:$FF$1719,159) -> 0 | R45: 0
R46: =SUM(R11:R45) -> 3376222.102
B47: District Total - School Level $ | C47: =SUM(C11:C45) -> 2435631.851 | D47: 25969.06456 | E47: 66742.46144 | F47: 26655.21849 | G47: 243203.4907 | H47: 0 | I47: 121860.7296 | J47: 47719.82888 | K47: 92503.38829 | L47: 76241.10991 | M47: 24647.37882 | N47: 7624.110991 | O47: 30496.44397 | P47: 9772.422771 | Q47: 167154.602 | R47: =SUM(C47:Q47) -> 3376222.102
B51: School Level FTEs: | C51: ='School Summary-FTEs'!D48 -> 31.45910032 | D51: ='School Summary-FTEs'!S46 -> 0.4316888889 | E51: ='School Summary-FTEs'!V46 -> 1.833369246 | G51: ='School Summary-FTEs'!W46 -> 2.295066667 | H51: =SUM('School Summary-FTEs'!X46:Y46) -> 0 | I51: ='School Summary-FTEs'!Z46 -> 2.295066667 | J51: ='School Summary-FTEs'!AA46 -> 1.087682242 | R51: =SUM(C51:J51) -> 39.40197403

Sheet Main Funding Sheet
A1: Version: Final FY2015 Payment Model 7-1-14 | D1: Wyoming Department of Education | N1: Final FY2015 Statewide Payment Model
N2: Contact: Jed Cicarelli (307) 777-5808
N3: jed.cicarelli@wyo.gov
D4: Final Funding Year 2015 Statewide Payment Model
F6: District 7-Digit ID | H6: School District Name
A8: Enter Date Prepared -------------------->>>> | F8: 9999999 | H8: =VLOOKUP($F$8,'Base Sheet'!$A$10:$C$58,2) -> State Total | L8: Final FY2015 Funding
F10: Enter 7-digit district ID
A11: A) ADM Calculation
B12: School ID | C12: School Name | D12: Grades | E12: School Year 2013-14 ADM | R12: Total 2013- | S12: Model ADM
D13: Served | E13: GK ADM | F13: G1 ADM | G13: G2 ADM | H13: G3 ADM | I13: G4 ADM | J13: G5 ADM | K13: G6 ADM | L13: G7 ADM | M13: G8 ADM | N13: G9 ADM | O13: G10 ADM | P13: G11 ADM | Q13: G12 ADM | R13: 2014 ADM | S13: Used in Calcs.
A14: 1 | B14: =VLOOKUP($F$8,'School Reference Sheet'!$A$5:$DC$52,3) -> 2307001 | C14: =VLOOKUP($F$8,'School Reference Sheet'!$A$5:$DC$52,4) -> Upton Elementary | D14: =VLOOKUP($F$8,'School Reference Sheet'!$A$5:$DC$52,5) -> K-5 | E14: =VLOOKUP($F$8,'"Main Funding" Schl Level Mtrix'!$B$8:$AA$55,14) -> 21.953 | F14: =VLOOKUP($F$8,'"Main Funding" Schl Level Mtrix'!$B$8:$AA$55,15) -> 21 | G14: =VLOOKUP($F$8,'"Main Funding" Schl Level Mtrix'!$B$8:$AA$55,16) -> 21.713 | H14: =VLOOKUP($F$8,'"Main Funding" Schl Level Mtrix'!$B$8:$AA$55,17) -> 14.216 | I14: =VLOOKUP($F$8,'"Main Funding" Schl Level Mtrix'!$B$8:$AA$55,18) -> 23.211 | J14: =VLOOKUP($F$8,'"Main Funding" Schl Level Mtrix'!$B$8:$AA$55,19) -> 21.17 | K14: =VLOOKUP($F$8,'"Main Funding" Schl Level Mtrix'!$B$8:$AA$55,20) -> 0 | L14: =VLOOKUP($F$8,'"Main Funding" Schl Level Mtrix'!$B$8:$AA$55,21) -> 0 | M14: =VLOOKUP($F$8,'"Main Funding" Schl Level Mtrix'!$B$8:$AA$55,22) -> 0 | N14: =VLOOKUP($F$8,'"Main Funding" Schl Level Mtrix'!$B$8:$AA$55,23) -> 0 | O14: =VLOOKUP($F$8,'"Main Funding" Schl Level Mtrix'!$B$8:$AA$55,24) -> 0 | P14: =VLOOKUP($F$8,'"Main Funding" Schl Level Mtrix'!$B$8:$AA$55,25) -> 0 | Q14: =VLOOKUP($F$8,'"Main Funding" Schl Level Mtrix'!$B$8:$AA$55,26) -> 0 | R14: =SUM(E14:Q14) -> 123.263 | S14: =VLOOKUP($F$8,'School Resource Matrices'!$B$6:$FF$53,9) -> 123.263
A15: 2 | B15: =VLOOKUP($F$8,'School Reference Sheet'!$A$5:$DC$52,6) -> 2307050 | C15: =VLOOKUP($F$8,'School Reference Sheet'!$A$5:$DC$52,7) -> Upton Middle School | D15: =VLOOKUP($F$8,'School Reference Sheet'!$A$5:$DC$52,8) -> 6-8 | E15: =VLOOKUP($F$8,'"Main Funding" Schl Level Mtrix'!$B$57:$AA$104,14) -> 0 | F15: =VLOOKUP($F$8,'"Main Funding" Schl Level Mtrix'!$B$57:$AA$104,15) -> 0 | G15: =VLOOKUP($F$8,'"Main Funding" Schl Level Mtrix'!$B$57:$AA$104,16) -> 0 | H15: =VLOOKUP($F$8,'"Main Funding" Schl Level Mtrix'!$B$57:$AA$104,17) -> 0 | I15: =VLOOKUP($F$8,'"Main Funding" Schl Level Mtrix'!$B$57:$AA$104,18) -> 0 | J15: =VLOOKUP($F$8,'"Main Funding" Schl Level Mtrix'!$B$57:$AA$104,19) -> 0 | K15: =VLOOKUP($F$8,'"Main Funding" Schl Level Mtrix'!$B$57:$AA$104,20) -> 16.175 | L15: =VLOOKUP($F$8,'"Main Funding" Schl Level Mtrix'!$B$57:$AA$104,21) -> 24.427 | M15: =VLOOKUP($F$8,'"Main Funding" Schl Level Mtrix'!$B$57:$AA$104,22) -> 23.561 | N15: =VLOOKUP($F$8,'"Main Funding" Schl Level Mtrix'!$B$57:$AA$104,23) -> 0 | O15: =VLOOKUP($F$8,'"Main Funding" Schl Level Mtrix'!$B$57:$AA$104,24) -> 0 | P15: =VLOOKUP($F$8,'"Main Funding" Schl Level Mtrix'!$B$57:$AA$104,25) -> 0 | Q15: =VLOOKUP($F$8,'"Main Funding" Schl Level Mtrix'!$B$57:$AA$104,26) -> 0 | R15: 64.163 | S15: =VLOOKUP($F$8,'School Resource Matrices'!$B$55:$FF$102,9) -> 64.163
A16: 3 | B16: =VLOOKUP($F$8,'School Reference Sheet'!$A$5:$DC$52,9) -> 2307055 | C16: =VLOOKUP($F$8,'School Reference Sheet'!$A$5:$DC$52,10) -> Upton High School | D16: =VLOOKUP($F$8,'School Reference Sheet'!$A$5:$DC$52,11) -> 9-12 | E16: =VLOOKUP($F$8,'"Main Funding" Schl Level Mtrix'!$B$106:$AA$153,14) -> 0 | F16: =VLOOKUP($F$8,'"Main Funding" Schl Level Mtrix'!$B$106:$AA$153,15) -> 0 | G16: =VLOOKUP($F$8,'"Main Funding" Schl Level Mtrix'!$B$106:$AA$153,16) -> 0 | H16: =VLOOKUP($F$8,'"Main Funding" Schl Level Mtrix'!$B$106:$AA$153,17) -> 0 | I16: =VLOOKUP($F$8,'"Main Funding" Schl Level Mtrix'!$B$106:$AA$153,18) -> 0 | J16: =VLOOKUP($F$8,'"Main Funding" Schl Level Mtrix'!$B$106:$AA$153,19) -> 0 | K16: =VLOOKUP($F$8,'"Main Funding" Schl Level Mtrix'!$B$106:$AA$153,20) -> 0 | L16: =VLOOKUP($F$8,'"Main Funding" Schl Level Mtrix'!$B$106:$AA$153,21) -> 0 | M16: =VLOOKUP($F$8,'"Main Funding" Schl Level Mtrix'!$B$106:$AA$153,22) -> 0 | N16: =VLOOKUP($F$8,'"Main Funding" Schl Level Mtrix'!$B$106:$AA$153,23) -> 21.029 | O16: =VLOOKUP($F$8,'"Main Funding" Schl Level Mtrix'!$B$106:$AA$153,24) -> 16.784 | P16: =VLOOKUP($F$8,'"Main Funding" Schl Level Mtrix'!$B$106:$AA$153,25) -> 21.246 | Q16: =VLOOKUP($F$8,'"Main Funding" Schl Level Mtrix'!$B$106:$AA$153,26) -> 12.76 | R16: 71.819 | S16: =VLOOKUP($F$8,'School Resource Matrices'!$B$104:$FF$151,9) -> 71.819
A17: 4 | B17: =VLOOKUP($F$8,'School Reference Sheet'!$A$5:$DC$52,12) -> N/A | C17: =VLOOKUP($F$8,'School Reference Sheet'!$A$5:$DC$52,13) -> N/A | D17: =VLOOKUP($F$8,'School Reference Sheet'!$A$5:$DC$52,14) -> N/A | E17: =VLOOKUP($F$8,'"Main Funding" Schl Level Mtrix'!$B$155:$AA$202,14) -> 0 | F17: =VLOOKUP($F$8,'"Main Funding" Schl Level Mtrix'!$B$155:$AA$202,15) -> 0 | G17: =VLOOKUP($F$8,'"Main Funding" Schl Level Mtrix'!$B$155:$AA$202,16) -> 0 | H17: =VLOOKUP($F$8,'"Main Funding" Schl Level Mtrix'!$B$155:$AA$202,17) -> 0 | I17: =VLOOKUP($F$8,'"Main Funding" Schl Level Mtrix'!$B$155:$AA$202,18) -> 0 | J17: =VLOOKUP($F$8,'"Main Funding" Schl Level Mtrix'!$B$155:$AA$202,19) -> 0 | K17: =VLOOKUP($F$8,'"Main Funding" Schl Level Mtrix'!$B$155:$AA$202,20) -> 0 | L17: =VLOOKUP($F$8,'"Main Funding" Schl Level Mtrix'!$B$155:$AA$202,21) -> 0 | M17: =VLOOKUP($F$8,'"Main Funding" Schl Level Mtrix'!$B$155:$AA$202,22) -> 0 | N17: =VLOOKUP($F$8,'"Main Funding" Schl Level Mtrix'!$B$155:$AA$202,23) -> 0 | O17: =VLOOKUP($F$8,'"Main Funding" Schl Level Mtrix'!$B$155:$AA$202,24) -> 0 | P17: =VLOOKUP($F$8,'"Main Funding" Schl Level Mtrix'!$B$155:$AA$202,25) -> 0 | Q17: =VLOOKUP($F$8,'"Main Funding" Schl Level Mtrix'!$B$155:$AA$202,26) -> 0 | R17: 0 | S17: =VLOOKUP($F$8,'School Resource Matrices'!$B$153:$FF$200,9) -> 0
A18: 5 | B18: =VLOOKUP($F$8,'School Reference Sheet'!$A$5:$DC$52,15) -> N/A | C18: =VLOOKUP($F$8,'School Reference Sheet'!$A$5:$DC$52,16) -> N/A | D18: =VLOOKUP($F$8,'School Reference Sheet'!$A$5:$DC$52,17) -> N/A | E18: =VLOOKUP($F$8,'"Main Funding" Schl Level Mtrix'!$B$204:$AA$251,14) -> 0 | F18: =VLOOKUP($F$8,'"Main Funding" Schl Level Mtrix'!$B$204:$AA$251,15) -> 0 | G18: =VLOOKUP($F$8,'"Main Funding" Schl Level Mtrix'!$B$204:$AA$251,16) -> 0 | H18: =VLOOKUP($F$8,'"Main Funding" Schl Level Mtrix'!$B$204:$AA$251,17) -> 0 | I18: =VLOOKUP($F$8,'"Main Funding" Schl Level Mtrix'!$B$204:$AA$251,18) -> 0 | J18: =VLOOKUP($F$8,'"Main Funding" Schl Level Mtrix'!$B$204:$AA$251,19) -> 0 | K18: =VLOOKUP($F$8,'"Main Funding" Schl Level Mtrix'!$B$204:$AA$251,20) -> 0 | L18: =VLOOKUP($F$8,'"Main Funding" Schl Level Mtrix'!$B$204:$AA$251,21) -> 0 | M18: =VLOOKUP($F$8,'"Main Funding" Schl Level Mtrix'!$B$204:$AA$251,22) -> 0 | N18: =VLOOKUP($F$8,'"Main Funding" Schl Level Mtrix'!$B$204:$AA$251,23) -> 0 | O18: =VLOOKUP($F$8,'"Main Funding" Schl Level Mtrix'!$B$204:$AA$251,24) -> 0 | P18: =VLOOKUP($F$8,'"Main Funding" Schl Level Mtrix'!$B$204:$AA$251,25) -> 0 | Q18: =VLOOKUP($F$8,'"Main Funding" Schl Level Mtrix'!$B$204:$AA$251,26) -> 0 | R18: 0 | S18: =VLOOKUP($F$8,'School Resource Matrices'!$B$202:$FF$249,9) -> 0
A19: 6 | B19: =VLOOKUP($F$8,'School Reference Sheet'!$A$5:$DC$52,18) -> N/A | C19: =VLOOKUP($F$8,'School Reference Sheet'!$A$5:$DC$52,19) -> N/A | D19: =VLOOKUP($F$8,'School Reference Sheet'!$A$5:$DC$52,20) -> N/A | E19: =VLOOKUP($F$8,'"Main Funding" Schl Level Mtrix'!$B$253:$AA$300,14) -> 0 | F19: =VLOOKUP($F$8,'"Main Funding" Schl Level Mtrix'!$B$253:$AA$300,15) -> 0 | G19: =VLOOKUP($F$8,'"Main Funding" Schl Level Mtrix'!$B$253:$AA$300,16) -> 0 | H19: =VLOOKUP($F$8,'"Main Funding" Schl Level Mtrix'!$B$253:$AA$300,17) -> 0 | I19: =VLOOKUP($F$8,'"Main Funding" Schl Level Mtrix'!$B$253:$AA$300,18) -> 0 | J19: =VLOOKUP($F$8,'"Main Funding" Schl Level Mtrix'!$B$253:$AA$300,19) -> 0 | K19: =VLOOKUP($F$8,'"Main Funding" Schl Level Mtrix'!$B$253:$AA$300,20) -> 0 | L19: =VLOOKUP($F$8,'"Main Funding" Schl Level Mtrix'!$B$253:$AA$300,21) -> 0 | M19: =VLOOKUP($F$8,'"Main Funding" Schl Level Mtrix'!$B$253:$AA$300,22) -> 0 | N19: =VLOOKUP($F$8,'"Main Funding" Schl Level Mtrix'!$B$253:$AA$300,23) -> 0 | O19: =VLOOKUP($F$8,'"Main Funding" Schl Level Mtrix'!$B$253:$AA$300,24) -> 0 | P19: =VLOOKUP($F$8,'"Main Funding" Schl Level Mtrix'!$B$253:$AA$300,25) -> 0 | Q19: =VLOOKUP($F$8,'"Main Funding" Schl Level Mtrix'!$B$253:$AA$300,26) -> 0 | R19: 0 | S19: =VLOOKUP($F$8,'School Resource Matrices'!$B$251:$FF$298,9) -> 0
A20: 7 | B20: =VLOOKUP($F$8,'School Reference Sheet'!$A$5:$DC$52,21) -> N/A | C20: =VLOOKUP($F$8,'School Reference Sheet'!$A$5:$DC$52,22) -> N/A | D20: =VLOOKUP($F$8,'School Reference Sheet'!$A$5:$DC$52,23) -> N/A | E20: =VLOOKUP($F$8,'"Main Funding" Schl Level Mtrix'!$B$302:$AA$349,14) -> 0 | F20: =VLOOKUP($F$8,'"Main Funding" Schl Level Mtrix'!$B$302:$AA$349,15) -> 0 | G20: =VLOOKUP($F$8,'"Main Funding" Schl Level Mtrix'!$B$302:$AA$349,16) -> 0 | H20: =VLOOKUP($F$8,'"Main Funding" Schl Level Mtrix'!$B$302:$AA$349,17) -> 0 | I20: =VLOOKUP($F$8,'"Main Funding" Schl Level Mtrix'!$B$302:$AA$349,18) -> 0 | J20: =VLOOKUP($F$8,'"Main Funding" Schl Level Mtrix'!$B$302:$AA$349,19) -> 0 | K20: =VLOOKUP($F$8,'"Main Funding" Schl Level Mtrix'!$B$302:$AA$349,20) -> 0 | L20: =VLOOKUP($F$8,'"Main Funding" Schl Level Mtrix'!$B$302:$AA$349,21) -> 0 | M20: =VLOOKUP($F$8,'"Main Funding" Schl Level Mtrix'!$B$302:$AA$349,22) -> 0 | N20: =VLOOKUP($F$8,'"Main Funding" Schl Level Mtrix'!$B$302:$AA$349,23) -> 0 | O20: =VLOOKUP($F$8,'"Main Funding" Schl Level Mtrix'!$B$302:$AA$349,24) -> 0 | P20: =VLOOKUP($F$8,'"Main Funding" Schl Level Mtrix'!$B$302:$AA$349,25) -> 0 | Q20: =VLOOKUP($F$8,'"Main Funding" Schl Level Mtrix'!$B$302:$AA$349,26) -> 0 | R20: 0 | S20: =VLOOKUP($F$8,'School Resource Matrices'!$B$300:$FF$347,9) -> 0
A21: 8 | B21: =VLOOKUP($F$8,'School Reference Sheet'!$A$5:$DC$52,24) -> N/A | C21: =VLOOKUP($F$8,'School Reference Sheet'!$A$5:$DC$52,25) -> N/A | D21: =VLOOKUP($F$8,'School Reference Sheet'!$A$5:$DC$52,26) -> N/A | E21: =VLOOKUP($F$8,'"Main Funding" Schl Level Mtrix'!$B$351:$AA$398,14) -> 0 | F21: =VLOOKUP($F$8,'"Main Funding" Schl Level Mtrix'!$B$351:$AA$398,15) -> 0 | G21: =VLOOKUP($F$8,'"Main Funding" Schl Level Mtrix'!$B$351:$AA$398,16) -> 0 | H21: =VLOOKUP($F$8,'"Main Funding" Schl Level Mtrix'!$B$351:$AA$398,17) -> 0 | I21: =VLOOKUP($F$8,'"Main Funding" Schl Level Mtrix'!$B$351:$AA$398,18) -> 0 | J21: =VLOOKUP($F$8,'"Main Funding" Schl Level Mtrix'!$B$351:$AA$398,19) -> 0 | K21: =VLOOKUP($F$8,'"Main Funding" Schl Level Mtrix'!$B$351:$AA$398,20) -> 0 | L21: =VLOOKUP($F$8,'"Main Funding" Schl Level Mtrix'!$B$351:$AA$398,21) -> 0 | M21: =VLOOKUP($F$8,'"Main Funding" Schl Level Mtrix'!$B$351:$AA$398,22) -> 0 | N21: =VLOOKUP($F$8,'"Main Funding" Schl Level Mtrix'!$B$351:$AA$398,23) -> 0 | O21: =VLOOKUP($F$8,'"Main Funding" Schl Level Mtrix'!$B$351:$AA$398,24) -> 0 | P21: =VLOOKUP($F$8,'"Main Funding" Schl Level Mtrix'!$B$351:$AA$398,25) -> 0 | Q21: =VLOOKUP($F$8,'"Main Funding" Schl Level Mtrix'!$B$351:$AA$398,26) -> 0 | R21: 0 | S21: =VLOOKUP($F$8,'School Resource Matrices'!$B$349:$FF$396,9) -> 0
A22: 9 | B22: =VLOOKUP($F$8,'School Reference Sheet'!$A$5:$DC$52,27) -> N/A | C22: =VLOOKUP($F$8,'School Reference Sheet'!$A$5:$DC$52,28) -> N/A | D22: =VLOOKUP($F$8,'School Reference Sheet'!$A$5:$DC$52,29) -> N/A | E22: =VLOOKUP($F$8,'"Main Funding" Schl Level Mtrix'!$B$400:$AA$447,14) -> 0 | F22: =VLOOKUP($F$8,'"Main Funding" Schl Level Mtrix'!$B$400:$AA$447,15) -> 0 | G22: =VLOOKUP($F$8,'"Main Funding" Schl Level Mtrix'!$B$400:$AA$447,16) -> 0 | H22: =VLOOKUP($F$8,'"Main Funding" Schl Level Mtrix'!$B$400:$AA$447,17) -> 0 | I22: =VLOOKUP($F$8,'"Main Funding" Schl Level Mtrix'!$B$400:$AA$447,18) -> 0 | J22: =VLOOKUP($F$8,'"Main Funding" Schl Level Mtrix'!$B$400:$AA$447,19) -> 0 | K22: =VLOOKUP($F$8,'"Main Funding" Schl Level Mtrix'!$B$400:$AA$447,20) -> 0 | L22: =VLOOKUP($F$8,'"Main Funding" Schl Level Mtrix'!$B$400:$AA$447,21) -> 0 | M22: =VLOOKUP($F$8,'"Main Funding" Schl Level Mtrix'!$B$400:$AA$447,22) -> 0 | N22: =VLOOKUP($F$8,'"Main Funding" Schl Level Mtrix'!$B$400:$AA$447,23) -> 0 | O22: =VLOOKUP($F$8,'"Main Funding" Schl Level Mtrix'!$B$400:$AA$447,24) -> 0 | P22: =VLOOKUP($F$8,'"Main Funding" Schl Level Mtrix'!$B$400:$AA$447,25) -> 0 | Q22: =VLOOKUP($F$8,'"Main Funding" Schl Level Mtrix'!$B$400:$AA$447,26) -> 0 | R22: 0 | S22: =VLOOKUP($F$8,'School Resource Matrices'!$B$398:$FF$445,9) -> 0
A23: 10 | B23: =VLOOKUP($F$8,'School Reference Sheet'!$A$5:$DC$52,30) -> N/A | C23: =VLOOKUP($F$8,'School Reference Sheet'!$A$5:$DC$52,31) -> N/A | D23: =VLOOKUP($F$8,'School Reference Sheet'!$A$5:$DC$52,32) -> N/A | E23: =VLOOKUP($F$8,'"Main Funding" Schl Level Mtrix'!$B$449:$AA$496,14) -> 0 | F23: =VLOOKUP($F$8,'"Main Funding" Schl Level Mtrix'!$B$449:$AA$496,15) -> 0 | G23: =VLOOKUP($F$8,'"Main Funding" Schl Level Mtrix'!$B$449:$AA$496,16) -> 0 | H23: =VLOOKUP($F$8,'"Main Funding" Schl Level Mtrix'!$B$449:$AA$496,17) -> 0 | I23: =VLOOKUP($F$8,'"Main Funding" Schl Level Mtrix'!$B$449:$AA$496,18) -> 0 | J23: =VLOOKUP($F$8,'"Main Funding" Schl Level Mtrix'!$B$449:$AA$496,19) -> 0 | K23: =VLOOKUP($F$8,'"Main Funding" Schl Level Mtrix'!$B$449:$AA$496,20) -> 0 | L23: =VLOOKUP($F$8,'"Main Funding" Schl Level Mtrix'!$B$449:$AA$496,21) -> 0 | M23: =VLOOKUP($F$8,'"Main Funding" Schl Level Mtrix'!$B$449:$AA$496,22) -> 0 | N23: =VLOOKUP($F$8,'"Main Funding" Schl Level Mtrix'!$B$449:$AA$496,23) -> 0 | O23: =VLOOKUP($F$8,'"Main Funding" Schl Level Mtrix'!$B$449:$AA$496,24) -> 0 | P23: =VLOOKUP($F$8,'"Main Funding" Schl Level Mtrix'!$B$449:$AA$496,25) -> 0 | Q23: =VLOOKUP($F$8,'"Main Funding" Schl Level Mtrix'!$B$449:$AA$496,26) -> 0 | R23: 0 | S23: =VLOOKUP($F$8,'School Resource Matrices'!$B$447:$FF$494,9) -> 0
A24: 11 | B24: =VLOOKUP($F$8,'School Reference Sheet'!$A$5:$DC$52,33) -> N/A | C24: =VLOOKUP($F$8,'School Reference Sheet'!$A$5:$DC$52,34) -> N/A | D24: =VLOOKUP($F$8,'School Reference Sheet'!$A$5:$DC$52,35) -> N/A | E24: =VLOOKUP($F$8,'"Main Funding" Schl Level Mtrix'!$B$498:$AA$545,14) -> 0 | F24: =VLOOKUP($F$8,'"Main Funding" Schl Level Mtrix'!$B$498:$AA$545,15) -> 0 | G24: =VLOOKUP($F$8,'"Main Funding" Schl Level Mtrix'!$B$498:$AA$545,16) -> 0 | H24: =VLOOKUP($F$8,'"Main Funding" Schl Level Mtrix'!$B$498:$AA$545,17) -> 0 | I24: =VLOOKUP($F$8,'"Main Funding" Schl Level Mtrix'!$B$498:$AA$545,18) -> 0 | J24: =VLOOKUP($F$8,'"Main Funding" Schl Level Mtrix'!$B$498:$AA$545,19) -> 0 | K24: =VLOOKUP($F$8,'"Main Funding" Schl Level Mtrix'!$B$498:$AA$545,20) -> 0 | L24: =VLOOKUP($F$8,'"Main Funding" Schl Level Mtrix'!$B$498:$AA$545,21) -> 0 | M24: =VLOOKUP($F$8,'"Main Funding" Schl Level Mtrix'!$B$498:$AA$545,22) -> 0 | N24: =VLOOKUP($F$8,'"Main Funding" Schl Level Mtrix'!$B$498:$AA$545,23) -> 0 | O24: =VLOOKUP($F$8,'"Main Funding" Schl Level Mtrix'!$B$498:$AA$545,24) -> 0 | P24: =VLOOKUP($F$8,'"Main Funding" Schl Level Mtrix'!$B$498:$AA$545,25) -> 0 | Q24: =VLOOKUP($F$8,'"Main Funding" Schl Level Mtrix'!$B$498:$AA$545,26) -> 0 | R24: 0 | S24: =VLOOKUP($F$8,'School Resource Matrices'!$B$496:$FF$543,9) -> 0
A25: 12 | B25: =VLOOKUP($F$8,'School Reference Sheet'!$A$5:$DC$52,36) -> N/A | C25: =VLOOKUP($F$8,'School Reference Sheet'!$A$5:$DC$52,37) -> N/A | D25: =VLOOKUP($F$8,'School Reference Sheet'!$A$5:$DC$52,38) -> N/A | E25: =VLOOKUP($F$8,'"Main Funding" Schl Level Mtrix'!$B$547:$AA$594,14) -> 0 | F25: =VLOOKUP($F$8,'"Main Funding" Schl Level Mtrix'!$B$547:$AA$594,15) -> 0 | G25: =VLOOKUP($F$8,'"Main Funding" Schl Level Mtrix'!$B$547:$AA$594,16) -> 0 | H25: =VLOOKUP($F$8,'"Main Funding" Schl Level Mtrix'!$B$547:$AA$594,17) -> 0 | I25: =VLOOKUP($F$8,'"Main Funding" Schl Level Mtrix'!$B$547:$AA$594,18) -> 0 | J25: =VLOOKUP($F$8,'"Main Funding" Schl Level Mtrix'!$B$547:$AA$594,19) -> 0 | K25: =VLOOKUP($F$8,'"Main Funding" Schl Level Mtrix'!$B$547:$AA$594,20) -> 0 | L25: =VLOOKUP($F$8,'"Main Funding" Schl Level Mtrix'!$B$547:$AA$594,21) -> 0 | M25: =VLOOKUP($F$8,'"Main Funding" Schl Level Mtrix'!$B$547:$AA$594,22) -> 0 | N25: =VLOOKUP($F$8,'"Main Funding" Schl Level Mtrix'!$B$547:$AA$594,23) -> 0 | O25: =VLOOKUP($F$8,'"Main Funding" Schl Level Mtrix'!$B$547:$AA$594,24) -> 0 | P25: =VLOOKUP($F$8,'"Main Funding" Schl Level Mtrix'!$B$547:$AA$594,25) -> 0 | Q25: =VLOOKUP($F$8,'"Main Funding" Schl Level Mtrix'!$B$547:$AA$594,26) -> 0 | R25: 0 | S25: =VLOOKUP($F$8,'School Resource Matrices'!$B$545:$FF$592,9) -> 0
A26: 13 | B26: =VLOOKUP($F$8,'School Reference Sheet'!$A$5:$DC$52,39) -> N/A | C26: =VLOOKUP($F$8,'School Reference Sheet'!$A$5:$DC$52,40) -> N/A | D26: =VLOOKUP($F$8,'School Reference Sheet'!$A$5:$DC$52,41) -> N/A | E26: =VLOOKUP($F$8,'"Main Funding" Schl Level Mtrix'!$B$596:$AA$643,14) -> 0 | F26: =VLOOKUP($F$8,'"Main Funding" Schl Level Mtrix'!$B$596:$AA$643,15) -> 0 | G26: =VLOOKUP($F$8,'"Main Funding" Schl Level Mtrix'!$B$596:$AA$643,16) -> 0 | H26: =VLOOKUP($F$8,'"Main Funding" Schl Level Mtrix'!$B$596:$AA$643,17) -> 0 | I26: =VLOOKUP($F$8,'"Main Funding" Schl Level Mtrix'!$B$596:$AA$643,18) -> 0 | J26: =VLOOKUP($F$8,'"Main Funding" Schl Level Mtrix'!$B$596:$AA$643,19) -> 0 | K26: =VLOOKUP($F$8,'"Main Funding" Schl Level Mtrix'!$B$596:$AA$643,20) -> 0 | L26: =VLOOKUP($F$8,'"Main Funding" Schl Level Mtrix'!$B$596:$AA$643,21) -> 0 | M26: =VLOOKUP($F$8,'"Main Funding" Schl Level Mtrix'!$B$596:$AA$643,22) -> 0 | N26: =VLOOKUP($F$8,'"Main Funding" Schl Level Mtrix'!$B$596:$AA$643,23) -> 0 | O26: =VLOOKUP($F$8,'"Main Funding" Schl Level Mtrix'!$B$596:$AA$643,24) -> 0 | P26: =VLOOKUP($F$8,'"Main Funding" Schl Level Mtrix'!$B$596:$AA$643,25) -> 0 | Q26: =VLOOKUP($F$8,'"Main Funding" Schl Level Mtrix'!$B$596:$AA$643,26) -> 0 | R26: 0 | S26: =VLOOKUP($F$8,'School Resource Matrices'!$B$594:$FF$641,9) -> 0
A27: 14 | B27: =VLOOKUP($F$8,'School Reference Sheet'!$A$5:$DC$52,42) -> N/A | C27: =VLOOKUP($F$8,'School Reference Sheet'!$A$5:$DC$52,43) -> N/A | D27: =VLOOKUP($F$8,'School Reference Sheet'!$A$5:$DC$52,44) -> N/A | E27: =VLOOKUP($F$8,'"Main Funding" Schl Level Mtrix'!$B$645:$AA$692,14) -> 0 | F27: =VLOOKUP($F$8,'"Main Funding" Schl Level Mtrix'!$B$645:$AA$692,15) -> 0 | G27: =VLOOKUP($F$8,'"Main Funding" Schl Level Mtrix'!$B$645:$AA$692,16) -> 0 | H27: =VLOOKUP($F$8,'"Main Funding" Schl Level Mtrix'!$B$645:$AA$692,17) -> 0 | I27: =VLOOKUP($F$8,'"Main Funding" Schl Level Mtrix'!$B$645:$AA$692,18) -> 0 | J27: =VLOOKUP($F$8,'"Main Funding" Schl Level Mtrix'!$B$645:$AA$692,19) -> 0 | K27: =VLOOKUP($F$8,'"Main Funding" Schl Level Mtrix'!$B$645:$AA$692,20) -> 0 | L27: =VLOOKUP($F$8,'"Main Funding" Schl Level Mtrix'!$B$645:$AA$692,21) -> 0 | M27: =VLOOKUP($F$8,'"Main Funding" Schl Level Mtrix'!$B$645:$AA$692,22) -> 0 | N27: =VLOOKUP($F$8,'"Main Funding" Schl Level Mtrix'!$B$645:$AA$692,23) -> 0 | O27: =VLOOKUP($F$8,'"Main Funding" Schl Level Mtrix'!$B$645:$AA$692,24) -> 0 | P27: =VLOOKUP($F$8,'"Main Funding" Schl Level Mtrix'!$B$645:$AA$692,25) -> 0 | Q27: =VLOOKUP($F$8,'"Main Funding" Schl Level Mtrix'!$B$645:$AA$692,26) -> 0 | R27: 0 | S27: =VLOOKUP($F$8,'School Resource Matrices'!$B$643:$FF$690,9) -> 0
A28: 15 | B28: =VLOOKUP($F$8,'School Reference Sheet'!$A$5:$DC$52,45) -> N/A | C28: =VLOOKUP($F$8,'School Reference Sheet'!$A$5:$DC$52,46) -> N/A | D28: =VLOOKUP($F$8,'School Reference Sheet'!$A$5:$DC$52,47) -> N/A | E28: =VLOOKUP($F$8,'"Main Funding" Schl Level Mtrix'!$B$694:$AA$741,14) -> 0 | F28: =VLOOKUP($F$8,'"Main Funding" Schl Level Mtrix'!$B$694:$AA$741,15) -> 0 | G28: =VLOOKUP($F$8,'"Main Funding" Schl Level Mtrix'!$B$694:$AA$741,16) -> 0 | H28: =VLOOKUP($F$8,'"Main Funding" Schl Level Mtrix'!$B$694:$AA$741,17) -> 0 | I28: =VLOOKUP($F$8,'"Main Funding" Schl Level Mtrix'!$B$694:$AA$741,18) -> 0 | J28: =VLOOKUP($F$8,'"Main Funding" Schl Level Mtrix'!$B$694:$AA$741,19) -> 0 | K28: =VLOOKUP($F$8,'"Main Funding" Schl Level Mtrix'!$B$694:$AA$741,20) -> 0 | L28: =VLOOKUP($F$8,'"Main Funding" Schl Level Mtrix'!$B$694:$AA$741,21) -> 0 | M28: =VLOOKUP($F$8,'"Main Funding" Schl Level Mtrix'!$B$694:$AA$741,22) -> 0 | N28: =VLOOKUP($F$8,'"Main Funding" Schl Level Mtrix'!$B$694:$AA$741,23) -> 0 | O28: =VLOOKUP($F$8,'"Main Funding" Schl Level Mtrix'!$B$694:$AA$741,24) -> 0 | P28: =VLOOKUP($F$8,'"Main Funding" Schl Level Mtrix'!$B$694:$AA$741,25) -> 0 | Q28: =VLOOKUP($F$8,'"Main Funding" Schl Level Mtrix'!$B$694:$AA$741,26) -> 0 | R28: 0 | S28: =VLOOKUP($F$8,'School Resource Matrices'!$B$692:$FF$739,9) -> 0
A29: 16 | B29: =VLOOKUP($F$8,'School Reference Sheet'!$A$5:$DC$52,48) -> N/A | C29: =VLOOKUP($F$8,'School Reference Sheet'!$A$5:$DC$52,49) -> N/A | D29: =VLOOKUP($F$8,'School Reference Sheet'!$A$5:$DC$52,50) -> N/A | E29: =VLOOKUP($F$8,'"Main Funding" Schl Level Mtrix'!$B$743:$AA$790,14) -> 0 | F29: =VLOOKUP($F$8,'"Main Funding" Schl Level Mtrix'!$B$743:$AA$790,15) -> 0 | G29: =VLOOKUP($F$8,'"Main Funding" Schl Level Mtrix'!$B$743:$AA$790,16) -> 0 | H29: =VLOOKUP($F$8,'"Main Funding" Schl Level Mtrix'!$B$743:$AA$790,17) -> 0 | I29: =VLOOKUP($F$8,'"Main Funding" Schl Level Mtrix'!$B$743:$AA$790,18) -> 0 | J29: =VLOOKUP($F$8,'"Main Funding" Schl Level Mtrix'!$B$743:$AA$790,19) -> 0 | K29: =VLOOKUP($F$8,'"Main Funding" Schl Level Mtrix'!$B$743:$AA$790,20) -> 0 | L29: =VLOOKUP($F$8,'"Main Funding" Schl Level Mtrix'!$B$743:$AA$790,21) -> 0 | M29: =VLOOKUP($F$8,'"Main Funding" Schl Level Mtrix'!$B$743:$AA$790,22) -> 0 | N29: =VLOOKUP($F$8,'"Main Funding" Schl Level Mtrix'!$B$743:$AA$790,23) -> 0 | O29: =VLOOKUP($F$8,'"Main Funding" Schl Level Mtrix'!$B$743:$AA$790,24) -> 0 | P29: =VLOOKUP($F$8,'"Main Funding" Schl Level Mtrix'!$B$743:$AA$790,25) -> 0 | Q29: =VLOOKUP($F$8,'"Main Funding" Schl Level Mtrix'!$B$743:$AA$790,26) -> 0 | R29: 0 | S29: =VLOOKUP($F$8,'School Resource Matrices'!$B$741:$FF$788,9) -> 0
A30: 17 | B30: =VLOOKUP($F$8,'School Reference Sheet'!$A$5:$DC$52,51) -> N/A | C30: =VLOOKUP($F$8,'School Reference Sheet'!$A$5:$DC$52,52) -> N/A | D30: =VLOOKUP($F$8,'School Reference Sheet'!$A$5:$DC$52,53) -> N/A | E30: =VLOOKUP($F$8,'"Main Funding" Schl Level Mtrix'!$B$792:$AA$839,14) -> 0 | F30: =VLOOKUP($F$8,'"Main Funding" Schl Level Mtrix'!$B$792:$AA$839,15) -> 0 | G30: =VLOOKUP($F$8,'"Main Funding" Schl Level Mtrix'!$B$792:$AA$839,16) -> 0 | H30: =VLOOKUP($F$8,'"Main Funding" Schl Level Mtrix'!$B$792:$AA$839,17) -> 0 | I30: =VLOOKUP($F$8,'"Main Funding" Schl Level Mtrix'!$B$792:$AA$839,18) -> 0 | J30: =VLOOKUP($F$8,'"Main Funding" Schl Level Mtrix'!$B$792:$AA$839,19) -> 0 | K30: =VLOOKUP($F$8,'"Main Funding" Schl Level Mtrix'!$B$792:$AA$839,20) -> 0 | L30: =VLOOKUP($F$8,'"Main Funding" Schl Level Mtrix'!$B$792:$AA$839,21) -> 0 | M30: =VLOOKUP($F$8,'"Main Funding" Schl Level Mtrix'!$B$792:$AA$839,22) -> 0 | N30: =VLOOKUP($F$8,'"Main Funding" Schl Level Mtrix'!$B$792:$AA$839,23) -> 0 | O30: =VLOOKUP($F$8,'"Main Funding" Schl Level Mtrix'!$B$792:$AA$839,24) -> 0 | P30: =VLOOKUP($F$8,'"Main Funding" Schl Level Mtrix'!$B$792:$AA$839,25) -> 0 | Q30: =VLOOKUP($F$8,'"Main Funding" Schl Level Mtrix'!$B$792:$AA$839,26) -> 0 | R30: 0 | S30: =VLOOKUP($F$8,'School Resource Matrices'!$B$790:$FF$837,9) -> 0
A31: 18 | B31: =VLOOKUP($F$8,'School Reference Sheet'!$A$5:$DC$52,54) -> N/A | C31: =VLOOKUP($F$8,'School Reference Sheet'!$A$5:$DC$52,55) -> N/A | D31: =VLOOKUP($F$8,'School Reference Sheet'!$A$5:$DC$52,56) -> N/A | E31: =VLOOKUP($F$8,'"Main Funding" Schl Level Mtrix'!$B$841:$AA$888,14) -> 0 | F31: =VLOOKUP($F$8,'"Main Funding" Schl Level Mtrix'!$B$841:$AA$888,15) -> 0 | G31: =VLOOKUP($F$8,'"Main Funding" Schl Level Mtrix'!$B$841:$AA$888,16) -> 0 | H31: =VLOOKUP($F$8,'"Main Funding" Schl Level Mtrix'!$B$841:$AA$888,17) -> 0 | I31: =VLOOKUP($F$8,'"Main Funding" Schl Level Mtrix'!$B$841:$AA$888,18) -> 0 | J31: =VLOOKUP($F$8,'"Main Funding" Schl Level Mtrix'!$B$841:$AA$888,19) -> 0 | K31: =VLOOKUP($F$8,'"Main Funding" Schl Level Mtrix'!$B$841:$AA$888,20) -> 0 | L31: =VLOOKUP($F$8,'"Main Funding" Schl Level Mtrix'!$B$841:$AA$888,21) -> 0 | M31: =VLOOKUP($F$8,'"Main Funding" Schl Level Mtrix'!$B$841:$AA$888,22) -> 0 | N31: =VLOOKUP($F$8,'"Main Funding" Schl Level Mtrix'!$B$841:$AA$888,23) -> 0 | O31: =VLOOKUP($F$8,'"Main Funding" Schl Level Mtrix'!$B$841:$AA$888,24) -> 0 | P31: =VLOOKUP($F$8,'"Main Funding" Schl Level Mtrix'!$B$841:$AA$888,25) -> 0 | Q31: =VLOOKUP($F$8,'"Main Funding" Schl Level Mtrix'!$B$841:$AA$888,26) -> 0 | R31: 0 | S31: =VLOOKUP($F$8,'School Resource Matrices'!$B$839:$FF$886,9) -> 0
A32: 19 | B32: =VLOOKUP($F$8,'School Reference Sheet'!$A$5:$DC$52,57) -> N/A | C32: =VLOOKUP($F$8,'School Reference Sheet'!$A$5:$DC$52,58) -> N/A | D32: =VLOOKUP($F$8,'School Reference Sheet'!$A$5:$DC$52,59) -> N/A | E32: =VLOOKUP($F$8,'"Main Funding" Schl Level Mtrix'!$B$890:$AA$937,14) -> 0 | F32: =VLOOKUP($F$8,'"Main Funding" Schl Level Mtrix'!$B$890:$AA$937,15) -> 0 | G32: =VLOOKUP($F$8,'"Main Funding" Schl Level Mtrix'!$B$890:$AA$937,16) -> 0 | H32: =VLOOKUP($F$8,'"Main Funding" Schl Level Mtrix'!$B$890:$AA$937,17) -> 0 | I32: =VLOOKUP($F$8,'"Main Funding" Schl Level Mtrix'!$B$890:$AA$937,18) -> 0 | J32: =VLOOKUP($F$8,'"Main Funding" Schl Level Mtrix'!$B$890:$AA$937,19) -> 0 | K32: =VLOOKUP($F$8,'"Main Funding" Schl Level Mtrix'!$B$890:$AA$937,20) -> 0 | L32: =VLOOKUP($F$8,'"Main Funding" Schl Level Mtrix'!$B$890:$AA$937,21) -> 0 | M32: =VLOOKUP($F$8,'"Main Funding" Schl Level Mtrix'!$B$890:$AA$937,22) -> 0 | N32: =VLOOKUP($F$8,'"Main Funding" Schl Level Mtrix'!$B$890:$AA$937,23) -> 0 | O32: =VLOOKUP($F$8,'"Main Funding" Schl Level Mtrix'!$B$890:$AA$937,24) -> 0 | P32: =VLOOKUP($F$8,'"Main Funding" Schl Level Mtrix'!$B$890:$AA$937,25) -> 0 | Q32: =VLOOKUP($F$8,'"Main Funding" Schl Level Mtrix'!$B$890:$AA$937,26) -> 0 | R32: 0 | S32: =VLOOKUP($F$8,'School Resource Matrices'!$B$888:$FF$935,9) -> 0
A33: 20 | B33: =VLOOKUP($F$8,'School Reference Sheet'!$A$5:$DC$52,60) -> N/A | C33: =VLOOKUP($F$8,'School Reference Sheet'!$A$5:$DC$52,61) -> N/A | D33: =VLOOKUP($F$8,'School Reference Sheet'!$A$5:$DC$52,62) -> N/A | E33: =VLOOKUP($F$8,'"Main Funding" Schl Level Mtrix'!$B$939:$AA$986,14) -> 0 | F33: =VLOOKUP($F$8,'"Main Funding" Schl Level Mtrix'!$B$939:$AA$986,15) -> 0 | G33: =VLOOKUP($F$8,'"Main Funding" Schl Level Mtrix'!$B$939:$AA$986,16) -> 0 | H33: =VLOOKUP($F$8,'"Main Funding" Schl Level Mtrix'!$B$939:$AA$986,17) -> 0 | I33: =VLOOKUP($F$8,'"Main Funding" Schl Level Mtrix'!$B$939:$AA$986,18) -> 0 | J33: =VLOOKUP($F$8,'"Main Funding" Schl Level Mtrix'!$B$939:$AA$986,19) -> 0 | K33: =VLOOKUP($F$8,'"Main Funding" Schl Level Mtrix'!$B$939:$AA$986,20) -> 0 | L33: =VLOOKUP($F$8,'"Main Funding" Schl Level Mtrix'!$B$939:$AA$986,21) -> 0 | M33: =VLOOKUP($F$8,'"Main Funding" Schl Level Mtrix'!$B$939:$AA$986,22) -> 0 | N33: =VLOOKUP($F$8,'"Main Funding" Schl Level Mtrix'!$B$939:$AA$986,23) -> 0 | O33: =VLOOKUP($F$8,'"Main Funding" Schl Level Mtrix'!$B$939:$AA$986,24) -> 0 | P33: =VLOOKUP($F$8,'"Main Funding" Schl Level Mtrix'!$B$939:$AA$986,25) -> 0 | Q33: =VLOOKUP($F$8,'"Main Funding" Schl Level Mtrix'!$B$939:$AA$986,26) -> 0 | R33: 0 | S33: =VLOOKUP($F$8,'School Resource Matrices'!$B$937:$FF$984,9) -> 0
A34: 21 | B34: =VLOOKUP($F$8,'School Reference Sheet'!$A$5:$DC$52,63) -> N/A | C34: =VLOOKUP($F$8,'School Reference Sheet'!$A$5:$DC$52,64) -> N/A | D34: =VLOOKUP($F$8,'School Reference Sheet'!$A$5:$DC$52,65) -> N/A | E34: =VLOOKUP($F$8,'"Main Funding" Schl Level Mtrix'!$B$988:$AA$1035,14) -> 0 | F34: =VLOOKUP($F$8,'"Main Funding" Schl Level Mtrix'!$B$988:$AA$1035,15) -> 0 | G34: =VLOOKUP($F$8,'"Main Funding" Schl Level Mtrix'!$B$988:$AA$1035,16) -> 0 | H34: =VLOOKUP($F$8,'"Main Funding" Schl Level Mtrix'!$B$988:$AA$1035,17) -> 0 | I34: =VLOOKUP($F$8,'"Main Funding" Schl Level Mtrix'!$B$988:$AA$1035,18) -> 0 | J34: =VLOOKUP($F$8,'"Main Funding" Schl Level Mtrix'!$B$988:$AA$1035,19) -> 0 | K34: =VLOOKUP($F$8,'"Main Funding" Schl Level Mtrix'!$B$988:$AA$1035,20) -> 0 | L34: =VLOOKUP($F$8,'"Main Funding" Schl Level Mtrix'!$B$988:$AA$1035,21) -> 0 | M34: =VLOOKUP($F$8,'"Main Funding" Schl Level Mtrix'!$B$988:$AA$1035,22) -> 0 | N34: =VLOOKUP($F$8,'"Main Funding" Schl Level Mtrix'!$B$988:$AA$1035,23) -> 0 | O34: =VLOOKUP($F$8,'"Main Funding" Schl Level Mtrix'!$B$988:$AA$1035,24) -> 0 | P34: =VLOOKUP($F$8,'"Main Funding" Schl Level Mtrix'!$B$988:$AA$1035,25) -> 0 | Q34: =VLOOKUP($F$8,'"Main Funding" Schl Level Mtrix'!$B$988:$AA$1035,26) -> 0 | R34: 0 | S34: =VLOOKUP($F$8,'School Resource Matrices'!$B$986:$FF$1033,9) -> 0
A35: 22 | B35: =VLOOKUP($F$8,'School Reference Sheet'!$A$5:$DC$52,66) -> N/A | C35: =VLOOKUP($F$8,'School Reference Sheet'!$A$5:$DC$52,67) -> N/A | D35: =VLOOKUP($F$8,'School Reference Sheet'!$A$5:$DC$52,68) -> N/A | E35: =VLOOKUP($F$8,'"Main Funding" Schl Level Mtrix'!$B$1037:$AA$1084,14) -> 0 | F35: =VLOOKUP($F$8,'"Main Funding" Schl Level Mtrix'!$B$1037:$AA$1084,15) -> 0 | G35: =VLOOKUP($F$8,'"Main Funding" Schl Level Mtrix'!$B$1037:$AA$1084,16) -> 0 | H35: =VLOOKUP($F$8,'"Main Funding" Schl Level Mtrix'!$B$1037:$AA$1084,17) -> 0 | I35: =VLOOKUP($F$8,'"Main Funding" Schl Level Mtrix'!$B$1037:$AA$1084,18) -> 0 | J35: =VLOOKUP($F$8,'"Main Funding" Schl Level Mtrix'!$B$1037:$AA$1084,19) -> 0 | K35: =VLOOKUP($F$8,'"Main Funding" Schl Level Mtrix'!$B$1037:$AA$1084,20) -> 0 | L35: =VLOOKUP($F$8,'"Main Funding" Schl Level Mtrix'!$B$1037:$AA$1084,21) -> 0 | M35: =VLOOKUP($F$8,'"Main Funding" Schl Level Mtrix'!$B$1037:$AA$1084,22) -> 0 | N35: =VLOOKUP($F$8,'"Main Funding" Schl Level Mtrix'!$B$1037:$AA$1084,23) -> 0 | O35: =VLOOKUP($F$8,'"Main Funding" Schl Level Mtrix'!$B$1037:$AA$1084,24) -> 0 | P35: =VLOOKUP($F$8,'"Main Funding" Schl Level Mtrix'!$B$1037:$AA$1084,25) -> 0 | Q35: =VLOOKUP($F$8,'"Main Funding" Schl Level Mtrix'!$B$1037:$AA$1084,26) -> 0 | R35: 0 | S35: =VLOOKUP($F$8,'School Resource Matrices'!$B$1035:$FF$1082,9) -> 0
A36: 23 | B36: =VLOOKUP($F$8,'School Reference Sheet'!$A$5:$DC$52,69) -> N/A | C36: =VLOOKUP($F$8,'School Reference Sheet'!$A$5:$DC$52,70) -> N/A | D36: =VLOOKUP($F$8,'School Reference Sheet'!$A$5:$DC$52,71) -> N/A | E36: =VLOOKUP($F$8,'"Main Funding" Schl Level Mtrix'!$B$1086:$AA$1133,14) -> 0 | F36: =VLOOKUP($F$8,'"Main Funding" Schl Level Mtrix'!$B$1086:$AA$1133,15) -> 0 | G36: =VLOOKUP($F$8,'"Main Funding" Schl Level Mtrix'!$B$1086:$AA$1133,16) -> 0 | H36: =VLOOKUP($F$8,'"Main Funding" Schl Level Mtrix'!$B$1086:$AA$1133,17) -> 0 | I36: =VLOOKUP($F$8,'"Main Funding" Schl Level Mtrix'!$B$1086:$AA$1133,18) -> 0 | J36: =VLOOKUP($F$8,'"Main Funding" Schl Level Mtrix'!$B$1086:$AA$1133,19) -> 0 | K36: =VLOOKUP($F$8,'"Main Funding" Schl Level Mtrix'!$B$1086:$AA$1133,20) -> 0 | L36: =VLOOKUP($F$8,'"Main Funding" Schl Level Mtrix'!$B$1086:$AA$1133,21) -> 0 | M36: =VLOOKUP($F$8,'"Main Funding" Schl Level Mtrix'!$B$1086:$AA$1133,22) -> 0 | N36: =VLOOKUP($F$8,'"Main Funding" Schl Level Mtrix'!$B$1086:$AA$1133,23) -> 0 | O36: =VLOOKUP($F$8,'"Main Funding" Schl Level Mtrix'!$B$1086:$AA$1133,24) -> 0 | P36: =VLOOKUP($F$8,'"Main Funding" Schl Level Mtrix'!$B$1086:$AA$1133,25) -> 0 | Q36: =VLOOKUP($F$8,'"Main Funding" Schl Level Mtrix'!$B$1086:$AA$1133,26) -> 0 | R36: 0 | S36: =VLOOKUP($F$8,'School Resource Matrices'!$B$1084:$FF$1131,9) -> 0
A37: 24 | B37: =VLOOKUP($F$8,'School Reference Sheet'!$A$5:$DC$52,72) -> N/A | C37: =VLOOKUP($F$8,'School Reference Sheet'!$A$5:$DC$52,73) -> N/A | D37: =VLOOKUP($F$8,'School Reference Sheet'!$A$5:$DC$52,74) -> N/A | E37: =VLOOKUP($F$8,'"Main Funding" Schl Level Mtrix'!$B$1135:$AA$1182,14) -> 0 | F37: =VLOOKUP($F$8,'"Main Funding" Schl Level Mtrix'!$B$1135:$AA$1182,15) -> 0 | G37: =VLOOKUP($F$8,'"Main Funding" Schl Level Mtrix'!$B$1135:$AA$1182,16) -> 0 | H37: =VLOOKUP($F$8,'"Main Funding" Schl Level Mtrix'!$B$1135:$AA$1182,17) -> 0 | I37: =VLOOKUP($F$8,'"Main Funding" Schl Level Mtrix'!$B$1135:$AA$1182,18) -> 0 | J37: =VLOOKUP($F$8,'"Main Funding" Schl Level Mtrix'!$B$1135:$AA$1182,19) -> 0 | K37: =VLOOKUP($F$8,'"Main Funding" Schl Level Mtrix'!$B$1135:$AA$1182,20) -> 0 | L37: =VLOOKUP($F$8,'"Main Funding" Schl Level Mtrix'!$B$1135:$AA$1182,21) -> 0 | M37: =VLOOKUP($F$8,'"Main Funding" Schl Level Mtrix'!$B$1135:$AA$1182,22) -> 0 | N37: =VLOOKUP($F$8,'"Main Funding" Schl Level Mtrix'!$B$1135:$AA$1182,23) -> 0 | O37: =VLOOKUP($F$8,'"Main Funding" Schl Level Mtrix'!$B$1135:$AA$1182,24) -> 0 | P37: =VLOOKUP($F$8,'"Main Funding" Schl Level Mtrix'!$B$1135:$AA$1182,25) -> 0 | Q37: =VLOOKUP($F$8,'"Main Funding" Schl Level Mtrix'!$B$1135:$AA$1182,26) -> 0 | R37: 0 | S37: =VLOOKUP($F$8,'School Resource Matrices'!$B$1133:$FF$1180,9) -> 0
A38: 25 | B38: =VLOOKUP($F$8,'School Reference Sheet'!$A$5:$DC$52,75) -> N/A | C38: =VLOOKUP($F$8,'School Reference Sheet'!$A$5:$DC$52,76) -> N/A | D38: =VLOOKUP($F$8,'School Reference Sheet'!$A$5:$DC$52,77) -> N/A | E38: =VLOOKUP($F$8,'"Main Funding" Schl Level Mtrix'!$B$1184:$AA$1231,14) -> 0 | F38: =VLOOKUP($F$8,'"Main Funding" Schl Level Mtrix'!$B$1184:$AA$1231,15) -> 0 | G38: =VLOOKUP($F$8,'"Main Funding" Schl Level Mtrix'!$B$1184:$AA$1231,16) -> 0 | H38: =VLOOKUP($F$8,'"Main Funding" Schl Level Mtrix'!$B$1184:$AA$1231,17) -> 0 | I38: =VLOOKUP($F$8,'"Main Funding" Schl Level Mtrix'!$B$1184:$AA$1231,18) -> 0 | J38: =VLOOKUP($F$8,'"Main Funding" Schl Level Mtrix'!$B$1184:$AA$1231,19) -> 0 | K38: =VLOOKUP($F$8,'"Main Funding" Schl Level Mtrix'!$B$1184:$AA$1231,20) -> 0 | L38: =VLOOKUP($F$8,'"Main Funding" Schl Level Mtrix'!$B$1184:$AA$1231,21) -> 0 | M38: =VLOOKUP($F$8,'"Main Funding" Schl Level Mtrix'!$B$1184:$AA$1231,22) -> 0 | N38: =VLOOKUP($F$8,'"Main Funding" Schl Level Mtrix'!$B$1184:$AA$1231,23) -> 0 | O38: =VLOOKUP($F$8,'"Main Funding" Schl Level Mtrix'!$B$1184:$AA$1231,24) -> 0 | P38: =VLOOKUP($F$8,'"Main Funding" Schl Level Mtrix'!$B$1184:$AA$1231,25) -> 0 | Q38: =VLOOKUP($F$8,'"Main Funding" Schl Level Mtrix'!$B$1184:$AA$1231,26) -> 0 | R38: 0 | S38: =VLOOKUP($F$8,'School Resource Matrices'!$B$1182:$FF$1229,9) -> 0
A39: 26 | B39: =VLOOKUP($F$8,'School Reference Sheet'!$A$5:$DC$52,78) -> N/A | C39: =VLOOKUP($F$8,'School Reference Sheet'!$A$5:$DC$52,79) -> N/A | D39: =VLOOKUP($F$8,'School Reference Sheet'!$A$5:$DC$52,80) -> N/A | E39: =VLOOKUP($F$8,'"Main Funding" Schl Level Mtrix'!$B$1233:$AA$1280,14) -> 0 | F39: =VLOOKUP($F$8,'"Main Funding" Schl Level Mtrix'!$B$1233:$AA$1280,15) -> 0 | G39: =VLOOKUP($F$8,'"Main Funding" Schl Level Mtrix'!$B$1233:$AA$1280,16) -> 0 | H39: =VLOOKUP($F$8,'"Main Funding" Schl Level Mtrix'!$B$1233:$AA$1280,17) -> 0 | I39: =VLOOKUP($F$8,'"Main Funding" Schl Level Mtrix'!$B$1233:$AA$1280,18) -> 0 | J39: =VLOOKUP($F$8,'"Main Funding" Schl Level Mtrix'!$B$1233:$AA$1280,19) -> 0 | K39: =VLOOKUP($F$8,'"Main Funding" Schl Level Mtrix'!$B$1233:$AA$1280,20) -> 0 | L39: =VLOOKUP($F$8,'"Main Funding" Schl Level Mtrix'!$B$1233:$AA$1280,21) -> 0 | M39: =VLOOKUP($F$8,'"Main Funding" Schl Level Mtrix'!$B$1233:$AA$1280,22) -> 0 | N39: =VLOOKUP($F$8,'"Main Funding" Schl Level Mtrix'!$B$1233:$AA$1280,23) -> 0 | O39: =VLOOKUP($F$8,'"Main Funding" Schl Level Mtrix'!$B$1233:$AA$1280,24) -> 0 | P39: =VLOOKUP($F$8,'"Main Funding" Schl Level Mtrix'!$B$1233:$AA$1280,25) -> 0 | Q39: =VLOOKUP($F$8,'"Main Funding" Schl Level Mtrix'!$B$1233:$AA$1280,26) -> 0 | R39: 0 | S39: =VLOOKUP($F$8,'School Resource Matrices'!$B$1231:$FF$1278,9) -> 0
A40: 27 | B40: =VLOOKUP($F$8,'School Reference Sheet'!$A$5:$DC$52,81) -> N/A | C40: =VLOOKUP($F$8,'School Reference Sheet'!$A$5:$DC$52,82) -> N/A | D40: =VLOOKUP($F$8,'School Reference Sheet'!$A$5:$DC$52,83) -> N/A | E40: =VLOOKUP($F$8,'"Main Funding" Schl Level Mtrix'!$B$1282:$AA$1329,14) -> 0 | F40: =VLOOKUP($F$8,'"Main Funding" Schl Level Mtrix'!$B$1282:$AA$1329,15) -> 0 | G40: =VLOOKUP($F$8,'"Main Funding" Schl Level Mtrix'!$B$1282:$AA$1329,16) -> 0 | H40: =VLOOKUP($F$8,'"Main Funding" Schl Level Mtrix'!$B$1282:$AA$1329,17) -> 0 | I40: =VLOOKUP($F$8,'"Main Funding" Schl Level Mtrix'!$B$1282:$AA$1329,18) -> 0 | J40: =VLOOKUP($F$8,'"Main Funding" Schl Level Mtrix'!$B$1282:$AA$1329,19) -> 0 | K40: =VLOOKUP($F$8,'"Main Funding" Schl Level Mtrix'!$B$1282:$AA$1329,20) -> 0 | L40: =VLOOKUP($F$8,'"Main Funding" Schl Level Mtrix'!$B$1282:$AA$1329,21) -> 0 | M40: =VLOOKUP($F$8,'"Main Funding" Schl Level Mtrix'!$B$1282:$AA$1329,22) -> 0 | N40: =VLOOKUP($F$8,'"Main Funding" Schl Level Mtrix'!$B$1282:$AA$1329,23) -> 0 | O40: =VLOOKUP($F$8,'"Main Funding" Schl Level Mtrix'!$B$1282:$AA$1329,24) -> 0 | P40: =VLOOKUP($F$8,'"Main Funding" Schl Level Mtrix'!$B$1282:$AA$1329,25) -> 0 | Q40: =VLOOKUP($F$8,'"Main Funding" Schl Level Mtrix'!$B$1282:$AA$1329,26) -> 0 | R40: 0 | S40: =VLOOKUP($F$8,'School Resource Matrices'!$B$1280:$FF$1327,9) -> 0
A41: 28 | B41: =VLOOKUP($F$8,'School Reference Sheet'!$A$5:$DC$52,84) -> N/A | C41: =VLOOKUP($F$8,'School Reference Sheet'!$A$5:$DC$52,85) -> N/A | D41: =VLOOKUP($F$8,'School Reference Sheet'!$A$5:$DC$52,86) -> N/A | E41: =VLOOKUP($F$8,'"Main Funding" Schl Level Mtrix'!$B$1331:$AA$1378,14) -> 0 | F41: =VLOOKUP($F$8,'"Main Funding" Schl Level Mtrix'!$B$1331:$AA$1378,15) -> 0 | G41: =VLOOKUP($F$8,'"Main Funding" Schl Level Mtrix'!$B$1331:$AA$1378,16) -> 0 | H41: =VLOOKUP($F$8,'"Main Funding" Schl Level Mtrix'!$B$1331:$AA$1378,17) -> 0 | I41: =VLOOKUP($F$8,'"Main Funding" Schl Level Mtrix'!$B$1331:$AA$1378,18) -> 0 | J41: =VLOOKUP($F$8,'"Main Funding" Schl Level Mtrix'!$B$1331:$AA$1378,19) -> 0 | K41: =VLOOKUP($F$8,'"Main Funding" Schl Level Mtrix'!$B$1331:$AA$1378,20) -> 0 | L41: =VLOOKUP($F$8,'"Main Funding" Schl Level Mtrix'!$B$1331:$AA$1378,21) -> 0 | M41: =VLOOKUP($F$8,'"Main Funding" Schl Level Mtrix'!$B$1331:$AA$1378,22) -> 0 | N41: =VLOOKUP($F$8,'"Main Funding" Schl Level Mtrix'!$B$1331:$AA$1378,23) -> 0 | O41: =VLOOKUP($F$8,'"Main Funding" Schl Level Mtrix'!$B$1331:$AA$1378,24) -> 0 | P41: =VLOOKUP($F$8,'"Main Funding" Schl Level Mtrix'!$B$1331:$AA$1378,25) -> 0 | Q41: =VLOOKUP($F$8,'"Main Funding" Schl Level Mtrix'!$B$1331:$AA$1378,26) -> 0 | R41: 0 | S41: =VLOOKUP($F$8,'School Resource Matrices'!$B$1329:$FF$1376,9) -> 0
A42: 29 | B42: =VLOOKUP($F$8,'School Reference Sheet'!$A$5:$DC$52,87) -> N/A | C42: =VLOOKUP($F$8,'School Reference Sheet'!$A$5:$DC$52,88) -> N/A | D42: =VLOOKUP($F$8,'School Reference Sheet'!$A$5:$DC$52,89) -> N/A | E42: =VLOOKUP($F$8,'"Main Funding" Schl Level Mtrix'!$B$1380:$AA$1427,14) -> 0 | F42: =VLOOKUP($F$8,'"Main Funding" Schl Level Mtrix'!$B$1380:$AA$1427,15) -> 0 | G42: =VLOOKUP($F$8,'"Main Funding" Schl Level Mtrix'!$B$1380:$AA$1427,16) -> 0 | H42: =VLOOKUP($F$8,'"Main Funding" Schl Level Mtrix'!$B$1380:$AA$1427,17) -> 0 | I42: =VLOOKUP($F$8,'"Main Funding" Schl Level Mtrix'!$B$1380:$AA$1427,18) -> 0 | J42: =VLOOKUP($F$8,'"Main Funding" Schl Level Mtrix'!$B$1380:$AA$1427,19) -> 0 | K42: =VLOOKUP($F$8,'"Main Funding" Schl Level Mtrix'!$B$1380:$AA$1427,20) -> 0 | L42: =VLOOKUP($F$8,'"Main Funding" Schl Level Mtrix'!$B$1380:$AA$1427,21) -> 0 | M42: =VLOOKUP($F$8,'"Main Funding" Schl Level Mtrix'!$B$1380:$AA$1427,22) -> 0 | N42: =VLOOKUP($F$8,'"Main Funding" Schl Level Mtrix'!$B$1380:$AA$1427,23) -> 0 | O42: =VLOOKUP($F$8,'"Main Funding" Schl Level Mtrix'!$B$1380:$AA$1427,24) -> 0 | P42: =VLOOKUP($F$8,'"Main Funding" Schl Level Mtrix'!$B$1380:$AA$1427,25) -> 0 | Q42: =VLOOKUP($F$8,'"Main Funding" Schl Level Mtrix'!$B$1380:$AA$1427,26) -> 0 | R42: 0 | S42: =VLOOKUP($F$8,'School Resource Matrices'!$B$1378:$FF$1425,9) -> 0
A43: 30 | B43: =VLOOKUP($F$8,'School Reference Sheet'!$A$5:$DC$52,90) -> N/A | C43: =VLOOKUP($F$8,'School Reference Sheet'!$A$5:$DC$52,91) -> N/A | D43: =VLOOKUP($F$8,'School Reference Sheet'!$A$5:$DC$52,92) -> N/A | E43: =VLOOKUP($F$8,'"Main Funding" Schl Level Mtrix'!$B$1429:$AA$1476,14) -> 0 | F43: =VLOOKUP($F$8,'"Main Funding" Schl Level Mtrix'!$B$1429:$AA$1476,15) -> 0 | G43: =VLOOKUP($F$8,'"Main Funding" Schl Level Mtrix'!$B$1429:$AA$1476,16) -> 0 | H43: =VLOOKUP($F$8,'"Main Funding" Schl Level Mtrix'!$B$1429:$AA$1476,17) -> 0 | I43: =VLOOKUP($F$8,'"Main Funding" Schl Level Mtrix'!$B$1429:$AA$1476,18) -> 0 | J43: =VLOOKUP($F$8,'"Main Funding" Schl Level Mtrix'!$B$1429:$AA$1476,19) -> 0 | K43: =VLOOKUP($F$8,'"Main Funding" Schl Level Mtrix'!$B$1429:$AA$1476,20) -> 0 | L43: =VLOOKUP($F$8,'"Main Funding" Schl Level Mtrix'!$B$1429:$AA$1476,21) -> 0 | M43: =VLOOKUP($F$8,'"Main Funding" Schl Level Mtrix'!$B$1429:$AA$1476,22) -> 0 | N43: =VLOOKUP($F$8,'"Main Funding" Schl Level Mtrix'!$B$1429:$AA$1476,23) -> 0 | O43: =VLOOKUP($F$8,'"Main Funding" Schl Level Mtrix'!$B$1429:$AA$1476,24) -> 0 | P43: =VLOOKUP($F$8,'"Main Funding" Schl Level Mtrix'!$B$1429:$AA$1476,25) -> 0 | Q43: =VLOOKUP($F$8,'"Main Funding" Schl Level Mtrix'!$B$1429:$AA$1476,26) -> 0 | R43: 0 | S43: =VLOOKUP($F$8,'School Resource Matrices'!$B$1427:$FF$1474,9) -> 0
A44: 31 | B44: =VLOOKUP($F$8,'School Reference Sheet'!$A$5:$DC$52,93) -> N/A | C44: =VLOOKUP($F$8,'School Reference Sheet'!$A$5:$DC$52,94) -> N/A | D44: =VLOOKUP($F$8,'School Reference Sheet'!$A$5:$DC$52,95) -> N/A | E44: =VLOOKUP($F$8,'"Main Funding" Schl Level Mtrix'!$B$1478:$AA$1524,14) -> 0 | F44: =VLOOKUP($F$8,'"Main Funding" Schl Level Mtrix'!$B$1478:$AA$1524,15) -> 0 | G44: =VLOOKUP($F$8,'"Main Funding" Schl Level Mtrix'!$B$1478:$AA$1524,16) -> 0 | H44: =VLOOKUP($F$8,'"Main Funding" Schl Level Mtrix'!$B$1478:$AA$1524,17) -> 0 | I44: =VLOOKUP($F$8,'"Main Funding" Schl Level Mtrix'!$B$1478:$AA$1524,18) -> 0 | J44: =VLOOKUP($F$8,'"Main Funding" Schl Level Mtrix'!$B$1478:$AA$1524,19) -> 0 | K44: =VLOOKUP($F$8,'"Main Funding" Schl Level Mtrix'!$B$1478:$AA$1524,20) -> 0 | L44: =VLOOKUP($F$8,'"Main Funding" Schl Level Mtrix'!$B$1478:$AA$1524,21) -> 0 | M44: =VLOOKUP($F$8,'"Main Funding" Schl Level Mtrix'!$B$1478:$AA$1524,22) -> 0 | N44: =VLOOKUP($F$8,'"Main Funding" Schl Level Mtrix'!$B$1478:$AA$1524,23) -> 0 | O44: =VLOOKUP($F$8,'"Main Funding" Schl Level Mtrix'!$B$1478:$AA$1524,24) -> 0 | P44: =VLOOKUP($F$8,'"Main Funding" Schl Level Mtrix'!$B$1478:$AA$1524,25) -> 0 | Q44: =VLOOKUP($F$8,'"Main Funding" Schl Level Mtrix'!$B$1478:$AA$1524,26) -> 0 | R44: 0 | S44: =VLOOKUP($F$8,'School Resource Matrices'!$B$1476:$FF$1523,9) -> 0
A45: 32 | B45: =VLOOKUP($F$8,'School Reference Sheet'!$A$5:$DC$52,96) -> N/A | C45: =VLOOKUP($F$8,'School Reference Sheet'!$A$5:$DC$52,97) -> N/A | D45: =VLOOKUP($F$8,'School Reference Sheet'!$A$5:$DC$52,98) -> N/A | E45: =VLOOKUP($F$8,'"Main Funding" Schl Level Mtrix'!$B$1527:$AA$1574,14) -> 0 | F45: =VLOOKUP($F$8,'"Main Funding" Schl Level Mtrix'!$B$1527:$AA$1574,15) -> 0 | G45: =VLOOKUP($F$8,'"Main Funding" Schl Level Mtrix'!$B$1527:$AA$1574,16) -> 0 | H45: =VLOOKUP($F$8,'"Main Funding" Schl Level Mtrix'!$B$1527:$AA$1574,17) -> 0 | I45: =VLOOKUP($F$8,'"Main Funding" Schl Level Mtrix'!$B$1527:$AA$1574,18) -> 0 | J45: =VLOOKUP($F$8,'"Main Funding" Schl Level Mtrix'!$B$1527:$AA$1574,19) -> 0 | K45: =VLOOKUP($F$8,'"Main Funding" Schl Level Mtrix'!$B$1527:$AA$1574,20) -> 0 | L45: =VLOOKUP($F$8,'"Main Funding" Schl Level Mtrix'!$B$1527:$AA$1574,21) -> 0 | M45: =VLOOKUP($F$8,'"Main Funding" Schl Level Mtrix'!$B$1527:$AA$1574,22) -> 0 | N45: =VLOOKUP($F$8,'"Main Funding" Schl Level Mtrix'!$B$1527:$AA$1574,23) -> 0 | O45: =VLOOKUP($F$8,'"Main Funding" Schl Level Mtrix'!$B$1527:$AA$1574,24) -> 0 | P45: =VLOOKUP($F$8,'"Main Funding" Schl Level Mtrix'!$B$1527:$AA$1574,25) -> 0 | Q45: =VLOOKUP($F$8,'"Main Funding" Schl Level Mtrix'!$B$1527:$AA$1574,26) -> 0 | R45: 0 | S45: =VLOOKUP($F$8,'School Resource Matrices'!$B$1525:$FF$1572,9) -> 0
A46: 33 | B46: =VLOOKUP($F$8,'School Reference Sheet'!$A$5:$DC$52,99) -> N/A | C46: =VLOOKUP($F$8,'School Reference Sheet'!$A$5:$DC$52,100) -> N/A | D46: =VLOOKUP($F$8,'School Reference Sheet'!$A$5:$DC$52,101) -> N/A | E46: =VLOOKUP($F$8,'"Main Funding" Schl Level Mtrix'!$B$1576:$AA$1623,14) -> 0 | F46: =VLOOKUP($F$8,'"Main Funding" Schl Level Mtrix'!$B$1576:$AA$1623,15) -> 0 | G46: =VLOOKUP($F$8,'"Main Funding" Schl Level Mtrix'!$B$1576:$AA$1623,16) -> 0 | H46: =VLOOKUP($F$8,'"Main Funding" Schl Level Mtrix'!$B$1576:$AA$1623,17) -> 0 | I46: =VLOOKUP($F$8,'"Main Funding" Schl Level Mtrix'!$B$1576:$AA$1623,18) -> 0 | J46: =VLOOKUP($F$8,'"Main Funding" Schl Level Mtrix'!$B$1576:$AA$1623,19) -> 0 | K46: =VLOOKUP($F$8,'"Main Funding" Schl Level Mtrix'!$B$1576:$AA$1623,20) -> 0 | L46: =VLOOKUP($F$8,'"Main Funding" Schl Level Mtrix'!$B$1576:$AA$1623,21) -> 0 | M46: =VLOOKUP($F$8,'"Main Funding" Schl Level Mtrix'!$B$1576:$AA$1623,22) -> 0 | N46: =VLOOKUP($F$8,'"Main Funding" Schl Level Mtrix'!$B$1576:$AA$1623,23) -> 0 | O46: =VLOOKUP($F$8,'"Main Funding" Schl Level Mtrix'!$B$1576:$AA$1623,24) -> 0 | P46: =VLOOKUP($F$8,'"Main Funding" Schl Level Mtrix'!$B$1576:$AA$1623,25) -> 0 | Q46: =VLOOKUP($F$8,'"Main Funding" Schl Level Mtrix'!$B$1576:$AA$1623,26) -> 0 | R46: 0 | S46: =VLOOKUP($F$8,'School Resource Matrices'!$B$1574:$FF$1621,9) -> 0
A47: 34 | B47: =VLOOKUP($F$8,'School Reference Sheet'!$A$5:$DC$52,102) -> N/A | C47: =VLOOKUP($F$8,'School Reference Sheet'!$A$5:$DC$52,103) -> N/A | D47: =VLOOKUP($F$8,'School Reference Sheet'!$A$5:$DC$52,104) -> N/A | E47: =VLOOKUP($F$8,'"Main Funding" Schl Level Mtrix'!$B$1625:$AA$1672,14) -> 0 | F47: =VLOOKUP($F$8,'"Main Funding" Schl Level Mtrix'!$B$1625:$AA$1672,15) -> 0 | G47: =VLOOKUP($F$8,'"Main Funding" Schl Level Mtrix'!$B$1625:$AA$1672,16) -> 0 | H47: =VLOOKUP($F$8,'"Main Funding" Schl Level Mtrix'!$B$1625:$AA$1672,17) -> 0 | I47: =VLOOKUP($F$8,'"Main Funding" Schl Level Mtrix'!$B$1625:$AA$1672,18) -> 0 | J47: =VLOOKUP($F$8,'"Main Funding" Schl Level Mtrix'!$B$1625:$AA$1672,19) -> 0 | K47: =VLOOKUP($F$8,'"Main Funding" Schl Level Mtrix'!$B$1625:$AA$1672,20) -> 0 | L47: =VLOOKUP($F$8,'"Main Funding" Schl Level Mtrix'!$B$1625:$AA$1672,21) -> 0 | M47: =VLOOKUP($F$8,'"Main Funding" Schl Level Mtrix'!$B$1625:$AA$1672,22) -> 0 | N47: =VLOOKUP($F$8,'"Main Funding" Schl Level Mtrix'!$B$1625:$AA$1672,23) -> 0 | O47: =VLOOKUP($F$8,'"Main Funding" Schl Level Mtrix'!$B$1625:$AA$1672,24) -> 0 | P47: =VLOOKUP($F$8,'"Main Funding" Schl Level Mtrix'!$B$1625:$AA$1672,25) -> 0 | Q47: =VLOOKUP($F$8,'"Main Funding" Schl Level Mtrix'!$B$1625:$AA$1672,26) -> 0 | R47: 0 | S47: =VLOOKUP($F$8,'School Resource Matrices'!$B$1623:$FF$1670,9) -> 0
A48: 35 | B48: =VLOOKUP($F$8,'School Reference Sheet'!$A$5:$DC$52,105) -> N/A | C48: =VLOOKUP($F$8,'School Reference Sheet'!$A$5:$DC$52,106) -> N/A | D48: =VLOOKUP($F$8,'School Reference Sheet'!$A$5:$DC$52,107) -> N/A | E48: =VLOOKUP($F$8,'"Main Funding" Schl Level Mtrix'!$B$1674:$AA$1721,14) -> 0 | F48: =VLOOKUP($F$8,'"Main Funding" Schl Level Mtrix'!$B$1674:$AA$1721,15) -> 0 | G48: =VLOOKUP($F$8,'"Main Funding" Schl Level Mtrix'!$B$1674:$AA$1721,16) -> 0 | H48: =VLOOKUP($F$8,'"Main Funding" Schl Level Mtrix'!$B$1674:$AA$1721,17) -> 0 | I48: =VLOOKUP($F$8,'"Main Funding" Schl Level Mtrix'!$B$1674:$AA$1721,18) -> 0 | J48: =VLOOKUP($F$8,'"Main Funding" Schl Level Mtrix'!$B$1674:$AA$1721,19) -> 0 | K48: =VLOOKUP($F$8,'"Main Funding" Schl Level Mtrix'!$B$1674:$AA$1721,20) -> 0 | L48: =VLOOKUP($F$8,'"Main Funding" Schl Level Mtrix'!$B$1674:$AA$1721,21) -> 0 | M48: =VLOOKUP($F$8,'"Main Funding" Schl Level Mtrix'!$B$1674:$AA$1721,22) -> 0 | N48: =VLOOKUP($F$8,'"Main Funding" Schl Level Mtrix'!$B$1674:$AA$1721,23) -> 0 | O48: =VLOOKUP($F$8,'"Main Funding" Schl Level Mtrix'!$B$1674:$AA$1721,24) -> 0 | P48: =VLOOKUP($F$8,'"Main Funding" Schl Level Mtrix'!$B$1674:$AA$1721,25) -> 0 | Q48: =VLOOKUP($F$8,'"Main Funding" Schl Level Mtrix'!$B$1674:$AA$1721,26) -> 0 | R48: 0 | S48: =VLOOKUP($F$8,'School Resource Matrices'!$B$1672:$FF$1719,9) -> 0
B49: Total District ADM | E49: =SUM(E14:E48) -> 21.953 | F49: 21 | G49: 21.713 | H49: 14.216 | I49: 23.211 | J49: 21.17 | K49: 16.175 | L49: 24.427 | M49: 23.561 | N49: 21.029 | O49: 16.784 | P49: 21.246 | Q49: 12.76 | R49: 259.245 | S49: 259.245
A51: B) Vocational Education FTE's
B52: School | C52: School Name | D52: Student | E52: Teacher
B53: ID | D53: FTE | E53: FTE
A54: 1 | B54: =VLOOKUP($F$8,'Voc Ed'!$B$367:$I$414,3) -> 2307055 | C54: =VLOOKUP($F$8,'Voc Ed'!$B$367:$I$414,4) -> Upton High School | D54: =VLOOKUP($F$8,'Voc Ed'!$B$365:$I$412,7) -> 6.36 | E54: =VLOOKUP($F$8,'Voc Ed'!$B$365:$I$412,8) -> 1.67
A55: 2 | B55: =VLOOKUP($F$8,'Voc Ed'!$B$416:$I$463,3) -> N/A | C55: =VLOOKUP($F$8,'Voc Ed'!$B$416:$I$463,4) -> N/A | D55: =VLOOKUP($F$8,'Voc Ed'!$B$414:$I$461,7) -> N/A | E55: =VLOOKUP($F$8,'Voc Ed'!$B$414:$I$461,8) -> N/A
A56: 3 | B56: =VLOOKUP($F$8,'Voc Ed'!$B$465:$I$512,3) -> N/A | C56: =VLOOKUP($F$8,'Voc Ed'!$B$465:$I$512,4) -> N/A | D56: =VLOOKUP($F$8,'Voc Ed'!$B$463:$I$510,7) -> N/A | E56: =VLOOKUP($F$8,'Voc Ed'!$B$463:$I$510,8) -> N/A
A57: 4 | B57: =VLOOKUP($F$8,'Voc Ed'!$B$514:$I$561,3) -> N/A | C57: =VLOOKUP($F$8,'Voc Ed'!$B$514:$I$561,4) -> N/A | D57: =VLOOKUP($F$8,'Voc Ed'!$B$512:$I$559,7) -> N/A | E57: =VLOOKUP($F$8,'Voc Ed'!$B$512:$I$559,8) -> N/A
A58: 5 | B58: =VLOOKUP($F$8,'Voc Ed'!$B$563:$I$610,3) -> N/A | C58: =VLOOKUP($F$8,'Voc Ed'!$B$563:$I$610,4) -> N/A | D58: =VLOOKUP($F$8,'Voc Ed'!$B$561:$I$608,7) -> N/A | E58: =VLOOKUP($F$8,'Voc Ed'!$B$561:$I$608,8) -> N/A
A59: 6 | B59: =VLOOKUP($F$8,'Voc Ed'!$B$612:$I$659,3) -> N/A | C59: =VLOOKUP($F$8,'Voc Ed'!$B$612:$I$659,4) -> N/A | D59: =VLOOKUP($F$8,'Voc Ed'!$B$610:$I$657,7) -> N/A | E59: =VLOOKUP($F$8,'Voc Ed'!$B$610:$I$657,8) -> N/A
A60: 7 | B60: =VLOOKUP($F$8,'Voc Ed'!$B$661:$I$708,3) -> N/A | C60: =VLOOKUP($F$8,'Voc Ed'!$B$661:$I$708,4) -> N/A | D60: =VLOOKUP($F$8,'Voc Ed'!$B$659:$I$706,7) -> N/A | E60: =VLOOKUP($F$8,'Voc Ed'!$B$659:$I$706,8) -> N/A
A61: 8 | B61: =VLOOKUP($F$8,'Voc Ed'!$B$710:$I$757,3) -> N/A | C61: =VLOOKUP($F$8,'Voc Ed'!$B$710:$I$757,4) -> N/A | D61: =VLOOKUP($F$8,'Voc Ed'!$B$708:$I$755,7) -> N/A | E61: =VLOOKUP($F$8,'Voc Ed'!$B$708:$I$755,8) -> N/A
A62: 9 | B62: N/A | C62: N/A | D62: N/A | E62: N/A
A63: 10 | B63: N/A | C63: N/A | D63: N/A | E63: N/A
B64: District Totals | D64: =SUM(D54:D63) -> 6.36 | E64: =SUM(E54:E63) -> 1.67
A66: Additional VocEd Supplies & Equip. | D66: =VLOOKUP($F$8,'School Res-Dist Rollup'!$A$6:$ER$54,142) -> 2985061.33 | E66: Vlookup | F66: *Also included in School Resources
A68: C) District Level Resources | D68: FTE | E68: Funding
B69: 1. Operations and Maintenance Resources
B70: a.) Custodians | D70: =VLOOKUP($F$8,'O&M Base Sheet'!$A$7:$N$55,5) -> 749.0426369 | E70: =VLOOKUP($F$8,'O&M Base Sheet'!$A$7:$N$55,8) -> 38132267.79 | F70: Vlookup
B71: b.) Maintenance Workers | D71: =VLOOKUP($F$8,'O&M Base Sheet'!$A$7:$N$55,6) -> 330.4688656 | E71: =VLOOKUP($F$8,'O&M Base Sheet'!$A$7:$N$55,9) -> 19267636.89 | F71: Vlookup
B72: c.) Groundskeepers | D72: =VLOOKUP($F$8,'O&M Base Sheet'!$A$7:$N$55,7) -> 441.7232352 | E72: =VLOOKUP($F$8,'O&M Base Sheet'!$A$7:$N$55,10) -> 25857157 | F72: Vlookup
B73: e.) Supplies | E73: =VLOOKUP($F$8,'O&M Base Sheet'!$A$7:$N$55,13) -> 12616884.63 | F73: Vlookup
A74: Total O&M Costs | E74: =SUM(E70:F73) -> 95873946.31
B76: 2. Central Office Resources | D76: FTE | E76: Funding
B77: a.) Personnel Costs
B78: i. Professional: | D78: =VLOOKUP($F$8,'Central Office'!$A$6:$K$54,4) -> 282.1382912 | E78: =VLOOKUP($F$8,'Central Office'!$A$6:$K$54,7) -> 38598912.82
B79: ii. Clerical: | D79: =VLOOKUP($F$8,'Central Office'!$A$6:$K$54,5) -> 320.8730728 | E79: =VLOOKUP($F$8,'Central Office'!$A$6:$K$54,8) -> 18664536.48
B80: ii. Non Personnel: | E80: =VLOOKUP($F$8,'Central Office'!$A$6:$K$54,10) -> 32607782.38
A81: Total Central Office Costs: | E81: =SUM(E78:F80) -> 89871231.68
B83: 3. Utilities | E83: =VLOOKUP($F$8,'Base Sheet'!$A$10:$AB$57,9) -> 171448.7301
B85: Total District O&M Resources, Central Office Resources and Utilities
E86: =SUM(E74,E81,E83) -> 185916626.7
A88: D) Model Generated School Resources
E89: Reg. | G89: Specialist | I89: Add. Min. | K89: Other | M89: Teacher | O89: Admin. | Q89: Non- | R89: Total
D90: Grades | E90: Class | G90: Teacher | I90: Teacher | K90: Teacher | M90: Support | O90: Staff | Q90: Staff | R90: School
B91: School ID | C91: School Name | D91: Served | E91: Teacher | G91: Costs | I91: Costs | K91: Costs | M91: Costs | O91: Costs | Q91: Costs | R91: Resources
A92: 1 | B92: =VLOOKUP($F$8,'School Reference Sheet'!$A$5:$DC$52,3) -> 2307001 | C92: =VLOOKUP($F$8,'School Reference Sheet'!$A$5:$DC$52,4) -> Upton Elementary | D92: =VLOOKUP($F$8,'School Reference Sheet'!$A$5:$DC$52,5) -> K-5 | E92: =VLOOKUP($F$8,'"Main Funding" Schl Level Mtrix'!$B$8:$N$55,6) -> 596455.5682 | G92: =VLOOKUP($F$8,'"Main Funding" Schl Level Mtrix'!$B$8:$N$55,7) -> 119291.1136 | I92: =VLOOKUP($F$8,'"Main Funding" Schl Level Mtrix'!$B$8:$N$55,8) -> 0 | K92: =VLOOKUP($F$8,'"Main Funding" Schl Level Mtrix'!$B$8:$N$55,9) -> 0 | M92: =VLOOKUP($F$8,'"Main Funding" Schl Level Mtrix'!$B$8:$N$55,10) -> 152483.1823 | O92: =VLOOKUP($F$8,'"Main Funding" Schl Level Mtrix'!$B$8:$N$55,11) -> 177842.2268 | Q92: =VLOOKUP($F$8,'"Main Funding" Schl Level Mtrix'!$B$8:$N$55,12) -> 103416.6258 | R92: =VLOOKUP($F$8,'"Main Funding" Schl Level Mtrix'!$B$8:$N$55,13) -> 1149488.717
A93: 2 | B93: =VLOOKUP($F$8,'School Reference Sheet'!$A$5:$DC$52,6) -> 2307050 | C93: =VLOOKUP($F$8,'School Reference Sheet'!$A$5:$DC$52,7) -> Upton Middle School | D93: =VLOOKUP($F$8,'School Reference Sheet'!$A$5:$DC$52,8) -> 6-8 | E93: =VLOOKUP($F$8,'"Main Funding" Schl Level Mtrix'!$B$57:$N$104,6) -> 236554.2272 | G93: =VLOOKUP($F$8,'"Main Funding" Schl Level Mtrix'!$B$57:$N$104,7) -> 78062.89498 | I93: =VLOOKUP($F$8,'"Main Funding" Schl Level Mtrix'!$B$57:$N$104,8) -> 304760.2475 | K93: =VLOOKUP($F$8,'"Main Funding" Schl Level Mtrix'!$B$57:$N$104,9) -> 0 | M93: =VLOOKUP($F$8,'"Main Funding" Schl Level Mtrix'!$B$57:$N$104,10) -> 133555.2041 | O93: =VLOOKUP($F$8,'"Main Funding" Schl Level Mtrix'!$B$57:$N$104,11) -> 106137.2572 | Q93: =VLOOKUP($F$8,'"Main Funding" Schl Level Mtrix'!$B$57:$N$104,12) -> 93515.65566 | R93: =VLOOKUP($F$8,'"Main Funding" Schl Level Mtrix'!$B$57:$N$104,13) -> 952585.4866
A94: 3 | B94: =VLOOKUP($F$8,'School Reference Sheet'!$A$5:$DC$52,9) -> 2307055 | C94: =VLOOKUP($F$8,'School Reference Sheet'!$A$5:$DC$52,10) -> Upton High School | D94: =VLOOKUP($F$8,'School Reference Sheet'!$A$5:$DC$52,11) -> 9-12 | E94: =VLOOKUP($F$8,'"Main Funding" Schl Level Mtrix'!$B$106:$N$153,6) -> 264780.1388 | G94: =VLOOKUP($F$8,'"Main Funding" Schl Level Mtrix'!$B$106:$N$153,7) -> 103115.5298 | I94: =VLOOKUP($F$8,'"Main Funding" Schl Level Mtrix'!$B$106:$N$153,8) -> 406326.0435 | K94: =VLOOKUP($F$8,'"Main Funding" Schl Level Mtrix'!$B$106:$N$153,9) -> 0 | M94: =VLOOKUP($F$8,'"Main Funding" Schl Level Mtrix'!$B$106:$N$153,10) -> 159614.4459 | O94: =VLOOKUP($F$8,'"Main Funding" Schl Level Mtrix'!$B$106:$N$153,11) -> 128804.5653 | Q94: =VLOOKUP($F$8,'"Main Funding" Schl Level Mtrix'!$B$106:$N$153,12) -> 211507.1752 | R94: =VLOOKUP($F$8,'"Main Funding" Schl Level Mtrix'!$B$106:$N$153,13) -> 1274147.899
A95: 4 | B95: =VLOOKUP($F$8,'School Reference Sheet'!$A$5:$DC$52,12) -> N/A | C95: =VLOOKUP($F$8,'School Reference Sheet'!$A$5:$DC$52,13) -> N/A | D95: =VLOOKUP($F$8,'School Reference Sheet'!$A$5:$DC$52,14) -> N/A | E95: =VLOOKUP($F$8,'"Main Funding" Schl Level Mtrix'!$B$155:$N$202,6) -> 0 | G95: =VLOOKUP($F$8,'"Main Funding" Schl Level Mtrix'!$B$155:$N$202,7) -> 0 | I95: =VLOOKUP($F$8,'"Main Funding" Schl Level Mtrix'!$B$155:$N$202,8) -> 0 | K95: =VLOOKUP($F$8,'"Main Funding" Schl Level Mtrix'!$B$155:$N$202,9) -> 0 | M95: =VLOOKUP($F$8,'"Main Funding" Schl Level Mtrix'!$B$155:$N$202,10) -> 0 | O95: =VLOOKUP($F$8,'"Main Funding" Schl Level Mtrix'!$B$155:$N$202,11) -> 0 | Q95: =VLOOKUP($F$8,'"Main Funding" Schl Level Mtrix'!$B$155:$N$202,12) -> 0 | R95: =VLOOKUP($F$8,'"Main Funding" Schl Level Mtrix'!$B$155:$N$202,13) -> 0
A96: 5 | B96: =VLOOKUP($F$8,'School Reference Sheet'!$A$5:$DC$52,15) -> N/A | C96: =VLOOKUP($F$8,'School Reference Sheet'!$A$5:$DC$52,16) -> N/A | D96: =VLOOKUP($F$8,'School Reference Sheet'!$A$5:$DC$52,17) -> N/A | E96: =VLOOKUP($F$8,'"Main Funding" Schl Level Mtrix'!$B$204:$N$251,6) -> 0 | G96: =VLOOKUP($F$8,'"Main Funding" Schl Level Mtrix'!$B$204:$N$251,7) -> 0 | I96: =VLOOKUP($F$8,'"Main Funding" Schl Level Mtrix'!$B$204:$N$251,8) -> 0 | K96: =VLOOKUP($F$8,'"Main Funding" Schl Level Mtrix'!$B$204:$N$251,9) -> 0 | M96: =VLOOKUP($F$8,'"Main Funding" Schl Level Mtrix'!$B$204:$N$251,10) -> 0 | O96: =VLOOKUP($F$8,'"Main Funding" Schl Level Mtrix'!$B$204:$N$251,11) -> 0 | Q96: =VLOOKUP($F$8,'"Main Funding" Schl Level Mtrix'!$B$204:$N$251,12) -> 0 | R96: =VLOOKUP($F$8,'"Main Funding" Schl Level Mtrix'!$B$204:$N$251,13) -> 0
A97: 6 | B97: =VLOOKUP($F$8,'School Reference Sheet'!$A$5:$DC$52,18) -> N/A | C97: =VLOOKUP($F$8,'School Reference Sheet'!$A$5:$DC$52,19) -> N/A | D97: =VLOOKUP($F$8,'School Reference Sheet'!$A$5:$DC$52,20) -> N/A | E97: =VLOOKUP($F$8,'"Main Funding" Schl Level Mtrix'!$B$253:$N$300,6) -> 0 | G97: =VLOOKUP($F$8,'"Main Funding" Schl Level Mtrix'!$B$253:$N$300,7) -> 0 | I97: =VLOOKUP($F$8,'"Main Funding" Schl Level Mtrix'!$B$253:$N$300,8) -> 0 | K97: =VLOOKUP($F$8,'"Main Funding" Schl Level Mtrix'!$B$253:$N$300,9) -> 0 | M97: =VLOOKUP($F$8,'"Main Funding" Schl Level Mtrix'!$B$253:$N$300,10) -> 0 | O97: =VLOOKUP($F$8,'"Main Funding" Schl Level Mtrix'!$B$253:$N$300,11) -> 0 | Q97: =VLOOKUP($F$8,'"Main Funding" Schl Level Mtrix'!$B$253:$N$300,12) -> 0 | R97: =VLOOKUP($F$8,'"Main Funding" Schl Level Mtrix'!$B$253:$N$300,13) -> 0
A98: 7 | B98: =VLOOKUP($F$8,'School Reference Sheet'!$A$5:$DC$52,21) -> N/A | C98: =VLOOKUP($F$8,'School Reference Sheet'!$A$5:$DC$52,22) -> N/A | D98: =VLOOKUP($F$8,'School Reference Sheet'!$A$5:$DC$52,23) -> N/A | E98: =VLOOKUP($F$8,'"Main Funding" Schl Level Mtrix'!$B$302:$N$349,6) -> 0 | G98: =VLOOKUP($F$8,'"Main Funding" Schl Level Mtrix'!$B$302:$N$349,7) -> 0 | I98: =VLOOKUP($F$8,'"Main Funding" Schl Level Mtrix'!$B$302:$N$349,8) -> 0 | K98: =VLOOKUP($F$8,'"Main Funding" Schl Level Mtrix'!$B$302:$N$349,9) -> 0 | M98: =VLOOKUP($F$8,'"Main Funding" Schl Level Mtrix'!$B$302:$N$349,10) -> 0 | O98: =VLOOKUP($F$8,'"Main Funding" Schl Level Mtrix'!$B$302:$N$349,11) -> 0 | Q98: =VLOOKUP($F$8,'"Main Funding" Schl Level Mtrix'!$B$302:$N$349,12) -> 0 | R98: =VLOOKUP($F$8,'"Main Funding" Schl Level Mtrix'!$B$302:$N$349,13) -> 0
A99: 8 | B99: =VLOOKUP($F$8,'School Reference Sheet'!$A$5:$DC$52,24) -> N/A | C99: =VLOOKUP($F$8,'School Reference Sheet'!$A$5:$DC$52,25) -> N/A | D99: =VLOOKUP($F$8,'School Reference Sheet'!$A$5:$DC$52,26) -> N/A | E99: =VLOOKUP($F$8,'"Main Funding" Schl Level Mtrix'!$B$351:$N$398,6) -> 0 | G99: =VLOOKUP($F$8,'"Main Funding" Schl Level Mtrix'!$B$351:$N$398,7) -> 0 | I99: =VLOOKUP($F$8,'"Main Funding" Schl Level Mtrix'!$B$351:$N$398,8) -> 0 | K99: =VLOOKUP($F$8,'"Main Funding" Schl Level Mtrix'!$B$351:$N$398,9) -> 0 | M99: =VLOOKUP($F$8,'"Main Funding" Schl Level Mtrix'!$B$351:$N$398,10) -> 0 | O99: =VLOOKUP($F$8,'"Main Funding" Schl Level Mtrix'!$B$351:$N$398,11) -> 0 | Q99: =VLOOKUP($F$8,'"Main Funding" Schl Level Mtrix'!$B$351:$N$398,12) -> 0 | R99: =VLOOKUP($F$8,'"Main Funding" Schl Level Mtrix'!$B$351:$N$398,13) -> 0
A100: 9 | B100: =VLOOKUP($F$8,'School Reference Sheet'!$A$5:$DC$52,27) -> N/A | C100: =VLOOKUP($F$8,'School Reference Sheet'!$A$5:$DC$52,28) -> N/A | D100: =VLOOKUP($F$8,'School Reference Sheet'!$A$5:$DC$52,29) -> N/A | E100: =VLOOKUP($F$8,'"Main Funding" Schl Level Mtrix'!$B$400:$N$447,6) -> 0 | G100: =VLOOKUP($F$8,'"Main Funding" Schl Level Mtrix'!$B$400:$N$447,7) -> 0 | I100: =VLOOKUP($F$8,'"Main Funding" Schl Level Mtrix'!$B$400:$N$447,8) -> 0 | K100: =VLOOKUP($F$8,'"Main Funding" Schl Level Mtrix'!$B$400:$N$447,9) -> 0 | M100: =VLOOKUP($F$8,'"Main Funding" Schl Level Mtrix'!$B$400:$N$447,10) -> 0 | O100: =VLOOKUP($F$8,'"Main Funding" Schl Level Mtrix'!$B$400:$N$447,11) -> 0 | Q100: =VLOOKUP($F$8,'"Main Funding" Schl Level Mtrix'!$B$400:$N$447,12) -> 0 | R100: =VLOOKUP($F$8,'"Main Funding" Schl Level Mtrix'!$B$400:$N$447,13) -> 0
A101: 10 | B101: =VLOOKUP($F$8,'School Reference Sheet'!$A$5:$DC$52,30) -> N/A | C101: =VLOOKUP($F$8,'School Reference Sheet'!$A$5:$DC$52,31) -> N/A | D101: =VLOOKUP($F$8,'School Reference Sheet'!$A$5:$DC$52,32) -> N/A | E101: =VLOOKUP($F$8,'"Main Funding" Schl Level Mtrix'!$B$449:$N$496,6) -> 0 | G101: =VLOOKUP($F$8,'"Main Funding" Schl Level Mtrix'!$B$449:$N$496,7) -> 0 | I101: =VLOOKUP($F$8,'"Main Funding" Schl Level Mtrix'!$B$449:$N$496,8) -> 0 | K101: =VLOOKUP($F$8,'"Main Funding" Schl Level Mtrix'!$B$449:$N$496,9) -> 0 | M101: =VLOOKUP($F$8,'"Main Funding" Schl Level Mtrix'!$B$449:$N$496,10) -> 0 | O101: =VLOOKUP($F$8,'"Main Funding" Schl Level Mtrix'!$B$449:$N$496,11) -> 0 | Q101: =VLOOKUP($F$8,'"Main Funding" Schl Level Mtrix'!$B$449:$N$496,12) -> 0 | R101: =VLOOKUP($F$8,'"Main Funding" Schl Level Mtrix'!$B$449:$N$496,13) -> 0
A102: 11 | B102: =VLOOKUP($F$8,'School Reference Sheet'!$A$5:$DC$52,33) -> N/A | C102: =VLOOKUP($F$8,'School Reference Sheet'!$A$5:$DC$52,34) -> N/A | D102: =VLOOKUP($F$8,'School Reference Sheet'!$A$5:$DC$52,35) -> N/A | E102: =VLOOKUP($F$8,'"Main Funding" Schl Level Mtrix'!$B$498:$N$545,6) -> 0 | G102: =VLOOKUP($F$8,'"Main Funding" Schl Level Mtrix'!$B$498:$N$545,7) -> 0 | I102: =VLOOKUP($F$8,'"Main Funding" Schl Level Mtrix'!$B$498:$N$545,8) -> 0 | K102: =VLOOKUP($F$8,'"Main Funding" Schl Level Mtrix'!$B$498:$N$545,9) -> 0 | M102: =VLOOKUP($F$8,'"Main Funding" Schl Level Mtrix'!$B$498:$N$545,10) -> 0 | O102: =VLOOKUP($F$8,'"Main Funding" Schl Level Mtrix'!$B$498:$N$545,11) -> 0 | Q102: =VLOOKUP($F$8,'"Main Funding" Schl Level Mtrix'!$B$498:$N$545,12) -> 0 | R102: =VLOOKUP($F$8,'"Main Funding" Schl Level Mtrix'!$B$498:$N$545,13) -> 0
A103: 12 | B103: =VLOOKUP($F$8,'School Reference Sheet'!$A$5:$DC$52,36) -> N/A | C103: =VLOOKUP($F$8,'School Reference Sheet'!$A$5:$DC$52,37) -> N/A | D103: =VLOOKUP($F$8,'School Reference Sheet'!$A$5:$DC$52,38) -> N/A | E103: =VLOOKUP($F$8,'"Main Funding" Schl Level Mtrix'!$B$547:$N$594,6) -> 0 | G103: =VLOOKUP($F$8,'"Main Funding" Schl Level Mtrix'!$B$547:$N$594,7) -> 0 | I103: =VLOOKUP($F$8,'"Main Funding" Schl Level Mtrix'!$B$547:$N$594,8) -> 0 | K103: =VLOOKUP($F$8,'"Main Funding" Schl Level Mtrix'!$B$547:$N$594,9) -> 0 | M103: =VLOOKUP($F$8,'"Main Funding" Schl Level Mtrix'!$B$547:$N$594,10) -> 0 | O103: =VLOOKUP($F$8,'"Main Funding" Schl Level Mtrix'!$B$547:$N$594,11) -> 0 | Q103: =VLOOKUP($F$8,'"Main Funding" Schl Level Mtrix'!$B$547:$N$594,12) -> 0 | R103: =VLOOKUP($F$8,'"Main Funding" Schl Level Mtrix'!$B$547:$N$594,13) -> 0
A104: 13 | B104: =VLOOKUP($F$8,'School Reference Sheet'!$A$5:$DC$52,39) -> N/A | C104: =VLOOKUP($F$8,'School Reference Sheet'!$A$5:$DC$52,40) -> N/A | D104: =VLOOKUP($F$8,'School Reference Sheet'!$A$5:$DC$52,41) -> N/A | E104: =VLOOKUP($F$8,'"Main Funding" Schl Level Mtrix'!$B$596:$N$643,6) -> 0 | G104: =VLOOKUP($F$8,'"Main Funding" Schl Level Mtrix'!$B$596:$N$643,7) -> 0 | I104: =VLOOKUP($F$8,'"Main Funding" Schl Level Mtrix'!$B$596:$N$643,8) -> 0 | K104: =VLOOKUP($F$8,'"Main Funding" Schl Level Mtrix'!$B$596:$N$643,9) -> 0 | M104: =VLOOKUP($F$8,'"Main Funding" Schl Level Mtrix'!$B$596:$N$643,10) -> 0 | O104: =VLOOKUP($F$8,'"Main Funding" Schl Level Mtrix'!$B$596:$N$643,11) -> 0 | Q104: =VLOOKUP($F$8,'"Main Funding" Schl Level Mtrix'!$B$596:$N$643,12) -> 0 | R104: =VLOOKUP($F$8,'"Main Funding" Schl Level Mtrix'!$B$596:$N$643,13) -> 0
A105: 14 | B105: =VLOOKUP($F$8,'School Reference Sheet'!$A$5:$DC$52,42) -> N/A | C105: =VLOOKUP($F$8,'School Reference Sheet'!$A$5:$DC$52,43) -> N/A | D105: =VLOOKUP($F$8,'School Reference Sheet'!$A$5:$DC$52,44) -> N/A | E105: =VLOOKUP($F$8,'"Main Funding" Schl Level Mtrix'!$B$645:$N$692,6) -> 0 | G105: =VLOOKUP($F$8,'"Main Funding" Schl Level Mtrix'!$B$645:$N$692,7) -> 0 | I105: =VLOOKUP($F$8,'"Main Funding" Schl Level Mtrix'!$B$645:$N$692,8) -> 0 | K105: =VLOOKUP($F$8,'"Main Funding" Schl Level Mtrix'!$B$645:$N$692,9) -> 0 | M105: =VLOOKUP($F$8,'"Main Funding" Schl Level Mtrix'!$B$645:$N$692,10) -> 0 | O105: =VLOOKUP($F$8,'"Main Funding" Schl Level Mtrix'!$B$645:$N$692,11) -> 0 | Q105: =VLOOKUP($F$8,'"Main Funding" Schl Level Mtrix'!$B$645:$N$692,12) -> 0 | R105: =VLOOKUP($F$8,'"Main Funding" Schl Level Mtrix'!$B$645:$N$692,13) -> 0
A106: 15 | B106: =VLOOKUP($F$8,'School Reference Sheet'!$A$5:$DC$52,45) -> N/A | C106: =VLOOKUP($F$8,'School Reference Sheet'!$A$5:$DC$52,46) -> N/A | D106: =VLOOKUP($F$8,'School Reference Sheet'!$A$5:$DC$52,47) -> N/A | E106: =VLOOKUP($F$8,'"Main Funding" Schl Level Mtrix'!$B$694:$N$741,6) -> 0 | G106: =VLOOKUP($F$8,'"Main Funding" Schl Level Mtrix'!$B694:$N$741,7) -> 0 | I106: =VLOOKUP($F$8,'"Main Funding" Schl Level Mtrix'!$B$694:$N$741,8) -> 0 | K106: =VLOOKUP($F$8,'"Main Funding" Schl Level Mtrix'!$B$694:$N$741,9) -> 0 | M106: =VLOOKUP($F$8,'"Main Funding" Schl Level Mtrix'!$B$694:$N$741,10) -> 0 | O106: =VLOOKUP($F$8,'"Main Funding" Schl Level Mtrix'!$B$694:$N$741,11) -> 0 | Q106: =VLOOKUP($F$8,'"Main Funding" Schl Level Mtrix'!$B$694:$N$741,12) -> 0 | R106: =VLOOKUP($F$8,'"Main Funding" Schl Level Mtrix'!$B$694:$N$741,13) -> 0
A107: 16 | B107: =VLOOKUP($F$8,'School Reference Sheet'!$A$5:$DC$52,48) -> N/A | C107: =VLOOKUP($F$8,'School Reference Sheet'!$A$5:$DC$52,49) -> N/A | D107: =VLOOKUP($F$8,'School Reference Sheet'!$A$5:$DC$52,50) -> N/A | E107: =VLOOKUP($F$8,'"Main Funding" Schl Level Mtrix'!$B$743:$N$790,6) -> 0 | G107: =VLOOKUP($F$8,'"Main Funding" Schl Level Mtrix'!$B743:$N$790,7) -> 0 | I107: =VLOOKUP($F$8,'"Main Funding" Schl Level Mtrix'!$B$743:$N$790,8) -> 0 | K107: =VLOOKUP($F$8,'"Main Funding" Schl Level Mtrix'!$B$743:$N$790,9) -> 0 | M107: =VLOOKUP($F$8,'"Main Funding" Schl Level Mtrix'!$B$743:$N$790,10) -> 0 | O107: =VLOOKUP($F$8,'"Main Funding" Schl Level Mtrix'!$B$743:$N$790,11) -> 0 | Q107: =VLOOKUP($F$8,'"Main Funding" Schl Level Mtrix'!$B$743:$N$790,12) -> 0 | R107: =VLOOKUP($F$8,'"Main Funding" Schl Level Mtrix'!$B$743:$N$790,13) -> 0
A108: 17 | B108: =VLOOKUP($F$8,'School Reference Sheet'!$A$5:$DC$52,51) -> N/A | C108: =VLOOKUP($F$8,'School Reference Sheet'!$A$5:$DC$52,52) -> N/A | D108: =VLOOKUP($F$8,'School Reference Sheet'!$A$5:$DC$52,53) -> N/A | E108: =VLOOKUP($F$8,'"Main Funding" Schl Level Mtrix'!$B$792:$N$839,6) -> 0 | G108: =VLOOKUP($F$8,'"Main Funding" Schl Level Mtrix'!$B792:$N$839,7) -> 0 | I108: =VLOOKUP($F$8,'"Main Funding" Schl Level Mtrix'!$B$792:$N$839,8) -> 0 | K108: =VLOOKUP($F$8,'"Main Funding" Schl Level Mtrix'!$B$792:$N$839,9) -> 0 | M108: =VLOOKUP($F$8,'"Main Funding" Schl Level Mtrix'!$B$792:$N$839,10) -> 0 | O108: =VLOOKUP($F$8,'"Main Funding" Schl Level Mtrix'!$B$792:$N$839,11) -> 0 | Q108: =VLOOKUP($F$8,'"Main Funding" Schl Level Mtrix'!$B$792:$N$839,12) -> 0 | R108: =VLOOKUP($F$8,'"Main Funding" Schl Level Mtrix'!$B$792:$N$839,13) -> 0
A109: 18 | B109: =VLOOKUP($F$8,'School Reference Sheet'!$A$5:$DC$52,54) -> N/A | C109: =VLOOKUP($F$8,'School Reference Sheet'!$A$5:$DC$52,55) -> N/A | D109: =VLOOKUP($F$8,'School Reference Sheet'!$A$5:$DC$52,56) -> N/A | E109: =VLOOKUP($F$8,'"Main Funding" Schl Level Mtrix'!$B$841:$N$888,6) -> 0 | G109: =VLOOKUP($F$8,'"Main Funding" Schl Level Mtrix'!$B$841:$N$888,7) -> 0 | I109: =VLOOKUP($F$8,'"Main Funding" Schl Level Mtrix'!$B$841:$N$888,8) -> 0 | K109: =VLOOKUP($F$8,'"Main Funding" Schl Level Mtrix'!$B$841:$N$888,9) -> 0 | M109: =VLOOKUP($F$8,'"Main Funding" Schl Level Mtrix'!$B$841:$N$888,10) -> 0 | O109: =VLOOKUP($F$8,'"Main Funding" Schl Level Mtrix'!$B$841:$N$888,11) -> 0 | Q109: =VLOOKUP($F$8,'"Main Funding" Schl Level Mtrix'!$B$841:$N$888,12) -> 0 | R109: =VLOOKUP($F$8,'"Main Funding" Schl Level Mtrix'!$B$841:$N$888,13) -> 0
A110: 19 | B110: =VLOOKUP($F$8,'School Reference Sheet'!$A$5:$DC$52,57) -> N/A | C110: =VLOOKUP($F$8,'School Reference Sheet'!$A$5:$DC$52,58) -> N/A | D110: =VLOOKUP($F$8,'School Reference Sheet'!$A$5:$DC$52,59) -> N/A | E110: =VLOOKUP($F$8,'"Main Funding" Schl Level Mtrix'!$B$890:$N$937,6) -> 0 | G110: =VLOOKUP($F$8,'"Main Funding" Schl Level Mtrix'!$B$890:$N$937,7) -> 0 | I110: =VLOOKUP($F$8,'"Main Funding" Schl Level Mtrix'!$B$890:$N$937,8) -> 0 | K110: =VLOOKUP($F$8,'"Main Funding" Schl Level Mtrix'!$B$890:$N$937,9) -> 0 | M110: =VLOOKUP($F$8,'"Main Funding" Schl Level Mtrix'!$B$890:$N$937,10) -> 0 | O110: =VLOOKUP($F$8,'"Main Funding" Schl Level Mtrix'!$B$890:$N$937,11) -> 0 | Q110: =VLOOKUP($F$8,'"Main Funding" Schl Level Mtrix'!$B$890:$N$937,12) -> 0 | R110: =VLOOKUP($F$8,'"Main Funding" Schl Level Mtrix'!$B$890:$N$937,13) -> 0
A111: 20 | B111: =VLOOKUP($F$8,'School Reference Sheet'!$A$5:$DC$52,60) -> N/A | C111: =VLOOKUP($F$8,'School Reference Sheet'!$A$5:$DC$52,61) -> N/A | D111: =VLOOKUP($F$8,'School Reference Sheet'!$A$5:$DC$52,62) -> N/A | E111: =VLOOKUP($F$8,'"Main Funding" Schl Level Mtrix'!$B$939:$N$986,6) -> 0 | G111: =VLOOKUP($F$8,'"Main Funding" Schl Level Mtrix'!$B$939:$N$986,7) -> 0 | I111: =VLOOKUP($F$8,'"Main Funding" Schl Level Mtrix'!$B$939:$N$986,8) -> 0 | K111: =VLOOKUP($F$8,'"Main Funding" Schl Level Mtrix'!$B$939:$N$986,9) -> 0 | M111: =VLOOKUP($F$8,'"Main Funding" Schl Level Mtrix'!$B$939:$N$986,10) -> 0 | O111: =VLOOKUP($F$8,'"Main Funding" Schl Level Mtrix'!$B$939:$N$986,11) -> 0 | Q111: =VLOOKUP($F$8,'"Main Funding" Schl Level Mtrix'!$B$939:$N$986,12) -> 0 | R111: =VLOOKUP($F$8,'"Main Funding" Schl Level Mtrix'!$B$939:$N$986,13) -> 0
A112: 21 | B112: =VLOOKUP($F$8,'School Reference Sheet'!$A$5:$DC$52,63) -> N/A | C112: =VLOOKUP($F$8,'School Reference Sheet'!$A$5:$DC$52,64) -> N/A | D112: =VLOOKUP($F$8,'School Reference Sheet'!$A$5:$DC$52,65) -> N/A | E112: =VLOOKUP($F$8,'"Main Funding" Schl Level Mtrix'!$B$988:$N$1035,6) -> 0 | G112: =VLOOKUP($F$8,'"Main Funding" Schl Level Mtrix'!$B$988:$N$1035,7) -> 0 | I112: =VLOOKUP($F$8,'"Main Funding" Schl Level Mtrix'!$B$988:$N$1035,8) -> 0 | K112: =VLOOKUP($F$8,'"Main Funding" Schl Level Mtrix'!$B$988:$N$1035,9) -> 0 | M112: =VLOOKUP($F$8,'"Main Funding" Schl Level Mtrix'!$B$988:$N$1035,10) -> 0 | O112: =VLOOKUP($F$8,'"Main Funding" Schl Level Mtrix'!$B$988:$N$1035,11) -> 0 | Q112: =VLOOKUP($F$8,'"Main Funding" Schl Level Mtrix'!$B$988:$N$1035,12) -> 0 | R112: =VLOOKUP($F$8,'"Main Funding" Schl Level Mtrix'!$B$988:$N$1035,13) -> 0
A113: 22 | B113: =VLOOKUP($F$8,'School Reference Sheet'!$A$5:$DC$52,66) -> N/A | C113: =VLOOKUP($F$8,'School Reference Sheet'!$A$5:$DC$52,67) -> N/A | D113: =VLOOKUP($F$8,'School Reference Sheet'!$A$5:$DC$52,68) -> N/A | E113: =VLOOKUP($F$8,'"Main Funding" Schl Level Mtrix'!$B$1037:$N$1084,6) -> 0 | G113: =VLOOKUP($F$8,'"Main Funding" Schl Level Mtrix'!$B$1037:$N$1084,7) -> 0 | I113: =VLOOKUP($F$8,'"Main Funding" Schl Level Mtrix'!$B$1037:$N$1084,8) -> 0 | K113: =VLOOKUP($F$8,'"Main Funding" Schl Level Mtrix'!$B$1037:$N$1084,9) -> 0 | M113: =VLOOKUP($F$8,'"Main Funding" Schl Level Mtrix'!$B$1037:$N$1084,10) -> 0 | O113: =VLOOKUP($F$8,'"Main Funding" Schl Level Mtrix'!$B$1037:$N$1084,11) -> 0 | Q113: =VLOOKUP($F$8,'"Main Funding" Schl Level Mtrix'!$B$1037:$N$1084,12) -> 0 | R113: =VLOOKUP($F$8,'"Main Funding" Schl Level Mtrix'!$B$1037:$N$1084,13) -> 0
A114: 23 | B114: =VLOOKUP($F$8,'School Reference Sheet'!$A$5:$DC$52,69) -> N/A | C114: =VLOOKUP($F$8,'School Reference Sheet'!$A$5:$DC$52,70) -> N/A | D114: =VLOOKUP($F$8,'School Reference Sheet'!$A$5:$DC$52,71) -> N/A | E114: =VLOOKUP($F$8,'"Main Funding" Schl Level Mtrix'!$B$1086:$N$1133,6) -> 0 | G114: =VLOOKUP($F$8,'"Main Funding" Schl Level Mtrix'!$B$1086:$N$1133,7) -> 0 | I114: =VLOOKUP($F$8,'"Main Funding" Schl Level Mtrix'!$B$1086:$N$1133,8) -> 0 | K114: =VLOOKUP($F$8,'"Main Funding" Schl Level Mtrix'!$B$1086:$N$1133,9) -> 0 | M114: =VLOOKUP($F$8,'"Main Funding" Schl Level Mtrix'!$B$1086:$N$1133,10) -> 0 | O114: =VLOOKUP($F$8,'"Main Funding" Schl Level Mtrix'!$B$1086:$N$1133,11) -> 0 | Q114: =VLOOKUP($F$8,'"Main Funding" Schl Level Mtrix'!$B$1086:$N$1133,12) -> 0 | R114: =VLOOKUP($F$8,'"Main Funding" Schl Level Mtrix'!$B$1086:$N$1133,13) -> 0
A115: 24 | B115: =VLOOKUP($F$8,'School Reference Sheet'!$A$5:$DC$52,72) -> N/A | C115: =VLOOKUP($F$8,'School Reference Sheet'!$A$5:$DC$52,73) -> N/A | D115: =VLOOKUP($F$8,'School Reference Sheet'!$A$5:$DC$52,74) -> N/A | E115: =VLOOKUP($F$8,'"Main Funding" Schl Level Mtrix'!$B$1135:$N$1182,6) -> 0 | G115: =VLOOKUP($F$8,'"Main Funding" Schl Level Mtrix'!$B$1135:$N$1182,7) -> 0 | I115: =VLOOKUP($F$8,'"Main Funding" Schl Level Mtrix'!$B$1135:$N$1182,8) -> 0 | K115: =VLOOKUP($F$8,'"Main Funding" Schl Level Mtrix'!$B$1135:$N$1182,9) -> 0 | M115: =VLOOKUP($F$8,'"Main Funding" Schl Level Mtrix'!$B$1135:$N$1182,10) -> 0 | O115: =VLOOKUP($F$8,'"Main Funding" Schl Level Mtrix'!$B$1135:$N$1182,11) -> 0 | Q115: =VLOOKUP($F$8,'"Main Funding" Schl Level Mtrix'!$B$1135:$N$1182,12) -> 0 | R115: =VLOOKUP($F$8,'"Main Funding" Schl Level Mtrix'!$B$1135:$N$1182,13) -> 0
A116: 25 | B116: =VLOOKUP($F$8,'School Reference Sheet'!$A$5:$DC$52,75) -> N/A | C116: =VLOOKUP($F$8,'School Reference Sheet'!$A$5:$DC$52,76) -> N/A | D116: =VLOOKUP($F$8,'School Reference Sheet'!$A$5:$DC$52,77) -> N/A | E116: =VLOOKUP($F$8,'"Main Funding" Schl Level Mtrix'!$B$1184:$N$1231,6) -> 0 | G116: =VLOOKUP($F$8,'"Main Funding" Schl Level Mtrix'!$B$1184:$N$1231,7) -> 0 | I116: =VLOOKUP($F$8,'"Main Funding" Schl Level Mtrix'!$B$1184:$N$1231,8) -> 0 | K116: =VLOOKUP($F$8,'"Main Funding" Schl Level Mtrix'!$B$1184:$N$1231,9) -> 0 | M116: =VLOOKUP($F$8,'"Main Funding" Schl Level Mtrix'!$B$1184:$N$1231,10) -> 0 | O116: =VLOOKUP($F$8,'"Main Funding" Schl Level Mtrix'!$B$1184:$N$1231,11) -> 0 | Q116: =VLOOKUP($F$8,'"Main Funding" Schl Level Mtrix'!$B$1184:$N$1231,12) -> 0 | R116: =VLOOKUP($F$8,'"Main Funding" Schl Level Mtrix'!$B$1184:$N$1231,13) -> 0
A117: 26 | B117: =VLOOKUP($F$8,'School Reference Sheet'!$A$5:$DC$52,78) -> N/A | C117: =VLOOKUP($F$8,'School Reference Sheet'!$A$5:$DC$52,79) -> N/A | D117: =VLOOKUP($F$8,'School Reference Sheet'!$A$5:$DC$52,80) -> N/A | E117: =VLOOKUP($F$8,'"Main Funding" Schl Level Mtrix'!$B$1233:$N$1280,6) -> 0 | G117: =VLOOKUP($F$8,'"Main Funding" Schl Level Mtrix'!$B$1233:$N$1280,7) -> 0 | I117: =VLOOKUP($F$8,'"Main Funding" Schl Level Mtrix'!$B$1233:$N$1280,8) -> 0 | K117: =VLOOKUP($F$8,'"Main Funding" Schl Level Mtrix'!$B$1233:$N$1280,9) -> 0 | M117: =VLOOKUP($F$8,'"Main Funding" Schl Level Mtrix'!$B$1233:$N$1280,10) -> 0 | O117: =VLOOKUP($F$8,'"Main Funding" Schl Level Mtrix'!$B$1233:$N$1280,11) -> 0 | Q117: =VLOOKUP($F$8,'"Main Funding" Schl Level Mtrix'!$B$1233:$N$1280,12) -> 0 | R117: =VLOOKUP($F$8,'"Main Funding" Schl Level Mtrix'!$B$1233:$N$1280,13) -> 0
A118: 27 | B118: =VLOOKUP($F$8,'School Reference Sheet'!$A$5:$DC$52,81) -> N/A | C118: =VLOOKUP($F$8,'School Reference Sheet'!$A$5:$DC$52,82) -> N/A | D118: =VLOOKUP($F$8,'School Reference Sheet'!$A$5:$DC$52,83) -> N/A | E118: =VLOOKUP($F$8,'"Main Funding" Schl Level Mtrix'!$B$1282:$N$1329,6) -> 0 | G118: =VLOOKUP($F$8,'"Main Funding" Schl Level Mtrix'!$B$1282:$N$1329,7) -> 0 | I118: =VLOOKUP($F$8,'"Main Funding" Schl Level Mtrix'!$B$1282:$N$1329,8) -> 0 | K118: =VLOOKUP($F$8,'"Main Funding" Schl Level Mtrix'!$B$1282:$N$1329,9) -> 0 | M118: =VLOOKUP($F$8,'"Main Funding" Schl Level Mtrix'!$B$1282:$N$1329,10) -> 0 | O118: =VLOOKUP($F$8,'"Main Funding" Schl Level Mtrix'!$B$1282:$N$1329,11) -> 0 | Q118: =VLOOKUP($F$8,'"Main Funding" Schl Level Mtrix'!$B$1282:$N$1329,12) -> 0 | R118: =VLOOKUP($F$8,'"Main Funding" Schl Level Mtrix'!$B$1282:$N$1329,13) -> 0
A119: 28 | B119: =VLOOKUP($F$8,'School Reference Sheet'!$A$5:$DC$52,84) -> N/A | C119: =VLOOKUP($F$8,'School Reference Sheet'!$A$5:$DC$52,85) -> N/A | D119: =VLOOKUP($F$8,'School Reference Sheet'!$A$5:$DC$52,86) -> N/A | E119: =VLOOKUP($F$8,'"Main Funding" Schl Level Mtrix'!$B$1331:$N$1378,6) -> 0 | G119: =VLOOKUP($F$8,'"Main Funding" Schl Level Mtrix'!$B$1331:$N$1378,7) -> 0 | I119: =VLOOKUP($F$8,'"Main Funding" Schl Level Mtrix'!$B$1331:$N$1378,8) -> 0 | K119: =VLOOKUP($F$8,'"Main Funding" Schl Level Mtrix'!$B$1331:$N$1378,9) -> 0 | M119: =VLOOKUP($F$8,'"Main Funding" Schl Level Mtrix'!$B$1331:$N$1378,10) -> 0 | O119: =VLOOKUP($F$8,'"Main Funding" Schl Level Mtrix'!$B$1331:$N$1378,11) -> 0 | Q119: =VLOOKUP($F$8,'"Main Funding" Schl Level Mtrix'!$B$1331:$N$1378,12) -> 0 | R119: =VLOOKUP($F$8,'"Main Funding" Schl Level Mtrix'!$B$1331:$N$1378,13) -> 0
A120: 29 | B120: =VLOOKUP($F$8,'School Reference Sheet'!$A$5:$DC$52,87) -> N/A | C120: =VLOOKUP($F$8,'School Reference Sheet'!$A$5:$DC$52,88) -> N/A | D120: =VLOOKUP($F$8,'School Reference Sheet'!$A$5:$DC$52,89) -> N/A | E120: =VLOOKUP($F$8,'"Main Funding" Schl Level Mtrix'!$B$1380:$N$1427,6) -> 0 | G120: =VLOOKUP($F$8,'"Main Funding" Schl Level Mtrix'!$B$1380:$N$1427,7) -> 0 | I120: =VLOOKUP($F$8,'"Main Funding" Schl Level Mtrix'!$B$1380:$N$1427,8) -> 0 | K120: =VLOOKUP($F$8,'"Main Funding" Schl Level Mtrix'!$B$1380:$N$1427,9) -> 0 | M120: =VLOOKUP($F$8,'"Main Funding" Schl Level Mtrix'!$B$1380:$N$1427,10) -> 0 | O120: =VLOOKUP($F$8,'"Main Funding" Schl Level Mtrix'!$B$1380:$N$1427,11) -> 0 | Q120: =VLOOKUP($F$8,'"Main Funding" Schl Level Mtrix'!$B$1380:$N$1427,12) -> 0 | R120: =VLOOKUP($F$8,'"Main Funding" Schl Level Mtrix'!$B$1380:$N$1427,13) -> 0
A121: 30 | B121: =VLOOKUP($F$8,'School Reference Sheet'!$A$5:$DC$52,90) -> N/A | C121: =VLOOKUP($F$8,'School Reference Sheet'!$A$5:$DC$52,91) -> N/A | D121: =VLOOKUP($F$8,'School Reference Sheet'!$A$5:$DC$52,92) -> N/A | E121: =VLOOKUP($F$8,'"Main Funding" Schl Level Mtrix'!$B$1429:$N$1476,6) -> 0 | G121: =VLOOKUP($F$8,'"Main Funding" Schl Level Mtrix'!$B$1429:$N$1476,7) -> 0 | I121: =VLOOKUP($F$8,'"Main Funding" Schl Level Mtrix'!$B$1429:$N$1476,8) -> 0 | K121: =VLOOKUP($F$8,'"Main Funding" Schl Level Mtrix'!$B$1429:$N$1476,9) -> 0 | M121: =VLOOKUP($F$8,'"Main Funding" Schl Level Mtrix'!$B$1429:$N$1476,10) -> 0 | O121: =VLOOKUP($F$8,'"Main Funding" Schl Level Mtrix'!$B$1429:$N$1476,11) -> 0 | Q121: =VLOOKUP($F$8,'"Main Funding" Schl Level Mtrix'!$B$1429:$N$1476,12) -> 0 | R121: =VLOOKUP($F$8,'"Main Funding" Schl Level Mtrix'!$B$1429:$N$1476,13) -> 0
A122: 31 | B122: =VLOOKUP($F$8,'School Reference Sheet'!$A$5:$DC$52,93) -> N/A | C122: =VLOOKUP($F$8,'School Reference Sheet'!$A$5:$DC$52,94) -> N/A | D122: =VLOOKUP($F$8,'School Reference Sheet'!$A$5:$DC$52,95) -> N/A | E122: =VLOOKUP($F$8,'"Main Funding" Schl Level Mtrix'!$B$1478:$N$1524,6) -> 0 | G122: =VLOOKUP($F$8,'"Main Funding" Schl Level Mtrix'!$B$1478:$N$1524,7) -> 0 | I122: =VLOOKUP($F$8,'"Main Funding" Schl Level Mtrix'!$B$1478:$N$1524,8) -> 0 | K122: =VLOOKUP($F$8,'"Main Funding" Schl Level Mtrix'!$B$1478:$N$1524,9) -> 0 | M122: =VLOOKUP($F$8,'"Main Funding" Schl Level Mtrix'!$B$1478:$N$1524,10) -> 0 | O122: =VLOOKUP($F$8,'"Main Funding" Schl Level Mtrix'!$B$1478:$N$1524,11) -> 0 | Q122: =VLOOKUP($F$8,'"Main Funding" Schl Level Mtrix'!$B$1478:$N$1524,12) -> 0 | R122: =VLOOKUP($F$8,'"Main Funding" Schl Level Mtrix'!$B$1478:$N$1524,13) -> 0
A123: 32 | B123: =VLOOKUP($F$8,'School Reference Sheet'!$A$5:$DC$52,96) -> N/A | C123: =VLOOKUP($F$8,'School Reference Sheet'!$A$5:$DC$52,97) -> N/A | D123: =VLOOKUP($F$8,'School Reference Sheet'!$A$5:$DC$52,98) -> N/A | E123: =VLOOKUP($F$8,'"Main Funding" Schl Level Mtrix'!$B$1527:$N$1574,6) -> 0 | G123: =VLOOKUP($F$8,'"Main Funding" Schl Level Mtrix'!$B$1527:$N$1574,7) -> 0 | I123: =VLOOKUP($F$8,'"Main Funding" Schl Level Mtrix'!$B$1527:$N$1574,8) -> 0 | K123: =VLOOKUP($F$8,'"Main Funding" Schl Level Mtrix'!$B$1527:$N$1574,9) -> 0 | M123: =VLOOKUP($F$8,'"Main Funding" Schl Level Mtrix'!$B$1527:$N$1574,10) -> 0 | O123: =VLOOKUP($F$8,'"Main Funding" Schl Level Mtrix'!$B$1527:$N$1574,11) -> 0 | Q123: =VLOOKUP($F$8,'"Main Funding" Schl Level Mtrix'!$B$1527:$N$1574,12) -> 0 | R123: =VLOOKUP($F$8,'"Main Funding" Schl Level Mtrix'!$B$1527:$N$1574,13) -> 0
A124: 33 | B124: =VLOOKUP($F$8,'School Reference Sheet'!$A$5:$DC$52,99) -> N/A | C124: =VLOOKUP($F$8,'School Reference Sheet'!$A$5:$DC$52,100) -> N/A | D124: =VLOOKUP($F$8,'School Reference Sheet'!$A$5:$DC$52,101) -> N/A | E124: =VLOOKUP($F$8,'"Main Funding" Schl Level Mtrix'!$B$1576:$N$1623,6) -> 0 | G124: =VLOOKUP($F$8,'"Main Funding" Schl Level Mtrix'!$B$1576:$N$1623,7) -> 0 | I124: =VLOOKUP($F$8,'"Main Funding" Schl Level Mtrix'!$B$1576:$N$1623,8) -> 0 | K124: =VLOOKUP($F$8,'"Main Funding" Schl Level Mtrix'!$B$1576:$N$1623,9) -> 0 | M124: =VLOOKUP($F$8,'"Main Funding" Schl Level Mtrix'!$B$1576:$N$1623,10) -> 0 | O124: =VLOOKUP($F$8,'"Main Funding" Schl Level Mtrix'!$B$1576:$N$1623,11) -> 0 | Q124: =VLOOKUP($F$8,'"Main Funding" Schl Level Mtrix'!$B$1576:$N$1623,12) -> 0 | R124: =VLOOKUP($F$8,'"Main Funding" Schl Level Mtrix'!$B$1576:$N$1623,13) -> 0
A125: 34 | B125: =VLOOKUP($F$8,'School Reference Sheet'!$A$5:$DC$52,102) -> N/A | C125: =VLOOKUP($F$8,'School Reference Sheet'!$A$5:$DC$52,103) -> N/A | D125: =VLOOKUP($F$8,'School Reference Sheet'!$A$5:$DC$52,104) -> N/A | E125: =VLOOKUP($F$8,'"Main Funding" Schl Level Mtrix'!$B$1625:$N$1672,6) -> 0 | G125: =VLOOKUP($F$8,'"Main Funding" Schl Level Mtrix'!$B$1625:$N$1672,7) -> 0 | I125: =VLOOKUP($F$8,'"Main Funding" Schl Level Mtrix'!$B$1625:$N$1672,8) -> 0 | K125: =VLOOKUP($F$8,'"Main Funding" Schl Level Mtrix'!$B$1625:$N$1672,9) -> 0 | M125: =VLOOKUP($F$8,'"Main Funding" Schl Level Mtrix'!$B$1625:$N$1672,10) -> 0 | O125: =VLOOKUP($F$8,'"Main Funding" Schl Level Mtrix'!$B$1625:$N$1672,11) -> 0 | Q125: =VLOOKUP($F$8,'"Main Funding" Schl Level Mtrix'!$B$1625:$N$1672,12) -> 0 | R125: =VLOOKUP($F$8,'"Main Funding" Schl Level Mtrix'!$B$1625:$N$1672,13) -> 0
A126: 35 | B126: =VLOOKUP($F$8,'School Reference Sheet'!$A$5:$DC$52,105) -> N/A | C126: =VLOOKUP($F$8,'School Reference Sheet'!$A$5:$DC$52,106) -> N/A | D126: =VLOOKUP($F$8,'School Reference Sheet'!$A$5:$DC$52,107) -> N/A | E126: =VLOOKUP($F$8,'"Main Funding" Schl Level Mtrix'!$B$1674:$N$1721,6) -> 0 | G126: =VLOOKUP($F$8,'"Main Funding" Schl Level Mtrix'!$B$1674:$N$1721,7) -> 0 | I126: =VLOOKUP($F$8,'"Main Funding" Schl Level Mtrix'!$B$1674:$N$1721,8) -> 0 | K126: =VLOOKUP($F$8,'"Main Funding" Schl Level Mtrix'!$B$1674:$N$1721,9) -> 0 | M126: =VLOOKUP($F$8,'"Main Funding" Schl Level Mtrix'!$B$1674:$N$1721,10) -> 0 | O126: =VLOOKUP($F$8,'"Main Funding" Schl Level Mtrix'!$B$1674:$N$1721,11) -> 0 | Q126: =VLOOKUP($F$8,'"Main Funding" Schl Level Mtrix'!$B$1674:$N$1721,12) -> 0 | R126: =VLOOKUP($F$8,'"Main Funding" Schl Level Mtrix'!$B$1674:$N$1721,13) -> 0
B127: Total School Resources | E127: =SUM(E92:F126) -> 1097789.934 | G127: =SUM(G92:H126) -> 300469.5384 | I127: =SUM(I92:J126) -> 711086.2911 | K127: =SUM(K92:L126) -> 0 | M127: =SUM(M92:N126) -> 445652.8322 | O127: =SUM(O92:P126) -> 412784.0493 | Q127: =SUM(Q92:Q126) -> 408439.4567 | R127: =SUM(R92:R126) -> 3376222.102
A129: E) First Year Charter School Adjustment (W.S. 21-3-301 through W.S. 21-3-314):
B130: First-year charter school funding is shown after completion of school and ADM information in highlighted cells below.
A132: STEP 1: | C132: Charter school initiated by the school district? (Yes/No) | F132: =VLOOKUP($F$8,'Charter School Adjustments'!$A$8:$I$55,4) -> 0
A134: STEP 2: | C134: Enter the March 1 intended enrollment | F134: =VLOOKUP($F$8,'Charter School Adjustments'!$A$8:$I$55,5) -> 0
A136: STEP 3: | C136: Enter the number of students included in the Model ADM for the district guarantee calculations (3-year average
C137: ADM for school years 2011-12, 2012-13 and 2013-14). | F137: =VLOOKUP($F$8,'Charter School Adjustments'!$A$8:$I$55,6) -> 0
B139: First Year Charter School Adjustment: | H139: =VLOOKUP($F$8,'Charter School Adjustments'!$A$8:$I$55,8) -> 0
A141: F) Transportation Maintenance and Operations Reimbursement (W.S. 21-13-309(m)(v)(E)(I)):
B142: 1) FY2014 transportation expenditures from WDE-601/103 | H142: =VLOOKUP($F$8,Transportation!$A$8:$D$55,3) -> 256731.27
A144: G) Special Education Reimbursement (W.S. 21-13-309(m)(v)(E)(II)):
B145: 1) FY2014 special education expenditures from WDE-601/401 | H145: =VLOOKUP($F$8,'Special Education'!$A$8:$D$55,3) -> 824880.47
A147: H) Bus Lease and Purchase Reimbursement (for buses ordered on or after 3/1/98) (W.S. 21-13-309(m)(v)(E)(I)):
B148: 1) Gross eligible bus purchases in FY2010 | H148: =VLOOKUP($F$8,'Other Add-In''s'!$A$13:$V$60,3) -> 0
B149: 2) Gross eligible bus purchases in FY2011 | H149: =VLOOKUP($F$8,'Other Add-In''s'!$A$13:$V$60,4) -> 0
B150: 3) Gross eligible bus purchases in FY2012 | H150: =VLOOKUP($F$8,'Other Add-In''s'!$A$13:$V$60,5) -> 0
B151: 4) Gross eligible bus purchases in FY2013 | H151: =VLOOKUP($F$8,'Other Add-In''s'!$A$13:$V$60,6) -> 0
B152: 5) Gross eligible bus purchases in FY2014 | H152: =VLOOKUP($F$8,'Other Add-In''s'!$A$13:$V$60,7) -> 0
B153: 6) Total eligible bus purchases | H153: =VLOOKUP($F$8,'Other Add-In''s'!$A$13:$V$60,8) -> 0
B154: 7) 20% reimbursement on purchases | H154: =VLOOKUP($F$8,'Other Add-In''s'!$A$13:$V$60,9) -> 0
B155: 8) Eligible lease payments | H155: =VLOOKUP($F$8,'Other Add-In''s'!$A$13:$V$60,10) -> 50955.81
B156: Total Reimbursement for Buses Ordered On or After 3/1/98 | H156: =VLOOKUP($F$8,'Other Add-In''s'!$A$13:$V$60,11) -> 50955.81
A158: I) Pupil Maintenance/Isolation Reimbursement (W.S. 21-13-309(m)(v)(E)(IV)):
B159: 1) Amount claimed for mileage | H159: =VLOOKUP($F$8,'Other Add-In''s'!$A$13:$V$60,12) -> 0
B160: 2) Amount claimed for maintenance | H160: =VLOOKUP($F$8,'Other Add-In''s'!$A$13:$V$60,13) -> 0
B161: Total Pupil Maintenance/Isolation Reimbursement | H161: =VLOOKUP($F$8,'Other Add-In''s'!$A$13:$V$60,14) -> 0
A163: J) Teacher Extra Compensation Reimbursement (W.S. 21-13-309(m)(v)(E)(III)):
B164: 1) Payroll payments to teachers: | E164: (( d ) is an optional field. District documentation is to be kept on file and is subject to audit.)
C165: a) Number of teachers affected
C166: b) Total salary dollars | F166: =VLOOKUP($F$8,'Other Add-In''s'!$A$13:$V$60,15) -> 0
C167: c) Total fringe dollars | F167: =VLOOKUP($F$8,'Other Add-In''s'!$A$13:$V$60,16) -> 0
C168: d) Program description:
B173: 2) Other payments to or for teachers (Not Including Rent Subsidies): | F173: (( c ) & ( d ) are optional fields. District documentation is to be kept on file and is subject to audit.)
C174: a) Number of teachers affected
C175: b) Total value of subsidies | F175: =VLOOKUP($F$8,'Other Add-In''s'!$A$13:$V$60,17) -> 0
C176: c) Amounts reported on W-2
C177: d) Program description:
B182: Total Teacher Extra Compensation Reimbursement | H182: =VLOOKUP($F$8,'Other Add-In''s'!$A$13:$V$60,18) -> 0
A184: K) Special Tuition and Maintenance Reimbursement:
A185: 1) Tuition paid by non-unified districts to unified districts (W.S. 21-13-309(m)(v)(E)(V)): | H185: =VLOOKUP($F$8,'Other Add-In''s'!$A$13:$V$60,19) -> 0
A186: 2) Tuition paid to school districts in another state (W.S. 21-13-309(m)(v)(E)(V)): | H186: =VLOOKUP($F$8,'Other Add-In''s'!$A$13:$V$60,20) -> 0
B187: Total Special Tuition Reimbursement | H187: =VLOOKUP($F$8,'Other Add-In''s'!$A$13:$V$60,21) -> 0
A189: L) Estimated Foundation Guarantee (before hold harmless) | H189: =VLOOKUP($F$8,'Base Sheet'!$A$10:$AB$58,19) -> 1377963339
A191: M) Hold Harmless Adjustment | H191: =VLOOKUP($F$8,'Base Sheet'!$A$10:$AB$58,21) -> 0
A193: N) Local Resources:
B194: 1) Total FY2014 General Fund (GF) Revenues from WDE-601 | F194: =VLOOKUP($F$8,'Local Resources'!$A$9:$BI$56,3) -> 5713605.87
B195: 2) Less FY2014 GF Revenues Not Counted as Local Resources:
C196: Revenue from Federal Sources | H196: =VLOOKUP($F$8,'Local Resources'!$A$9:$BJ$56,4) -> 0
C197: 81111 (Actually received 20/25-mill local district taxes) | H197: =VLOOKUP($F$8,'Local Resources'!$A$9:$BJ$56,5) -> 697189.22
C198: 81112 (Actually received optional operations mill taxes) | H198: =VLOOKUP($F$8,'Local Resources'!$A$9:$BJ$56,6) -> 0
C199: 81113 (Actually received operations mill taxes) | H199: =VLOOKUP($F$8,'Local Resources'!$A$9:$BJ$56,7) -> 0
C200: 81115 (Actually received optional maintenance mill taxes) | H200: =VLOOKUP($F$8,'Local Resources'!$A$9:$BJ$56,8) -> 0
C201: 81116 (Additional voter approved maintenance mill taxes) | H201: =VLOOKUP($F$8,'Local Resources'!$A$9:$BJ$56,9) -> 0
C202: 81160 (Voc/Term & adult education taxes) | H202: =VLOOKUP($F$8,'Local Resources'!$A$9:$BJ$56,10) -> 0
C203: 81321 (Distance Education Tuition) | H203: =VLOOKUP($F$8,'Local Resources'!$A$9:$BJ$56,11) -> 0
C204: 81322 (Juvenile Detention Facility Tuition ) | H204: =VLOOKUP($F$8,'Local Resources'!$A$9:$BJ$56,12) -> 0
C205: 81340 (Adult education tuition) | H205: =VLOOKUP($F$8,'Local Resources'!$A$9:$BJ$56,13) -> 0
C206: 81350 (Summer school tuition) | H206: =VLOOKUP($F$8,'Local Resources'!$A$9:$BJ$56,14) -> 0
C207: 81360 (Cooperative programs tuition) | H207: =VLOOKUP($F$8,'Local Resources'!$A$9:$BJ$56,15) -> 32319
C208: 81410 (Transportation fees - Pupils) | H208: =VLOOKUP($F$8,'Local Resources'!$A$9:$BJ$56,16) -> 0
C209: 81420 (Transportation fees - In-State Districts) | H209: =VLOOKUP($F$8,'Local Resources'!$A$9:$BJ$56,17) -> 0
C210: 81430 (Transportation fees - Out-of-State Districts) | H210: =VLOOKUP($F$8,'Local Resources'!$A$9:$BJ$56,18) -> 0
C211: 815xx (Interest and other earnings) | H211: =VLOOKUP($F$8,'Local Resources'!$A$9:$BJ$56,19) -> 3273.09
C212: 81690 (Other food service income) | H212: =VLOOKUP($F$8,'Local Resources'!$A$9:$BJ$56,20) -> 0
C213: 817xx (Student activities) | H213: =VLOOKUP($F$8,'Local Resources'!$A$9:$BJ$56,21) -> 6838
C214: 81800 (Foundation Recapture paid - enter negative number) | H214: =VLOOKUP($F$8,'Local Resources'!$A$9:$BJ$56,22) -> 0
C215: 81850 (Indirect costs) | H215: =VLOOKUP($F$8,'Local Resources'!$A$9:$BJ$56,23) -> 0
C216: 81910 (Rental, school facilities) | H216: =VLOOKUP($F$8,'Local Resources'!$A$9:$BJ$56,24) -> 0
C217: 81920 (Contributions and donations from private sources) | H217: =VLOOKUP($F$8,'Local Resources'!$A$9:$BJ$56,25) -> 0
C218: 81950 (Refund of prior year's expenditures) | H218: =VLOOKUP($F$8,'Local Resources'!$A$9:$BJ$56,26) -> 24159
C219: 81980 (Services provided to other local governments) | H219: =VLOOKUP($F$8,'Local Resources'!$A$9:$BJ$56,27) -> 0
C220: 81981 (Transportation services provided to other local governments) | H220: =VLOOKUP($F$8,'Local Resources'!$A$9:$BJ$56,28) -> 0
C221: 82110 (Actually received share of 6-mill county school taxes) | H221: =VLOOKUP($F$8,'Local Resources'!$A$9:$BJ$56,29) -> 229268.37
C222: 83110 (Foundation Entitlement received) | H222: =VLOOKUP($F$8,'Local Resources'!$A$9:$BL$56,30) -> 4447582.044
C223: 83111 (Audit Adjustments - Foundation Program) | H223: =VLOOKUP($F$8,'Local Resources'!$A$9:$BJ$56,31) -> -13318
C224: 83160 (Tax Shortfall Grant received) | H224: =VLOOKUP($F$8,'Local Resources'!$A$9:$BL$56,32) -> 0
C225: 852xx (Transfers-In from other funds) | H225: =VLOOKUP($F$8,'Local Resources'!$A$9:$BJ$56,33) -> 0
C226: 85311 (Sale of fixed assets acquired before 07/1/97) | H226: =VLOOKUP($F$8,'Local Resources'!$A$9:$BJ$56,34) -> 0
C227: 85320 (Compensation for loss of fixed assets) | H227: =VLOOKUP($F$8,'Local Resources'!$A$9:$BJ$56,35) -> 0
C228: Other (Attach itemized list with full explanation) | H228: =VLOOKUP($F$8,'Local Resources'!$A$9:$BJ$56,36) -> 1149.91
C229: FY2014 Cooperative Services Incentives | H229: =VLOOKUP($F$8,'Local Resources'!$A$9:$BL$56,37) -> 25000
C230: FY2014 Retirement Contribution Reimbursement (2013, Wyo. Sess. Laws, Ch. 203, Sec. 2(b)) | H230: =VLOOKUP($F$8,'Local Resources'!$A$9:$BJ$56,38) -> 5313.02
C231: FY2014 Employee Retention Incentive Payment (2013, Wyo. Sess. Laws, Ch. 73, Sec. 330(d)) | H231: =VLOOKUP($F$8,'Local Resources'!$A$9:$BJ$56,39) -> 13372.35
C233: Total General Fund Revenues Not Counted as Local Resources | H233: =VLOOKUP($F$8,'Local Resources'!$A$9:$BL$56,40) -> 5472146.004
... 32 more rows

Sheet Base Sheet
A1: Base Sheet Worksheet
A3: 1 | B3: 2 | C3: 3 | D3: 4 | E3: 5 | F3: 6 | G3: 7 | H3: 8 | I3: 9 | J3: 10 | K3: 11 | L3: 12 | M3: 13 | N3: 14 | O3: 15 | P3: 16 | Q3: 17 | R3: 18 | S3: 19 | T3: 20 | U3: 21 | V3: 22 | W3: 23 | X3: 24 | Y3: 25 | Z3: 26 | AA3: 27 | AB3: 28
D4: Model Generated Resources | K4: Other Add In's | P4: Charter School | Q4: Transportation & Special Education | S4: FY2015 Guarantee and Local Resources | Y4: Entitlement and Recapture Calculations and Statutory Adjustments
E5: Librarians, | S5: FY2015 Model | T5: FY2015 | V5: FY2015 Model | W5: FY2015 | Z5: FY2015 | AA5: Excess
E6: Library Clerks, and | H6: Activities | J6: Model | K6: Total | L6: Total | S6: Guarantee Total | T6: Guarantee | V6: Guarantee Total | W6: Guarantee | Z6: Recapture | AA6: Mills Levied
E7: Computer Techs. | H7: if using | J7: Generated | K7: Reimbursement | L7: Transportation | O7: Total of | P7: 1st Year | S7: to Districts with | T7: Per ADM | U7: Hold | V7: to Districts with | W7: Per ADM | Z7: before | AA7: Recapture | AB7: Adjusted
E8: Consultant | H8: Consultant | J8: Resources | K8: for Buses on | L8: Isolation and Maint. | M8: Total Extra | O8: Reimbursables | P8: Charter School | S8: Reimbursements | T8: before | U8: Harmless | V8: Reimbursements | W8: after | Y8: FY2015 | Z8: Excess Mill | AA8: Limitation Rebate | AB8: FY2015
A9: District ID | B9: District Name | C9: ADM | D9: School Resources | E9: Recommendation | F9: Central Office | G9: M&O | H9: Recommendation | I9: Utilities | J9: Per ADM | K9: or after 3/1/98 | L9: Reimbursements | M9: Compensation | N9: Special Tuition | O9: for Col. 11-14 | P9: Adjustments | Q9: Transportation | R9: Special Education | S9: before Hold Harmless | T9: Hold Harmless | U9: Adjustment | V9: after Hold Harmless | W9: Hold Harmless | X9: Local Resources | Y9: Entitlement | Z9: Rebate | AA9: W.S. 21-13-102g | AB9: Recapture
A10: ='School Reference Sheet'!A5 -> 0101000 | B10: ='School Reference Sheet'!B5 -> Albany #1 | C10: =Inputs!Q8 -> 3767.067 | D10: =Inputs!T8 -> 33141437.48 | E10: ='Librarian, Clerk, Comp Tech.'!T6 -> 0 | F10: ='Central Office'!K6 -> 3070588.451 | G10: ='O&M Base Sheet'!N7 -> 3245166.406 | H10: =IF(Inputs!$D$100=1,C10*Inputs!$D$159,0) -> 0 | I10: =Utilities!T6 -> 1339152.053 | J10: =SUM(D10:I10)/C10 -> 10829.73687 | K10: ='Other Add-In''s'!K13 -> 758559.81 | L10: ='Other Add-In''s'!N13 -> 17579.68 | M10: ='Other Add-In''s'!R13 -> 0 | N10: ='Other Add-In''s'!U13 -> 0 | O10: =SUM(K10:N10) -> 776139.49 | P10: ='Charter School Adjustments'!H8 -> 0 | Q10: =Transportation!C8 -> 3003215.39 | R10: ='Special Education'!C8 -> 9814622.11 | S10: =SUM(D10:I10,O10,P10:R10) -> 54390321.38 | T10: =S10/C10 -> 14438.37378 | U10: ='HH Calculation'!U8 -> 0 | V10: =SUM(S10,U10) -> 54390321.38 | W10: =V10/C10 -> 14438.37378 | X10: ='Local Resources'!BL9 -> 15326664.98 | Y10: =IF(V10-X10>0,V10-X10,0) -> 39063656.4 | Z10: =IF(V10-X10<0,ABS(V10-X10),0) -> 0 | AA10: 0 | AB10: =Z10-AA10 -> 0
A11: ='School Reference Sheet'!A6 -> 0201000 | B11: ='School Reference Sheet'!B6 -> Big Horn #1 | C11: =Inputs!Q9 -> 980.4466667 | D11: =Inputs!T9 -> 10079943.51 | E11: ='Librarian, Clerk, Comp Tech.'!T7 -> 0 | F11: ='Central Office'!K7 -> 1037084.489 | G11: ='O&M Base Sheet'!N8 -> 1156634.398 | H11: =IF(Inputs!$D$100=1,C11*Inputs!$D$159,0) -> 0 | I11: =Utilities!T7 -> 435202.4471 | J11: 12962.32143 | K11: ='Other Add-In''s'!K14 -> 230137 | L11: ='Other Add-In''s'!N14 -> 0 | M11: ='Other Add-In''s'!R14 -> 0 | N11: ='Other Add-In''s'!U14 -> 0 | O11: =SUM(K11:N11) -> 230137 | P11: ='Charter School Adjustments'!H9 -> 0 | Q11: =Transportation!C9 -> 883502.44 | R11: ='Special Education'!C9 -> 1891009.63 | S11: =SUM(D11:I11,O11,P11:R11) -> 15713513.91 | T11: 16026.89309 | U11: ='HH Calculation'!U9 -> 0 | V11: 15713513.91 | W11: =V11/C11 -> 16026.89309 | X11: ='Local Resources'!BL10 -> 3185924.938 | Y11: =IF(V11-X11>0,V11-X11,0) -> 12527588.97 | Z11: =IF(V11-X11<0,ABS(V11-X11),0) -> 0 | AA11: 0 | AB11: =Z11-AA11 -> 0
A12: ='School Reference Sheet'!A7 -> 0202000 | B12: ='School Reference Sheet'!B7 -> Big Horn #2 | C12: =Inputs!Q10 -> 698.818 | D12: =Inputs!T10 -> 6278441.376 | E12: ='Librarian, Clerk, Comp Tech.'!T8 -> 0 | F12: ='Central Office'!K8 -> 841226.2182 | G12: ='O&M Base Sheet'!N9 -> 1002023.913 | H12: =IF(Inputs!$D$100=1,C12*Inputs!$D$159,0) -> 0 | I12: =Utilities!T8 -> 234760.3506 | J12: 11957.98027 | K12: ='Other Add-In''s'!K15 -> 117191.48 | L12: ='Other Add-In''s'!N15 -> 2860.2 | M12: ='Other Add-In''s'!R15 -> 0 | N12: ='Other Add-In''s'!U15 -> 0 | O12: 120051.68 | P12: ='Charter School Adjustments'!H10 -> 0 | Q12: =Transportation!C10 -> 392552.57 | R12: ='Special Education'!C10 -> 1603203.04 | S12: 10472259.15 | T12: 14985.67459 | U12: ='HH Calculation'!U10 -> 0 | V12: 10472259.15 | W12: 14985.67459 | X12: ='Local Resources'!BL11 -> 2175737.377 | Y12: 8296521.771 | Z12: 0 | AA12: 0 | AB12: 0
A13: ='School Reference Sheet'!A8 -> 0203000 | B13: ='School Reference Sheet'!B8 -> Big Horn #3 | C13: =Inputs!Q11 -> 522.6 | D13: =Inputs!T11 -> 4950608.349 | E13: ='Librarian, Clerk, Comp Tech.'!T9 -> 0 | F13: ='Central Office'!K9 -> 685220.1069 | G13: ='O&M Base Sheet'!N10 -> 648724.6561 | H13: =IF(Inputs!$D$100=1,C13*Inputs!$D$159,0) -> 0 | I13: =Utilities!T9 -> 257686.9621 | J13: 12518.63772 | K13: ='Other Add-In''s'!K16 -> 152640.9 | L13: ='Other Add-In''s'!N16 -> 2149.84 | M13: ='Other Add-In''s'!R16 -> 0 | N13: ='Other Add-In''s'!U16 -> 0 | O13: 154790.74 | P13: ='Charter School Adjustments'!H11 -> 0 | Q13: =Transportation!C11 -> 542475.51 | R13: ='Special Education'!C11 -> 1548217.82 | S13: 8787724.144 | T13: 16815.39255 | U13: ='HH Calculation'!U11 -> 0 | V13: 8787724.144 | W13: 16815.39255 | X13: ='Local Resources'!BL12 -> 3541861.959 | Y13: 5245862.185 | Z13: 0 | AA13: 0 | AB13: 0
A14: ='School Reference Sheet'!A9 -> 0204000 | B14: ='School Reference Sheet'!B9 -> Big Horn #4 | C14: =Inputs!Q12 -> 304.8103333 | D14: =Inputs!T12 -> 3819996.022 | E14: ='Librarian, Clerk, Comp Tech.'!T10 -> 0 | F14: ='Central Office'!K10 -> 595015.179 | G14: ='O&M Base Sheet'!N11 -> 568418.9458 | H14: =IF(Inputs!$D$100=1,C14*Inputs!$D$159,0) -> 0 | I14: =Utilities!T10 -> 173272.5125 | J14: 16917.74227 | K14: ='Other Add-In''s'!K17 -> 96733.07 | L14: ='Other Add-In''s'!N17 -> 1105.14 | M14: ='Other Add-In''s'!R17 -> 0 | N14: ='Other Add-In''s'!U17 -> 0 | O14: 97838.21 | P14: ='Charter School Adjustments'!H12 -> 0 | Q14: =Transportation!C12 -> 447513.56 | R14: ='Special Education'!C12 -> 1313048.42 | S14: 7015102.849 | T14: 23014.64905 | U14: ='HH Calculation'!U12 -> 0 | V14: 7015102.849 | W14: 23014.64905 | X14: ='Local Resources'!BL13 -> 1665487.921 | Y14: 5349614.928 | Z14: 0 | AA14: 0 | AB14: 0
A15: ='School Reference Sheet'!A10 -> 0301000 | B15: ='School Reference Sheet'!B10 -> Campbell #1 | C15: =Inputs!Q13 -> 8805.741667 | D15: =Inputs!T13 -> 79353491.29 | E15: ='Librarian, Clerk, Comp Tech.'!T11 -> 0 | F15: ='Central Office'!K11 -> 7756237.647 | G15: ='O&M Base Sheet'!N12 -> 7376456.469 | H15: =IF(Inputs!$D$100=1,C15*Inputs!$D$159,0) -> 0 | I15: =Utilities!T11 -> 2878678.026 | J15: 11056.97477 | K15: ='Other Add-In''s'!K18 -> 1398176.51 | L15: ='Other Add-In''s'!N18 -> 32201.38 | M15: ='Other Add-In''s'!R18 -> 46462.25 | N15: ='Other Add-In''s'!U18 -> 0 | O15: 1476840.14 | P15: ='Charter School Adjustments'!H13 -> 0 | Q15: =Transportation!C13 -> 9003271.99 | R15: ='Special Education'!C13 -> 18157528.01 | S15: 126002503.6 | T15: 14309.13015 | U15: ='HH Calculation'!U13 -> 0 | V15: 126002503.6 | W15: 14309.13015 | X15: ='Local Resources'!BL14 -> 184722732.3 | Y15: 0 | Z15: 58720228.69 | AA15: 0 | AB15: 58720228.69
A16: ='School Reference Sheet'!A11 -> 0401000 | B16: ='School Reference Sheet'!B11 -> Carbon #1 | C16: =Inputs!Q14 -> 1860.820333 | D16: =Inputs!T14 -> 16934270.34 | E16: ='Librarian, Clerk, Comp Tech.'!T12 -> 0 | F16: ='Central Office'!K12 -> 1631847.963 | G16: ='O&M Base Sheet'!N13 -> 1913558.066 | H16: =IF(Inputs!$D$100=1,C16*Inputs!$D$159,0) -> 0 | I16: =Utilities!T12 -> 992757.8781 | J16: 11539.23023 | K16: ='Other Add-In''s'!K19 -> 209910.51 | L16: ='Other Add-In''s'!N19 -> 16161.28 | M16: ='Other Add-In''s'!R19 -> 4048.15 | N16: ='Other Add-In''s'!U19 -> 0 | O16: 230119.94 | P16: ='Charter School Adjustments'!H14 -> 0 | Q16: =Transportation!C14 -> 1297676.99 | R16: ='Special Education'!C14 -> 3492479.44 | S16: 26492710.61 | T16: 14237.11368 | U16: ='HH Calculation'!U14 -> 0 | V16: 26492710.61 | W16: 14237.11368 | X16: ='Local Resources'!BL15 -> 26549942.52 | Y16: 0 | Z16: 57231.90923 | AA16: =Z16*0.0409156775279877 -> 2341.682343 | AB16: 54890.22689
A17: ='School Reference Sheet'!A12 -> 0402000 | B17: ='School Reference Sheet'!B12 -> Carbon #2 | C17: =Inputs!Q15 -> 667.376 | D17: =Inputs!T15 -> 8777190.176 | E17: ='Librarian, Clerk, Comp Tech.'!T13 -> 0 | F17: ='Central Office'!K13 -> 814820.4274 | G17: ='O&M Base Sheet'!N14 -> 1661276.345 | H17: =IF(Inputs!$D$100=1,C17*Inputs!$D$159,0) -> 0 | I17: =Utilities!T13 -> 596519.8791 | J17: 17755.81805 | K17: ='Other Add-In''s'!K20 -> 348412.04 | L17: ='Other Add-In''s'!N20 -> 6771.99 | M17: ='Other Add-In''s'!R20 -> 0 | N17: ='Other Add-In''s'!U20 -> 0 | O17: 355184.03 | P17: ='Charter School Adjustments'!H15 -> 0 | Q17: =Transportation!C15 -> 1017402.43 | R17: ='Special Education'!C15 -> 1890660.09 | S17: 15113053.38 | T17: 22645.48527 | U17: ='HH Calculation'!U15 -> 0 | V17: 15113053.38 | W17: 22645.48527 | X17: ='Local Resources'!BL16 -> 5106322.208 | Y17: 10006731.17 | Z17: 0 | AA17: 0 | AB17: 0
A18: ='School Reference Sheet'!A13 -> 0501000 | B18: ='School Reference Sheet'!B13 -> Converse #1 | C18: =Inputs!Q16 -> 1747.349 | D18: =Inputs!T16 -> 15361687.25 | E18: ='Librarian, Clerk, Comp Tech.'!T14 -> 0 | F18: ='Central Office'!K14 -> 1580978.705 | G18: ='O&M Base Sheet'!N15 -> 2117033.003 | H18: =IF(Inputs!$D$100=1,C18*Inputs!$D$159,0) -> 0 | I18: =Utilities!T14 -> 827416.346 | J18: 11381.30694 | K18: ='Other Add-In''s'!K21 -> 212740.61 | L18: ='Other Add-In''s'!N21 -> 44320.36 | M18: ='Other Add-In''s'!R21 -> 8500 | N18: ='Other Add-In''s'!U21 -> 0 | O18: 265560.97 | P18: ='Charter School Adjustments'!H16 -> 0 | Q18: =Transportation!C16 -> 1131352.52 | R18: ='Special Education'!C16 -> 6882242.15 | S18: 28166270.94 | T18: 16119.4306 | U18: ='HH Calculation'!U16 -> 0 | V18: 28166270.94 | W18: 16119.4306 | X18: ='Local Resources'!BL17 -> 33646916.52 | Y18: 0 | Z18: 5480645.575 | AA18: 0 | AB18: 5480645.575
A19: ='School Reference Sheet'!A14 -> 0502000 | B19: ='School Reference Sheet'!B14 -> Converse #2 | C19: =Inputs!Q17 -> 688.2403333 | D19: =Inputs!T17 -> 6589919.739 | E19: ='Librarian, Clerk, Comp Tech.'!T15 -> 0 | F19: ='Central Office'!K15 -> 823776.2486 | G19: ='O&M Base Sheet'!N16 -> 900390.0944 | H19: =IF(Inputs!$D$100=1,C19*Inputs!$D$159,0) -> 0 | I19: =Utilities!T15 -> 388025.0694 | J19: 12644.00055 | K19: ='Other Add-In''s'!K22 -> 77859.36 | L19: ='Other Add-In''s'!N22 -> 6510.85 | M19: ='Other Add-In''s'!R22 -> 0 | N19: ='Other Add-In''s'!U22 -> 0 | O19: 84370.21 | P19: ='Charter School Adjustments'!H17 -> 0 | Q19: =Transportation!C17 -> 435715.8 | R19: ='Special Education'!C17 -> 1458736.23 | S19: 10680933.39 | T19: 15519.1913 | U19: ='HH Calculation'!U17 -> 0 | V19: 10680933.39 | W19: 15519.1913 | X19: ='Local Resources'!BL18 -> 12857817.64 | Y19: 0 | Z19: 2176884.245 | AA19: 0 | AB19: 2176884.245
A20: ='School Reference Sheet'!A15 -> 0601000 | B20: ='School Reference Sheet'!B15 -> Crook #1 | C20: =Inputs!Q18 -> 1116.975333 | D20: =Inputs!T18 -> 12087610.27 | E20: ='Librarian, Clerk, Comp Tech.'!T16 -> 0 | F20: ='Central Office'!K16 -> 1139515.73 | G20: ='O&M Base Sheet'!N17 -> 1589781.978 | H20: =IF(Inputs!$D$100=1,C20*Inputs!$D$159,0) -> 0 | I20: =Utilities!T16 -> 357483.3033 | J20: 13585.25191 | K20: ='Other Add-In''s'!K23 -> 494934.57 | L20: ='Other Add-In''s'!N23 -> 86818.12 | M20: ='Other Add-In''s'!R23 -> 0 | N20: ='Other Add-In''s'!U23 -> 193945 | O20: 775697.69 | P20: ='Charter School Adjustments'!H18 -> 0 | Q20: =Transportation!C18 -> 1217224.48 | R20: ='Special Education'!C18 -> 2767278.76 | S20: 19934592.22 | T20: 17846.94041 | U20: ='HH Calculation'!U18 -> 0 | V20: 19934592.22 | W20: 17846.94041 | X20: ='Local Resources'!BL19 -> 8820136.207 | Y20: 11114456.01 | Z20: 0 | AA20: 0 | AB20: 0
A21: ='School Reference Sheet'!A16 -> 0701000 | B21: ='School Reference Sheet'!B16 -> Fremont # 1 | C21: =Inputs!Q19 -> 1688.173667 | D21: =Inputs!T19 -> 15031852.77 | E21: ='Librarian, Clerk, Comp Tech.'!T17 -> 0 | F21: ='Central Office'!K17 -> 1582686.721 | G21: ='O&M Base Sheet'!N18 -> 2213111.804 | H21: =IF(Inputs!$D$100=1,C21*Inputs!$D$159,0) -> 0 | I21: =Utilities!T17 -> 801492.0682 | J21: 11627.44317 | K21: ='Other Add-In''s'!K24 -> 414374.62 | L21: ='Other Add-In''s'!N24 -> 0 | M21: ='Other Add-In''s'!R24 -> 3653.1 | N21: ='Other Add-In''s'!U24 -> 0 | O21: 418027.72 | P21: ='Charter School Adjustments'!H19 -> 0 | Q21: =Transportation!C19 -> 1337248.99 | R21: ='Special Education'!C19 -> 4416163.69 | S21: 25800583.76 | T21: 15283.13365 | U21: ='HH Calculation'!U19 -> 0 | V21: 25800583.76 | W21: 15283.13365 | X21: ='Local Resources'!BL20 -> 9933578.902 | Y21: 15867004.86 | Z21: 0 | AA21: 0 | AB21: 0
A22: ='School Reference Sheet'!A17 -> 0702000 | B22: ='School Reference Sheet'!B17 -> Fremont # 2 | C22: =Inputs!Q20 -> 160.8453333 | D22: =Inputs!T20 -> 2179626.493 | E22: ='Librarian, Clerk, Comp Tech.'!T18 -> 0 | F22: ='Central Office'!K18 -> 577145.8732 | G22: ='O&M Base Sheet'!N19 -> 358623.8592 | H22: =IF(Inputs!$D$100=1,C22*Inputs!$D$159,0) -> 0 | I22: =Utilities!T18 -> 246502.0182 | J22: 20901.43478 | K22: ='Other Add-In''s'!K25 -> 56444.11 | L22: ='Other Add-In''s'!N25 -> 4222.58 | M22: ='Other Add-In''s'!R25 -> 0 | N22: ='Other Add-In''s'!U25 -> 0 | O22: 60666.69 | P22: ='Charter School Adjustments'!H20 -> 0 | Q22: =Transportation!C20 -> 252348.5 | R22: ='Special Education'!C20 -> 506458.49 | S22: 4181371.924 | T22: 25996.22779 | U22: ='HH Calculation'!U20 -> 0 | V22: 4181371.924 | W22: 25996.22779 | X22: ='Local Resources'!BL21 -> 2401672.422 | Y22: 1779699.502 | Z22: 0 | AA22: 0 | AB22: 0
A23: ='School Reference Sheet'!A18 -> 0706000 | B23: ='School Reference Sheet'!B18 -> Fremont # 6 | C23: =Inputs!Q21 -> 383.8273333 | D23: =Inputs!T21 -> 4218897.927 | E23: ='Librarian, Clerk, Comp Tech.'!T19 -> 0 | F23: ='Central Office'!K19 -> 664093.7852 | G23: ='O&M Base Sheet'!N20 -> 848654.1197 | H23: =IF(Inputs!$D$100=1,C23*Inputs!$D$159,0) -> 0 | I23: =Utilities!T19 -> 204055.7222 | J23: 15464.50979 | K23: ='Other Add-In''s'!K26 -> 166022.372 | L23: ='Other Add-In''s'!N26 -> 7091.56 | M23: ='Other Add-In''s'!R26 -> 4341.24 | N23: ='Other Add-In''s'!U26 -> 0 | O23: 177455.172 | P23: ='Charter School Adjustments'!H21 -> 0 | Q23: =Transportation!C21 -> 659760.17 | R23: ='Special Education'!C21 -> 1246517.51 | S23: 8019434.406 | T23: 20893.33851 | U23: ='HH Calculation'!U21 -> 0 | V23: 8019434.406 | W23: 20893.33851 | X23: ='Local Resources'!BL22 -> 2730383.361 | Y23: 5289051.044 | Z23: 0 | AA23: 0 | AB23: 0
A24: ='School Reference Sheet'!A19 -> 0714000 | B24: ='School Reference Sheet'!B19 -> Fremont #14 | C24: =Inputs!Q22 -> 618.6676667 | D24: =Inputs!T22 -> 6199131.348 | E24: ='Librarian, Clerk, Comp Tech.'!T20 -> 0 | F24: ='Central Office'!K20 -> 803613.8261 | G24: ='O&M Base Sheet'!N21 -> 1510491.232 | H24: =IF(Inputs!$D$100=1,C24*Inputs!$D$159,0) -> 0 | I24: =Utilities!T20 -> 397216.744 | J24: 14402.64884 | K24: ='Other Add-In''s'!K27 -> 99901 | L24: ='Other Add-In''s'!N27 -> 0 | M24: ='Other Add-In''s'!R27 -> 0 | N24: ='Other Add-In''s'!U27 -> 0 | O24: 99901 | P24: ='Charter School Adjustments'!H22 -> 0 | Q24: =Transportation!C22 -> 676778.49 | R24: ='Special Education'!C22 -> 1915259.59 | S24: 11602392.23 | T24: 18753.83644 | U24: ='HH Calculation'!U22 -> 0 | V24: 11602392.23 | W24: 18753.83644 | X24: ='Local Resources'!BL23 -> 1107214.043 | Y24: 10495178.19 | Z24: 0 | AA24: 0 | AB24: 0
A25: ='School Reference Sheet'!A20 -> 0721000 | B25: ='School Reference Sheet'!B20 -> Fremont #21 | C25: =Inputs!Q23 -> 481.0643333 | D25: =Inputs!T23 -> 5393704.846 | E25: ='Librarian, Clerk, Comp Tech.'!T21 -> 0 | F25: ='Central Office'!K21 -> 719869.2805 | G25: ='O&M Base Sheet'!N22 -> 682991.2317 | H25: =IF(Inputs!$D$100=1,C25*Inputs!$D$159,0) -> 0 | I25: =Utilities!T21 -> 197977.6974 | J25: 14539.72488 | K25: ='Other Add-In''s'!K28 -> 331003.43 | L25: ='Other Add-In''s'!N28 -> 0 | M25: ='Other Add-In''s'!R28 -> 0 | N25: ='Other Add-In''s'!U28 -> 0 | O25: 331003.43 | P25: ='Charter School Adjustments'!H23 -> 0 | Q25: =Transportation!C23 -> 420271 | R25: ='Special Education'!C23 -> 2146018.74 | S25: 9891836.225 | T25: 20562.39788 | U25: ='HH Calculation'!U23 -> 0 | V25: 9891836.225 | W25: 20562.39788 | X25: ='Local Resources'!BL24 -> 982331.8727 | Y25: 8909504.353 | Z25: 0 | AA25: 0 | AB25: 0
A26: ='School Reference Sheet'!A21 -> 0724000 | B26: ='School Reference Sheet'!B21 -> Fremont #24 | C26: =Inputs!Q24 -> 359.9916667 | D26: =Inputs!T24 -> 3860183.362 | E26: ='Librarian, Clerk, Comp Tech.'!T22 -> 0 | F26: ='Central Office'!K22 -> 613876.1011 | G26: ='O&M Base Sheet'!N23 -> 555174.9289 | H26: =IF(Inputs!$D$100=1,C26*Inputs!$D$159,0) -> 0 | I26: =Utilities!T22 -> 170013.1293 | J26: 14442.68855 | K26: ='Other Add-In''s'!K29 -> 83490.87 | L26: ='Other Add-In''s'!N29 -> 11864.56 | M26: ='Other Add-In''s'!R29 -> 0 | N26: ='Other Add-In''s'!U29 -> 0 | O26: 95355.43 | P26: ='Charter School Adjustments'!H24 -> 0 | Q26: =Transportation!C24 -> 513671.05 | R26: ='Special Education'!C24 -> 1201475.25 | S26: 7009749.252 | T26: 19471.97644 | U26: ='HH Calculation'!U24 -> 0 | V26: 7009749.252 | W26: 19471.97644 | X26: ='Local Resources'!BL25 -> 7437163.598 | Y26: 0 | Z26: 427414.3463 | AA26: 0 | AB26: 427414.3463
A27: ='School Reference Sheet'!A22 -> 0725000 | B27: ='School Reference Sheet'!B22 -> Fremont #25 | C27: =Inputs!Q25 -> 2604.278333 | D27: =Inputs!T25 -> 22430240.79 | E27: ='Librarian, Clerk, Comp Tech.'!T23 -> 0 | F27: ='Central Office'!K23 -> 2196456.297 | G27: ='O&M Base Sheet'!N24 -> 2222256.693 | H27: =IF(Inputs!$D$100=1,C27*Inputs!$D$159,0) -> 0 | I27: =Utilities!T23 -> 971205.0766 | J27: 10682.48294 | K27: ='Other Add-In''s'!K30 -> 277666.09 | L27: ='Other Add-In''s'!N30 -> 0 | M27: ='Other Add-In''s'!R30 -> 0 | N27: ='Other Add-In''s'!U30 -> 0 | O27: 277666.09 | P27: ='Charter School Adjustments'!H25 -> 0 | Q27: =Transportation!C25 -> 1315969.23 | R27: ='Special Education'!C25 -> 7767857.54 | S27: 37181651.71 | T27: 14277.14205 | U27: ='HH Calculation'!U25 -> 0 | V27: 37181651.71 | W27: 14277.14205 | X27: ='Local Resources'!BL26 -> 8509102.024 | Y27: 28672549.69 | Z27: 0 | AA27: 0 | AB27: 0
A28: ='School Reference Sheet'!A23 -> 0738000 | B28: ='School Reference Sheet'!B23 -> Fremont #38 | C28: =Inputs!Q26 -> 433.242 | D28: =Inputs!T26 -> 4458201.233 | E28: ='Librarian, Clerk, Comp Tech.'!T24 -> 0 | F28: ='Central Office'!K24 -> 671130.4432 | G28: ='O&M Base Sheet'!N25 -> 1049729.309 | H28: =IF(Inputs!$D$100=1,C28*Inputs!$D$159,0) -> 0 | I28: =Utilities!T24 -> 209654.6299 | J28: 14746.29795 | K28: ='Other Add-In''s'!K31 -> 145510.706 | L28: ='Other Add-In''s'!N31 -> 0 | M28: ='Other Add-In''s'!R31 -> 0 | N28: ='Other Add-In''s'!U31 -> 724616.3 | O28: 870127.006 | P28: ='Charter School Adjustments'!H26 -> 0 | Q28: =Transportation!C26 -> 733924.8 | R28: ='Special Education'!C26 -> 1630127.64 | S28: 9622895.061 | T28: 22211.36238 | U28: ='HH Calculation'!U26 -> 0 | V28: 9622895.061 | W28: 22211.36238 | X28: ='Local Resources'!BL27 -> 714951.0262 | Y28: 8907944.035 | Z28: 0 | AA28: 0 | AB28: 0
A29: ='School Reference Sheet'!A24 -> 0801000 | B29: ='School Reference Sheet'!B24 -> Goshen #1 | C29: =Inputs!Q27 -> 1729.953667 | D29: =Inputs!T27 -> 17712905.11 | E29: ='Librarian, Clerk, Comp Tech.'!T25 -> 0 | F29: ='Central Office'!K25 -> 1541981.896 | G29: ='O&M Base Sheet'!N26 -> 2234267.576 | H29: =IF(Inputs!$D$100=1,C29*Inputs!$D$159,0) -> 0 | I29: =Utilities!T25 -> 921445.4578 | J29: 12954.45102 | K29: ='Other Add-In''s'!K32 -> 375806.92 | L29: ='Other Add-In''s'!N32 -> 0 | M29: ='Other Add-In''s'!R32 -> 0 | N29: ='Other Add-In''s'!U32 -> 0 | O29: 375806.92 | P29: ='Charter School Adjustments'!H27 -> 0 | Q29: =Transportation!C27 -> 1685439.08 | R29: ='Special Education'!C27 -> 4082633.76 | S29: 28554479.8 | T29: 16505.92172 | U29: ='HH Calculation'!U27 -> 0 | V29: 28554479.8 | W29: 16505.92172 | X29: ='Local Resources'!BL28 -> 7483162.316 | Y29: 21071317.48 | Z29: 0 | AA29: 0 | AB29: 0
A30: ='School Reference Sheet'!A25 -> 0901000 | B30: ='School Reference Sheet'!B25 -> Hot Springs #1 | C30: =Inputs!Q28 -> 639.0933333 | D30: =Inputs!T28 -> 5643347.676 | E30: ='Librarian, Clerk, Comp Tech.'!T26 -> 0 | F30: ='Central Office'!K26 -> 796455.728 | G30: ='O&M Base Sheet'!N27 -> 838995.2256 | H30: =IF(Inputs!$D$100=1,C30*Inputs!$D$159,0) -> 0 | I30: =Utilities!T26 -> 446969.7481 | J30: 12088.63866 | K30: ='Other Add-In''s'!K33 -> 120217.51 | L30: ='Other Add-In''s'!N33 -> 5264.61 | M30: ='Other Add-In''s'!R33 -> 0 | N30: ='Other Add-In''s'!U33 -> 0 | O30: 125482.12 | P30: ='Charter School Adjustments'!H28 -> 0 | Q30: =Transportation!C28 -> 791445.74 | R30: ='Special Education'!C28 -> 2016260.6 | S30: 10658956.84 | T30: 16678.24758 | U30: ='HH Calculation'!U28 -> 0 | V30: 10658956.84 | W30: 16678.24758 | X30: ='Local Resources'!BL29 -> 7905268.868 | Y30: 2753687.969 | Z30: 0 | AA30: 0 | AB30: 0
A31: ='School Reference Sheet'!A26 -> 1001000 | B31: ='School Reference Sheet'!B26 -> Johnson #1 | C31: =Inputs!Q29 -> 1277.220667 | D31: =Inputs!T29 -> 12234738.58 | E31: ='Librarian, Clerk, Comp Tech.'!T27 -> 0 | F31: ='Central Office'!K27 -> 1282110.866 | G31: ='O&M Base Sheet'!N28 -> 2434112.032 | H31: =IF(Inputs!$D$100=1,C31*Inputs!$D$159,0) -> 0 | I31: =Utilities!T27 -> 427620.7939 | J31: 12823.61201 | K31: ='Other Add-In''s'!K34 -> 130660.66 | L31: ='Other Add-In''s'!N34 -> 31189.98 | M31: ='Other Add-In''s'!R34 -> 25620 | N31: ='Other Add-In''s'!U34 -> 0 | O31: 187470.64 | P31: ='Charter School Adjustments'!H29 -> 0 | Q31: =Transportation!C29 -> 1170133.41 | R31: ='Special Education'!C29 -> 2410074.72 | S31: 20146261.04 | T31: 15773.51633 | U31: ='HH Calculation'!U29 -> 0 | V31: 20146261.04 | W31: 15773.51633 | X31: ='Local Resources'!BL30 -> 29966033.25 | Y31: 0 | Z31: 9819772.21 | AA31: 0 | AB31: 9819772.21
A32: ='School Reference Sheet'!A27 -> 1101000 | B32: ='School Reference Sheet'!B27 -> Laramie #1 | C32: =Inputs!Q30 -> 13691.802 | D32: =Inputs!T30 -> 125554553.2 | E32: ='Librarian, Clerk, Comp Tech.'!T28 -> 0 | F32: ='Central Office'!K28 -> 12766456.81 | G32: ='O&M Base Sheet'!N29 -> 12711862.2 | H32: =IF(Inputs!$D$100=1,C32*Inputs!$D$159,0) -> 0 | I32: =Utilities!T28 -> 4382556.437 | J32: 11350.98423 | K32: ='Other Add-In''s'!K35 -> 753507.04 | L32: ='Other Add-In''s'!N35 -> 0 | M32: ='Other Add-In''s'!R35 -> 75034.45 | N32: ='Other Add-In''s'!U35 -> 0 | O32: 828541.49 | P32: ='Charter School Adjustments'!H30 -> 0 | Q32: =Transportation!C30 -> 8115891.36 | R32: ='Special Education'!C30 -> 27308357.57 | S32: 191668219 | T32: 13998.75773 | U32: ='HH Calculation'!U30 -> 0 | V32: 191668219 | W32: 13998.75773 | X32: ='Local Resources'!BL31 -> 41080568.14 | Y32: 150587650.9 | Z32: 0 | AA32: 0 | AB32: 0
A33: ='School Reference Sheet'!A28 -> 1102000 | B33: ='School Reference Sheet'!B28 -> Laramie #2 | C33: =Inputs!Q31 -> 967.203 | D33: =Inputs!T31 -> 9922142.445 | E33: ='Librarian, Clerk, Comp Tech.'!T29 -> 0 | F33: ='Central Office'!K29 -> 1043600.211 | G33: ='O&M Base Sheet'!N30 -> 1342951.199 | H33: =IF(Inputs!$D$100=1,C33*Inputs!$D$159,0) -> 0 | I33: =Utilities!T29 -> 494422.8665 | J33: 13237.25911 | K33: ='Other Add-In''s'!K36 -> 346323.31 | L33: ='Other Add-In''s'!N36 -> 0 | M33: ='Other Add-In''s'!R36 -> 0 | N33: ='Other Add-In''s'!U36 -> 0 | O33: 346323.31 | P33: ='Charter School Adjustments'!H31 -> 0 | Q33: =Transportation!C31 -> 1753761.53 | R33: ='Special Education'!C31 -> 2542250.62 | S33: 17445452.18 | T33: 18037.01207 | U33: ='HH Calculation'!U31 -> 0 | V33: 17445452.18 | W33: 18037.01207 | X33: ='Local Resources'!BL32 -> 4769708.129 | Y33: 12675744.05 | Z33: 0 | AA33: 0 | AB33: 0
A34: ='School Reference Sheet'!A29 -> 1201000 | B34: ='School Reference Sheet'!B29 -> Lincoln #1 | C34: =Inputs!Q32 -> 619.668 | D34: =Inputs!T32 -> 5537580.155 | E34: ='Librarian, Clerk, Comp Tech.'!T30 -> 0 | F34: ='Central Office'!K30 -> 786049.7845 | G34: ='O&M Base Sheet'!N31 -> 1063547.427 | H34: =IF(Inputs!$D$100=1,C34*Inputs!$D$159,0) -> 0 | I34: =Utilities!T30 -> 436805.5056 | J34: 12626.08828 | K34: ='Other Add-In''s'!K37 -> 98467.28 | L34: ='Other Add-In''s'!N37 -> 1167.24 | M34: ='Other Add-In''s'!R37 -> 0 | N34: ='Other Add-In''s'!U37 -> 0 | O34: 99634.52 | P34: ='Charter School Adjustments'!H32 -> 0 | Q34: =Transportation!C32 -> 506318.91 | R34: ='Special Education'!C32 -> 1501775.58 | S34: 9931711.882 | T34: 16027.47259 | U34: ='HH Calculation'!U32 -> 0 | V34: 9931711.882 | W34: 16027.47259 | X34: ='Local Resources'!BL33 -> 14822065.87 | Y34: 0 | Z34: 4890353.987 | AA34: =Z34*0.0260290946810526 -> 127291.4869 | AB34: 4763062.5
A35: ='School Reference Sheet'!A30 -> 1202000 | B35: ='School Reference Sheet'!B30 -> Lincoln #2 | C35: =Inputs!Q33 -> 2629.336333 | D35: =Inputs!T33 -> 23485808.96 | E35: ='Librarian, Clerk, Comp Tech.'!T31 -> 0 | F35: ='Central Office'!K31 -> 2195030.112 | G35: ='O&M Base Sheet'!N32 -> 2836551.915 | H35: =IF(Inputs!$D$100=1,C35*Inputs!$D$159,0) -> 0 | I35: =Utilities!T31 -> 1037544.365 | J35: 11240.45447 | K35: ='Other Add-In''s'!K38 -> 492272.2 | L35: ='Other Add-In''s'!N38 -> 0 | M35: ='Other Add-In''s'!R38 -> 0 | N35: ='Other Add-In''s'!U38 -> 0 | O35: 492272.2 | P35: ='Charter School Adjustments'!H33 -> 0 | Q35: =Transportation!C33 -> 3150272.39 | R35: ='Special Education'!C33 -> 6265620.81 | S35: 39463100.75 | T35: 15008.76866 | U35: ='HH Calculation'!U33 -> 0 | V35: 39463100.75 | W35: 15008.76866 | X35: ='Local Resources'!BL34 -> 11022759.03 | Y35: 28440341.73 | Z35: 0 | AA35: 0 | AB35: 0
A36: ='School Reference Sheet'!A31 -> 1301000 | B36: ='School Reference Sheet'!B31 -> Natrona #1 | C36: =Inputs!Q34 -> 12825.43833 | D36: =Inputs!T34 -> 116410715.1 | E36: ='Librarian, Clerk, Comp Tech.'!T32 -> 0 | F36: ='Central Office'!K32 -> 11555042.56 | G36: ='O&M Base Sheet'!N33 -> 9542386.296 | H36: =IF(Inputs!$D$100=1,C36*Inputs!$D$159,0) -> 0 | I36: =Utilities!T32 -> 3564367.244 | J36: 10999.43 | K36: ='Other Add-In''s'!K39 -> 721963.28 | L36: ='Other Add-In''s'!N39 -> 41001.7 | M36: ='Other Add-In''s'!R39 -> 51162.41 | N36: ='Other Add-In''s'!U39 -> 0 | O36: 814127.39 | P36: ='Charter School Adjustments'!H34 -> 0 | Q36: =Transportation!C34 -> 8974641.12 | R36: ='Special Education'!C34 -> 26106426.95 | S36: 176967706.6 | T36: 13798.18 | U36: ='HH Calculation'!U34 -> 0 | V36: 176967706.6 | W36: 13798.18 | X36: ='Local Resources'!BL35 -> 53867107.66 | Y36: 123100599 | Z36: 0 | AA36: 0 | AB36: 0
A37: ='School Reference Sheet'!A32 -> 1401000 | B37: ='School Reference Sheet'!B32 -> Niobrara #1 | C37: =Inputs!Q35 -> 933.7623333 | D37: =Inputs!T35 -> 8058407.897 | E37: ='Librarian, Clerk, Comp Tech.'!T33 -> 0 | F37: ='Central Office'!K33 -> 995565.7637 | G37: ='O&M Base Sheet'!N34 -> 867098.1473 | H37: =IF(Inputs!$D$100=1,C37*Inputs!$D$159,0) -> 0 | I37: =Utilities!T33 -> 208377.4649 | J37: 10847.99516 | K37: ='Other Add-In''s'!K40 -> 76363 | L37: ='Other Add-In''s'!N40 -> 31731.8 | M37: ='Other Add-In''s'!R40 -> 0 | N37: ='Other Add-In''s'!U40 -> 0 | O37: 108094.8 | P37: ='Charter School Adjustments'!H35 -> 0 | Q37: =Transportation!C35 -> 460760.91 | R37: ='Special Education'!C35 -> 1698719.97 | S37: 12397024.95 | T37: 13276.42432 | U37: ='HH Calculation'!U35 -> 0 | V37: 12397024.95 | W37: 13276.42432 | X37: ='Local Resources'!BL36 -> 4641215.95 | Y37: 7755809.002 | Z37: 0 | AA37: 0 | AB37: 0
A38: ='School Reference Sheet'!A33 -> 1501000 | B38: ='School Reference Sheet'!B33 -> Park # 1 | C38: =Inputs!Q36 -> 1709.268 | D38: =Inputs!T36 -> 15630914.18 | E38: ='Librarian, Clerk, Comp Tech.'!T34 -> 0 | F38: ='Central Office'!K34 -> 1571828.316 | G38: ='O&M Base Sheet'!N35 -> 1664079.071 | H38: =IF(Inputs!$D$100=1,C38*Inputs!$D$159,0) -> 0 | I38: =Utilities!T34 -> 577160.0032 | J38: 11375.61902 | K38: ='Other Add-In''s'!K41 -> 218709.21 | L38: ='Other Add-In''s'!N41 -> 778.04 | M38: ='Other Add-In''s'!R41 -> 0 | N38: ='Other Add-In''s'!U41 -> 0 | O38: 219487.25 | P38: ='Charter School Adjustments'!H36 -> 0 | Q38: =Transportation!C36 -> 1165850.69 | R38: ='Special Education'!C36 -> 3513118.12 | S38: 24342437.63 | T38: 14241.43998 | U38: ='HH Calculation'!U36 -> 0 | V38: 24342437.63 | W38: 14241.43998 | X38: ='Local Resources'!BL37 -> 10040108.61 | Y38: 14302329.02 | Z38: 0 | AA38: 0 | AB38: 0
A39: ='School Reference Sheet'!A34 -> 1506000 | B39: ='School Reference Sheet'!B34 -> Park # 6 | C39: =Inputs!Q37 -> 2132.375667 | D39: =Inputs!T37 -> 19205446.77 | E39: ='Librarian, Clerk, Comp Tech.'!T35 -> 0 | F39: ='Central Office'!K35 -> 1882871.708 | G39: ='O&M Base Sheet'!N36 -> 1907523.704 | H39: =IF(Inputs!$D$100=1,C39*Inputs!$D$159,0) -> 0 | I39: =Utilities!T35 -> 551571.0871 | J39: 11042.80715 | K39: ='Other Add-In''s'!K42 -> 248039.78 | L39: ='Other Add-In''s'!N42 -> 945.59 | M39: ='Other Add-In''s'!R42 -> 11096.18 | N39: ='Other Add-In''s'!U42 -> 0 | O39: 260081.55 | P39: ='Charter School Adjustments'!H37 -> 0 | Q39: =Transportation!C37 -> 1350780.38 | R39: ='Special Education'!C37 -> 4980521.41 | S39: 30138796.61 | T39: 14133.90571 | U39: ='HH Calculation'!U37 -> 0 | V39: 30138796.61 | W39: 14133.90571 | X39: ='Local Resources'!BL38 -> 14893191.49 | Y39: 15245605.12 | Z39: 0 | AA39: 0 | AB39: 0
A40: ='School Reference Sheet'!A35 -> 1516000 | B40: ='School Reference Sheet'!B35 -> Park #16 | C40: =Inputs!Q38 -> 116.776 | D40: =Inputs!T38 -> 1774265.556 | E40: ='Librarian, Clerk, Comp Tech.'!T36 -> 0 | F40: ='Central Office'!K36 -> 561142.0181 | G40: ='O&M Base Sheet'!N37 -> 304953.1292 | H40: =IF(Inputs!$D$100=1,C40*Inputs!$D$159,0) -> 0 | I40: =Utilities!T36 -> 109799.2334 | J40: 23550.72906 | K40: ='Other Add-In''s'!K43 -> 70640.67 | L40: ='Other Add-In''s'!N43 -> 0 | M40: ='Other Add-In''s'!R43 -> 0 | N40: ='Other Add-In''s'!U43 -> 0 | O40: 70640.67 | P40: ='Charter School Adjustments'!H38 -> 0 | Q40: =Transportation!C38 -> 189820.4 | R40: ='Special Education'!C38 -> 401446.45 | S40: 3412067.457 | T40: 29218.91019 | U40: ='HH Calculation'!U38 -> 0 | V40: 3412067.457 | W40: 29218.91019 | X40: ='Local Resources'!BL39 -> 5241177.455 | Y40: 0 | Z40: 1829109.998 | AA40: 0 | AB40: 1829109.998
A41: ='School Reference Sheet'!A36 -> 1601000 | B41: ='School Reference Sheet'!B36 -> Platte #1 | C41: =Inputs!Q39 -> 1045.170667 | D41: =Inputs!T39 -> 10304193.52 | E41: ='Librarian, Clerk, Comp Tech.'!T37 -> 0 | F41: ='Central Office'!K37 -> 1053412.117 | G41: ='O&M Base Sheet'!N38 -> 1292495.805 | H41: =IF(Inputs!$D$100=1,C41*Inputs!$D$159,0) -> 0 | I41: =Utilities!T37 -> 576224.0701 | J41: 12654.70409 | K41: ='Other Add-In''s'!K44 -> 313903.7 | L41: ='Other Add-In''s'!N44 -> 10619.46 | M41: ='Other Add-In''s'!R44 -> 0 | N41: ='Other Add-In''s'!U44 -> 0 | O41: 324523.16 | P41: ='Charter School Adjustments'!H39 -> 0 | Q41: =Transportation!C39 -> 987921.56 | R41: ='Special Education'!C39 -> 2551814.68 | S41: 17090584.91 | T41: 16351.95615 | U41: ='HH Calculation'!U39 -> 0 | V41: 17090584.91 | W41: 16351.95615 | X41: ='Local Resources'!BL40 -> 5739762.155 | Y41: 11350822.75 | Z41: 0 | AA41: 0 | AB41: 0
A42: ='School Reference Sheet'!A37 -> 1602000 | B42: ='School Reference Sheet'!B37 -> Platte #2 | C42: =Inputs!Q40 -> 217.765 | D42: =Inputs!T40 -> 2905688.667 | E42: ='Librarian, Clerk, Comp Tech.'!T38 -> 0 | F42: ='Central Office'!K38 -> 588064.3961 | G42: ='O&M Base Sheet'!N39 -> 450600.4243 | H42: =IF(Inputs!$D$100=1,C42*Inputs!$D$159,0) -> 0 | I42: =Utilities!T38 -> 144701.8041 | J42: 18777.37603 | K42: ='Other Add-In''s'!K45 -> 19862 | L42: ='Other Add-In''s'!N45 -> 2489.96 | M42: ='Other Add-In''s'!R45 -> 0 | N42: ='Other Add-In''s'!U45 -> 0 | O42: 22351.96 | P42: ='Charter School Adjustments'!H40 -> 0 | Q42: =Transportation!C40 -> 130167.57 | R42: ='Special Education'!C40 -> 585806.54 | S42: 4827381.362 | T42: =S42/C42 -> 22167.84773 | U42: ='HH Calculation'!U40 -> 0 | V42: 4827381.362 | W42: 22167.84773 | X42: ='Local Resources'!BL41 -> 1028477.783 | Y42: 3798903.579 | Z42: 0 | AA42: 0 | AB42: 0
A43: ='School Reference Sheet'!A38 -> 1701000 | B43: ='School Reference Sheet'!B38 -> Sheridan #1 | C43: =Inputs!Q41 -> 967.258 | D43: =Inputs!T41 -> 9626262.163 | E43: ='Librarian, Clerk, Comp Tech.'!T39 -> 0 | F43: ='Central Office'!K39 -> 1051519.84 | G43: ='O&M Base Sheet'!N40 -> 1367336.285 | H43: =IF(Inputs!$D$100=1,C43*Inputs!$D$159,0) -> 0 | I43: =Utilities!T39 -> 301256.8612 | J43: 12764.30399 | K43: ='Other Add-In''s'!K46 -> 93679.36 | L43: ='Other Add-In''s'!N46 -> 6832.34 | M43: ='Other Add-In''s'!R46 -> 3056.75 | N43: ='Other Add-In''s'!U46 -> 0 | O43: 103568.45 | P43: ='Charter School Adjustments'!H41 -> 0 | Q43: =Transportation!C41 -> 712187.66 | R43: ='Special Education'!C41 -> 1378464.83 | S43: 14540596.09 | T43: 15032.80003 | U43: ='HH Calculation'!U41 -> 0 | V43: 14540596.09 | W43: 15032.80003 | X43: ='Local Resources'!BL42 -> 3278189.873 | Y43: 11262406.22 | Z43: 0 | AA43: 0 | AB43: 0
A44: ='School Reference Sheet'!A39 -> 1702000 | B44: ='School Reference Sheet'!B39 -> Sheridan #2 | C44: =Inputs!Q42 -> 3331.798333 | D44: =Inputs!T42 -> 29990799.2 | E44: ='Librarian, Clerk, Comp Tech.'!T40 -> 0 | F44: ='Central Office'!K40 -> 2818477.426 | G44: ='O&M Base Sheet'!N41 -> 2782242.503 | H44: =IF(Inputs!$D$100=1,C44*Inputs!$D$159,0) -> 0 | I44: =Utilities!T40 -> 882129.9502 | J44: 10947.13588 | K44: ='Other Add-In''s'!K47 -> 353503.852 | L44: ='Other Add-In''s'!N47 -> 8148.25 | M44: ='Other Add-In''s'!R47 -> 0 | N44: ='Other Add-In''s'!U47 -> 0 | O44: 361652.102 | P44: ='Charter School Adjustments'!H42 -> 0 | Q44: =Transportation!C42 -> 1730646.81 | R44: ='Special Education'!C42 -> 7074205.79 | S44: 45640153.78 | T44: 13698.35423 | U44: ='HH Calculation'!U42 -> 0 | V44: 45640153.78 | W44: 13698.35423 | X44: ='Local Resources'!BL43 -> 13204112.18 | Y44: 32436041.6 | Z44: 0 | AA44: 0 | AB44: 0
A45: ='School Reference Sheet'!A40 -> 1703000 | B45: ='School Reference Sheet'!B40 -> Sheridan #3 | C45: =Inputs!Q43 -> 96.87833333 | D45: =Inputs!T43 -> 2277387.405 | E45: ='Librarian, Clerk, Comp Tech.'!T41 -> 0 | F45: ='Central Office'!K41 -> 550908.4146 | G45: ='O&M Base Sheet'!N42 -> 155149.657 | H45: =IF(Inputs!$D$100=1,C45*Inputs!$D$159,0) -> 0 | I45: =Utilities!T41 -> 93727.2786 | J45: 31763.271 | K45: ='Other Add-In''s'!K48 -> 44018.47 | L45: ='Other Add-In''s'!N48 -> 255.3 | M45: ='Other Add-In''s'!R48 -> 0 | N45: ='Other Add-In''s'!U48 -> 0 | O45: 44273.77 | P45: ='Charter School Adjustments'!H43 -> 0 | Q45: =Transportation!C43 -> 241039.97 | R45: ='Special Education'!C43 -> 213752.27 | S45: 3576238.766 | T45: 36914.74288 | U45: ='HH Calculation'!U43 -> 0 | V45: 3576238.766 | W45: 36914.74288 | X45: ='Local Resources'!BL44 -> 1100926.249 | Y45: 2475312.517 | Z45: 0 | AA45: 0 | AB45: 0
A46: ='School Reference Sheet'!A41 -> 1801000 | B46: ='School Reference Sheet'!B41 -> Sublette #1 | C46: =Inputs!Q44 -> 1012.748333 | D46: =Inputs!T44 -> 9371299.735 | E46: ='Librarian, Clerk, Comp Tech.'!T42 -> 0 | F46: ='Central Office'!K42 -> 1148109.523 | G46: ='O&M Base Sheet'!N43 -> 1229516.09 | H46: =IF(Inputs!$D$100=1,C46*Inputs!$D$159,0) -> 0 | I46: =Utilities!T42 -> 408233.4344 | J46: 12004.12618 | K46: ='Other Add-In''s'!K49 -> 306946.53 | L46: ='Other Add-In''s'!N49 -> 28293.41 | M46: ='Other Add-In''s'!R49 -> 0 | N46: ='Other Add-In''s'!U49 -> 0 | O46: 335239.94 | P46: ='Charter School Adjustments'!H44 -> 0 | Q46: =Transportation!C44 -> 1067325.19 | R46: ='Special Education'!C44 -> 2219959.12 | S46: 15779683.03 | T46: 15581.05061 | U46: ='HH Calculation'!U44 -> 0 | V46: 15779683.03 | W46: 15581.05061 | X46: ='Local Resources'!BL45 -> 90713976.12 | Y46: 0 | Z46: 74934293.09 | AA46: 0 | AB46: 74934293.09
A47: ='School Reference Sheet'!A42 -> 1809000 | B47: ='School Reference Sheet'!B42 -> Sublette #9 | C47: =Inputs!Q45 -> 644.7563333 | D47: =Inputs!T45 -> 6525977.876 | E47: ='Librarian, Clerk, Comp Tech.'!T43 -> 0 | F47: ='Central Office'!K43 -> 853608.6139 | G47: ='O&M Base Sheet'!N44 -> 1030327.748 | H47: =IF(Inputs!$D$100=1,C47*Inputs!$D$159,0) -> 0 | I47: =Utilities!T43 -> 466064.4071 | J47: 13766.40784 | K47: ='Other Add-In''s'!K50 -> 46217.37 | L47: ='Other Add-In''s'!N50 -> 5216.26 | M47: ='Other Add-In''s'!R50 -> 0 | N47: ='Other Add-In''s'!U50 -> 0 | O47: 51433.63 | P47: ='Charter School Adjustments'!H45 -> 0 | Q47: =Transportation!C45 -> 578338.76 | R47: ='Special Education'!C45 -> 1740264.3 | S47: 11246015.33 | T47: 17442.27199 | U47: ='HH Calculation'!U45 -> 0 | V47: 11246015.33 | W47: 17442.27199 | X47: ='Local Resources'!BL46 -> 21277913.83 | Y47: 0 | Z47: 10031898.49 | AA47: 0 | AB47: 10031898.49
A48: ='School Reference Sheet'!A43 -> 1901000 | B48: ='School Reference Sheet'!B43 -> Sweetwater #1 | C48: =Inputs!Q46 -> 5609.235 | D48: =Inputs!T46 -> 49655570.16 | E48: ='Librarian, Clerk, Comp Tech.'!T44 -> 0 | F48: ='Central Office'!K44 -> 4707439.574 | G48: ='O&M Base Sheet'!N45 -> 4695231.259 | H48: =IF(Inputs!$D$100=1,C48*Inputs!$D$159,0) -> 0 | I48: =Utilities!T44 -> 1669052.887 | J48: 10826.30588 | K48: ='Other Add-In''s'!K51 -> 411294.63 | L48: ='Other Add-In''s'!N51 -> 5162.64 | M48: ='Other Add-In''s'!R51 -> 0 | N48: ='Other Add-In''s'!U51 -> 0 | O48: 416457.27 | P48: ='Charter School Adjustments'!H46 -> 0 | Q48: =Transportation!C46 -> 4044139.63 | R48: ='Special Education'!C46 -> 11758318.14 | S48: 76946208.92 | T48: 13717.77237 | U48: ='HH Calculation'!U46 -> 0 | V48: 76946208.92 | W48: 13717.77237 | X48: ='Local Resources'!BL47 -> 58292240.22 | Y48: 18653968.69 | Z48: 0 | AA48: 0 | AB48: 0
A49: ='School Reference Sheet'!A44 -> 1902000 | B49: ='School Reference Sheet'!B44 -> Sweetwater #2 | C49: =Inputs!Q47 -> 2725.412667 | D49: =Inputs!T47 -> 23822860.1 | E49: ='Librarian, Clerk, Comp Tech.'!T45 -> 0 | F49: ='Central Office'!K45 -> 2289881.696 | G49: ='O&M Base Sheet'!N46 -> 2592892.494 | H49: =IF(Inputs!$D$100=1,C49*Inputs!$D$159,0) -> 0 | I49: =Utilities!T45 -> 1156800.43 | J49: 10957.03234 | K49: ='Other Add-In''s'!K52 -> 257318.68 | L49: ='Other Add-In''s'!N52 -> 5999.17 | M49: ='Other Add-In''s'!R52 -> 0 | N49: ='Other Add-In''s'!U52 -> 333471.7 | O49: 596789.55 | P49: ='Charter School Adjustments'!H47 -> 0 | Q49: =Transportation!C47 -> 1919162.4 | R49: ='Special Education'!C47 -> 6389524.34 | S49: 38767911.01 | T49: 14224.6022 | U49: ='HH Calculation'!U47 -> 0 | V49: 38767911.01 | W49: 14224.6022 | X49: ='Local Resources'!BL48 -> 33189058.65 | Y49: 5578852.352 | Z49: 0 | AA49: 0 | AB49: 0
A50: ='School Reference Sheet'!A45 -> 2001000 | B50: ='School Reference Sheet'!B45 -> Teton #1 | C50: =Inputs!Q48 -> 2592.676333 | D50: =Inputs!T48 -> 27926929.46 | E50: ='Librarian, Clerk, Comp Tech.'!T46 -> 0 | F50: ='Central Office'!K46 -> 2520182.758 | G50: ='O&M Base Sheet'!N47 -> 2840821.486 | H50: =IF(Inputs!$D$100=1,C50*Inputs!$D$159,0) -> 0 | I50: =Utilities!T46 -> 653473.6756 | J50: 13091.26286 | K50: ='Other Add-In''s'!K53 -> 441811.02 | L50: ='Other Add-In''s'!N53 -> 30100.6 | M50: ='Other Add-In''s'!R53 -> 0 | N50: ='Other Add-In''s'!U53 -> 209000 | O50: 680911.62 | P50: ='Charter School Adjustments'!H48 -> 0 | Q50: =Transportation!C48 -> 2808099.71 | R50: ='Special Education'!C48 -> 6328755.66 | S50: 43759174.37 | T50: 16877.99353 | U50: ='HH Calculation'!U48 -> 0 | V50: 43759174.37 | W50: 16877.99353 | X50: ='Local Resources'!BL49 -> 39844528.62 | Y50: 3914645.753 | Z50: 0 | AA50: 0 | AB50: 0
A51: ='School Reference Sheet'!A46 -> 2101000 | B51: ='School Reference Sheet'!B46 -> Uinta #1 | C51: =Inputs!Q49 -> 2893.061333 | D51: =Inputs!T49 -> 25241499.14 | E51: ='Librarian, Clerk, Comp Tech.'!T47 -> 0 | F51: ='Central Office'!K47 -> 2411247.766 | G51: ='O&M Base Sheet'!N48 -> 2791116.797 | H51: =IF(Inputs!$D$100=1,C51*Inputs!$D$159,0) -> 0 | I51: =Utilities!T47 -> 1057378.574 | J51: 10888.54976 | K51: ='Other Add-In''s'!K54 -> 222606.35 | L51: ='Other Add-In''s'!N54 -> 5837.05 | M51: ='Other Add-In''s'!R54 -> 0 | N51: ='Other Add-In''s'!U54 -> 0 | O51: 228443.4 | P51: ='Charter School Adjustments'!H49 -> 0 | Q51: =Transportation!C49 -> 1784801.65 | R51: ='Special Education'!C49 -> 5766054.02 | S51: 39280541.35 | T51: 13577.50038 | U51: ='HH Calculation'!U49 -> 0 | V51: 39280541.35 | W51: 13577.50038 | X51: ='Local Resources'!BL50 -> 12754266.52 | Y51: 26526274.83 | Z51: 0 | AA51: 0 | AB51: 0
A52: ='School Reference Sheet'!A47 -> 2104000 | B52: ='School Reference Sheet'!B47 -> Uinta #4 | C52: =Inputs!Q50 -> 784.97 | D52: =Inputs!T50 -> 7026508.285 | E52: ='Librarian, Clerk, Comp Tech.'!T48 -> 0 | F52: ='Central Office'!K48 -> 873683.6835 | G52: ='O&M Base Sheet'!N49 -> 965581.9606 | H52: =IF(Inputs!$D$100=1,C52*Inputs!$D$159,0) -> 0 | I52: =Utilities!T48 -> 290442.9106 | J52: 11664.41627 | K52: ='Other Add-In''s'!K55 -> 118570 | L52: ='Other Add-In''s'!N55 -> 5864.7 | M52: ='Other Add-In''s'!R55 -> 0 | N52: ='Other Add-In''s'!U55 -> 13190.38 | O52: 137625.08 | P52: ='Charter School Adjustments'!H50 -> 0 | Q52: =Transportation!C50 -> 525275.49 | R52: ='Special Education'!C50 -> 1954828.29 | S52: 11773945.7 | T52: 14999.23016 | U52: ='HH Calculation'!U50 -> 0 | V52: 11773945.7 | W52: 14999.23016 | X52: ='Local Resources'!BL51 -> 2828537.233 | Y52: 8945408.467 | Z52: 0 | AA52: 0 | AB52: 0
A53: ='School Reference Sheet'!A48 -> 2106000 | B53: ='School Reference Sheet'!B48 -> Uinta #6 | C53: =Inputs!Q51 -> 753.2103333 | D53: =Inputs!T51 -> 6589137.609 | E53: ='Librarian, Clerk, Comp Tech.'!T49 -> 0 | F53: ='Central Office'!K49 -> 884687.8337 | G53: ='O&M Base Sheet'!N50 -> 1095334.944 | H53: =IF(Inputs!$D$100=1,C53*Inputs!$D$159,0) -> 0 | I53: =Utilities!T49 -> 470316.2324 | J53: 12001.26475 | K53: ='Other Add-In''s'!K56 -> 65638.78 | L53: ='Other Add-In''s'!N56 -> 0 | M53: ='Other Add-In''s'!R56 -> 0 | N53: ='Other Add-In''s'!U56 -> 0 | O53: 65638.78 | P53: ='Charter School Adjustments'!H51 -> 0 | Q53: =Transportation!C51 -> 557335.76 | R53: ='Special Education'!C51 -> 1716177.51 | S53: 11378628.67 | T53: 15106.8409 | U53: ='HH Calculation'!U51 -> 0 | V53: 11378628.67 | W53: 15106.8409 | X53: ='Local Resources'!BL52 -> 4315392.783 | Y53: 7063235.886 | Z53: 0 | AA53: 0 | AB53: 0
A54: ='School Reference Sheet'!A49 -> 2201000 | B54: ='School Reference Sheet'!B49 -> Washakie #1 | C54: =Inputs!Q52 -> 1393.798333 | D54: =Inputs!T52 -> 12551010.6 | E54: ='Librarian, Clerk, Comp Tech.'!T50 -> 0 | F54: ='Central Office'!K50 -> 1328731.146 | G54: ='O&M Base Sheet'!N51 -> 1455262.257 | H54: =IF(Inputs!$D$100=1,C54*Inputs!$D$159,0) -> 0 | I54: =Utilities!T50 -> 457762.7702 | J54: 11330.74017 | K54: ='Other Add-In''s'!K57 -> 148037.334 | L54: ='Other Add-In''s'!N57 -> 0 | M54: ='Other Add-In''s'!R57 -> 0 | N54: ='Other Add-In''s'!U57 -> 0 | O54: 148037.334 | P54: ='Charter School Adjustments'!H52 -> 0 | Q54: =Transportation!C52 -> 609448.44 | R54: ='Special Education'!C52 -> 4351169.01 | S54: 20901421.56 | T54: 14996.0156 | U54: ='HH Calculation'!U52 -> 0 | V54: 20901421.56 | W54: 14996.0156 | X54: ='Local Resources'!BL53 -> 4843014.517 | Y54: 16058407.04 | Z54: 0 | AA54: 0 | AB54: 0
A55: ='School Reference Sheet'!A50 -> 2202000 | B55: ='School Reference Sheet'!B50 -> Washakie #2 | C55: =Inputs!Q53 -> 101.6453333 | D55: =Inputs!T53 -> 1741730.307 | E55: ='Librarian, Clerk, Comp Tech.'!T51 -> 0 | F55: ='Central Office'!K51 -> 507133.8039 | G55: ='O&M Base Sheet'!N52 -> 260076.3715 | H55: =IF(Inputs!$D$100=1,C55*Inputs!$D$159,0) -> 0 | I55: =Utilities!T51 -> 94488.15447 | J55: 25612.86929 | K55: ='Other Add-In''s'!K58 -> 36900.16 | L55: ='Other Add-In''s'!N58 -> 6773.43 | M55: ='Other Add-In''s'!R58 -> 0 | N55: ='Other Add-In''s'!U58 -> 0 | O55: 43673.59 | P55: ='Charter School Adjustments'!H53 -> 0 | Q55: =Transportation!C53 -> 134569.94 | R55: ='Special Education'!C53 -> 183935.72 | S55: 2965607.887 | T55: 29176.03582 | U55: ='HH Calculation'!U53 -> 0 | V55: 2965607.887 | W55: 29176.03582 | X55: ='Local Resources'!BL54 -> 1040320.493 | Y55: 1925287.394 | Z55: 0 | AA55: 0 | AB55: 0
A56: ='School Reference Sheet'!A51 -> 2301000 | B56: ='School Reference Sheet'!B51 -> Weston #1 | C56: =Inputs!Q54 -> 805.846 | D56: =Inputs!T54 -> 7148106.171 | E56: ='Librarian, Clerk, Comp Tech.'!T52 -> 0 | F56: ='Central Office'!K52 -> 916546.4981 | G56: ='O&M Base Sheet'!N53 -> 940088.7836 | H56: =IF(Inputs!$D$100=1,C56*Inputs!$D$159,0) -> 0 | I56: =Utilities!T52 -> 383436.4885 | J56: 11650.0894 | K56: ='Other Add-In''s'!K59 -> 70151.4 | L56: ='Other Add-In''s'!N59 -> 11144.16 | M56: ='Other Add-In''s'!R59 -> 0 | N56: ='Other Add-In''s'!U59 -> 0 | O56: 81295.56 | P56: ='Charter School Adjustments'!H54 -> 0 | Q56: =Transportation!C54 -> 718962.8 | R56: ='Special Education'!C54 -> 2270133.42 | S56: 12458569.72 | T56: 15460.23647 | U56: ='HH Calculation'!U54 -> 0 | V56: 12458569.72 | W56: 15460.23647 | X56: ='Local Resources'!BL55 -> 4966128.404 | Y56: 7492441.318 | Z56: 0 | AA56: 0 | AB56: 0
A57: ='School Reference Sheet'!A52 -> 2307000 | B57: ='School Reference Sheet'!B52 -> Weston #7 | C57: =Inputs!Q55 -> 259.245 | D57: =Inputs!T55 -> 3376222.102 | E57: ='Librarian, Clerk, Comp Tech.'!T53 -> 0 | F57: ='Central Office'!K53 -> 584277.319 | G57: ='O&M Base Sheet'!N54 -> 561046.0643 | H57: =IF(Inputs!$D$100=1,C57*Inputs!$D$159,0) -> 0 | I57: =Utilities!T53 -> 171448.7301 | J57: 18102.54476 | K57: ='Other Add-In''s'!K60 -> 50955.81 | L57: ='Other Add-In''s'!N60 -> 0 | M57: ='Other Add-In''s'!R60 -> 0 | N57: ='Other Add-In''s'!U60 -> 0 | O57: 50955.81 | P57: ='Charter School Adjustments'!H55 -> 0 | Q57: =Transportation!C55 -> 256731.27 | R57: ='Special Education'!C55 -> 824880.47 | S57: 5825561.765 | T57: 22471.25987 | U57: ='HH Calculation'!U55 -> 0 | V57: 5825561.765 | W57: 22471.25987 | X57: ='Local Resources'!BL56 -> 1244338.816 | Y57: 4581222.949 | Z57: 0 | AA57: 0 | AB57: 0
A58: ='School Reference Sheet'!A53 -> 9999999 | B58: ='School Reference Sheet'!B53 -> State Total | C58: =SUM(C10:C57) -> 92397.70767 | D58: 858398442.6 | E58: 0 | F58: 89871231.68 | G58: 95873946.31 | H58: 0 | I58: 34114650.78 | J58: =SUM(D10:I57)/C58 -> 11669.75132 | K58: ='Other Add-In''s'!K61 -> 12326095.36 | L58: =SUM(L10:L57) -> 484473.23 | M58: 232974.53 | N58: 1474223.38 | O58: 14517766.5 | P58: 0 | Q58: 73403146.44 | R58: 211784154.8 | S58: =SUM(S10:S57) -> 1377963339 | T58: 14913.39313 | U58: =SUM(U10:U57) -> 0 | V58: =SUM(V10:V57) -> 1377963339 | W58: =V58/C58 -> 14913.39313 | X58: =SUM(X10:X57) -> 836809493 | Y58: =SUM(Y10:Y57) -> 709521678.7 | Z58: =SUM(Z10:Z57) -> 168367832.5 | AA58: =SUM(AA10:AA57) -> 129633.1693 | AB58: =SUM(AB10:AB57) -> 168238199.4

Sheet Inputs
A1: Inputs Worksheet
P3: Model ADM By District | S3: School Resources Total | V3: Custodians | Y3: Maintenance Workers FTE | AB3: Groundskeepers | AE3: Average School ADM | AJ3: Maintenance worker factor | AN3: O&M Supplies | AQ3: District Total Model GSF | AT3: District Model ADM - Elem, Mid, and High
P6: Sum of Total ADM | S6: Sum of Resources | V6: Sum of FTE3 | Y6: Sum of MW FTE | AB6: Sum of Site FTE2 | AE6: District ID | AF6: Data | AG6: Total | AJ6: SD ID | AK6: SD Name | AL6: Operating GF | AN6: Sum of Supplies | AQ6: Sum of Model GSF | AU6: Data
C7: Total Cost of Model | P7: District ID | Q7: Total | S7: District ID | T7: Total | V7: District ID | W7: Total | Y7: District ID | Z7: Total | AB7: District ID | AC7: Total | AE7: 0101000 | AF7: Sum of Total | AG7: 3767.067 | AH7: =AG7/AG8 -> 221.5921765 | AJ7: 0101000 | AK7: Albany #1 | AL7: 33292037.8 | AN7: District ID | AO7: Total | AQ7: District ID | AR7: Total | AT7: District ID | AU7: Sum of Elem ADM | AV7: Sum of Mid ADM | AW7: Sum of High ADM
P8: 0101000 | Q8: 3767.067 | S8: 0101000 | T8: 33141437.48 | V8: 0101000 | W8: 25.54253088 | Y8: 0101000 | Z8: 12.98719635 | AB8: 0101000 | AC8: 9.987310757 | AF8: Count of School ID | AG8: 17 | AJ8: 0201000 | AK8: Big Horn #1 | AL8: 7958234.48 | AN8: 0101000 | AO8: 426726.055 | AQ8: 0101000 | AR8: 659549.9 | AT8: 0101000 | AU8: 2008.916667 | AV8: 960.4303333 | AW8: 797.72
D9: ='Base Sheet'!S58 -> 1377963339 | E9: without hold harmless | P9: 0201000 | Q9: 980.4466667 | S9: 0201000 | T9: 10079943.51 | V9: 0201000 | W9: 7.395620122 | Y9: 0201000 | Z9: 4.697727841 | AB9: 0201000 | AC9: 5.841583342 | AE9: 0201000 | AF9: Sum of Total | AG9: 980.4466667 | AH9: =AG9/AG10 -> 163.4077778 | AJ9: 0202000 | AK9: Big Horn #2 | AL9: 6269762.6 | AN9: 0201000 | AO9: 128852.7841 | AQ9: 0201000 | AR9: 199155.5 | AT9: 0201000 | AU9: 418.07 | AV9: 215.605 | AW9: 346.7716667
P10: 0202000 | Q10: 698.818 | S10: 0202000 | T10: 6278441.376 | V10: 0202000 | W10: 6.394196433 | Y10: 0202000 | Z10: 3.467418426 | AB10: 0202000 | AC10: 4.710903884 | AF10: Count of School ID | AG10: 6 | AJ10: 0203000 | AK10: Big Horn #3 | AL10: 5184454.41 | AN10: 0202000 | AO10: 117274.1785 | AQ10: 0202000 | AR10: 181259.55 | AT10: 0202000 | AU10: 337.726 | AV10: 156.018 | AW10: 205.074
C11: Simulation Difference in Cost of Model | P11: 0203000 | Q11: 522.6 | S11: 0203000 | T11: 4950608.349 | V11: 0203000 | W11: 5.171340234 | Y11: 0203000 | Z11: 2.980453821 | AB11: 0203000 | AC11: 1.8279238 | AE11: 0202000 | AF11: Sum of Total | AG11: 698.818 | AH11: =AG11/AG12 -> 232.9393333 | AJ11: 0204000 | AK11: Big Horn #4 | AL11: 4416078.45 | AN11: 0203000 | AO11: 95919.33608 | AQ11: 0203000 | AR11: 148253.4 | AT11: 0203000 | AU11: 216.743 | AV11: 126.857 | AW11: 179
P12: 0204000 | Q12: 304.8103333 | S12: 0204000 | T12: 3819996.022 | V12: 0204000 | W12: 4.172555484 | Y12: 0204000 | Z12: 2.521733268 | AB12: 0204000 | AC12: 1.829663845 | AF12: Count of School ID | AG12: 3 | AJ12: 0301000 | AK12: Campbell #1 | AL12: 60606522.55 | AN12: 0204000 | AO12: 60251.29539 | AQ12: 0204000 | AR12: 93124.7 | AT12: 0204000 | AU12: 143.328 | AV12: 67.86433333 | AW12: 93.618
P13: 0301000 | Q13: 8805.741667 | S13: 0301000 | T13: 79353491.29 | V13: 0301000 | W13: 53.07539052 | Y13: 0301000 | Z13: 22.40974117 | AB13: 0301000 | AC13: 30.55372767 | AE13: 0203000 | AF13: Sum of Total | AG13: 522.6 | AH13: =AG13/AG14 -> 174.2 | AJ13: 0401000 | AK13: Carbon #1 | AL13: 15408440.63 | AN13: 0301000 | AO13: 925560.2191 | AQ13: 0301000 | AR13: 1430550.45 | AT13: 0301000 | AU13: 5123.884667 | AV13: 1944.353667 | AW13: 1737.503333
P14: 0401000 | Q14: 1860.820333 | S14: 0401000 | T14: 16934270.34 | V14: 0401000 | W14: 13.84476585 | Y14: 0401000 | Z14: 7.537356966 | AB14: 0401000 | AC14: 8.233176529 | AF14: Count of School ID | AG14: 3 | AJ14: 0402000 | AK14: Carbon #2 | AL14: 10080412.46 | AN14: 0401000 | AO14: 255387.5437 | AQ14: 0401000 | AR14: 394728.25 | AT14: 0401000 | AU14: 936.6773333 | AV14: 416.425 | AW14: 507.718
P15: 0402000 | Q15: 667.376 | S15: 0402000 | T15: 8777190.176 | V15: 0402000 | W15: 8.204122599 | Y15: 0402000 | Z15: 6.403514249 | AB15: 0402000 | AC15: 11.16741036 | AE15: 0204000 | AF15: Sum of Total | AG15: 304.8103333 | AH15: =AG15/AG16 -> 76.20258333 | AJ15: 0501000 | AK15: Converse #1 | AL15: 13759424.19 | AN15: 0402000 | AO15: 140476.4852 | AQ15: 0402000 | AR15: 217121.15 | AT15: 0402000 | AU15: 353.4773333 | AV15: 116.2106667 | AW15: 197.688
D16: Ctrl+r Refreshes All Pivot Tables | P16: 0501000 | Q16: 1747.349 | S16: 0501000 | T16: 15361687.25 | V16: 0501000 | W16: 12.7221816 | Y16: 0501000 | Z16: 7.050993583 | AB16: 0501000 | AC16: 13.41413845 | AF16: Count of School ID | AG16: 4 | AJ16: 0502000 | AK16: Converse #2 | AL16: 7221861.36 | AN16: 0501000 | AO16: 238508.8128 | AQ16: 0501000 | AR16: 368640.4 | AT16: 0501000 | AU16: 840.9523333 | AV16: 384.1026667 | AW16: 522.294
P17: 0502000 | Q17: 688.2403333 | S17: 0502000 | T17: 6589919.739 | V17: 0502000 | W17: 6.533346577 | Y17: 0502000 | Z17: 3.801696446 | AB17: 0502000 | AC17: 2.995815762 | AE17: 0301000 | AF17: Sum of Total | AG17: 8805.741667 | AH17: =AG17/AG18 -> 419.3210317 | AJ17: 0601000 | AK17: Crook #1 | AL17: 12161309.61 | AN17: 0502000 | AO17: 117604.7287 | AQ17: 0502000 | AR17: 181770.45 | AT17: 0502000 | AU17: 372.0806667 | AV17: 107.055 | AW17: 209.1046667
P18: 0601000 | Q18: 1116.975333 | S18: 0601000 | T18: 12087610.27 | V18: 0601000 | W18: 10.51435632 | Y18: 0601000 | Z18: 6.820989262 | AB18: 0601000 | AC18: 7.040998506 | AF18: Count of School ID | AG18: 21 | AJ18: 0701000 | AK18: Fremont #1 | AL18: 16308972.9 | AN18: 0601000 | AO18: 195536.4476 | AQ18: 0601000 | AR18: 302222.1 | AT18: 0601000 | AU18: 589.536 | AV18: 184.4403333 | AW18: 342.999
P19: 0701000 | Q19: 1688.173667 | S19: 0701000 | T19: 15031852.77 | V19: 0701000 | W19: 10.74130741 | Y19: 0701000 | Z19: 6.539545534 | AB19: 0701000 | AC19: 15.45708167 | AE19: 0401000 | AF19: Sum of Total | AG19: 1860.820333 | AH19: =AG19/AG20 -> 265.8314762 | AJ19: 0702000 | AK19: Fremont #2 | AL19: 3086129.3 | AN19: 0701000 | AO19: 220341.2984 | AQ19: 0701000 | AR19: 340560.6 | AT19: 0701000 | AU19: 821.451 | AV19: 368.495 | AW19: 498.2276667
P20: 0702000 | Q20: 160.8453333 | S20: 0702000 | T20: 2179626.493 | V20: 0702000 | W20: 1.698038631 | Y20: 0702000 | Z20: 1.701720305 | AB20: 0702000 | AC20: 2.455839143 | AF20: Count of School ID | AG20: 7 | AJ20: 0706000 | AK20: Fremont #6 | AL20: 4624752.55 | AN20: 0702000 | AO20: 35313.87515 | AQ20: 0702000 | AR20: 54581.3 | AT20: 0702000 | AU20: 75.272 | AV20: 39.367 | AW20: 46.20633333
P21: 0706000 | Q21: 383.8273333 | S21: 0706000 | T21: 4218897.927 | V21: 0706000 | W21: 3.777696368 | Y21: 0706000 | Z21: 2.728114807 | AB21: 0706000 | AC21: 6.924053785 | AE21: 0402000 | AF21: Sum of Total | AG21: 667.376 | AH21: =AG21/AG22 -> 95.33942857 | AJ21: 0714000 | AK21: Fremont #14 | AL21: 10029943.78 | AN21: 0706000 | AO21: 71897.83553 | AQ21: 0706000 | AR21: 111125.65 | AT21: 0706000 | AU21: 170.0146667 | AV21: 93.775 | AW21: 120.0376667
P22: 0714000 | Q22: 618.6676667 | S22: 0714000 | T22: 6199131.348 | V22: 0714000 | W22: 6.182914359 | Y22: 0714000 | Z22: 3.544424632 | AB22: 0714000 | AC22: 13.25226843 | AF22: Count of School ID | AG22: 7 | AJ22: 0721000 | AK22: Fremont #21 | AL22: 5997468.19 | AN22: 0714000 | AO22: 107763.0482 | AQ22: 0714000 | AR22: 166559.1 | AT22: 0714000 | AU22: 318.7986667 | AV22: 150.983 | AW22: 148.886
P23: 0721000 | Q23: 481.0643333 | S23: 0721000 | T23: 5393704.846 | V23: 0721000 | W23: 4.605408408 | Y23: 0721000 | Z23: 2.202716842 | AB23: 0721000 | AC23: 4.306113048 | AE23: 0501000 | AF23: Sum of Total | AG23: 1747.349 | AH23: =AG23/AG24 -> 174.7349 | AJ23: 0724000 | AK23: Fremont #24 | AL23: 3610727.43 | AN23: 0721000 | AO23: 60667.66958 | AQ23: 0721000 | AR23: 93768.25 | AT23: 0721000 | AU23: 353.562 | AV23: 75.61566667 | AW23: 51.88666667
P24: 0724000 | Q24: 359.9916667 | S24: 0724000 | T24: 3860183.362 | V24: 0724000 | W24: 3.661449626 | Y24: 0724000 | Z24: 2.534415201 | AB24: 0724000 | AC24: 2.498356076 | AF24: Count of School ID | AG24: 10 | AJ24: 0725000 | AK24: Fremont #25 | AL24: 20188521.48 | AN24: 0724000 | AO24: 63212.59545 | AQ24: 0724000 | AR24: 97701.7 | AT24: 0724000 | AU24: 192.445 | AV24: 58.64166667 | AW24: 108.905
P25: 0725000 | Q25: 2604.278333 | S25: 0725000 | T25: 22430240.79 | V25: 0725000 | W25: 15.95557242 | Y25: 0725000 | Z25: 7.465087911 | AB25: 0725000 | AC25: 9.689506972 | AE25: 0502000 | AF25: Sum of Total | AG25: 688.2403333 | AH25: =AG25/AG26 -> 137.6480667 | AJ25: 0738000 | AK25: Fremont #38 | AL25: 6746860.92 | AN25: 0725000 | AO25: 301445.5292 | AQ25: 0725000 | AR25: 465915.7 | AT25: 0725000 | AU25: 1270.404 | AV25: 563.5313333 | AW25: 770.343
P26: 0738000 | Q26: 433.242 | S26: 0738000 | T26: 4458201.233 | V26: 0738000 | W26: 3.090279989 | Y26: 0738000 | Z26: 1.964686228 | AB26: 0738000 | AC26: 10.78948207 | AF26: Count of School ID | AG26: 5 | AJ26: 0801000 | AK26: Goshen #1 | AL26: 16306459.91 | AN26: 0738000 | AO26: 51885.83302 | AQ26: 0738000 | AR26: 80195 | AT26: 0738000 | AU26: 289.961 | AV26: 103.815 | AW26: 39.466
P27: 0801000 | Q27: 1729.953667 | S27: 0801000 | T27: 17712905.11 | V27: 0801000 | W27: 15.31717169 | Y27: 0801000 | Z27: 8.362519699 | AB27: 0801000 | AC27: 10.74716105 | AE27: 0601000 | AF27: Sum of Total | AG27: 1116.975333 | AH27: =AG27/AG28 -> 186.1625556 | AJ27: 0901000 | AK27: Hot Springs #1 | AL27: 7452789.55 | AN27: 0801000 | AO27: 273334.4325 | AQ27: 0801000 | AR27: 422467.05 | AT27: 0801000 | AU27: 782.2296667 | AV27: 396.9836667 | AW27: 550.7403333
P28: 0901000 | Q28: 639.0933333 | S28: 0901000 | T28: 5643347.676 | V28: 0901000 | W28: 6.213799045 | Y28: 0901000 | Z28: 3.365966818 | AB28: 0901000 | AC28: 3.021805279 | AF28: Count of School ID | AG28: 6 | AJ28: 1001000 | AK28: Johnson #1 | AL28: 11761951.22 | AN28: 0901000 | AO28: 112997.4065 | AQ28: 0901000 | AR28: 174649.35 | AT28: 0901000 | AU28: 231.6336667 | AV28: 217.7116667 | AW28: 189.748
B29: Simulation Parameters | P29: 1001000 | Q29: 1277.220667 | S29: 1001000 | T29: 12234738.58 | V29: 1001000 | W29: 11.42099761 | Y29: 1001000 | Z29: 5.495032858 | AB29: 1001000 | AC29: 22.25482775 | AE29: 0701000 | AF29: Sum of Total | AG29: 1688.173667 | AH29: =AG29/AG30 -> 281.3622778 | AJ29: 1101000 | AK29: Laramie #1 | AL29: 103951852.1 | AN29: 1001000 | AO29: 204120.8534 | AQ29: 1001000 | AR29: 315490.2 | AT29: 1001000 | AU29: 609.9283333 | AV29: 277.9616667 | AW29: 389.3306667
P30: 1101000 | Q30: 13691.802 | S30: 1101000 | T30: 125554553.2 | V30: 1101000 | W30: 82.97082557 | Y30: 1101000 | Z30: 36.933255 | AB30: 1101000 | AC30: 65.44015352 | AF30: Count of School ID | AG30: 6 | AJ30: 1102000 | AK30: Laramie #2 | AL30: 10092882.54 | AN30: 1101000 | AO30: 1401981.864 | AQ30: 1101000 | AR30: 2166910.1 | AT30: 1101000 | AU30: 7808.276 | AV30: 2042.518 | AW30: 3841.008
P31: 1102000 | Q31: 967.203 | S31: 1102000 | T31: 9922142.445 | V31: 1102000 | W31: 9.306614071 | Y31: 1102000 | Z31: 5.570989331 | AB31: 1102000 | AC31: 5.854183267 | AE31: 0702000 | AF31: Sum of Total | AG31: 160.8453333 | AH31: =AG31/AG32 -> 53.61511111 | AJ31: 1201000 | AK31: Lincoln #1 | AL31: 7383118.86 | AN31: 1102000 | AO31: 160691.4503 | AQ31: 1102000 | AR31: 248365.5 | AT31: 1102000 | AU31: 554.252 | AV31: 141.8363333 | AW31: 271.1146667
C32: ADM | P32: 1201000 | Q32: 619.668 | S32: 1201000 | T32: 5537580.155 | V32: 1201000 | W32: 6.175288344 | Y32: 1201000 | Z32: 4.012839321 | AB32: 1201000 | AC32: 6.067231076 | AF32: Count of School ID | AG32: 3 | AJ32: 1202000 | AK32: Lincoln #2 | AL32: 21352195.02 | AN32: 1201000 | AO32: 104550.3256 | AQ32: 1201000 | AR32: 161593.5 | AT32: 1201000 | AU32: 269.393 | AV32: 176.144 | AW32: 174.131
